Workbook

Sheet Settings (hidden)
T1: Settings | AB1: 4
AB2: 2019/20 | BC2: 1 | BD2: 2 | BE2: 3 | BF2: 4 | BG2: 5 | BH2: 6 | BI2: 7 | BJ2: 8
T3: Province No. | U3: Cat No. | V3: Code No. | X3: Category | Y3: Code | Z3: Municipality | AA3: No. | AB3: Financial year | AC3: Province | AD3: Pdept | AE3: Conditional Grants | AF3: Vote | AG3: Vote no. | AH3: CG_ID | AI3: Vote_ID | AJ3: Schedules | AK3: SCHEDULE 4, PART A | AL3: SCHEDULE 5, PART A | AM3: SCHEDULE 6, PART A | AN3: SCHEDULE 7, PART A | AO3: Type of Allocation | AP3: SCHEDULE 4, PART B | AQ3: SCHEDULE 5, PART B | AR3: SCHEDULE 6, PART B | AS3: SCHEDULE 7, PART B | AT3: Type of Grant (Schedule 5, Part B) | AV3: Framework: Grant Name | AW3: Framework: Transferring Department | AX3: Framework: Grant Schedule | AY3: Framework: MTEF Allocations | AZ3: Framework: Payment Schedule | BA3: Framework Purpose
T4: 1 | U4: 1 | V4: 1 | X4: A | Y4: BUF | Z4: Buffalo City | AA4: 1 | AB4: 2014/15 | AC4: Eastern Cape | AD4: Education | AE4: Comprehensive Agricultural Support Programme Grant | AF4: Agriculture, Land Reform and Rural Development | AG4: 29 | AH4: 1 | AI4: 1 | AJ4: SCHEDULE 5, PART A | AK4: =IF($AJ4=AK$3,1,0) -> 0 | AL4: =IF($AJ4=AL$3,1,0) -> 1 | AM4: =IF($AJ4=AM$3,1,0) -> 0 | AN4: =IF($AJ4=AN$3,1,0) -> 0 | AO4: Conditional allocation | AP4: =IF($AJ4=AP$3,1,0) -> 0 | AQ4: =IF($AJ4=AQ$3,1,0) -> 0 | AR4: =IF($AJ4=AR$3,1,0) -> 0 | AS4: =IF($AJ4=AS$3,1,0) -> 0 | AU4: RECURRENT GRANTS | AV4: Provincial Roads Maintenance Grant | AW4: Transport (Vote 40) | AX4: Schedule 4, Part A | AY4: 2020/21: R11.6 billion; 2021/22: R12 billion and 2022/23 R12.5 billion | AZ4: Payment will be made in accordance with a payment schedule agreed to with provinces and approved by National Treasury | BA4: Grant purpose | BB4: =TRIM(BC4)&IF(BD4<>"","; " & TRIM(BD4),"")&IF(BE4<>"","; "& TRIM(BE4),"")&IF(BF4<>"","; " & TRIM(BF4),"")&IF(BG4<>"","; "& TRIM(BG4),"")&IF(BH4<>"","; "& TRIM(BH4),"")&IF(BI4<>"","; "& TRIM(BI4),"")&IF(BJ4<>"","; "& TRIM(BJ4),"") -> To supplement provincial investments for road infrastructure maintenance (routine, periodic and special maintenance); to ensure that all roads are classified as per the Road Infrastructure Strategic Framework for South Africa and the technical recommendations for highways, and the Road Classification and Access Management guidelines; to implement and maintain road asset management systems; to supplement provincial projects for the repair of roads and bridges damaged by unforeseen incidents including natural disasters; to improve road safety with a special focus on pedestrian safety in rural areas | BC4: To supplement provincial investments for road infrastructure maintenance (routine, periodic and special maintenance) | BD4: to ensure that all roads are classified as per the Road Infrastructure Strategic Framework for South Africa and the technical recommendations for highways, and the Road Classification and Access Management guidelines | BE4: to implement and maintain road asset management systems | BF4: to supplement provincial projects for the repair of roads and bridges damaged by unforeseen incidents including natural disasters | BG4: to improve road safety with a special focus on pedestrian safety in rural areas
T5: 1 | U5: =IF(T5=T4,IF(X5=X4,U4,U4+1),1) -> 1 | V5: =IF(U5=U4,V4+1,1) -> 2 | X5: A | Y5: NMA | Z5: Nelson Mandela Bay | AA5: 2 | AB5: 2015/16 | AC5: Eastern Cape | AD5: Health | AE5: Ilima/Letsema Projects Grant | AF5: Agriculture, Land Reform and Rural Development | AG5: 29 | AH5: =IF(AI5="","",IF(AI5=AI4,AH4+1,1)) -> 2 | AI5: =IF(AF5="","",IF(AF5=AF4,AI4,AI4+1)) -> 1 | AJ5: SCHEDULE 5, PART A | AK5: =IF($AJ5=AK$3,MAX(AK$4:AK4,0)+1,0) -> 0 | AL5: =IF($AJ5=AL$3,MAX(AL$4:AL4,0)+1,0) -> 2 | AM5: =IF($AJ5=AM$3,MAX(AM$4:AM4,0)+1,0) -> 0 | AN5: =IF($AJ5=AN$3,MAX(AN$4:AN4,0)+1,0) -> 0 | AO5: Conditional allocation | AP5: =IF($AJ5=AP$3,MAX(AP$4:AP4,0)+1,0) -> 0 | AQ5: =IF($AJ5=AQ$3,MAX(AQ$4:AQ4,0)+1,0) -> 0 | AR5: =IF($AJ5=AR$3,MAX(AR$4:AR4,0)+1,0) -> 0 | AS5: =IF($AJ5=AS$3,MAX(AS$4:AS4,0)+1,0) -> 0 | AU5: INFRASTRUCTURE GRANTS | AV5: Public Transport Operations Grant | AW5: Transport (Vote 40) | AX5: Schedule 4, Part A | AY5: 2020/21: R6.7 billion; 2021/22: R7.1 billion and 2022/23: R7.1 billion | AZ5: Monthly instalments according to a payment schedule approved by National Treasury | BA5: Grant purpose | BB5: =TRIM(BC5)&IF(BD5<>"","; " & TRIM(BD5),"")&IF(BE5<>"","; "& TRIM(BE5),"")&IF(BF5<>"","; " & TRIM(BF5),"")&IF(BG5<>"","; "& TRIM(BG5),"")&IF(BH5<>"","; "& TRIM(BH5),"")&IF(BI5<>"","; "& TRIM(BI5),"")&IF(BJ5<>"","; "& TRIM(BJ5),"") -> To provide supplementary funding towards public transport services provided by provincial departments of transport | BC5: To provide supplementary funding towards public transport services provided by provincial departments of transport
O6: Provincial Frameworks Directory … | T6: 1 | U6: =IF(T6=T5,IF(X6=X5,U5,U5+1),1) -> 2 | V6: =IF(U6=U5,V5+1,1) -> 1 | X6: B | Y6: EC101 | Z6: Dr Beyers Naude | AA6: 3 | AB6: 2016/17 | AC6: Eastern Cape | AD6: Social Development | AE6: Land Care Programme Grant: Poverty Relief and Infrastructure Development | AF6: Agriculture, Land Reform and Rural Development | AG6: 29 | AH6: 3 | AI6: 1 | AJ6: SCHEDULE 5, PART A | AK6: =IF($AJ6=AK$3,MAX(AK$4:AK5,0)+1,0) -> 0 | AL6: =IF($AJ6=AL$3,MAX(AL$4:AL5,0)+1,0) -> 3 | AM6: =IF($AJ6=AM$3,MAX(AM$4:AM5,0)+1,0) -> 0 | AN6: =IF($AJ6=AN$3,MAX(AN$4:AN5,0)+1,0) -> 0 | AO6: Conditional allocation | AP6: =IF($AJ6=AP$3,MAX(AP$4:AP5,0)+1,0) -> 0 | AQ6: =IF($AJ6=AQ$3,MAX(AQ$4:AQ5,0)+1,0) -> 0 | AR6: =IF($AJ6=AR$3,MAX(AR$4:AR5,0)+1,0) -> 0 | AS6: =IF($AJ6=AS$3,MAX(AS$4:AS5,0)+1,0) -> 0 | AV6: Comprehensive Agricultural Support Programme Grant | AW6: Agriculture, Land Reform and Rural Development (Vote 29) | AX6: Schedule 5, Part A | AY6: 2020/21: R1.5 billion, 2021/22: R1.6billion and 2022/23: R1.7 billion | AZ6: Four instalments: 15 May 2020, 28 August 2020, 30 October 2020, and 29 January 2021 | BA6: Grant purpose | BB6: To provide effective agricultural support services, promote and facilitate agricultural development by targeting beneficiaries of land reform, restitution and redistribution, and other black producers who have acquired land through private means and are engaged in value-adding enterprises domestically, or involved in export; to revitalise agricultural colleges into centres of excellence | BC6: To provide effective agricultural support services, promote and facilitate agricultural development by targeting beneficiaries of land reform, restitution and redistribution, and other black producers who have acquired land through private means and are engaged in value-adding enterprises domestically, or involved in export | BD6: to revitalise agricultural colleges into centres of excellence
O7: C:\Users\Jonathan\Desktop\DoRA PDF macro\Word\Final Prov Frameworks | T7: 1 | U7: 2 | V7: 2 | X7: B | Y7: EC102 | Z7: Blue Crane Route | AA7: 4 | AB7: 2017/18 | AC7: Eastern Cape | AD7: Office of the Premier | AE7: Education Infrastructure Grant | AF7: Basic Education | AG7: 16 | AH7: =IF(AI7="","",IF(AI7=AI6,AH6+1,1)) -> 1 | AI7: =IF(AF7="","",IF(AF7=AF6,AI6,AI6+1)) -> 2 | AJ7: SCHEDULE 4, PART A | AK7: =IF($AJ7=AK$3,MAX(AK$4:AK6,0)+1,0) -> 1 | AL7: =IF($AJ7=AL$3,MAX(AL$4:AL6,0)+1,0) -> 0 | AM7: =IF($AJ7=AM$3,MAX(AM$4:AM6,0)+1,0) -> 0 | AN7: =IF($AJ7=AN$3,MAX(AN$4:AN6,0)+1,0) -> 0 | AO7: General conditional allocation to provinces | AP7: =IF($AJ7=AP$3,MAX(AP$4:AP6,0)+1,0) -> 0 | AQ7: =IF($AJ7=AQ$3,MAX(AQ$4:AQ6,0)+1,0) -> 0 | AR7: =IF($AJ7=AR$3,MAX(AR$4:AR6,0)+1,0) -> 0 | AS7: =IF($AJ7=AS$3,MAX(AS$4:AS6,0)+1,0) -> 0 | AV7: Ilima/Letsema Projects Grant | AW7: Agriculture, Land Reform and Rural Development (Vote 29) | AX7: Schedule 5, Part A and Schedule 6, Part A | AY7: Direct transfers (Schedule 5, Part A):2020/21: R549 million, 2021/22: R614 million and 2022/23: R632 millionAllocations-in-kind (Schedule 6, Part A)2020/21: R36 million | AZ7: Transfers for Schedule 5, Part A:Four instalments: 15 May 2020, 28 August 2020, 30 October 2020, and 29 January 2021Transfers for Schedule 6, Part ATwo instalments: 15 May 2020, 28 August 2020 | BA7: Grant purpose | BB7: To assist vulnerable South African farming communities to achieve an increase in agricultural production and invest in infrastructure that unlocks agricultural production within strategically identified grain, livestock, horticulture and aquaculture production areas | BC7: To assist vulnerable South African farming communities to achieve an increase in agricultural production and invest in infrastructure that unlocks agricultural production within strategically identified grain, livestock, horticulture and aquaculture production areas
T8: 1 | U8: 2 | V8: 3 | X8: B | Y8: EC104 | Z8: Makana | AA8: 5 | AB8: 2018/19 | AC8: Eastern Cape | AD8: Provincial Legislature | AE8: HIV and AIDS (Life Skills Education) Grant | AF8: Basic Education | AG8: 16 | AH8: 2 | AI8: 2 | AJ8: SCHEDULE 5, PART A | AK8: =IF($AJ8=AK$3,MAX(AK$4:AK7,0)+1,0) -> 0 | AL8: =IF($AJ8=AL$3,MAX(AL$4:AL7,0)+1,0) -> 4 | AM8: =IF($AJ8=AM$3,MAX(AM$4:AM7,0)+1,0) -> 0 | AN8: =IF($AJ8=AN$3,MAX(AN$4:AN7,0)+1,0) -> 0 | AO8: Conditional allocation | AP8: =IF($AJ8=AP$3,MAX(AP$4:AP7,0)+1,0) -> 0 | AQ8: =IF($AJ8=AQ$3,MAX(AQ$4:AQ7,0)+1,0) -> 0 | AR8: =IF($AJ8=AR$3,MAX(AR$4:AR7,0)+1,0) -> 0 | AS8: =IF($AJ8=AS$3,MAX(AS$4:AS7,0)+1,0) -> 0 | AV8: Land Care Programme Grant: Poverty Relief and Infrastructure Development | AW8: Agriculture, Land Reform and Rural Development (Vote 29) | AX8: Schedule 5, Part A | AY8: 2020/21: R82 million; 2021/22: R86 million and 2022/23: R88 million | AZ8: Allocation to provinces will be disbursed on a quarterly basis (23 April 2020, 20 August 2020, 19 October 2020 and 22 January 2021)Percentage allocation per province will depend on the approved provincial business plan budget | BA8: Grant purpose | BB8: To promote sustainable use and management of natural resources by engaging in community based initiatives that support the pillars of sustainability (social, economic and environmental), leading to greater productivity, food security, job creation and better well-being for all | BC8: To promote sustainable use and management of natural resources by engaging in community based initiatives that support the pillars of sustainability (social, economic and environmental), leading to greater productivity, food security, job creation and better well-being for all
O9: Local Frameworks Directory … | T9: 1 | U9: 2 | V9: 4 | X9: B | Y9: EC105 | Z9: Ndlambe | AA9: 6 | AB9: 2019/20 | AC9: Eastern Cape | AD9: Public Works | AE9: Learners With Profound Intellectual Disabilities Grant | AF9: Basic Education | AG9: 16 | AH9: 3 | AI9: 2 | AJ9: SCHEDULE 5, PART A | AK9: =IF($AJ9=AK$3,MAX(AK$4:AK8,0)+1,0) -> 0 | AL9: =IF($AJ9=AL$3,MAX(AL$4:AL8,0)+1,0) -> 5 | AM9: =IF($AJ9=AM$3,MAX(AM$4:AM8,0)+1,0) -> 0 | AN9: =IF($AJ9=AN$3,MAX(AN$4:AN8,0)+1,0) -> 0 | AO9: Conditional allocation | AP9: =IF($AJ9=AP$3,MAX(AP$4:AP8,0)+1,0) -> 0 | AQ9: =IF($AJ9=AQ$3,MAX(AQ$4:AQ8,0)+1,0) -> 0 | AR9: =IF($AJ9=AR$3,MAX(AR$4:AR8,0)+1,0) -> 0 | AS9: =IF($AJ9=AS$3,MAX(AS$4:AS8,0)+1,0) -> 0 | AV9: Education Infrastructure Grant | AW9: Basic Education (Vote 16) | AX9: Schedule 4, Part A | AY9: Grant continues until 2022/23, subject to review | AZ9: 2020/21: R11 billion; 2021/22: R11.7 billion and 2022/23: R12.3 billion | BA9: Grant purpose | BB9: To help accelerate construction, maintenance, upgrading and rehabilitation of new and existing infrastructure in education including district and circuit accommodation; to enhance capacity to deliver infrastructure in education; to address damages to infrastructure; to address achievement of the targets set out in the minimum norms and standards for school infrastructure | BC9: To help accelerate construction, maintenance, upgrading and rehabilitation of new and existing infrastructure in education including district and circuit accommodation | BD9: to enhance capacity to deliver infrastructure in education | BE9: to address damages to infrastructure | BF9: to address achievement of the targets set out in the minimum norms and standards for school infrastructure
O10: C:\Users\Jonathan\Desktop\DoRA PDF macro\Word\Final LG Frameworks | T10: 1 | U10: 2 | V10: 5 | X10: B | Y10: EC106 | Z10: Sundays River Valley | AA10: 7 | AC10: Eastern Cape | AD10: Cooperative Governance and Traditional Affairs | AE10: Maths, Science and Technology Grant | AF10: Basic Education | AG10: 16 | AH10: 4 | AI10: 2 | AJ10: SCHEDULE 5, PART A | AK10: =IF($AJ10=AK$3,MAX(AK$4:AK9,0)+1,0) -> 0 | AL10: =IF($AJ10=AL$3,MAX(AL$4:AL9,0)+1,0) -> 6 | AM10: =IF($AJ10=AM$3,MAX(AM$4:AM9,0)+1,0) -> 0 | AN10: =IF($AJ10=AN$3,MAX(AN$4:AN9,0)+1,0) -> 0 | AO10: Conditional allocation | AP10: =IF($AJ10=AP$3,MAX(AP$4:AP9,0)+1,0) -> 0 | AQ10: =IF($AJ10=AQ$3,MAX(AQ$4:AQ9,0)+1,0) -> 0 | AR10: =IF($AJ10=AR$3,MAX(AR$4:AR9,0)+1,0) -> 0 | AS10: =IF($AJ10=AS$3,MAX(AS$4:AS9,0)+1,0) -> 0 | AV10: HIV and AIDS (Life Skills Education) Grant | AW10: Basic Education (Vote 16) | AX10: Schedule 5, Part A | AY10: 2020/21: R246.7 million; 2021/22 : R258.5 million and : R262.2 million | AZ10: Four instalments: 17 April 2020 ; 24 July 2020 ; 30 October 2020 and 29 January 2021 | BA10: Grant purpose | BB10: To support South Africa’s HIV prevention strategy by: providing comprehensive sexuality education and access to sexual and reproductive health services to learners; supporting the provision of employee health and wellness programmes for educators; to mitigate the impact of HIV and TB by providing a caring, supportive and enabling environment for learners and educators; to reduce the vulnerability of children to HIV, TB and sexually transmitted infections, with a particular focus on orphaned children and girls | BC10: To support South Africa’s HIV prevention strategy by: providing comprehensive sexuality education and access to sexual and reproductive health services to learners | BD10: supporting the provision of employee health and wellness programmes for educators | BE10: to mitigate the impact of HIV and TB by providing a caring, supportive and enabling environment for learners and educators | BF10: to reduce the vulnerability of children to HIV, TB and sexually transmitted infections, with a particular focus on orphaned children and girls
T11: 1 | U11: 2 | V11: 6 | X11: B | Y11: EC108 | Z11: Kouga | AA11: 8 | AC11: Eastern Cape | AD11: Rural Development and Agrarian Reform | AE11: National School Nutrition Programme Grant | AF11: Basic Education | AG11: 16 | AH11: 5 | AI11: 2 | AJ11: SCHEDULE 5, PART A | AK11: =IF($AJ11=AK$3,MAX(AK$4:AK10,0)+1,0) -> 0 | AL11: =IF($AJ11=AL$3,MAX(AL$4:AL10,0)+1,0) -> 7 | AM11: =IF($AJ11=AM$3,MAX(AM$4:AM10,0)+1,0) -> 0 | AN11: =IF($AJ11=AN$3,MAX(AN$4:AN10,0)+1,0) -> 0 | AO11: Conditional allocation | AP11: =IF($AJ11=AP$3,MAX(AP$4:AP10,0)+1,0) -> 0 | AQ11: =IF($AJ11=AQ$3,MAX(AQ$4:AQ10,0)+1,0) -> 0 | AR11: =IF($AJ11=AR$3,MAX(AR$4:AR10,0)+1,0) -> 0 | AS11: =IF($AJ11=AS$3,MAX(AS$4:AS10,0)+1,0) -> 0 | AV11: Learners with Profound Intellectual Disabilities Grant | AW11: Basic Education (Vote 16) | AX11: Schedule 5, Part A | AY11: 2020/21: R242.9 million; 2021/22: R256.2 million and 2022/23: R265.7 million | AZ11: Transfer payments shall be effected in April 2020; August 2020; and January 2021. | BA11: Grant purpose | BB11: To provide the necessary support, resources and equipment to identified care centres and schools for the provision of education to children with severe to profound intellectual disabilities | BC11: To provide the necessary support, resources and equipment to identified care centres and schools for the provision of education to children with severe to profound intellectual disabilities
P12: =COUNTIF(P14:P113,"<>") -> 73 | T12: 1 | U12: 2 | V12: 7 | X12: B | Y12: EC109 | Z12: Kou-Kamma | AA12: 9 | AC12: Eastern Cape | AD12: Economic Development, Environmental Affairs and Tourism | AE12: Provincial Disaster Relief Grant | AF12: Cooperative Governance | AG12: 3 | AH12: 1 | AI12: 3 | AJ12: SCHEDULE 7, PART A | AK12: =IF($AJ12=AK$3,MAX(AK$4:AK11,0)+1,0) -> 0 | AL12: =IF($AJ12=AL$3,MAX(AL$4:AL11,0)+1,0) -> 0 | AM12: =IF($AJ12=AM$3,MAX(AM$4:AM11,0)+1,0) -> 0 | AN12: =IF($AJ12=AN$3,MAX(AN$4:AN11,0)+1,0) -> 1 | AO12: Nationally assigned function to provinces | AP12: =IF($AJ12=AP$3,MAX(AP$4:AP11,0)+1,0) -> 0 | AQ12: =IF($AJ12=AQ$3,MAX(AQ$4:AQ11,0)+1,0) -> 0 | AR12: =IF($AJ12=AR$3,MAX(AR$4:AR11,0)+1,0) -> 0 | AS12: =IF($AJ12=AS$3,MAX(AS$4:AS11,0)+1,0) -> 0 | AV12: Maths, Science and Technology Grant | AW12: Basic Education (Vote 16) | AX12: Schedule 5, Part A | AY12: 2019/20: R401 million; 2020/21: R423 million and 2021/22: R438.5 million | AZ12: 8 May 2020; 14 August 2020; 13 November 2020 and 5 February 2021 | BA12: Grant purpose | BB12: =TRIM(BC12)&IF(BD12<>"","; " & TRIM(BD12),"")&IF(BE12<>"","; "& TRIM(BE12),"")&IF(BF12<>"","; " & TRIM(BF12),"")&IF(BG12<>"","; "& TRIM(BG12),"")&IF(BH12<>"","; "& TRIM(BH12),"")&IF(BI12<>"","; "& TRIM(BI12),"")&IF(BJ12<>"","; "& TRIM(BJ12),"") -> To provide support and resources to schools, teachers and learners in line with the Curriculum Assessment Policy Statements for the improvement of mathematics, science and technology teaching and learning at selected public schools | BC12: To provide support and resources to schools, teachers and learners in line with the Curriculum Assessment Policy Statements for the improvement of mathematics, science and technology teaching and learning at selected public schools
O13: No. | P13: Word Files | Q13: Date Updated | R13: Path | T13: 1 | U13: 3 | V13: 1 | X13: C | Y13: DC10 | Z13: Sarah Baartman District Municipality | AA13: 10 | AC13: Eastern Cape | AD13: Transport | AE13: HIV, TB, Malaria and Community Outreach Grant | AF13: Health | AG13: 18 | AH13: 1 | AI13: 4 | AJ13: SCHEDULE 5, PART A | AK13: =IF($AJ13=AK$3,MAX(AK$4:AK12,0)+1,0) -> 0 | AL13: =IF($AJ13=AL$3,MAX(AL$4:AL12,0)+1,0) -> 8 | AM13: =IF($AJ13=AM$3,MAX(AM$4:AM12,0)+1,0) -> 0 | AN13: =IF($AJ13=AN$3,MAX(AN$4:AN12,0)+1,0) -> 0 | AO13: Conditional allocation | AP13: =IF($AJ13=AP$3,MAX(AP$4:AP12,0)+1,0) -> 0 | AQ13: =IF($AJ13=AQ$3,MAX(AQ$4:AQ12,0)+1,0) -> 0 | AR13: =IF($AJ13=AR$3,MAX(AR$4:AR12,0)+1,0) -> 0 | AS13: =IF($AJ13=AS$3,MAX(AS$4:AS12,0)+1,0) -> 0 | AV13: National School Nutrition Programme Grant | AW13: Basic Education (Vote 16) | AX13: Schedule 5, Part A | AY13: 2020/21: R7.7 billion; 2021/22: R8.1 billion and 2022/23: R8.5 billion | AZ13: The payment schedule will be in line with respective provincial procurement models as follows:provinces that transfer funds directly to all schools (Eastern Cape, Free State, North West and Northern Cape) receive five instalments as follows: 8 April 2020; 20 May 2020; 18 June 2020; 9 September 2020 and 08 December 2020provinces that procure from service providers on behalf of schools receive five instalments as follows: 8 April 2020; 20 May 2020; 16 July 2020; 14 October 2020 and 28 January 2021the 20 May 2020 budget transfer is for kitchen facilities, equipment and utensils as per equipment specifications provided by the DBE | BA13: Grant purpose | BB13: To provide nutritious meals to targeted schools | BC13: To provide nutritious meals to targeted schools
O14: 1 | P14: 2 2020 DoR Bill - Prov Frameworks Front Pages.doc | Q14: 2020-02-18T20:19:56 | R14: C:\Users\Jonathan\Desktop\DoRA PDF macro\Word\Final Prov Frameworks\2 2020 DoR Bill - Prov Frameworks Front Pages.doc | T14: 1 | U14: 4 | V14: 1 | X14: B | Y14: EC121 | Z14: Mbhashe | AA14: 11 | AC14: Eastern Cape | AD14: Human Settlements | AE14: Health Facility Revitalisation Grant | AF14: Health | AG14: 18 | AH14: 2 | AI14: 4 | AJ14: SCHEDULE 5, PART A | AK14: =IF($AJ14=AK$3,MAX(AK$4:AK13,0)+1,0) -> 0 | AL14: =IF($AJ14=AL$3,MAX(AL$4:AL13,0)+1,0) -> 9 | AM14: =IF($AJ14=AM$3,MAX(AM$4:AM13,0)+1,0) -> 0 | AN14: =IF($AJ14=AN$3,MAX(AN$4:AN13,0)+1,0) -> 0 | AO14: Conditional allocation | AP14: =IF($AJ14=AP$3,MAX(AP$4:AP13,0)+1,0) -> 0 | AQ14: =IF($AJ14=AQ$3,MAX(AQ$4:AQ13,0)+1,0) -> 0 | AR14: =IF($AJ14=AR$3,MAX(AR$4:AR13,0)+1,0) -> 0 | AS14: =IF($AJ14=AS$3,MAX(AS$4:AS13,0)+1,0) -> 0 | AV14: School Infrastructure Backlogs Grant | AW14: Basic Education (Vote 16) | AX14: Schedule 6, Part A | AY14: 2019/20: R1.7 billion; 2020/21: R2.3 billion and 2021/22: R2.4 billion | AZ14: Payments will be made according to verified invoices from service providers or advance payments in line with approved memoranda of agreement, implementation plans and reviewed monthly cash flow projections from implementing agents | BA14: Grant purpose | BB14: Eradication of all inappropriate school infrastructure; provision of water, sanitation and electricity to schools | BC14: Eradication of all inappropriate school infrastructure | BD14: provision of water, sanitation and electricity to schools
O15: =+O14+1 -> 2 | P15: 2aa Comprehensive Agricultural Support Programme Grant.docx | Q15: 2020-02-18T19:32:42 | R15: C:\Users\Jonathan\Desktop\DoRA PDF macro\Word\Final Prov Frameworks\2aa Comprehensive Agricultural Support Programme Grant.docx | T15: 1 | U15: 4 | V15: 2 | X15: B | Y15: EC122 | Z15: Mnquma | AA15: 12 | AC15: Eastern Cape | AD15: Provincial Treasury | AE15: National Health Insurance Grant | AF15: Health | AG15: 18 | AH15: 3 | AI15: 4 | AJ15: SCHEDULE 5, PART A | AK15: =IF($AJ15=AK$3,MAX(AK$4:AK14,0)+1,0) -> 0 | AL15: =IF($AJ15=AL$3,MAX(AL$4:AL14,0)+1,0) -> 10 | AM15: =IF($AJ15=AM$3,MAX(AM$4:AM14,0)+1,0) -> 0 | AN15: =IF($AJ15=AN$3,MAX(AN$4:AN14,0)+1,0) -> 0 | AO15: Nationally assigned function to provinces | AP15: =IF($AJ15=AP$3,MAX(AP$4:AP14,0)+1,0) -> 0 | AQ15: =IF($AJ15=AQ$3,MAX(AQ$4:AQ14,0)+1,0) -> 0 | AR15: =IF($AJ15=AR$3,MAX(AR$4:AR14,0)+1,0) -> 0 | AS15: =IF($AJ15=AS$3,MAX(AS$4:AS14,0)+1,0) -> 0 | AV15: Provincial Disaster Relief Grant | AW15: Cooperative Governance and Traditional Affairs (Vote 3) | AX15: Schedule 7, Part A | AY15: 2020/21: R138 million; 2021/22: R146 million and 2022/23: R153 million | AZ15: Transfers are made subject to approval by National Treasury | BA15: Grant purpose | BB15: To provide for the immediate release of funds for disaster response | BC15: To provide for the immediate release of funds for disaster response
O16: 3 | P16: 2ab Ilima Letsema Grant.docx | Q16: 2020-02-18T15:44:00 | R16: C:\Users\Jonathan\Desktop\DoRA PDF macro\Word\Final Prov Frameworks\2ab Ilima Letsema Grant.docx | T16: 1 | U16: 4 | V16: 3 | X16: B | Y16: EC123 | Z16: Great Kei | AA16: 13 | AC16: Eastern Cape | AD16: Sport, Recreation, Arts and Culture | AE16: National Tertiary Services Grant | AF16: Health | AG16: 18 | AH16: 4 | AI16: 4 | AJ16: SCHEDULE 4, PART A | AK16: =IF($AJ16=AK$3,MAX(AK$4:AK15,0)+1,0) -> 2 | AL16: =IF($AJ16=AL$3,MAX(AL$4:AL15,0)+1,0) -> 0 | AM16: =IF($AJ16=AM$3,MAX(AM$4:AM15,0)+1,0) -> 0 | AN16: =IF($AJ16=AN$3,MAX(AN$4:AN15,0)+1,0) -> 0 | AO16: General conditional allocation to provinces | AP16: =IF($AJ16=AP$3,MAX(AP$4:AP15,0)+1,0) -> 0 | AQ16: =IF($AJ16=AQ$3,MAX(AQ$4:AQ15,0)+1,0) -> 0 | AR16: =IF($AJ16=AR$3,MAX(AR$4:AR15,0)+1,0) -> 0 | AS16: =IF($AJ16=AS$3,MAX(AS$4:AS15,0)+1,0) -> 0 | AV16: HIV, TB, Malaria and Community Outreach Grant | AW16: Health (Vote 18) | AX16: Schedule 5, Part A | AY16: 2020/21: R24.4 billion; 2021/22: R28 billion and 2022/23: R29.4 billion of which the five components are allocated: HIV and AIDS Component: 2020/21: R21.2 billion; 2021/22: R24.2 billion and 2022/23: R25.5 billionTB Component: 2020/21: R512 million; 2021/22: R540 million; and 2022/23: R56 millionCommunity Outreach Services Component: 2020/21: R2.4 billion; 2021/22: R2.6 billion and 2022/23: R2.7 billionMalaria Elimination Component: 2020/21: R117.2 million; 2021/22: R111.2 million and 2022/23: R117 millionHPV component: 2020/21: R223 million; 2021/22: R235 million and 2022/23: R244 millionMental Health Services Component: 2021/22: R110 million and 2022/23: R116 millionOncology Services Component: 2021/22: R110.4 million and 2022/23: R116 million | AZ16: Monthly instalments based on the approved payment schedule | BA16: Grant purpose | BB16: To enable the health sector to develop and implement an effective response to HIV and AIDS; to enable the health sector to develop and implement an effective response to TB; to ensure provision of quality community outreach services through Ward Based Primary Health Care Outreach Teams; to improve efficiencies of the Ward Based Primary Health Care Outreach Teams programme by harmonising and standardising services and strengthening performance monitoring; prevention and protection of health workers from exposure to hazards in the work place; to enable the health sector to develop and implement an effective response to support the effective implementation of the National Strategic Plan on Malaria Elimination 2019 – 2023; to enable the health sector to prevent cervical cancer by making available Human Papillomavirus vaccinations for grade five school girls in all public and special schools and progressive integration of Human Papillomavirus into the integrated school health programme | BC16: To enable the health sector to develop and implement an effective response to HIV and AIDS | BD16: to enable the health sector to develop and implement an effective response to TB | BE16: to ensure provision of quality community outreach services through Ward Based Primary Health Care Outreach Teams | BF16: to improve efficiencies of the Ward Based Primary Health Care Outreach Teams programme by harmonising and standardising services and strengthening performance monitoring | BG16: prevention and protection of health workers from exposure to hazards in the work place | BH16: to enable the health sector to develop and implement an effective response to support the effective implementation of the National Strategic Plan on Malaria Elimination 2019 – 2023 | BI16: to enable the health sector to prevent cervical cancer by making available Human Papillomavirus vaccinations for grade five school girls in all public and special schools and progressive integration of Human Papillomavirus into the integrated school health programme
O17: 4 | P17: 2ac Land Care Programme Grant.docx | Q17: 2020-02-18T19:34:40 | R17: C:\Users\Jonathan\Desktop\DoRA PDF macro\Word\Final Prov Frameworks\2ac Land Care Programme Grant.docx | T17: 1 | U17: 4 | V17: 4 | X17: B | Y17: EC124 | Z17: Amahlathi | AA17: 14 | AC17: Eastern Cape | AD17: Safety and Liaison | AE17: Statutory Human Resources, Training and Development Grant | AF17: Health | AG17: 18 | AH17: 5 | AI17: 4 | AJ17: SCHEDULE 5, PART A | AK17: =IF($AJ17=AK$3,MAX(AK$4:AK16,0)+1,0) -> 0 | AL17: =IF($AJ17=AL$3,MAX(AL$4:AL16,0)+1,0) -> 11 | AM17: =IF($AJ17=AM$3,MAX(AM$4:AM16,0)+1,0) -> 0 | AN17: =IF($AJ17=AN$3,MAX(AN$4:AN16,0)+1,0) -> 0 | AO17: Conditional allocation | AP17: =IF($AJ17=AP$3,MAX(AP$4:AP16,0)+1,0) -> 0 | AQ17: =IF($AJ17=AQ$3,MAX(AQ$4:AQ16,0)+1,0) -> 0 | AR17: =IF($AJ17=AR$3,MAX(AR$4:AR16,0)+1,0) -> 0 | AS17: =IF($AJ17=AS$3,MAX(AS$4:AS16,0)+1,0) -> 0 | AV17: HIV, TB, Malaria and Community Outreach Grant: Community Outreach Services Component | AW17: Health (Vote 18) | AX17: Schedule 5, Part A | AY17: 2020/21: R2.41.6 billion; 2021/22: R2.6 billion and 2022/23: R2.7 billion | AZ17: Monthly instalments based on the approved payment schedule | BA17: Grant purpose | BB17: To ensure provision of quality community outreach services through Ward Based Primary Health Care Outreach Teams by ensuring Community Health Workers receive remuneration, tools of trade and training; to improve efficiencies of the Ward Based Primary Health Care Outreach Teams programme by harmonising and standardising services and strengthening performance monitoring | BC17: To ensure provision of quality community outreach services through Ward Based Primary Health Care Outreach Teams by ensuring Community Health Workers receive remuneration, tools of trade and training | BD17: to improve efficiencies of the Ward Based Primary Health Care Outreach Teams programme by harmonising and standardising services and strengthening performance monitoring
O18: 5 | P18: 2ba Education Infrastructure Grant.docx | Q18: 2020-02-18T19:36:20 | R18: C:\Users\Jonathan\Desktop\DoRA PDF macro\Word\Final Prov Frameworks\2ba Education Infrastructure Grant.docx | T18: 1 | U18: 4 | V18: 5 | X18: B | Y18: EC126 | Z18: Ngqushwa | AA18: 15 | AC18: Eastern Cape | AE18: Human Settlements Development Grant | AF18: Human Settlements | AG18: 33 | AH18: 1 | AI18: 5 | AJ18: SCHEDULE 5, PART A | AK18: =IF($AJ18=AK$3,MAX(AK$4:AK17,0)+1,0) -> 0 | AL18: =IF($AJ18=AL$3,MAX(AL$4:AL17,0)+1,0) -> 12 | AM18: =IF($AJ18=AM$3,MAX(AM$4:AM17,0)+1,0) -> 0 | AN18: =IF($AJ18=AN$3,MAX(AN$4:AN17,0)+1,0) -> 0 | AO18: Conditional allocation | AP18: =IF($AJ18=AP$3,MAX(AP$4:AP17,0)+1,0) -> 0 | AQ18: =IF($AJ18=AQ$3,MAX(AQ$4:AQ17,0)+1,0) -> 0 | AR18: =IF($AJ18=AR$3,MAX(AR$4:AR17,0)+1,0) -> 0 | AS18: =IF($AJ18=AS$3,MAX(AS$4:AS17,0)+1,0) -> 0 | AV18: HIV, TB, Malaria and Community Outreach : Human Papillomavirus Component | AW18: Health (Vote 18) | AX18: Schedule 5, Part A | AY18: 2020/21: R223 million; 2021/22: R235 million and 2022/23: R244 million | AZ18: Payments will be made according to the approved payment schedule | BA18: Grant purpose | BB18: To enable the health sector to prevent cervical cancer by making available Human Papillomavirus vaccinations for grade five school girls in all public and special schools and progressive integration of Human Papillomavirus into the Integrated School Health Programme | BC18: To enable the health sector to prevent cervical cancer by making available Human Papillomavirus vaccinations for grade five school girls in all public and special schools and progressive integration of Human Papillomavirus into the Integrated School Health Programme
O19: 6 | P19: 2bb HIV and AIDS (Life Skills Education).docx | Q19: 2020-02-16T15:57:44 | R19: C:\Users\Jonathan\Desktop\DoRA PDF macro\Word\Final Prov Frameworks\2bb HIV and AIDS (Life Skills Education).docx | T19: 1 | U19: 4 | V19: 6 | X19: B | Y19: EC129 | Z19: Raymond Mhlaba | AA19: 16 | AC19: Eastern Cape | AE19: Informal Settlements Upgrading Partnership Grant for Provinces | AF19: Human Settlements | AG19: 33 | AH19: 2 | AI19: 5 | AJ19: SCHEDULE 5, PART A | AK19: =IF($AJ19=AK$3,MAX(AK$4:AK18,0)+1,0) -> 0 | AL19: =IF($AJ19=AL$3,MAX(AL$4:AL18,0)+1,0) -> 13 | AM19: =IF($AJ19=AM$3,MAX(AM$4:AM18,0)+1,0) -> 0 | AN19: =IF($AJ19=AN$3,MAX(AN$4:AN18,0)+1,0) -> 0 | AO19: Conditional allocation | AP19: =IF($AJ19=AP$3,MAX(AP$4:AP18,0)+1,0) -> 0 | AQ19: =IF($AJ19=AQ$3,MAX(AQ$4:AQ18,0)+1,0) -> 0 | AR19: =IF($AJ19=AR$3,MAX(AR$4:AR18,0)+1,0) -> 0 | AS19: =IF($AJ19=AS$3,MAX(AS$4:AS18,0)+1,0) -> 0 | AV19: HIV, TB, Malaria and Community Outreach and Grant: HIV and AIDS Component | AW19: Health (Vote 18) | AX19: Schedule 5, Part A | AY19: 2020/21: R21.2 billion; 2021/22: R24.2 billion and 2022/23: R25.5 billion | AZ19: Monthly instalments based on the approved payment schedule | BA19: Grant purpose | BB19: To enable the health sector to develop and implement an effective response to HIV and AIDS; prevention and protection of health workers from exposure to hazards in the work place | BC19: To enable the health sector to develop and implement an effective response to HIV and AIDS | BD19: prevention and protection of health workers from exposure to hazards in the work place
O20: 7 | P20: 2bc Learners with Profound Disabilities.docx | Q20: 2020-02-18T19:39:56 | R20: C:\Users\Jonathan\Desktop\DoRA PDF macro\Word\Final Prov Frameworks\2bc Learners with Profound Disabilities.docx | T20: 1 | U20: 5 | V20: 1 | X20: C | Y20: DC12 | Z20: Amathole District Municipality | AA20: 17 | AC20: Eastern Cape | AE20: Provincial Emergency Housing Grant | AF20: Human Settlements | AG20: 33 | AH20: 3 | AI20: 5 | AJ20: SCHEDULE 7, PART A | AK20: =IF($AJ20=AK$3,MAX(AK$4:AK19,0)+1,0) -> 0 | AL20: =IF($AJ20=AL$3,MAX(AL$4:AL19,0)+1,0) -> 0 | AM20: =IF($AJ20=AM$3,MAX(AM$4:AM19,0)+1,0) -> 0 | AN20: =IF($AJ20=AN$3,MAX(AN$4:AN19,0)+1,0) -> 2 | AO20: Conditional allocation | AP20: =IF($AJ20=AP$3,MAX(AP$4:AP19,0)+1,0) -> 0 | AQ20: =IF($AJ20=AQ$3,MAX(AQ$4:AQ19,0)+1,0) -> 0 | AR20: =IF($AJ20=AR$3,MAX(AR$4:AR19,0)+1,0) -> 0 | AS20: =IF($AJ20=AS$3,MAX(AS$4:AS19,0)+1,0) -> 0 | AV20: HIV, TB, Malaria and Community Outreach Grant: Malaria Component | AW20: Health (Vote 18) | AX20: Schedule 5, Part A | AY20: 2020/21: R117.2 million; 2021/22: R111.2 million and 2022/23: R117 million | AZ20: Monthly instalments based on the approved payment schedule | BA20: Grant purpose | BB20: To enable the health sector to develop and implement an effective response to support the implementation of the National Strategic Plan on Malaria Elimination 2019 - 2023 | BC20: To enable the health sector to develop and implement an effective response to support the implementation of the National Strategic Plan on Malaria Elimination 2019 - 2023
O21: 8 | P21: 2bd Maths, Science and Technology.docx | Q21: 2020-02-18T11:15:18 | R21: C:\Users\Jonathan\Desktop\DoRA PDF macro\Word\Final Prov Frameworks\2bd Maths, Science and Technology.docx | T21: 1 | U21: 6 | V21: 1 | X21: B | Y21: EC131 | Z21: Inxuba Yethemba | AA21: 18 | AC21: Eastern Cape | AE21: Title Deeds Restoration Grant | AF21: Human Settlements | AG21: 33 | AH21: 4 | AI21: 5 | AJ21: SCHEDULE 5, PART A | AK21: =IF($AJ21=AK$3,MAX(AK$4:AK20,0)+1,0) -> 0 | AL21: =IF($AJ21=AL$3,MAX(AL$4:AL20,0)+1,0) -> 14 | AM21: =IF($AJ21=AM$3,MAX(AM$4:AM20,0)+1,0) -> 0 | AN21: =IF($AJ21=AN$3,MAX(AN$4:AN20,0)+1,0) -> 0 | AO21: Conditional allocation | AP21: =IF($AJ21=AP$3,MAX(AP$4:AP20,0)+1,0) -> 0 | AQ21: =IF($AJ21=AQ$3,MAX(AQ$4:AQ20,0)+1,0) -> 0 | AR21: =IF($AJ21=AR$3,MAX(AR$4:AR20,0)+1,0) -> 0 | AS21: =IF($AJ21=AS$3,MAX(AS$4:AS20,0)+1,0) -> 0 | AV21: HIV, TB, Malaria and Community Outreach Grant: TB Component | AW21: Health (Vote 18) | AX21: Schedule 5, Part A | AY21: 2020/21: R512 million; 2021/22: R540.2 million; and 2022/23: R569 million | AZ21: Monthly instalments based on the approved payment schedule | BA21: Grant purpose | BB21: To enable the health sector to develop and implement an effective response to TB | BC21: To enable the health sector to develop and implement an effective response to TB
O22: 9 | P22: 2be National School Nutrition Programme.docx | Q22: 2020-02-19T13:41:58 | R22: C:\Users\Jonathan\Desktop\DoRA PDF macro\Word\Final Prov Frameworks\2be National School Nutrition Programme.docx | T22: 1 | U22: 6 | V22: 2 | X22: B | Y22: EC135 | Z22: Intsika Yethu | AA22: 19 | AC22: Eastern Cape | AE22: Expanded Public Works Programme Integrated Grant for Provinces | AF22: Public Works and Infrastructure | AG22: 13 | AH22: 1 | AI22: 6 | AJ22: SCHEDULE 5, PART A | AK22: =IF($AJ22=AK$3,MAX(AK$4:AK21,0)+1,0) -> 0 | AL22: =IF($AJ22=AL$3,MAX(AL$4:AL21,0)+1,0) -> 15 | AM22: =IF($AJ22=AM$3,MAX(AM$4:AM21,0)+1,0) -> 0 | AN22: =IF($AJ22=AN$3,MAX(AN$4:AN21,0)+1,0) -> 0 | AO22: Conditional allocation | AP22: =IF($AJ22=AP$3,MAX(AP$4:AP21,0)+1,0) -> 0 | AQ22: =IF($AJ22=AQ$3,MAX(AQ$4:AQ21,0)+1,0) -> 0 | AR22: =IF($AJ22=AR$3,MAX(AR$4:AR21,0)+1,0) -> 0 | AS22: =IF($AJ22=AS$3,MAX(AS$4:AS21,0)+1,0) -> 0 | AV22: Health Facility Revitalisation Grant | AW22: Health (Vote 18) | AX22: Schedule 5, Part A | AY22: 2020/21: R6.4 billion and 2021/22: R6.79 billion 2022/23: R7.2 billion; | AZ22: Transfers are made on a quarterly basis in accordance with a payment schedule approved by National Treasury | BA22: Grant purpose | BB22: To help accelerate construction, maintenance, upgrading and rehabilitation of new and existing infrastructure in health including, health technology, organisational development systems and quality assurance; to enhance capacity to deliver health infrastructure; to accelerate the fulfilment of the requirements of occupational health and safety | BC22: To help accelerate construction, maintenance, upgrading and rehabilitation of new and existing infrastructure in health including, health technology, organisational development systems and quality assurance | BD22: to enhance capacity to deliver health infrastructure | BE22: to accelerate the fulfilment of the requirements of occupational health and safety
O23: 10 | P23: 2bf School Infrastructure Backlogs.docx | Q23: 2020-02-19T12:58:04 | R23: C:\Users\Jonathan\Desktop\DoRA PDF macro\Word\Final Prov Frameworks\2bf School Infrastructure Backlogs.docx | T23: 1 | U23: 6 | V23: 3 | X23: B | Y23: EC136 | Z23: Emalahleni | AA23: 20 | AC23: Eastern Cape | AE23: Social Sector Expanded Public Works Programme Incentive Grant for Provinces | AF23: Public Works and Infrastructure | AG23: 13 | AH23: 2 | AI23: 6 | AJ23: SCHEDULE 5, PART A | AK23: =IF($AJ23=AK$3,MAX(AK$4:AK22,0)+1,0) -> 0 | AL23: =IF($AJ23=AL$3,MAX(AL$4:AL22,0)+1,0) -> 16 | AM23: =IF($AJ23=AM$3,MAX(AM$4:AM22,0)+1,0) -> 0 | AN23: =IF($AJ23=AN$3,MAX(AN$4:AN22,0)+1,0) -> 0 | AO23: Conditional allocation | AP23: =IF($AJ23=AP$3,MAX(AP$4:AP22,0)+1,0) -> 0 | AQ23: =IF($AJ23=AQ$3,MAX(AQ$4:AQ22,0)+1,0) -> 0 | AR23: =IF($AJ23=AR$3,MAX(AR$4:AR22,0)+1,0) -> 0 | AS23: =IF($AJ23=AS$3,MAX(AS$4:AS22,0)+1,0) -> 0 | AV23: National Health Insurance Grant | AW23: Health (Vote 18) | AX23: Schedule 5, Part A | AY23: 2020/21: R289 million; 2022/22: R300 million and 2022/23: R311.1 million | AZ23: Payments will be made quarterly (in advance) in line with approved programme implementation plans with the service providers | BA23: Grant purpose | BB23: To expand the healthcare service benefits through the strategic purchasing of services from healthcare providers | BC23: To expand the healthcare service benefits through the strategic purchasing of services from healthcare providers
O24: 11 | P24: 2ca Provincial Disaster Relief Grant.docx | Q24: 2020-02-18T19:31:22 | R24: C:\Users\Jonathan\Desktop\DoRA PDF macro\Word\Final Prov Frameworks\2ca Provincial Disaster Relief Grant.docx | T24: 1 | U24: 6 | V24: 4 | X24: B | Y24: EC137 | Z24: Engcobo | AA24: 21 | AC24: Eastern Cape | AD24: Education | AE24: Early Childhood Development Grant | AF24: Social Development | AG24: 19 | AH24: 1 | AI24: 7 | AJ24: SCHEDULE 5, PART A | AK24: =IF($AJ24=AK$3,MAX(AK$4:AK23,0)+1,0) -> 0 | AL24: =IF($AJ24=AL$3,MAX(AL$4:AL23,0)+1,0) -> 17 | AM24: =IF($AJ24=AM$3,MAX(AM$4:AM23,0)+1,0) -> 0 | AN24: =IF($AJ24=AN$3,MAX(AN$4:AN23,0)+1,0) -> 0 | AO24: Conditional allocation | AP24: =IF($AJ24=AP$3,MAX(AP$4:AP23,0)+1,0) -> 0 | AQ24: =IF($AJ24=AQ$3,MAX(AQ$4:AQ23,0)+1,0) -> 0 | AR24: =IF($AJ24=AR$3,MAX(AR$4:AR23,0)+1,0) -> 0 | AS24: =IF($AJ24=AS$3,MAX(AS$4:AS23,0)+1,0) -> 0 | AV24: National Health Insurance Indirect Grant | AW24: Health (Vote 18) | AX24: Schedule 6, Part A | AY24: 2020/21: R2,3 billion; 2021/22: R2.5 billion and 2022/23: R2.7 billion of which the three components are:Non-Personal Services Component: 2020/21: R740.4 million; 2021/22: R723.3 million and 2022/23: R734.4 millionPersonal Services Component: 2020/21: R255.3 million; 2021/22: R339.4 million and 2022/23: R341.2 millionHealth Facility Revitalisation Component: 2020/21: R1.3 billion; 2021/22: R1.5 billion and 2022/23: R1.6 billion, of which the following amounts are earmarked for the Limpopo Academic Hospital project: 2020/21: R653 million, 2021/22: R488 million and 2022/23: R511 million | AZ24: As specified in the three component frameworks | BA24: Grant purpose | BB24: To create an alternative track to improve spending, performance as well as monitoring and evaluation on infrastructure in preparation for National Health Insurance; to enhance capacity and capability to deliver infrastructure for National Health Insurance; to accelerate the fulfilment of the requirements of occupational health and safety; expand the alternative models for the dispensing and distribution of chronic medication; develop and roll-out new health information systems in preparation for National Health Insurance; enable the health sector to address the deficiencies in the primary healthcare facilities systematically to yield fast results through the implementation of the Ideal Clinic programme; to expand the healthcare service benefits through the strategic purchasing of services from healthcare providers | BC24: To create an alternative track to improve spending, performance as well as monitoring and evaluation on infrastructure in preparation for National Health Insurance | BD24: to enhance capacity and capability to deliver infrastructure for National Health Insurance | BE24: to accelerate the fulfilment of the requirements of occupational health and safety | BF24: expand the alternative models for the dispensing and distribution of chronic medication | BG24: develop and roll-out new health information systems in preparation for National Health Insurance | BH24: enable the health sector to address the deficiencies in the primary healthcare facilities systematically to yield fast results through the implementation of the Ideal Clinic programme | BI24: to expand the healthcare service benefits through the strategic purchasing of services from healthcare providers
O25: 12 | P25: 2da HIV, TB, Malaria and Community Outreach (Cover).docx | Q25: 2020-02-18T19:13:32 | R25: C:\Users\Jonathan\Desktop\DoRA PDF macro\Word\Final Prov Frameworks\2da HIV, TB, Malaria and Community Outreach (Cover).docx | T25: 1 | U25: 6 | V25: 5 | X25: B | Y25: EC138 | Z25: Sakhisizwe | AA25: 22 | AC25: Eastern Cape | AD25: Health | AE25: Community Library Services Grant | AF25: Sports, Arts and Culture | AG25: 37 | AH25: 1 | AI25: 8 | AJ25: SCHEDULE 5, PART A | AK25: =IF($AJ25=AK$3,MAX(AK$4:AK24,0)+1,0) -> 0 | AL25: =IF($AJ25=AL$3,MAX(AL$4:AL24,0)+1,0) -> 18 | AM25: =IF($AJ25=AM$3,MAX(AM$4:AM24,0)+1,0) -> 0 | AN25: =IF($AJ25=AN$3,MAX(AN$4:AN24,0)+1,0) -> 0 | AO25: Conditional allocation | AP25: =IF($AJ25=AP$3,MAX(AP$4:AP24,0)+1,0) -> 0 | AQ25: =IF($AJ25=AQ$3,MAX(AQ$4:AQ24,0)+1,0) -> 0 | AR25: =IF($AJ25=AR$3,MAX(AR$4:AR24,0)+1,0) -> 0 | AS25: =IF($AJ25=AS$3,MAX(AS$4:AS24,0)+1,0) -> 0 | AV25: National Health Insurance Indirect Grant: Health Facility Revitalisation Component | AW25: Health (Vote 18) | AX25: Schedule 6, Part A | AY25: 2020/21: R1.35 billion, 2021/22 R1.5 billion and 2022/23: R1.6 billion, of which the following amounts are earmarked for the Limpopo Academic Hospital (LAH) project: 2020/21: R653 million, 2021/22: R488 million and 2022/23: R511 million | AZ25: Monthly payments made according to verified and approved invoices from the services providers | BA25: Grant purpose | BB25: To create an alternative track to improve spending, performance as well as monitoring and evaluation on infrastructure in preparation for National Health Insurance; to enhance capacity and capability to deliver infrastructure for National Health Insurance; to accelerate the fulfilment of the requirements of occupational health and safety | BC25: To create an alternative track to improve spending, performance as well as monitoring and evaluation on infrastructure in preparation for National Health Insurance | BD25: to enhance capacity and capability to deliver infrastructure for National Health Insurance | BE25: to accelerate the fulfilment of the requirements of occupational health and safety
O26: 13 | P26: 2daa HIV,TB, HVP,Malaria,COS - COS Component.docx | Q26: 2020-02-18T19:10:56 | R26: C:\Users\Jonathan\Desktop\DoRA PDF macro\Word\Final Prov Frameworks\2daa HIV,TB, HVP,Malaria,COS - COS Component.docx | T26: 1 | U26: 6 | V26: 6 | X26: B | Y26: EC139 | Z26: Enoch Mgijima | AA26: 23 | AC26: Eastern Cape | AD26: Social Development | AE26: Mass Participation and Sport Development Grant | AF26: Sports, Arts and Culture | AG26: 37 | AH26: =IF(AI26="","",IF(AI26=AI25,AH25+1,1)) -> 2 | AI26: =IF(AF26="","",IF(AF26=AF25,AI25,AI25+1)) -> 8 | AJ26: SCHEDULE 5, PART A | AK26: =IF($AJ26=AK$3,MAX(AK$4:AK25,0)+1,0) -> 0 | AL26: =IF($AJ26=AL$3,MAX(AL$4:AL25,0)+1,0) -> 19 | AM26: =IF($AJ26=AM$3,MAX(AM$4:AM25,0)+1,0) -> 0 | AN26: =IF($AJ26=AN$3,MAX(AN$4:AN25,0)+1,0) -> 0 | AO26: Conditional allocation | AP26: =IF($AJ26=AP$3,MAX(AP$4:AP25,0)+1,0) -> 0 | AQ26: =IF($AJ26=AQ$3,MAX(AQ$4:AQ25,0)+1,0) -> 0 | AR26: =IF($AJ26=AR$3,MAX(AR$4:AR25,0)+1,0) -> 0 | AS26: =IF($AJ26=AS$3,MAX(AS$4:AS25,0)+1,0) -> 0 | AV26: National Health Insurance Indirect Grant: Non-Personal Services Component | AW26: Health (Vote 18) | AX26: Schedule 6, Part A | AY26: 2020/21: R740.415 million, 2021/22: R727.3 million and 2022/23: R734.4 million | AZ26: Payments will be made according to verified invoices or advance payments in line with approved programme implementation plans from the service providers Monthly instalments which may be altered at the discretion of National Treasury based on invoices paid | BA26: Grant purpose | BB26: To expand the alternative models for the dispensing and distribution of chronic medication; to develop and roll out new health information systems in preparation for National Health Insurance, including human resource for health information systems; to enable the health sector to address the deficiencies in primary health care facilities systematically and to yield fast results through the implementation of the Ideal Clinic programme; to implement a quality improvement plan | BC26: To expand the alternative models for the dispensing and distribution of chronic medication | BD26: to develop and roll out new health information systems in preparation for National Health Insurance, including human resource for health information systems | BE26: to enable the health sector to address the deficiencies in primary health care facilities systematically and to yield fast results through the implementation of the Ideal Clinic programme | BF26: to implement a quality improvement plan
O27: 14 | P27: 2dab HIV,TB, HVP,Malaria,COS - HPV Component.docx | Q27: 2020-02-18T19:10:04 | R27: C:\Users\Jonathan\Desktop\DoRA PDF macro\Word\Final Prov Frameworks\2dab HIV,TB, HVP,Malaria,COS - HPV Component.docx | T27: 1 | U27: 7 | V27: 1 | X27: C | Y27: DC13 | Z27: Chris Hani District Municipality | AA27: 24 | AC27: Eastern Cape | AD27: Premier | AE27: Provincial Roads Maintenance Grant | AF27: Transport | AG27: 40 | AH27: 1 | AI27: 9 | AJ27: SCHEDULE 4, PART A | AK27: =IF($AJ27=AK$3,MAX(AK$4:AK26,0)+1,0) -> 3 | AL27: =IF($AJ27=AL$3,MAX(AL$4:AL26,0)+1,0) -> 0 | AM27: =IF($AJ27=AM$3,MAX(AM$4:AM26,0)+1,0) -> 0 | AN27: =IF($AJ27=AN$3,MAX(AN$4:AN26,0)+1,0) -> 0 | AO27: General conditional allocation to provinces | AP27: =IF($AJ27=AP$3,MAX(AP$4:AP26,0)+1,0) -> 0 | AQ27: =IF($AJ27=AQ$3,MAX(AQ$4:AQ26,0)+1,0) -> 0 | AR27: =IF($AJ27=AR$3,MAX(AR$4:AR26,0)+1,0) -> 0 | AS27: =IF($AJ27=AS$3,MAX(AS$4:AS26,0)+1,0) -> 0 | AV27: National Health Insurance Indirect Grant: Personal Services Component | AW27: Health (Vote 18) | AX27: Schedule 6, Part A | AY27: 2020/21: R255.3 million; 2022/22: R339.4 million and 2022/23: R341.2 million | AZ27: Payments will be made according to verified invoices or advance payments in line with approved programme implementation plans with the service providers | BA27: Grant purpose | BB27: To expand the healthcare service benefits through the strategic purchasing of services from healthcare providers | BC27: To expand the healthcare service benefits through the strategic purchasing of services from healthcare providers
O28: 15 | P28: 2dac HIV,TB, HVP,Malaria,COS - HIV Component.docx | Q28: 2020-02-18T19:09:10 | R28: C:\Users\Jonathan\Desktop\DoRA PDF macro\Word\Final Prov Frameworks\2dac HIV,TB, HVP,Malaria,COS - HIV Component.docx | T28: 1 | U28: 8 | V28: 1 | X28: B | Y28: EC141 | Z28: Elundini | AA28: 25 | AC28: Eastern Cape | AD28: Free State Legislature | AE28: Public Transport Operations Grant | AF28: Transport | AG28: 40 | AH28: 2 | AI28: 9 | AJ28: SCHEDULE 4, PART A | AK28: =IF($AJ28=AK$3,MAX(AK$4:AK27,0)+1,0) -> 4 | AL28: =IF($AJ28=AL$3,MAX(AL$4:AL27,0)+1,0) -> 0 | AM28: =IF($AJ28=AM$3,MAX(AM$4:AM27,0)+1,0) -> 0 | AN28: =IF($AJ28=AN$3,MAX(AN$4:AN27,0)+1,0) -> 0 | AO28: Nationally assigned function to provinces | AP28: =IF($AJ28=AP$3,MAX(AP$4:AP27,0)+1,0) -> 0 | AQ28: =IF($AJ28=AQ$3,MAX(AQ$4:AQ27,0)+1,0) -> 0 | AR28: =IF($AJ28=AR$3,MAX(AR$4:AR27,0)+1,0) -> 0 | AS28: =IF($AJ28=AS$3,MAX(AS$4:AS27,0)+1,0) -> 0 | AV28: National Tertiary Services Grant | AW28: Health (Vote 18) | AX28: Schedule 4, Part A | AY28: 2020/21: R14.1 billion; 2021/22: R14.7 billion and 2022/23: R15.3 billion | AZ28: Monthly instalments as per the payment schedule approved by National Treasury except for the Nelson Mandela Children’s Hospital where the first payment will be made in April 2020. Additional payments will be made in July and October 2020 based on evidence of satisfactory performance | BA28: Grant purpose | BB28: Ensure the provision of tertiary health services in South Africa; to compensate tertiary facilities for the additional costs associated with the provision of these services | BC28: Ensure the provision of tertiary health services in South Africa | BD28: to compensate tertiary facilities for the additional costs associated with the provision of these services
O29: 16 | P29: 2dad HIV,TB,HPV,Malaria,COS-Malaria Component.docx | Q29: 2020-02-18T19:05:36 | R29: C:\Users\Jonathan\Desktop\DoRA PDF macro\Word\Final Prov Frameworks\2dad HIV,TB,HPV,Malaria,COS-Malaria Component.docx | T29: 1 | U29: 8 | V29: 2 | X29: B | Y29: EC142 | Z29: Senqu | AA29: 26 | AC29: Eastern Cape | AD29: Economic Development and Small Business Development, Tourism and Environmental Affairs | AE29: Integrated Urban Development Grant | AF29: Cooperative Governance | AG29: 3 | AH29: 1 | AI29: 1 | AJ29: SCHEDULE 5, PART B | AK29: =IF($AJ29=AK$3,MAX(AK$4:AK28,0)+1,0) -> 0 | AL29: =IF($AJ29=AL$3,MAX(AL$4:AL28,0)+1,0) -> 0 | AM29: =IF($AJ29=AM$3,MAX(AM$4:AM28,0)+1,0) -> 0 | AN29: =IF($AJ29=AN$3,MAX(AN$4:AN28,0)+1,0) -> 0 | AP29: =IF($AJ29=AP$3,MAX(AP$4:AP28,0)+1,0) -> 0 | AQ29: =IF(AJ29=$AQ$3,IF($AT29=AU$4,COUNTIF($AT$4:$AT29,AU$4),0)+IF($AT29=AU$5,COUNTIF($AT$4:$AT29,AU$5),0),0) -> 1 | AR29: =IF($AJ29=AR$3,MAX(AR$4:AR28,0)+1,0) -> 0 | AS29: =IF($AJ29=AS$3,MAX(AS$4:AS28,0)+1,0) -> 0 | AT29: INFRASTRUCTURE GRANTS | AV29: Statutory Human Resources, Training and Development Grant | AW29: Health (Vote 18) | AX29: Schedule 5, Part A | AY29: Total Allocation is 2020/21: R4.2 billion and 2021/22: R4.3 billion: 2022/23: R4.5 billion of which HPTD Component - 2020/21: R3.1 billion; 2021/22: R3.2 billion and 2022/23: R3.4 billionHRC Component - 2020/21: R1.1 billion; 2021/22: R1.1 billion and 2022/23: R1.1 billion | AZ29: Monthly instalments as per approved payment schedule | BA29: Grant purpose | BB29: To appoint statutory positions in the health sector for systematic realisation of the human resources for health strategy and the phase-in of National Health Insurance; support provinces to fund service costs associated with clinical training and supervision of health science trainees on the public service platform | BC29: To appoint statutory positions in the health sector for systematic realisation of the human resources for health strategy and the phase-in of National Health Insurance | BD29: support provinces to fund service costs associated with clinical training and supervision of health science trainees on the public service platform
O30: 17 | P30: 2dae HIV,TB, HVP,Malaria,COS - TB Component.docx | Q30: 2020-02-18T19:03:40 | R30: C:\Users\Jonathan\Desktop\DoRA PDF macro\Word\Final Prov Frameworks\2dae HIV,TB, HVP,Malaria,COS - TB Component.docx | T30: 1 | U30: 8 | V30: 3 | X30: B | Y30: EC145 | Z30: Walter Sisulu | AA30: 27 | AC30: Eastern Cape | AD30: Provincial Treasury | AE30: Municipal Systems Improvement Grant | AF30: Cooperative Governance | AG30: 3 | AH30: =IF(AI30="","",IF(AI30=AI29,AH29+1,1)) -> 2 | AI30: =IF(AF30="","",IF(AF30=AF29,AI29,AI29+1)) -> 1 | AJ30: SCHEDULE 6, PART B | AK30: =IF($AJ30=AK$3,MAX(AK$4:AK29,0)+1,0) -> 0 | AL30: =IF($AJ30=AL$3,MAX(AL$4:AL29,0)+1,0) -> 0 | AM30: =IF($AJ30=AM$3,MAX(AM$4:AM29,0)+1,0) -> 0 | AN30: =IF($AJ30=AN$3,MAX(AN$4:AN29,0)+1,0) -> 0 | AP30: =IF($AJ30=AP$3,MAX(AP$4:AP29,0)+1,0) -> 0 | AQ30: =IF(AJ30=$AQ$3,IF($AT30=AU$4,COUNTIF($AT$4:$AT30,AU$4),0)+IF($AT30=AU$5,COUNTIF($AT$4:$AT30,AU$5),0),0) -> 0 | AR30: =IF($AJ30=AR$3,MAX(AR$4:AR29,0)+1,0) -> 1 | AS30: =IF($AJ30=AS$3,MAX(AS$4:AS29,0)+1,0) -> 0 | AV30: Human Settlements Development Grant | AW30: Human Settlements (Vote 33) | AX30: Schedule 5, Part A | AY30: 2020/21: R17 billion; 2021/22: R13.4 billion and 2022/23: R14 billion | AZ30: Monthly instalments as per the payment schedule approved by National Treasury | BA30: Grant purpose | BB30: To provide funding for the progressive realisation of access to adequate housing through the creation of sustainable and integrated human settlements; to provide funding to facilitate a programmatic and inclusive approach to upgrading informal settlements | BC30: To provide funding for the progressive realisation of access to adequate housing through the creation of sustainable and integrated human settlements | BD30: to provide funding to facilitate a programmatic and inclusive approach to upgrading informal settlements
O31: 18 | P31: 2db Health Facility Revitalisation Grant.docx | Q31: 2020-02-18T18:57:30 | R31: C:\Users\Jonathan\Desktop\DoRA PDF macro\Word\Final Prov Frameworks\2db Health Facility Revitalisation Grant.docx | T31: 1 | U31: 9 | V31: 1 | X31: C | Y31: DC14 | Z31: Joe Gqabi District Municipality | AA31: 28 | AC31: Eastern Cape | AD31: Cooperative Governance and Traditional Affairs | AE31: Municipal Systems Improvement Grant | AF31: Cooperative Governance | AG31: 3 | AH31: =IF(AI31="","",IF(AI31=AI30,AH30+1,1)) -> 3 | AI31: =IF(AF31="","",IF(AF31=AF30,AI30,AI30+1)) -> 1 | AJ31: SCHEDULE 5, PART B | AK31: =IF($AJ31=AK$3,MAX(AK$4:AK30,0)+1,0) -> 0 | AL31: =IF($AJ31=AL$3,MAX(AL$4:AL30,0)+1,0) -> 0 | AM31: =IF($AJ31=AM$3,MAX(AM$4:AM30,0)+1,0) -> 0 | AN31: =IF($AJ31=AN$3,MAX(AN$4:AN30,0)+1,0) -> 0 | AP31: =IF($AJ31=AP$3,MAX(AP$4:AP30,0)+1,0) -> 0 | AQ31: =IF(AJ31=$AQ$3,IF($AT31=AU$4,COUNTIF($AT$4:$AT31,AU$4),0)+IF($AT31=AU$5,COUNTIF($AT$4:$AT31,AU$5),0),0) -> 1 | AR31: =IF($AJ31=AR$3,MAX(AR$4:AR30,0)+1,0) -> 0 | AS31: =IF($AJ31=AS$3,MAX(AS$4:AS30,0)+1,0) -> 0 | AT31: RECURRENT GRANTS | AV31: Provincial Emergency Housing Grant | AW31: Human Settlements (Vote 33) | AX31: Schedule 7, Part A | AY31: 2020/21: R295 million; 2021/22: R311.1 million and 2022/23: R326 million | AZ31: Transfers are made in accordance with a payment schedule approved by National Treasury | BA31: Grant purpose | BB31: To provide funding to provinces for provision of temporary shelter assistance to households affected by disasters or a housing emergency; to provide funding to provinces to repair the damage to housing for low-income households following a disaster or housing emergency if the costs of repairs are less than the cost of relocation and provision of temporary shelter | BC31: To provide funding to provinces for provision of temporary shelter assistance to households affected by disasters or a housing emergency | BD31: to provide funding to provinces to repair the damage to housing for low-income households following a disaster or housing emergency if the costs of repairs are less than the cost of relocation and provision of temporary shelter
O32: 19 | P32: 2dc National Health Insurance Grant - HP Contracting.docx | Q32: 2020-02-18T18:08:28 | R32: C:\Users\Jonathan\Desktop\DoRA PDF macro\Word\Final Prov Frameworks\2dc National Health Insurance Grant - HP Contracting.docx | T32: 1 | U32: 10 | V32: 1 | X32: B | Y32: EC153 | Z32: Ngquza Hill | AA32: 29 | AC32: Eastern Cape | AD32: Public Works and Infrastructure | AE32: Municipal Infrastructure Grant | AF32: Cooperative Governance | AG32: 3 | AH32: 4 | AI32: 1 | AJ32: SCHEDULE 5, PART B | AK32: =IF($AJ32=AK$3,MAX(AK$4:AK31,0)+1,0) -> 0 | AL32: =IF($AJ32=AL$3,MAX(AL$4:AL31,0)+1,0) -> 0 | AM32: =IF($AJ32=AM$3,MAX(AM$4:AM31,0)+1,0) -> 0 | AN32: =IF($AJ32=AN$3,MAX(AN$4:AN31,0)+1,0) -> 0 | AP32: =IF($AJ32=AP$3,MAX(AP$4:AP31,0)+1,0) -> 0 | AQ32: =IF(AJ32=$AQ$3,IF($AT32=AU$4,COUNTIF($AT$4:$AT32,AU$4),0)+IF($AT32=AU$5,COUNTIF($AT$4:$AT32,AU$5),0),0) -> 2 | AR32: =IF($AJ32=AR$3,MAX(AR$4:AR31,0)+1,0) -> 0 | AS32: =IF($AJ32=AS$3,MAX(AS$4:AS31,0)+1,0) -> 0 | AT32: INFRASTRUCTURE GRANTS | AV32: Title Deeds Restoration Grant | AW32: Human Settlements (Vote 33) | AX32: Schedule 5, Part A | AY32: 2020/21: R578 million | AZ32: Monthly instalments as per the payment schedule approved by National Treasury | BA32: Grant purpose | BB32: To provide funding for the eradication of the pre-2014 title deeds registration backlog | BC32: To provide funding for the eradication of the pre-2014 title deeds registration backlog
O33: 20 | P33: 2dd National Health Insurance Indirect Grant.docx | Q33: 2020-02-18T18:01:14 | R33: C:\Users\Jonathan\Desktop\DoRA PDF macro\Word\Final Prov Frameworks\2dd National Health Insurance Indirect Grant.docx | T33: 1 | U33: 10 | V33: 2 | X33: B | Y33: EC154 | Z33: Port St Johns | AA33: 30 | AC33: Eastern Cape | AD33: Police, Roads and Transport | AE33: Municipal Disaster Relief Grant | AF33: Cooperative Governance | AG33: 3 | AH33: 5 | AI33: 1 | AJ33: SCHEDULE 7, PART B | AK33: =IF($AJ33=AK$3,MAX(AK$4:AK32,0)+1,0) -> 0 | AL33: =IF($AJ33=AL$3,MAX(AL$4:AL32,0)+1,0) -> 0 | AM33: =IF($AJ33=AM$3,MAX(AM$4:AM32,0)+1,0) -> 0 | AN33: =IF($AJ33=AN$3,MAX(AN$4:AN32,0)+1,0) -> 0 | AP33: =IF($AJ33=AP$3,MAX(AP$4:AP32,0)+1,0) -> 0 | AQ33: =IF(AJ33=$AQ$3,IF($AT33=AU$4,COUNTIF($AT$4:$AT33,AU$4),0)+IF($AT33=AU$5,COUNTIF($AT$4:$AT33,AU$5),0),0) -> 0 | AR33: =IF($AJ33=AR$3,MAX(AR$4:AR32,0)+1,0) -> 0 | AS33: =IF($AJ33=AS$3,MAX(AS$4:AS32,0)+1,0) -> 1 | AV33: Expanded Public Works Programme Integrated Grant for Provinces | AW33: Public Works and Infrastructure (Vote 13) | AX33: Schedule 5, Part A | AY33: 2020/21: R421 million; 2021/22: R440 million and 2022/23: R456 million | AZ33: Three instalments per annum: 25 per cent, 15 May 2020; 45 per cent, 14 August 2020 and 30 per cent, 13 November 2020 | BA33: Grant purpose | BB33: =TRIM(BC33)&IF(BD33<>"","; " & TRIM(BD33),"")&IF(BE33<>"","; "& TRIM(BE33),"")&IF(BF33<>"","; " & TRIM(BF33),"")&IF(BG33<>"","; "& TRIM(BG33),"")&IF(BH33<>"","; "& TRIM(BH33),"")&IF(BI33<>"","; "& TRIM(BI33),"")&IF(BJ33<>"","; "& TRIM(BJ33),"") -> To incentivise provincial departments to expand work creation efforts through the use of labour intensive delivery methods in the following identified focus areas, in compliance with the Expanded Public Works Programme guidelines: road maintenance and the maintenance of buildings; low traffic volume roads and rural roads; other economic and social infrastructure; tourism and cultural industries; sustainable land based livelihoods; waste management | BC33: To incentivise provincial departments to expand work creation efforts through the use of labour intensive delivery methods in the following identified focus areas, in compliance with the Expanded Public Works Programme guidelines: road maintenance and the maintenance of buildings | BD33: low traffic volume roads and rural roads | BE33: other economic and social infrastructure | BF33: tourism and cultural industries | BG33: sustainable land based livelihoods | BH33: waste management
O34: 21 | P34: 2dda NHI -Health Facility Revitalisation.doc.docx | Q34: 2020-02-18T17:59:48 | R34: C:\Users\Jonathan\Desktop\DoRA PDF macro\Word\Final Prov Frameworks\2dda NHI -Health Facility Revitalisation.doc.docx | T34: 1 | U34: 10 | V34: 3 | X34: B | Y34: EC155 | Z34: Nyandeni | AA34: 31 | AC34: Eastern Cape | AD34: Agriculture and Rural Development | AE34: Informal Settlements Upgrading Partnership Grant for Municipalities | AF34: Human Settlements | AG34: 33 | AH34: 1 | AI34: 2 | AJ34: SCHEDULE 5, PART B | AK34: =IF($AJ34=AK$3,MAX(AK$4:AK33,0)+1,0) -> 0 | AL34: =IF($AJ34=AL$3,MAX(AL$4:AL33,0)+1,0) -> 0 | AM34: =IF($AJ34=AM$3,MAX(AM$4:AM33,0)+1,0) -> 0 | AN34: =IF($AJ34=AN$3,MAX(AN$4:AN33,0)+1,0) -> 0 | AP34: =IF($AJ34=AP$3,MAX(AP$4:AP33,0)+1,0) -> 0 | AQ34: =IF(AJ34=$AQ$3,IF($AT34=AU$4,COUNTIF($AT$4:$AT34,AU$4),0)+IF($AT34=AU$5,COUNTIF($AT$4:$AT34,AU$5),0),0) -> 3 | AR34: =IF($AJ34=AR$3,MAX(AR$4:AR33,0)+1,0) -> 0 | AS34: =IF($AJ34=AS$3,MAX(AS$4:AS33,0)+1,0) -> 0 | AT34: INFRASTRUCTURE GRANTS | AV34: Social Sector Expanded Public Works Programme Incentive Grant for Provinces | AW34: Public Works and Infrastructure (Vote 13) | AX34: Schedule 5, Part A | AY34: 2020/21: R414 million; 2021/22: R432 million and 2022/23: R447 million | AZ34: Three instalments per annum: 25 per cent, 15 April 2020; 45 per cent, 31 July 2020 and 30 per cent, 30 October 2020 | BA34: Grant purpose | BB34: To incentivise provincial social sector departments, identified in the social sector Expanded Public Works Programme log-frame, to increase job creation by focusing on the strengthening and expansion of social sector programmes that have employment potential | BC34: To incentivise provincial social sector departments, identified in the social sector Expanded Public Works Programme log-frame, to increase job creation by focusing on the strengthening and expansion of social sector programmes that have employment potential
O35: 22 | P35: 2ddb NHI - Non-Personal Services Component.docx | Q35: 2020-02-18T17:58:44 | R35: C:\Users\Jonathan\Desktop\DoRA PDF macro\Word\Final Prov Frameworks\2ddb NHI - Non-Personal Services Component.docx | T35: 1 | U35: 10 | V35: 4 | X35: B | Y35: EC156 | Z35: Mhlontlo | AA35: 32 | AC35: Eastern Cape | AD35: Sport, Arts, Culture and Recreation | AE35: Municipal Emergency Housing Grant | AF35: Human Settlements | AG35: 33 | AH35: 2 | AI35: 2 | AJ35: SCHEDULE 7, PART B | AK35: =IF($AJ35=AK$3,MAX(AK$4:AK34,0)+1,0) -> 0 | AL35: =IF($AJ35=AL$3,MAX(AL$4:AL34,0)+1,0) -> 0 | AM35: =IF($AJ35=AM$3,MAX(AM$4:AM34,0)+1,0) -> 0 | AN35: =IF($AJ35=AN$3,MAX(AN$4:AN34,0)+1,0) -> 0 | AP35: =IF($AJ35=AP$3,MAX(AP$4:AP34,0)+1,0) -> 0 | AQ35: =IF(AJ35=$AQ$3,IF($AT35=AU$4,COUNTIF($AT$4:$AT35,AU$4),0)+IF($AT35=AU$5,COUNTIF($AT$4:$AT35,AU$5),0),0) -> 0 | AR35: =IF($AJ35=AR$3,MAX(AR$4:AR34,0)+1,0) -> 0 | AS35: =IF($AJ35=AS$3,MAX(AS$4:AS34,0)+1,0) -> 2 | AV35: Early Childhood Development Grant | AW35: Social Development (Vote 19) | AX35: Schedule 5, Part A | AY35: 2020/21: R915 million; 2021/22: R1.1 billion and 2022/23: R1.2 billion allocated as follows:ECD subsidies: 2020/21: R826 million; 2021/22: R963 million and 2022/23: R1.1 billionECD maintenance improvements: 2020/21: R89 million; 2021/22: R94 million and 2022/23: R98 million | AZ35: Quarterly instalments based on the approved payment schedule | BA35: Grant purpose | BB35: To increase the number of poor children accessing subsidised early childhood development services through partial care facilities; to support early childhood development providers delivering an early childhood development programme to meet basic health and safety requirements for registration; to pilot the construction of new low-cost early childhood development centres | BC35: To increase the number of poor children accessing subsidised early childhood development services through partial care facilities | BD35: to support early childhood development providers delivering an early childhood development programme to meet basic health and safety requirements for registration | BE35: to pilot the construction of new low-cost early childhood development centres
O36: 23 | P36: 2ddc NHI - Personal Services Component.docx | Q36: 2020-02-18T16:43:34 | R36: C:\Users\Jonathan\Desktop\DoRA PDF macro\Word\Final Prov Frameworks\2ddc NHI - Personal Services Component.docx | T36: 1 | U36: 10 | V36: 5 | X36: B | Y36: EC157 | Z36: King Sabata Dalindyebo | AA36: 33 | AC36: Eastern Cape | AD36: Human Settlements | AE36: Urban Settlements Development Grant | AF36: Human Settlements | AG36: 33 | AH36: 3 | AI36: 2 | AJ36: SCHEDULE 4, PART B | AK36: =IF($AJ36=AK$3,MAX(AK$4:AK35,0)+1,0) -> 0 | AL36: =IF($AJ36=AL$3,MAX(AL$4:AL35,0)+1,0) -> 0 | AM36: =IF($AJ36=AM$3,MAX(AM$4:AM35,0)+1,0) -> 0 | AN36: =IF($AJ36=AN$3,MAX(AN$4:AN35,0)+1,0) -> 0 | AP36: =IF($AJ36=AP$3,MAX(AP$4:AP35,0)+1,0) -> 1 | AQ36: =IF(AJ36=$AQ$3,IF($AT36=AU$4,COUNTIF($AT$4:$AT36,AU$4),0)+IF($AT36=AU$5,COUNTIF($AT$4:$AT36,AU$5),0),0) -> 0 | AR36: =IF($AJ36=AR$3,MAX(AR$4:AR35,0)+1,0) -> 0 | AS36: =IF($AJ36=AS$3,MAX(AS$4:AS35,0)+1,0) -> 0 | AV36: Early Childhood Development Grant: Infrastructure Component | AW36: Social Development (Vote 19) | AX36: Schedule 5, Part A | AY36: 2020/21: R89 million; 2021/22: R94 million and 2022/23: R98 million | AZ36: Quarterly instalments according to approved payment schedule | BA36: Grant purpose | BB36: To support early childhood development providers delivering an early childhood development programme to meet basic health and safety requirements for registration; to pilot the construction of new low-cost early childhood development centres | BC36: To support early childhood development providers delivering an early childhood development programme to meet basic health and safety requirements for registration | BD36: to pilot the construction of new low-cost early childhood development centres
O37: 24 | P37: 2de National Tertiary Services Grant.docx | Q37: 2020-02-18T17:58:06 | R37: C:\Users\Jonathan\Desktop\DoRA PDF macro\Word\Final Prov Frameworks\2de National Tertiary Services Grant.docx | T37: 1 | U37: 11 | V37: 1 | X37: C | Y37: DC15 | Z37: O.R. Tambo District Municipality | AA37: 34 | AC37: Eastern Cape | AE37: Energy Efficiency and Demand Side Management Grant | AF37: Mineral Resources and Energy | AG37: 34 | AH37: 1 | AI37: 3 | AJ37: SCHEDULE 5, PART B | AK37: =IF($AJ37=AK$3,MAX(AK$4:AK36,0)+1,0) -> 0 | AL37: =IF($AJ37=AL$3,MAX(AL$4:AL36,0)+1,0) -> 0 | AM37: =IF($AJ37=AM$3,MAX(AM$4:AM36,0)+1,0) -> 0 | AN37: =IF($AJ37=AN$3,MAX(AN$4:AN36,0)+1,0) -> 0 | AP37: =IF($AJ37=AP$3,MAX(AP$4:AP36,0)+1,0) -> 0 | AQ37: =IF(AJ37=$AQ$3,IF($AT37=AU$4,COUNTIF($AT$4:$AT37,AU$4),0)+IF($AT37=AU$5,COUNTIF($AT$4:$AT37,AU$5),0),0) -> 4 | AR37: =IF($AJ37=AR$3,MAX(AR$4:AR36,0)+1,0) -> 0 | AS37: =IF($AJ37=AS$3,MAX(AS$4:AS36,0)+1,0) -> 0 | AT37: INFRASTRUCTURE GRANTS | AV37: Early Childhood Development Grant: Subsidy Component | AW37: Social Development (Vote 19) | AX37: Schedule 5, Part A | AY37: 2020/21: R826 million; 2021/22: R963 million and 2022/23 R1.1 billion | AZ37: Quarterly instalments according to approved payment schedule | BA37: Grant purpose | BB37: To increase the number of poor children accessing subsidised early childhood development services through centre and non-centre based modalities | BC37: To increase the number of poor children accessing subsidised early childhood development services through centre and non-centre based modalities
O38: 25 | P38: 2df Statutory HR and Training & Development Grant.docx | Q38: 2020-02-18T17:56:52 | R38: C:\Users\Jonathan\Desktop\DoRA PDF macro\Word\Final Prov Frameworks\2df Statutory HR and Training & Development Grant.docx | T38: 1 | U38: 12 | V38: 1 | X38: B | Y38: EC441 | Z38: Matatiele | AA38: 35 | AC38: Eastern Cape | AE38: Integrated National Electrification Programme (Eskom) Grant | AF38: Mineral Resources and Energy | AG38: 34 | AH38: 2 | AI38: 3 | AJ38: SCHEDULE 6, PART B | AK38: =IF($AJ38=AK$3,MAX(AK$4:AK37,0)+1,0) -> 0 | AL38: =IF($AJ38=AL$3,MAX(AL$4:AL37,0)+1,0) -> 0 | AM38: =IF($AJ38=AM$3,MAX(AM$4:AM37,0)+1,0) -> 0 | AN38: =IF($AJ38=AN$3,MAX(AN$4:AN37,0)+1,0) -> 0 | AP38: =IF($AJ38=AP$3,MAX(AP$4:AP37,0)+1,0) -> 0 | AQ38: =IF(AJ38=$AQ$3,IF($AT38=AU$4,COUNTIF($AT$4:$AT38,AU$4),0)+IF($AT38=AU$5,COUNTIF($AT$4:$AT38,AU$5),0),0) -> 0 | AR38: =IF($AJ38=AR$3,MAX(AR$4:AR37,0)+1,0) -> 2 | AS38: =IF($AJ38=AS$3,MAX(AS$4:AS37,0)+1,0) -> 0 | AV38: Community Library Services Grant | AW38: Sports, Arts and Culture (Vote 37 ) | AX38: Schedule 5, Part A | AY38: 2020/21: R1.5 billion, 2021/22: R1.6 billion and 2022/23: R1.7 billion | AZ38: Four instalments: 17 April 2020; 17 July 2020; 16 October 2020; and 22 January 2021 | BA38: Grant purpose | BB38: To transform urban and rural community library infrastructure, facilities and services (primarily targeting previously disadvantaged communities) through a recapitalised programme at provincial level in support of local government and national initiatives | BC38: To transform urban and rural community library infrastructure, facilities and services (primarily targeting previously disadvantaged communities) through a recapitalised programme at provincial level in support of local government and national initiatives
O39: 26 | P39: 2ea Human Settlements Development Grant.docx | Q39: 2020-02-19T13:11:20 | R39: C:\Users\Jonathan\Desktop\DoRA PDF macro\Word\Final Prov Frameworks\2ea Human Settlements Development Grant.docx | T39: 1 | U39: 12 | V39: 2 | X39: B | Y39: EC442 | Z39: Umzimvubu | AA39: 36 | AC39: Eastern Cape | AE39: Integrated National Electrification Programme (Municipal) Grant | AF39: Mineral Resources and Energy | AG39: 34 | AH39: 3 | AI39: 3 | AJ39: SCHEDULE 5, PART B | AK39: =IF($AJ39=AK$3,MAX(AK$4:AK38,0)+1,0) -> 0 | AL39: =IF($AJ39=AL$3,MAX(AL$4:AL38,0)+1,0) -> 0 | AM39: =IF($AJ39=AM$3,MAX(AM$4:AM38,0)+1,0) -> 0 | AN39: =IF($AJ39=AN$3,MAX(AN$4:AN38,0)+1,0) -> 0 | AP39: =IF($AJ39=AP$3,MAX(AP$4:AP38,0)+1,0) -> 0 | AQ39: =IF(AJ39=$AQ$3,IF($AT39=AU$4,COUNTIF($AT$4:$AT39,AU$4),0)+IF($AT39=AU$5,COUNTIF($AT$4:$AT39,AU$5),0),0) -> 5 | AR39: =IF($AJ39=AR$3,MAX(AR$4:AR38,0)+1,0) -> 0 | AS39: =IF($AJ39=AS$3,MAX(AS$4:AS38,0)+1,0) -> 0 | AT39: INFRASTRUCTURE GRANTS | AV39: Mass Participation and Sport Development Grant | AW39: Sports, Arts and Culture (Vote 37 ) | AX39: Schedule 5, Part A | AY39: 2020/21: R 597 million; 2021/22: R 621 million; 2022/23: R 640.2 million | AZ39: Four instalments: 29 May 2020; 28 August 2020; 27 November 2020 and 29 January 2021 | BA39: Grant purpose | BB39: To facilitate sport and active recreation participation and empowerment in partnership with relevant stakeholders | BC39: To facilitate sport and active recreation participation and empowerment in partnership with relevant stakeholders
O40: 27 | P40: 2eb Provincial Emergency Housing Grant.docx | Q40: 2020-02-18T17:55:30 | R40: C:\Users\Jonathan\Desktop\DoRA PDF macro\Word\Final Prov Frameworks\2eb Provincial Emergency Housing Grant.docx | T40: 1 | U40: 12 | V40: 3 | X40: B | Y40: EC443 | Z40: Mbizana | AA40: 37 | AC40: Eastern Cape | AE40: Integrated City Development Grant | AF40: National Treasury | AG40: 8 | AH40: 1 | AI40: 4 | AJ40: SCHEDULE 4, PART B | AK40: =IF($AJ40=AK$3,MAX(AK$4:AK39,0)+1,0) -> 0 | AL40: =IF($AJ40=AL$3,MAX(AL$4:AL39,0)+1,0) -> 0 | AM40: =IF($AJ40=AM$3,MAX(AM$4:AM39,0)+1,0) -> 0 | AN40: =IF($AJ40=AN$3,MAX(AN$4:AN39,0)+1,0) -> 0 | AP40: =IF($AJ40=AP$3,MAX(AP$4:AP39,0)+1,0) -> 2 | AQ40: =IF(AJ40=$AQ$3,IF($AT40=AU$4,COUNTIF($AT$4:$AT40,AU$4),0)+IF($AT40=AU$5,COUNTIF($AT$4:$AT40,AU$5),0),0) -> 0 | AR40: =IF($AJ40=AR$3,MAX(AR$4:AR39,0)+1,0) -> 0 | AS40: =IF($AJ40=AS$3,MAX(AS$4:AS39,0)+1,0) -> 0 | AV40: Integrated Urban Development Grant | AW40: Cooperative Governance and Traditional Affairs (Vote 3) | AX40: Schedule 5, Part B | AY40: The grant will be paid in three instalments: July 2020, December 2020 and March 2021, in line with the payment schedule submitted to National Treasury | AZ40: Responsibilities of the national departmentsDCoG administers the IUDG and co-ordinates its activities with all stakeholders, through appropriate structures. DCoG must:monitor expenditure and non-financial performance in collaboration with provincial departments of cooperative governance coordinate overall programme implementationThe Municipal Infrastructure Support Agent must support municipalities that have been identified collaboratively by DCoG and its provincial counterparts as needing assistance In addition to the sector-specific support and advice, the Department of Water and Sanitation, Department of Environmental Affairs, Department of Transport, Department of Energy and Sport and Recreation South Africa will be expected to:provide sector policies and plans to municipalities as informants to the preparation of Capital Expenditure Frameworksparticipate in processes to approve the 10-year Capital Expenditure Framework and three-year capital programmefulfil a sectoral monitoring and guidance role on relevant sectoral outputs. National sector departments will be invited to participate in IUDG in-year monitoring meetings in order to facilitate this role | BA40: Grant purpose | BB40: To provide funding for public investment in infrastructure for the poor and to promote increased access to municipal own sources of capital finance in order to increase funding for public investment in economic infrastructure; to ensure that public investments are spatially aligned and to promote the sound management of the assets delivered | BC40: To provide funding for public investment in infrastructure for the poor and to promote increased access to municipal own sources of capital finance in order to increase funding for public investment in economic infrastructure | BD40: to ensure that public investments are spatially aligned and to promote the sound management of the assets delivered
O41: 28 | P41: 2ec Title Deeds Restoration Grant.docx | Q41: 2020-02-18T17:55:02 | R41: C:\Users\Jonathan\Desktop\DoRA PDF macro\Word\Final Prov Frameworks\2ec Title Deeds Restoration Grant.docx | T41: 1 | U41: 12 | V41: 4 | X41: B | Y41: EC444 | Z41: Ntabankulu | AA41: 38 | AC41: Eastern Cape | AE41: Infrastructure Skills Development Grant | AF41: National Treasury | AG41: 8 | AH41: 2 | AI41: 4 | AJ41: SCHEDULE 5, PART B | AK41: =IF($AJ41=AK$3,MAX(AK$4:AK40,0)+1,0) -> 0 | AL41: =IF($AJ41=AL$3,MAX(AL$4:AL40,0)+1,0) -> 0 | AM41: =IF($AJ41=AM$3,MAX(AM$4:AM40,0)+1,0) -> 0 | AN41: =IF($AJ41=AN$3,MAX(AN$4:AN40,0)+1,0) -> 0 | AP41: =IF($AJ41=AP$3,MAX(AP$4:AP40,0)+1,0) -> 0 | AQ41: =IF(AJ41=$AQ$3,IF($AT41=AU$4,COUNTIF($AT$4:$AT41,AU$4),0)+IF($AT41=AU$5,COUNTIF($AT$4:$AT41,AU$5),0),0) -> 2 | AR41: =IF($AJ41=AR$3,MAX(AR$4:AR40,0)+1,0) -> 0 | AS41: =IF($AJ41=AS$3,MAX(AS$4:AS40,0)+1,0) -> 0 | AT41: RECURRENT GRANTS | AV41: Municipal Disaster Relief Grant | AW41: Cooperative Governance and Traditional Affairs (Vote 3) | AX41: Schedule 7, Part B | AY41: 2020/21: R354 million; 2021/22: R373 million and 2022/23: Rx million | AZ41: Transfers are made in accordance with a payment schedule approved by National Treasury | BA41: Grant purpose | BB41: To provide for the immediate release of funds for disaster response | BC41: To provide for the immediate release of funds for disaster response
O42: 29 | P42: 2fa EPWP Integrated Grant.docx | Q42: 2020-02-18T17:54:30 | R42: C:\Users\Jonathan\Desktop\DoRA PDF macro\Word\Final Prov Frameworks\2fa EPWP Integrated Grant.docx | T42: 1 | U42: 13 | V42: 1 | X42: C | Y42: DC44 | Z42: Alfred Nzo District Municipality | AA42: 39 | AC42: Eastern Cape | AE42: Local Government Financial Management Grant | AF42: National Treasury | AG42: 8 | AH42: 3 | AI42: 4 | AJ42: SCHEDULE 5, PART B | AK42: =IF($AJ42=AK$3,MAX(AK$4:AK41,0)+1,0) -> 0 | AL42: =IF($AJ42=AL$3,MAX(AL$4:AL41,0)+1,0) -> 0 | AM42: =IF($AJ42=AM$3,MAX(AM$4:AM41,0)+1,0) -> 0 | AN42: =IF($AJ42=AN$3,MAX(AN$4:AN41,0)+1,0) -> 0 | AP42: =IF($AJ42=AP$3,MAX(AP$4:AP41,0)+1,0) -> 0 | AQ42: =IF(AJ42=$AQ$3,IF($AT42=AU$4,COUNTIF($AT$4:$AT42,AU$4),0)+IF($AT42=AU$5,COUNTIF($AT$4:$AT42,AU$5),0),0) -> 3 | AR42: =IF($AJ42=AR$3,MAX(AR$4:AR41,0)+1,0) -> 0 | AS42: =IF($AJ42=AS$3,MAX(AS$4:AS41,0)+1,0) -> 0 | AT42: RECURRENT GRANTS | AV42: Municipal Infrastructure Grant | AW42: Cooperative Governance and Traditional Affairs (Vote 3) | AX42: Schedule 5, Part B | AY42: 2020/21: R14.7 billion; 2021/22: R15.9 billion and R2022/23: R16.9 billion | AZ42: Transfers are made in accordance with a payment schedule approved by National Treasury | BA42: Grant purpose | BB42: To provide specific capital finance for eradicating basic municipal infrastructure backlogs for poor households, microenterprises and social institutions servicing poor communities | BC42: To provide specific capital finance for eradicating basic municipal infrastructure backlogs for poor households, microenterprises and social institutions servicing poor communities
O43: 30 | P43: 2fb Social Sector EPWP Incentive Grant.docx | Q43: 2020-02-18T17:54:02 | R43: C:\Users\Jonathan\Desktop\DoRA PDF macro\Word\Final Prov Frameworks\2fb Social Sector EPWP Incentive Grant.docx | T43: 2 | U43: 1 | V43: 1 | X43: A | Y43: MAN | Z43: Mangaung | AA43: 40 | AC43: Free State | AE43: Neighbourhood Development Partnership Grant (Capital) | AF43: National Treasury | AG43: 8 | AH43: 4 | AI43: 4 | AJ43: SCHEDULE 5, PART B | AK43: =IF($AJ43=AK$3,MAX(AK$4:AK42,0)+1,0) -> 0 | AL43: =IF($AJ43=AL$3,MAX(AL$4:AL42,0)+1,0) -> 0 | AM43: =IF($AJ43=AM$3,MAX(AM$4:AM42,0)+1,0) -> 0 | AN43: =IF($AJ43=AN$3,MAX(AN$4:AN42,0)+1,0) -> 0 | AP43: =IF($AJ43=AP$3,MAX(AP$4:AP42,0)+1,0) -> 0 | AQ43: =IF(AJ43=$AQ$3,IF($AT43=AU$4,COUNTIF($AT$4:$AT43,AU$4),0)+IF($AT43=AU$5,COUNTIF($AT$4:$AT43,AU$5),0),0) -> 6 | AR43: =IF($AJ43=AR$3,MAX(AR$4:AR42,0)+1,0) -> 0 | AS43: =IF($AJ43=AS$3,MAX(AS$4:AS42,0)+1,0) -> 0 | AT43: INFRASTRUCTURE GRANTS | AV43: Municipal Systems Improvement Grant | AW43: Cooperative Governance and Traditional Affairs (Vote 3) | AX43: Schedule 6, Part B | AY43: 2020/21: R128 million; 2021/22: R135 million and 2022/23: R140 million | AZ43: Schedule 6 grant, payments to the service provider made in accordance with the signed service level agreement, implementation plan and project milestones or deliverables | BA43: Grant purpose | BB43: To assist municipalities to perform their functions and stabilise institutional and governance systems as required in the Municipal Systems Act and related local government legislation | BC43: To assist municipalities to perform their functions and stabilise institutional and governance systems as required in the Municipal Systems Act and related local government legislation
O44: 31 | P44: 2ga Early Childhood Development (Cover).docx | Q44: 2020-02-18T17:53:24 | R44: C:\Users\Jonathan\Desktop\DoRA PDF macro\Word\Final Prov Frameworks\2ga Early Childhood Development (Cover).docx | T44: 2 | U44: 2 | V44: 1 | X44: B | Y44: FS161 | Z44: Letsemeng | AA44: 41 | AC44: Free State | AD44: Education | AE44: Expanded Public Works Programme Integrated Grant for Municipalities | AF44: Public Works and Infrastructure | AG44: 13 | AH44: 1 | AI44: 5 | AJ44: SCHEDULE 5, PART B | AK44: =IF($AJ44=AK$3,MAX(AK$4:AK43,0)+1,0) -> 0 | AL44: =IF($AJ44=AL$3,MAX(AL$4:AL43,0)+1,0) -> 0 | AM44: =IF($AJ44=AM$3,MAX(AM$4:AM43,0)+1,0) -> 0 | AN44: =IF($AJ44=AN$3,MAX(AN$4:AN43,0)+1,0) -> 0 | AP44: =IF($AJ44=AP$3,MAX(AP$4:AP43,0)+1,0) -> 0 | AQ44: =IF(AJ44=$AQ$3,IF($AT44=AU$4,COUNTIF($AT$4:$AT44,AU$4),0)+IF($AT44=AU$5,COUNTIF($AT$4:$AT44,AU$5),0),0) -> 4 | AR44: =IF($AJ44=AR$3,MAX(AR$4:AR43,0)+1,0) -> 0 | AS44: =IF($AJ44=AS$3,MAX(AS$4:AS43,0)+1,0) -> 0 | AT44: RECURRENT GRANTS | AV44: Energy Efficiency and Demand Side Management Grant | AW44: Mineral Resources and Energy (Vote 34) | AX44: Schedule 5, Part B | AY44: 2020/21: R218 million; 2021/22: R230 million and 2022/23: R243 million | AZ44: Transfers are made in accordance with a payment schedule approved by the National Treasury | BA44: Grant purpose | BB44: To provide subsidies to municipalities to implement energy efficiency and demand side management initiatives within municipal infrastructure in order to reduce electricity consumption and improve energy efficiency | BC44: To provide subsidies to municipalities to implement energy efficiency and demand side management initiatives within municipal infrastructure in order to reduce electricity consumption and improve energy efficiency
O45: 32 | P45: 2gaa ECD - Infrastructure Component.docx | Q45: 2020-02-18T17:52:54 | R45: C:\Users\Jonathan\Desktop\DoRA PDF macro\Word\Final Prov Frameworks\2gaa ECD - Infrastructure Component.docx | T45: 2 | U45: 2 | V45: 2 | X45: B | Y45: FS162 | Z45: Kopanong | AA45: 42 | AC45: Free State | AD45: Health | AE45: Public Transport Network Grant | AF45: Transport | AG45: 40 | AH45: 1 | AI45: 6 | AJ45: SCHEDULE 5, PART B | AK45: =IF($AJ45=AK$3,MAX(AK$4:AK44,0)+1,0) -> 0 | AL45: =IF($AJ45=AL$3,MAX(AL$4:AL44,0)+1,0) -> 0 | AM45: =IF($AJ45=AM$3,MAX(AM$4:AM44,0)+1,0) -> 0 | AN45: =IF($AJ45=AN$3,MAX(AN$4:AN44,0)+1,0) -> 0 | AP45: =IF($AJ45=AP$3,MAX(AP$4:AP44,0)+1,0) -> 0 | AQ45: =IF(AJ45=$AQ$3,IF($AT45=AU$4,COUNTIF($AT$4:$AT45,AU$4),0)+IF($AT45=AU$5,COUNTIF($AT$4:$AT45,AU$5),0),0) -> 7 | AR45: =IF($AJ45=AR$3,MAX(AR$4:AR44,0)+1,0) -> 0 | AS45: =IF($AJ45=AS$3,MAX(AS$4:AS44,0)+1,0) -> 0 | AT45: INFRASTRUCTURE GRANTS | AV45: Integrated National Electrification Programme (Eskom) Grant | AW45: Mineral Resources and Energy (Vote 34) | AX45: Schedule 6, Part B | AY45: 2020/21: R3 billion; 2021/22: R3 billion and 2022/23: R3.7 billion | AZ45: Payments are made in accordance with a payment schedule approved by National Treasury | BA45: Grant purpose | BB45: To implement the Integrated National Electrification Programme by providing capital subsidies to Eskom to address the electrification backlog of all existing and planned residential dwellings (including informal settlements, farm dwellers, new and existing dwellings) and the installation of relevant bulk infrastructure in Eskom licenced areas | BC45: To implement the Integrated National Electrification Programme by providing capital subsidies to Eskom to address the electrification backlog of all existing and planned residential dwellings (including informal settlements, farm dwellers, new and existing dwellings) and the installation of relevant bulk infrastructure in Eskom licenced areas
O46: 33 | P46: 2gab ECD - Subsidy Component.docx | Q46: 2020-02-18T17:52:24 | R46: C:\Users\Jonathan\Desktop\DoRA PDF macro\Word\Final Prov Frameworks\2gab ECD - Subsidy Component.docx | T46: 2 | U46: 2 | V46: 3 | X46: B | Y46: FS163 | Z46: Mohokare | AA46: 43 | AC46: Free State | AD46: Social Development | AE46: Rural Roads Asset Management Systems Grant | AF46: Transport | AG46: 40 | AH46: 2 | AI46: 6 | AJ46: SCHEDULE 5, PART B | AK46: =IF($AJ46=AK$3,MAX(AK$4:AK45,0)+1,0) -> 0 | AL46: =IF($AJ46=AL$3,MAX(AL$4:AL45,0)+1,0) -> 0 | AM46: =IF($AJ46=AM$3,MAX(AM$4:AM45,0)+1,0) -> 0 | AN46: =IF($AJ46=AN$3,MAX(AN$4:AN45,0)+1,0) -> 0 | AP46: =IF($AJ46=AP$3,MAX(AP$4:AP45,0)+1,0) -> 0 | AQ46: =IF(AJ46=$AQ$3,IF($AT46=AU$4,COUNTIF($AT$4:$AT46,AU$4),0)+IF($AT46=AU$5,COUNTIF($AT$4:$AT46,AU$5),0),0) -> 8 | AR46: =IF($AJ46=AR$3,MAX(AR$4:AR45,0)+1,0) -> 0 | AS46: =IF($AJ46=AS$3,MAX(AS$4:AS45,0)+1,0) -> 0 | AT46: INFRASTRUCTURE GRANTS | AV46: Integrated National Electrification Programme (Municipal) Grant | AW46: Mineral Resources and Energy (Vote 34) | AX46: Schedule 5, Part B | AY46: 2020/21: R1.9 billion; 2021/22: R2 billion and 2022/23: R2.1 billion | AZ46: Transfers are made in accordance with a payment schedule approved by National Treasury | BA46: Grant purpose | BB46: To implement the Integrated National Electrification Programme by providing capital subsidies to municipalities to address the electrification backlog of all existing and planned residential dwellings (including informal settlements, farm dwellers, new and existing dwellings) and the installation of relevant bulk infrastructure | BC46: To implement the Integrated National Electrification Programme by providing capital subsidies to municipalities to address the electrification backlog of all existing and planned residential dwellings (including informal settlements, farm dwellers, new and existing dwellings) and the installation of relevant bulk infrastructure
O47: 34 | P47: 2ha Community Library services Grant.docx | Q47: 2020-02-18T17:51:56 | R47: C:\Users\Jonathan\Desktop\DoRA PDF macro\Word\Final Prov Frameworks\2ha Community Library services Grant.docx | T47: 2 | U47: 3 | V47: 1 | X47: C | Y47: DC16 | Z47: Xhariep District Municipality | AA47: 44 | AC47: Free State | AD47: Office of the Premier | AE47: Regional Bulk Infrastructure Grant | AF47: Water and Sanitation | AG47: 41 | AH47: 1 | AI47: 7 | AJ47: SCHEDULE 5, PART B | AK47: =IF($AJ47=AK$3,MAX(AK$4:AK46,0)+1,0) -> 0 | AL47: =IF($AJ47=AL$3,MAX(AL$4:AL46,0)+1,0) -> 0 | AM47: =IF($AJ47=AM$3,MAX(AM$4:AM46,0)+1,0) -> 0 | AN47: =IF($AJ47=AN$3,MAX(AN$4:AN46,0)+1,0) -> 0 | AP47: =IF($AJ47=AP$3,MAX(AP$4:AP46,0)+1,0) -> 0 | AQ47: =IF(AJ47=$AQ$3,IF($AT47=AU$4,COUNTIF($AT$4:$AT47,AU$4),0)+IF($AT47=AU$5,COUNTIF($AT$4:$AT47,AU$5),0),0) -> 9 | AR47: =IF($AJ47=AR$3,MAX(AR$4:AR46,0)+1,0) -> 0 | AS47: =IF($AJ47=AS$3,MAX(AS$4:AS46,0)+1,0) -> 0 | AT47: INFRASTRUCTURE GRANTS | AV47: Municipal Emergency Housing Grant | AW47: Human Settlements (Vote 33) | AX47: Schedule 7, Part B | AY47: 2020/21: R159 million; 2021/22: R168 million and 2022/23: R175 million | AZ47: Transfers are made in accordance with a payment schedule approved by National Treasury | BA47: Grant purpose | BB47: To provide funding to municipalities for provision of temporary shelter assistance to households affected by disasters or a housing emergency; to provide funding to municipalities to repair the damage to housing for low-income households following a disaster or housing emergency if the costs of repairs are less than the cost of relocation and provision of temporary shelter | BC47: To provide funding to municipalities for provision of temporary shelter assistance to households affected by disasters or a housing emergency | BD47: to provide funding to municipalities to repair the damage to housing for low-income households following a disaster or housing emergency if the costs of repairs are less than the cost of relocation and provision of temporary shelter
O48: 35 | P48: 2hb Mass Participation and Sport Development.docx | Q48: 2020-02-19T13:00:24 | R48: C:\Users\Jonathan\Desktop\DoRA PDF macro\Word\Final Prov Frameworks\2hb Mass Participation and Sport Development.docx | T48: 2 | U48: 4 | V48: 1 | X48: B | Y48: FS181 | Z48: Masilonyana | AA48: 45 | AC48: Free State | AD48: Gauteng Provincial Legislature | AE48: Water Services Infrastructure Grant | AF48: Water and Sanitation | AG48: 41 | AH48: 2 | AI48: 7 | AJ48: SCHEDULE 5, PART B | AK48: =IF($AJ48=AK$3,MAX(AK$4:AK47,0)+1,0) -> 0 | AL48: =IF($AJ48=AL$3,MAX(AL$4:AL47,0)+1,0) -> 0 | AM48: =IF($AJ48=AM$3,MAX(AM$4:AM47,0)+1,0) -> 0 | AN48: =IF($AJ48=AN$3,MAX(AN$4:AN47,0)+1,0) -> 0 | AP48: =IF($AJ48=AP$3,MAX(AP$4:AP47,0)+1,0) -> 0 | AQ48: =IF(AJ48=$AQ$3,IF($AT48=AU$4,COUNTIF($AT$4:$AT48,AU$4),0)+IF($AT48=AU$5,COUNTIF($AT$4:$AT48,AU$5),0),0) -> 10 | AR48: =IF($AJ48=AR$3,MAX(AR$4:AR47,0)+1,0) -> 0 | AS48: =IF($AJ48=AS$3,MAX(AS$4:AS47,0)+1,0) -> 0 | AT48: INFRASTRUCTURE GRANTS | AV48: Urban Settlements Development Grant | AW48: Human Settlements (Vote 33) | AX48: Schedule 4, Part B | AY48: 2020/21: R11 billion; 2021/22: R7.4billion and 2022/23: R7.3billion | AZ48: Transfers will be made in accordance with a payment schedule approved by National Treasury | BA48: Grant purpose | BB48: To supplement the capital revenues of metropolitan municipalities in order to implement infrastructure projects that promote equitable, integrated, productive, inclusive and sustainable urban development; to provide funding to facilitate a programmatic, inclusive and municipality-wide approach to upgrading informal settlements | BC48: To supplement the capital revenues of metropolitan municipalities in order to implement infrastructure projects that promote equitable, integrated, productive, inclusive and sustainable urban development | BD48: to provide funding to facilitate a programmatic, inclusive and municipality-wide approach to upgrading informal settlements
O49: 36 | P49: 2ia Provincial Roads Maintenance Grant.docx | Q49: 2020-02-18T17:50:46 | R49: C:\Users\Jonathan\Desktop\DoRA PDF macro\Word\Final Prov Frameworks\2ia Provincial Roads Maintenance Grant.docx | T49: 2 | U49: 4 | V49: 2 | X49: B | Y49: FS182 | Z49: Tokologo | AA49: 46 | AC49: Free State | AD49: Economic Development | AE49: Ilima/Letsema Indirect Grant | AF49: Agriculture, Land Reform and Rural Development | AG49: 29 | AH49: 1 | AI49: 8 | AJ49: SCHEDULE 6, PART A | AK49: =IF($AJ49=AK$3,MAX(AK$4:AK48,0)+1,0) -> 0 | AL49: =IF($AJ49=AL$3,MAX(AL$4:AL48,0)+1,0) -> 0 | AM49: =IF($AJ49=AM$3,MAX(AM$4:AM48,0)+1,0) -> 1 | AN49: =IF($AJ49=AN$3,MAX(AN$4:AN48,0)+1,0) -> 0 | AP49: =IF($AJ49=AP$3,MAX(AP$4:AP48,0)+1,0) -> 0 | AQ49: =IF(AJ49=$AQ$3,IF($AT49=AU$4,COUNTIF($AT$4:$AT49,AU$4),0)+IF($AT49=AU$5,COUNTIF($AT$4:$AT49,AU$5),0),0) -> 0 | AR49: =IF($AJ49=AR$3,MAX(AR$4:AR48,0)+1,0) -> 0 | AS49: =IF($AJ49=AS$3,MAX(AS$4:AS48,0)+1,0) -> 0 | AV49: Local Government Financial Management Grant | AW49: National Treasury (Vote 8) | AX49: Schedule 5, Part B | AY49: 2020/21: R545 million; 2021/22: R575 million and 2022/23: R596 million | AZ49: Transfers are made in accordance with a payment schedule approved by National Treasury | BA49: Grant purpose | BB49: To promote and support reforms in financial management by building capacity in municipalities to implement the Municipal Finance Management Act | BC49: To promote and support reforms in financial management by building capacity in municipalities to implement the Municipal Finance Management Act
O50: 37 | P50: 2ib Public Transport Operations Grant.docx | Q50: 2020-02-18T17:49:32 | R50: C:\Users\Jonathan\Desktop\DoRA PDF macro\Word\Final Prov Frameworks\2ib Public Transport Operations Grant.docx | T50: 2 | U50: 4 | V50: 3 | X50: B | Y50: FS183 | Z50: Tswelopele | AA50: 47 | AC50: Free State | AD50: Cooperative Governance and Traditional Affairs | AE50: School Infrastructure Backlogs Grant | AF50: Basic Education | AG50: 16 | AH50: 1 | AI50: 9 | AJ50: SCHEDULE 6, PART A | AK50: =IF($AJ50=AK$3,MAX(AK$4:AK49,0)+1,0) -> 0 | AL50: =IF($AJ50=AL$3,MAX(AL$4:AL49,0)+1,0) -> 0 | AM50: =IF($AJ50=AM$3,MAX(AM$4:AM49,0)+1,0) -> 2 | AN50: =IF($AJ50=AN$3,MAX(AN$4:AN49,0)+1,0) -> 0 | AP50: =IF($AJ50=AP$3,MAX(AP$4:AP49,0)+1,0) -> 0 | AQ50: =IF(AJ50=$AQ$3,IF($AT50=AU$4,COUNTIF($AT$4:$AT50,AU$4),0)+IF($AT50=AU$5,COUNTIF($AT$4:$AT50,AU$5),0),0) -> 0 | AR50: =IF($AJ50=AR$3,MAX(AR$4:AR49,0)+1,0) -> 0 | AS50: =IF($AJ50=AS$3,MAX(AS$4:AS49,0)+1,0) -> 0 | AV50: Integrated City Development Grant | AW50: National Treasury (Vote 8) | AX50: Schedule 4, Part B | AY50: 2020/21: R317 million; 2021/22: R341 million and 2022/23: R361 million | AZ50: Transfers are made in accordance with a payment schedule approved by National Treasury | BA50: Grant purpose | BB50: To provide a financial incentive for metropolitan municipalities to achieve a more compact urban spatial form through integrating and focussing their use of available infrastructure investment and regulatory instruments; to support metropolitan municipalities to develop a pipeline of investment ready capital programmes and projects through establishing and institutionalising an effective and efficient system of programme and project preparation | BC50: To provide a financial incentive for metropolitan municipalities to achieve a more compact urban spatial form through integrating and focussing their use of available infrastructure investment and regulatory instruments | BD50: to support metropolitan municipalities to develop a pipeline of investment ready capital programmes and projects through establishing and institutionalising an effective and efficient system of programme and project preparation
O51: 38 | P51: 3a 2MDRG (relief).docx | Q51: 2020-02-13T17:26:03 | R51: I:\B03\CD - INTERGOV. POLICY\3. Local government issues\DORA 2020 process\Final Allocations and Frameworks\6. Compared frameworks and allocations\Frameworks\3a 2MDRG (relief).docx | T51: 2 | U51: 4 | V51: 4 | X51: B | Y51: FS184 | Z51: Matjhabeng | AA51: 48 | AC51: Free State | AD51: Human Settlements | AE51: National Health Insurance Indirect Grant | AF51: Health | AG51: 18 | AH51: 1 | AI51: 10 | AJ51: SCHEDULE 6, PART A | AK51: =IF($AJ51=AK$3,MAX(AK$4:AK50,0)+1,0) -> 0 | AL51: =IF($AJ51=AL$3,MAX(AL$4:AL50,0)+1,0) -> 0 | AM51: =IF($AJ51=AM$3,MAX(AM$4:AM50,0)+1,0) -> 3 | AN51: =IF($AJ51=AN$3,MAX(AN$4:AN50,0)+1,0) -> 0 | AP51: =IF($AJ51=AP$3,MAX(AP$4:AP50,0)+1,0) -> 0 | AQ51: =IF(AJ51=$AQ$3,IF($AT51=AU$4,COUNTIF($AT$4:$AT51,AU$4),0)+IF($AT51=AU$5,COUNTIF($AT$4:$AT51,AU$5),0),0) -> 0 | AR51: =IF($AJ51=AR$3,MAX(AR$4:AR50,0)+1,0) -> 0 | AS51: =IF($AJ51=AS$3,MAX(AS$4:AS50,0)+1,0) -> 0 | AV51: Infrastructure Skills Development Grant | AW51: National Treasury (Vote 8) | AX51: Schedule 5, Part B | AY51: 2020/21: R153 million; 2021/22: R162 million and 2022/23: R168 million | AZ51: Transfers are made in accordance with a payment schedule approved by the National Treasury | BA51: Grant purpose | BB51: To recruit unemployed graduates into municipalities to be trained and professionally registered, as per the requirements of the relevant statutory councils within the built environment | BC51: To recruit unemployed graduates into municipalities to be trained and professionally registered, as per the requirements of the relevant statutory councils within the built environment
O52: 39 | P52: 3a 3MIG.docx | Q52: 2020-02-13T17:34:55 | R52: I:\B03\CD - INTERGOV. POLICY\3. Local government issues\DORA 2020 process\Final Allocations and Frameworks\6. Compared frameworks and allocations\Frameworks\3a 3MIG.docx | T52: 2 | U52: 4 | V52: 5 | X52: B | Y52: FS185 | Z52: Nala | AA52: 49 | AC52: Free State | AD52: Roads and Transport | AE52: Neighbourhood Development Partnership Grant (Technical Assistance) | AF52: National Treasury | AG52: 8 | AH52: 1 | AI52: 11 | AJ52: SCHEDULE 6, PART B | AK52: =IF($AJ52=AK$3,MAX(AK$4:AK51,0)+1,0) -> 0 | AL52: =IF($AJ52=AL$3,MAX(AL$4:AL51,0)+1,0) -> 0 | AM52: =IF($AJ52=AM$3,MAX(AM$4:AM51,0)+1,0) -> 0 | AN52: =IF($AJ52=AN$3,MAX(AN$4:AN51,0)+1,0) -> 0 | AP52: =IF($AJ52=AP$3,MAX(AP$4:AP51,0)+1,0) -> 0 | AQ52: =IF(AJ52=$AQ$3,IF($AT52=AU$4,COUNTIF($AT$4:$AT52,AU$4),0)+IF($AT52=AU$5,COUNTIF($AT$4:$AT52,AU$5),0),0) -> 0 | AR52: =IF($AJ52=AR$3,MAX(AR$4:AR51,0)+1,0) -> 3 | AS52: =IF($AJ52=AS$3,MAX(AS$4:AS51,0)+1,0) -> 0 | AV52: Neighbourhood Development Partnership Grant (Capital) | AW52: National Treasury (Vote 8) | AX52: Schedule 5, Part B and Schedule 6, Part B | AY52: Direct transfers (Schedule 5, Part B)2020/21: R559 million; 2021/22: R567 million and 2022/23: R593 millionAllocation-in-kind (Schedule 6, Part B)2020/21: R63 million; 2021/22: R95 million and 2022/23: R106 million | AZ52: Transfers are made in accordance with a payment schedule approved by National Treasury | BA52: Grant purpose | BB52: To plan, catalyse, and invest in targeted locations in order to attract and sustain third party capital investments aimed at spatial transformation, that will improve the quality of life, and access to opportunities for residents in South Africa’s under-served neighbourhoods, generally townships and rural towns | BC52: To plan, catalyse, and invest in targeted locations in order to attract and sustain third party capital investments aimed at spatial transformation, that will improve the quality of life, and access to opportunities for residents in South Africa’s under-served neighbourhoods, generally townships and rural towns
O53: 40 | P53: 3a 4MSIG.docx | Q53: 2020-02-17T18:06:18 | R53: I:\B03\CD - INTERGOV. POLICY\3. Local government issues\DORA 2020 process\Final Allocations and Frameworks\6. Compared frameworks and allocations\Frameworks\3a 4MSIG.docx | T53: 2 | U53: 5 | V53: 1 | X53: C | Y53: DC18 | Z53: Lejweleputswa District Municipality | AA53: 50 | AC53: Free State | AD53: Community Safety | AE53: Regional Bulk Infrastructure Grant | AF53: Water and Sanitation | AG53: 41 | AH53: 1 | AI53: 12 | AJ53: SCHEDULE 6, PART B | AK53: =IF($AJ53=AK$3,MAX(AK$4:AK52,0)+1,0) -> 0 | AL53: =IF($AJ53=AL$3,MAX(AL$4:AL52,0)+1,0) -> 0 | AM53: =IF($AJ53=AM$3,MAX(AM$4:AM52,0)+1,0) -> 0 | AN53: =IF($AJ53=AN$3,MAX(AN$4:AN52,0)+1,0) -> 0 | AP53: =IF($AJ53=AP$3,MAX(AP$4:AP52,0)+1,0) -> 0 | AQ53: =IF(AJ53=$AQ$3,IF($AT53=AU$4,COUNTIF($AT$4:$AT53,AU$4),0)+IF($AT53=AU$5,COUNTIF($AT$4:$AT53,AU$5),0),0) -> 0 | AR53: =IF($AJ53=AR$3,MAX(AR$4:AR52,0)+1,0) -> 4 | AS53: =IF($AJ53=AS$3,MAX(AS$4:AS52,0)+1,0) -> 0 | AV53: Expanded Public Works Programme Integrated Grant for Municipalities | AW53: Public Works and Infrastructure (Vote 13) | AX53: Schedule 5, Part B | AY53: 2020/21: R748 million; 2021/22: R790 million and 2022/23: R819 million | AZ53: Three instalments per annum: 25 percent, 03 August 2020; 45 per cent, 02 November 2020 and 30 per cent, 01 February 2021 | BA53: Grant purpose | BB53: To incentivise municipalities to expand work creation efforts through the use of labour intensive delivery methods in the following identified focus areas, in compliance with the Expanded Public Works Programme guidelines: road maintenance and the maintenance of buildings; low traffic volume roads and rural roads; basic services infrastructure, including water and sanitation reticulation (excluding bulk infrastructure); other economic and social infrastructure; tourism and cultural industries; waste management; parks and beautification; sustainable land-based livelihoods; social services programmes; community safety programmes | BC53: To incentivise municipalities to expand work creation efforts through the use of labour intensive delivery methods in the following identified focus areas, in compliance with the Expanded Public Works Programme guidelines: road maintenance and the maintenance of buildings | BD53: low traffic volume roads and rural roads; basic services infrastructure, including water and sanitation reticulation (excluding bulk infrastructure) | BE53: other economic and social infrastructure; tourism and cultural industries | BF53: waste management | BG53: parks and beautification | BH53: sustainable land-based livelihoods | BI53: social services programmes | BJ53: community safety programmes
O54: 41 | P54: 3b 1EEDSM.docx | Q54: 2020-02-17T16:03:38 | R54: I:\B03\CD - INTERGOV. POLICY\3. Local government issues\DORA 2020 process\Final Allocations and Frameworks\6. Compared frameworks and allocations\Frameworks\3b 1EEDSM.docx | T54: 2 | U54: 6 | V54: 1 | X54: B | Y54: FS191 | Z54: Setsoto | AA54: 51 | AC54: Free State | AD54: Agriculture and Rural Development | AE54: Water Services Infrastructure Grant | AF54: Water and Sanitation | AG54: 41 | AH54: 2 | AI54: 12 | AJ54: SCHEDULE 6, PART B | AK54: =IF($AJ54=AK$3,MAX(AK$4:AK53,0)+1,0) -> 0 | AL54: =IF($AJ54=AL$3,MAX(AL$4:AL53,0)+1,0) -> 0 | AM54: =IF($AJ54=AM$3,MAX(AM$4:AM53,0)+1,0) -> 0 | AN54: =IF($AJ54=AN$3,MAX(AN$4:AN53,0)+1,0) -> 0 | AP54: =IF($AJ54=AP$3,MAX(AP$4:AP53,0)+1,0) -> 0 | AQ54: =IF(AJ54=$AQ$3,IF($AT54=AU$4,COUNTIF($AT$4:$AT54,AU$4),0)+IF($AT54=AU$5,COUNTIF($AT$4:$AT54,AU$5),0),0) -> 0 | AR54: =IF($AJ54=AR$3,MAX(AR$4:AR53,0)+1,0) -> 5 | AS54: =IF($AJ54=AS$3,MAX(AS$4:AS53,0)+1,0) -> 0 | AV54: Public Transport Network Grant | AW54: Transport (Vote 40) | AX54: Schedule 5, Part B | AY54: 2020/21: R6.4 billion; 2021/22: R6.8 billion and 2022/23: R7.1 million | AZ54: Transfers are made in accordance with an agreed payment schedule approved by the National Treasury | BA54: Grant purpose | BB54: To provide funding for accelerated construction and improvement of public and non-motorised transport infrastructure that form part of a municipal integrated public transport network and to support the planning, regulation, control, management and operations of fiscally and financially sustainable municipal public transport network services | BC54: To provide funding for accelerated construction and improvement of public and non-motorised transport infrastructure that form part of a municipal integrated public transport network and to support the planning, regulation, control, management and operations of fiscally and financially sustainable municipal public transport network services
O55: 42 | P55: 3b 2INEP ESKOM.docx | Q55: 2020-02-17T19:46:29 | R55: I:\B03\CD - INTERGOV. POLICY\3. Local government issues\DORA 2020 process\Final Allocations and Frameworks\6. Compared frameworks and allocations\Frameworks\3b 2INEP ESKOM.docx | T55: 2 | U55: 6 | V55: 2 | X55: B | Y55: FS192 | Z55: Dihlabeng | AA55: 52 | AC55: Free State | AD55: Sport, Arts, Culture and Recreation | AV55: Rural Roads Asset Management Systems Grant | AW55: Transport (Vote 40) | AX55: Schedule 5, Part B | AY55: 2020/21: R108 million; 2021/22: R114 million and 2022/23: R121 million | AZ55: Transfers are made in accordance with an agreed payment schedule approved by the National Treasury | BA55: Grant purpose | BB55: To assist district municipalities to set up Road Asset Management Systems, and collect road, bridge and traffic data on municipal road networks in line with the Road Infrastructure Strategic Framework for South Africa | BC55: To assist district municipalities to set up Road Asset Management Systems, and collect road, bridge and traffic data on municipal road networks in line with the Road Infrastructure Strategic Framework for South Africa
O56: 43 | P56: 3b 3INEP Municipal.docx | Q56: 2020-02-18T09:00:12 | R56: I:\B03\CD - INTERGOV. POLICY\3. Local government issues\DORA 2020 process\Final Allocations and Frameworks\6. Compared frameworks and allocations\Frameworks\3b 3INEP Municipal.docx | T56: 2 | U56: 6 | V56: 3 | X56: B | Y56: FS193 | Z56: Nketoana | AA56: 53 | AC56: Free State | AD56: E-Government | AV56: Regional Bulk Infrastructure Grant | AW56: Water and Sanitation (Vote 41) | AX56: Schedule 5, Part B and Schedule 6, Part B | AY56: Direct transfers (Schedule 5, Part B):2020/21: R2 billion; 2021/22: R2.2 billion and 2022/23: R2.3 billionAllocations-in-kind (Schedule 6, Part B):2020/21: R3.9 billion; 2021/22: R3.4 billion and 2022/23: R3.6 billion | AZ56: Transfers for Schedule 5, Part B allocations are made in terms of a payment schedule approved by National TreasuryPayments for Schedule 6, Part B allocations are made after verification of work performed | BA56: Grant purpose | BB56: To develop new, refurbish, upgrade and replace ageing bulk water and sanitation infrastructure of regional significance that connects water resources to infrastructure serving extensive areas across municipal boundaries or large regional bulk infrastructure serving numerous communities over a large area within a municipality; to implement bulk infrastructure with a potential of addressing water conservation and water demand management projects or facilitate and contribute to the implementation of local water conservation and water demand management projects that will directly impact on bulk infrastructure requirements | BC56: To develop new, refurbish, upgrade and replace ageing bulk water and sanitation infrastructure of regional significance that connects water resources to infrastructure serving extensive areas across municipal boundaries or large regional bulk infrastructure serving numerous communities over a large area within a municipality | BD56: to implement bulk infrastructure with a potential of addressing water conservation and water demand management projects or facilitate and contribute to the implementation of local water conservation and water demand management projects that will directly impact on bulk infrastructure requirements
O57: 44 | P57: 3c 1MEHG.docx | Q57: 2020-02-13T18:24:41 | R57: I:\B03\CD - INTERGOV. POLICY\3. Local government issues\DORA 2020 process\Final Allocations and Frameworks\6. Compared frameworks and allocations\Frameworks\3c 1MEHG.docx | T57: 2 | U57: 6 | V57: 4 | X57: B | Y57: FS194 | Z57: Maluti-a-Phofung | AA57: 54 | AC57: Free State | AD57: Gauteng Provincial Treasury | AV57: Water Services Infrastructure Grant | AW57: Water and Sanitation (Vote 41) | AX57: Schedule 5, Part B and Schedule 6, Part B | AY57: Direct transfers (Schedule 5, Part B):2020/21: R3.4 billion; 2021/22: R3.6 billion and 2022/23: R3.7 billionAllocations-in-kind (Schedule 6, Part B):2020/21: R579 million; 2021/22: R730 million and 2022/23: R771 million | AZ57: For Schedule 5, Part B, transfers are made in accordance with a payment schedule approved by National TreasuryFor Schedule 6, Part B, payments are made to contracted implementing agents (including water boards and private service providers) after verification of work performed | BA57: Grant purpose | BB57: Facilitate the planning and implementation of various water and sanitation projects to accelerate backlog reduction and enhance the sustainability of services especially in rural municipalities; provide basic and intermittent water and sanitation supply that ensures provision of services to identified and prioritised communities, including spring protection and groundwater development; support municipalities in implementing water conservation and water demand management projects; support the close-out of the existing Bucket Eradication Programme intervention in formal residential areas; support drought relief projects in affected municipalities | BC57: Facilitate the planning and implementation of various water and sanitation projects to accelerate backlog reduction and enhance the sustainability of services especially in rural municipalities | BD57: provide basic and intermittent water and sanitation supply that ensures provision of services to identified and prioritised communities, including spring protection and groundwater development | BE57: support municipalities in implementing water conservation and water demand management projects | BF57: support the close-out of the existing Bucket Eradication Programme intervention in formal residential areas | BG57: support drought relief projects in affected municipalities
O58: 45 | P58: 3c 2USDG.docx | Q58: 2020-02-13T18:19:04 | R58: I:\B03\CD - INTERGOV. POLICY\3. Local government issues\DORA 2020 process\Final Allocations and Frameworks\6. Compared frameworks and allocations\Frameworks\3c 2USDG.docx | T58: 2 | U58: 6 | V58: 5 | X58: B | Y58: FS195 | Z58: Phumelela | AA58: 55 | AC58: Free State | AD58: Infrastructure Development | AP58: =IF($AJ58=AP$3,MAX(AP$4:AP57,0)+1,0) -> 0 | AQ58: =IF(AJ58=$AQ$3,IF($AT58=AU$4,COUNTIF($AT$4:$AT58,AU$4),0)+IF($AT58=AU$5,COUNTIF($AT$4:$AT58,AU$5),0),0) -> 0 | AR58: =IF($AJ58=AR$3,MAX(AR$4:AR57,0)+1,0) -> 0 | AS58: =IF($AJ58=AS$3,MAX(AS$4:AS57,0)+1,0) -> 0 | AV58: Water Services Infrastructure Grant | AW58: Water and Sanitation (Vote 41) | AX58: Schedule 5, Part B and Schedule 6, Part B | AY58: Direct transfers (Schedule 5, Part B):2020/21: R3.4 billion; 2021/22: R3.6 billion and 2022/23: R3.7 billionAllocations-in-kind (Schedule 6, Part B):2020/21: R579 million; 2021/22: R730 million and 2022/23: R771 million | AZ58: For Schedule 5, Part B, transfers are made in accordance with a payment schedule approved by National TreasuryFor Schedule 6, Part B, payments are made to contracted implementing agents (including water boards and private service providers) after verification of work performed | BA58: Grant purpose | BB58: Facilitate the planning and implementation of various water and sanitation projects to accelerate backlog reduction and enhance the sustainability of services especially in rural municipalities; provide basic and intermittent water and sanitation supply that ensures provision of services to identified and prioritised communities, including spring protection and groundwater development; support municipalities in implementing water conservation and water demand management projects; support the close-out of the existing Bucket Eradication Programme intervention in formal residential areas; support drought relief projects in affected municipalities | BC58: Facilitate the planning and implementation of various water and sanitation projects to accelerate backlog reduction and enhance the sustainability of services especially in rural municipalities | BD58: provide basic and intermittent water and sanitation supply that ensures provision of services to identified and prioritised communities, including spring protection and groundwater development | BE58: support municipalities in implementing water conservation and water demand management projects | BF58: support the close-out of the existing Bucket Eradication Programme intervention in formal residential areas | BG58: support drought relief projects in affected municipalities
O59: 46 | P59: 3d 1FMG.docx | Q59: 2020-02-13T18:28:03 | R59: I:\B03\CD - INTERGOV. POLICY\3. Local government issues\DORA 2020 process\Final Allocations and Frameworks\6. Compared frameworks and allocations\Frameworks\3d 1FMG.docx | T59: 2 | U59: 6 | V59: 6 | X59: B | Y59: FS196 | Z59: Mantsopa | AA59: 56 | AC59: Free State | AP59: =IF($AJ59=AP$3,MAX(AP$4:AP58,0)+1,0) -> 0 | AQ59: =IF(AJ59=$AQ$3,IF($AT59=AU$4,COUNTIF($AT$4:$AT59,AU$4),0)+IF($AT59=AU$5,COUNTIF($AT$4:$AT59,AU$5),0),0) -> 0 | AR59: =IF($AJ59=AR$3,MAX(AR$4:AR58,0)+1,0) -> 0 | AS59: =IF($AJ59=AS$3,MAX(AS$4:AS58,0)+1,0) -> 0 | AV59: Ilima/Letsema Indirect Grant | AW59: =AW7 -> Agriculture, Land Reform and Rural Development (Vote 29) | AX59: =AX7 -> Schedule 5, Part A and Schedule 6, Part A | AY59: Direct transfers (Schedule 5, Part A):2020/21: R549 million, 2021/22: R614 million and 2022/23: R632 millionAllocations-in-kind (Schedule 6, Part A)2020/21: R36 million | AZ59: Transfers for Schedule 5, Part A:Four instalments: 15 May 2020, 28 August 2020, 30 October 2020, and 29 January 2021Transfers for Schedule 6, Part ATwo instalments: 15 May 2020, 28 August 2020 | BA59: Grant purpose | BB59: To assist vulnerable South African farming communities to achieve an increase in agricultural production and invest in infrastructure that unlocks agricultural production within strategically identified grain, livestock, horticulture and aquaculture production areas | BC59: To assist vulnerable South African farming communities to achieve an increase in agricultural production and invest in infrastructure that unlocks agricultural production within strategically identified grain, livestock, horticulture and aquaculture production areas
O60: 47 | P60: 3d 2ICDG.docx | Q60: 2020-02-17T18:26:02 | R60: I:\B03\CD - INTERGOV. POLICY\3. Local government issues\DORA 2020 process\Final Allocations and Frameworks\6. Compared frameworks and allocations\Frameworks\3d 2ICDG.docx | T60: 2 | U60: 7 | V60: 1 | X60: C | Y60: DC19 | Z60: Thabo Mofutsanyana District Municipality | AA60: 57 | AC60: Free State | AP60: =IF($AJ60=AP$3,MAX(AP$4:AP59,0)+1,0) -> 0 | AQ60: =IF(AJ60=$AQ$3,IF($AT60=AU$4,COUNTIF($AT$4:$AT60,AU$4),0)+IF($AT60=AU$5,COUNTIF($AT$4:$AT60,AU$5),0),0) -> 0 | AR60: =IF($AJ60=AR$3,MAX(AR$4:AR59,0)+1,0) -> 0 | AS60: =IF($AJ60=AS$3,MAX(AS$4:AS59,0)+1,0) -> 0 | AV60: Municipal Systems Improvement Grant | AW60: =AW43 -> Cooperative Governance and Traditional Affairs (Vote 3) | AX60: =AX43 -> Schedule 6, Part B | AY60: 2020/21: R128 million; 2021/22: R135 million and 2022/23: R140 million | AZ60: Schedule 6 grant, payments to the service provider made in accordance with the signed service level agreement, implementation plan and project milestones or deliverables | BA60: Grant purpose | BB60: To assist municipalities to perform their functions and stabilise institutional and governance systems as required in the Municipal Systems Act and related local government legislation | BC60: To assist municipalities to perform their functions and stabilise institutional and governance systems as required in the Municipal Systems Act and related local government legislation
O61: 48 | P61: 3d 3ISDG.docx | Q61: 2020-02-14T10:42:23 | R61: I:\B03\CD - INTERGOV. POLICY\3. Local government issues\DORA 2020 process\Final Allocations and Frameworks\6. Compared frameworks and allocations\Frameworks\3d 3ISDG.docx | T61: 2 | U61: 8 | V61: 1 | X61: B | Y61: FS201 | Z61: Moqhaka | AA61: 58 | AC61: Free State | AP61: =IF($AJ61=AP$3,MAX(AP$4:AP60,0)+1,0) -> 0 | AQ61: =IF(AJ61=$AQ$3,IF($AT61=AU$4,COUNTIF($AT$4:$AT61,AU$4),0)+IF($AT61=AU$5,COUNTIF($AT$4:$AT61,AU$5),0),0) -> 0 | AR61: =IF($AJ61=AR$3,MAX(AR$4:AR60,0)+1,0) -> 0 | AS61: =IF($AJ61=AS$3,MAX(AS$4:AS60,0)+1,0) -> 0 | AV61: Regional Bulk Infrastructure Grant | AW61: =AW56 -> Water and Sanitation (Vote 41) | AX61: =AX56 -> Schedule 5, Part B and Schedule 6, Part B | AY61: Direct transfers (Schedule 5, Part B):2020/21: R2 billion; 2021/22: R2.2 billion and 2022/23: R2.3 billionAllocations-in-kind (Schedule 6, Part B):2020/21: R3.9 billion; 2021/22: R3.4 billion and 2022/23: R3.6 billion | AZ61: Transfers for Schedule 5, Part B allocations are made in terms of a payment schedule approved by National TreasuryPayments for Schedule 6, Part B allocations are made after verification of work performed | BA61: Grant purpose | BB61: To develop new, refurbish, upgrade and replace ageing bulk water and sanitation infrastructure of regional significance that connects water resources to infrastructure serving extensive areas across municipal boundaries or large regional bulk infrastructure serving numerous communities over a large area within a municipality; to implement bulk infrastructure with a potential of addressing water conservation and water demand management projects or facilitate and contribute to the implementation of local water conservation and water demand management projects that will directly impact on bulk infrastructure requirements | BC61: To develop new, refurbish, upgrade and replace ageing bulk water and sanitation infrastructure of regional significance that connects water resources to infrastructure serving extensive areas across municipal boundaries or large regional bulk infrastructure serving numerous communities over a large area within a municipality | BD61: to implement bulk infrastructure with a potential of addressing water conservation and water demand management projects or facilitate and contribute to the implementation of local water conservation and water demand management projects that will directly impact on bulk infrastructure requirements
O62: 49 | P62: 3d 4NDPG.docx | Q62: 2020-02-14T10:46:14 | R62: I:\B03\CD - INTERGOV. POLICY\3. Local government issues\DORA 2020 process\Final Allocations and Frameworks\6. Compared frameworks and allocations\Frameworks\3d 4NDPG.docx | T62: 2 | U62: 8 | V62: 2 | X62: B | Y62: FS203 | Z62: Ngwathe | AA62: 59 | AC62: Free State | AP62: =IF($AJ62=AP$3,MAX(AP$4:AP61,0)+1,0) -> 0 | AQ62: =IF(AJ62=$AQ$3,IF($AT62=AU$4,COUNTIF($AT$4:$AT62,AU$4),0)+IF($AT62=AU$5,COUNTIF($AT$4:$AT62,AU$5),0),0) -> 0 | AR62: =IF($AJ62=AR$3,MAX(AR$4:AR61,0)+1,0) -> 0 | AS62: =IF($AJ62=AS$3,MAX(AS$4:AS61,0)+1,0) -> 0 | AV62: Water Services Infrastructure Grant | AW62: =AW57 -> Water and Sanitation (Vote 41) | AX62: =AX57 -> Schedule 5, Part B and Schedule 6, Part B | AY62: Direct transfers (Schedule 5, Part B):2020/21: R3.4 billion; 2021/22: R3.6 billion and 2022/23: R3.7 billionAllocations-in-kind (Schedule 6, Part B):2020/21: R579 million; 2021/22: R730 million and 2022/23: R771 million | AZ62: For Schedule 5, Part B, transfers are made in accordance with a payment schedule approved by National TreasuryFor Schedule 6, Part B, payments are made to contracted implementing agents (including water boards and private service providers) after verification of work performed | BA62: Grant purpose | BB62: Facilitate the planning and implementation of various water and sanitation projects to accelerate backlog reduction and enhance the sustainability of services especially in rural municipalities; provide basic and intermittent water and sanitation supply that ensures provision of services to identified and prioritised communities, including spring protection and groundwater development; support municipalities in implementing water conservation and water demand management projects; support the close-out of the existing Bucket Eradication Programme intervention in formal residential areas; support drought relief projects in affected municipalities | BC62: Facilitate the planning and implementation of various water and sanitation projects to accelerate backlog reduction and enhance the sustainability of services especially in rural municipalities | BD62: provide basic and intermittent water and sanitation supply that ensures provision of services to identified and prioritised communities, including spring protection and groundwater development | BE62: support municipalities in implementing water conservation and water demand management projects | BF62: support the close-out of the existing Bucket Eradication Programme intervention in formal residential areas | BG62: support drought relief projects in affected municipalities
O63: 50 | P63: 3e 1EPWP.docx | Q63: 2020-02-14T10:49:58 | R63: I:\B03\CD - INTERGOV. POLICY\3. Local government issues\DORA 2020 process\Final Allocations and Frameworks\6. Compared frameworks and allocations\Frameworks\3e 1EPWP.docx | T63: 2 | U63: 8 | V63: 3 | X63: B | Y63: FS204 | Z63: Metsimaholo | AA63: 60 | AC63: Free State | AP63: =IF($AJ63=AP$3,MAX(AP$4:AP62,0)+1,0) -> 0 | AQ63: =IF(AJ63=$AQ$3,IF($AT63=AU$4,COUNTIF($AT$4:$AT63,AU$4),0)+IF($AT63=AU$5,COUNTIF($AT$4:$AT63,AU$5),0),0) -> 0 | AR63: =IF($AJ63=AR$3,MAX(AR$4:AR62,0)+1,0) -> 0 | AS63: =IF($AJ63=AS$3,MAX(AS$4:AS62,0)+1,0) -> 0 | AV63: Neighbourhood Development Partnership Grant (Technical Assistance) | AW63: =AW52 -> National Treasury (Vote 8) | AX63: =AX52 -> Schedule 5, Part B and Schedule 6, Part B | AY63: Direct transfers (Schedule 5, Part B)2020/21: R559 million; 2021/22: R567 million and 2022/23: R593 millionAllocation-in-kind (Schedule 6, Part B)2020/21: R63 million; 2021/22: R95 million and 2022/23: R106 million | AZ63: Transfers are made in accordance with a payment schedule approved by National Treasury | BA63: Grant purpose | BB63: To plan, catalyse, and invest in targeted locations in order to attract and sustain third party capital investments aimed at spatial transformation, that will improve the quality of life, and access to opportunities for residents in South Africa’s under-served neighbourhoods, generally townships and rural towns | BC63: To plan, catalyse, and invest in targeted locations in order to attract and sustain third party capital investments aimed at spatial transformation, that will improve the quality of life, and access to opportunities for residents in South Africa’s under-served neighbourhoods, generally townships and rural towns
O64: 51 | P64: 3f 1PTNG.docx | Q64: 2020-02-17T19:05:21 | R64: I:\B03\CD - INTERGOV. POLICY\3. Local government issues\DORA 2020 process\Final Allocations and Frameworks\6. Compared frameworks and allocations\Frameworks\3f 1PTNG.docx | T64: 2 | U64: 8 | V64: 4 | X64: B | Y64: FS205 | Z64: Mafube | AA64: 61 | AC64: Free State | AD64: Education | AP64: =IF($AJ64=AP$3,MAX(AP$4:AP63,0)+1,0) -> 0 | AQ64: =IF(AJ64=$AQ$3,IF($AT64=AU$4,COUNTIF($AT$4:$AT64,AU$4),0)+IF($AT64=AU$5,COUNTIF($AT$4:$AT64,AU$5),0),0) -> 0 | AR64: =IF($AJ64=AR$3,MAX(AR$4:AR63,0)+1,0) -> 0 | AS64: =IF($AJ64=AS$3,MAX(AS$4:AS63,0)+1,0) -> 0 | AV64: Informal Settlements Upgrading Partnership Grant for Provinces | AW64: Human Settlements (Vote 38) | AX64: Schedule 5, Part A | BA64: Grant purpose | BB64: To provide funding to facilitate a programmatic and inclusive approach to upgrading informal settlements
O65: 52 | P65: 3f 2RRAMS.docx | Q65: 2020-02-17T19:24:50 | R65: I:\B03\CD - INTERGOV. POLICY\3. Local government issues\DORA 2020 process\Final Allocations and Frameworks\6. Compared frameworks and allocations\Frameworks\3f 2RRAMS.docx | T65: 2 | U65: 9 | V65: 1 | X65: C | Y65: DC20 | Z65: Fezile Dabi District Municipality | AA65: 62 | AC65: Free State | AD65: Health | AH65: =IF(AI65="","",IF(AI65=AI64,AH64+1,1)) ->  | AI65: =IF(AF65="","",IF(AF65=AF64,AI64,AI64+1)) ->  | AV65: Informal Settlements Upgrading Partnership Grant for Municipalities | AW65: Human Settlements (Vote 38) | AX65: Schedule 5, Part B | BA65: Grant purpose | BB65: To provide funding to facilitate a programmatic, inclusive and municipality-wide approach to upgrading of informal settlements
O66: 53 | P66: 3g 1RBIG.docx | Q66: 2020-02-17T20:09:12 | R66: I:\B03\CD - INTERGOV. POLICY\3. Local government issues\DORA 2020 process\Final Allocations and Frameworks\6. Compared frameworks and allocations\Frameworks\3g 1RBIG.docx | T66: 3 | U66: 1 | V66: 1 | X66: A | Y66: EKU | Z66: City of Ekurhuleni | AA66: 63 | AC66: Gauteng | AD66: Social Development | AP66: =IF($AJ66=AP$3,MAX(AP$4:AP65,0)+1,0) -> 0 | AQ66: =IF(AJ66=$AQ$3,IF($AT66=AU$4,COUNTIF($AT$4:$AT66,AU$4),0)+IF($AT66=AU$5,COUNTIF($AT$4:$AT66,AU$5),0),0) -> 0 | AR66: =IF($AJ66=AR$3,MAX(AR$4:AR65,0)+1,0) -> 0 | AS66: =IF($AJ66=AS$3,MAX(AS$4:AS65,0)+1,0) -> 0
O67: 54 | P67: 3g 2WSIG.docx | Q67: 2020-02-14T12:30:03 | R67: I:\B03\CD - INTERGOV. POLICY\3. Local government issues\DORA 2020 process\Final Allocations and Frameworks\6. Compared frameworks and allocations\Frameworks\3g 2WSIG.docx | T67: 3 | U67: 1 | V67: 2 | X67: A | Y67: JHB | Z67: City of Johannesburg | AA67: 64 | AC67: Gauteng | AD67: Office of the Premier | AP67: =IF($AJ67=AP$3,MAX(AP$4:AP66,0)+1,0) -> 0 | AQ67: =IF(AJ67=$AQ$3,IF($AT67=AU$4,COUNTIF($AT$4:$AT67,AU$4),0)+IF($AT67=AU$5,COUNTIF($AT$4:$AT67,AU$5),0),0) -> 0 | AR67: =IF($AJ67=AR$3,MAX(AR$4:AR66,0)+1,0) -> 0 | AS67: =IF($AJ67=AS$3,MAX(AS$4:AS66,0)+1,0) -> 0
O68: 55 | P68: 3 2020 DoR Bill - LG Frameworks Front Page.doc | Q68: 2020-02-18T18:39:20 | R68: C:\Users\Jonathan\Desktop\DoRA PDF macro\Word\Final LG Frameworks\3 2020 DoR Bill - LG Frameworks Front Page.doc | T68: 3 | U68: 1 | V68: 3 | X68: A | Y68: TSH | Z68: City of Tshwane | AA68: 65 | AC68: Gauteng | AD68: Provincial Legislature | AH68: =IF(AI68="","",IF(AI68=AI67,AH67+1,1)) ->  | AI68: =IF(AF68="","",IF(AF68=AF67,AI67,AI67+1)) -> 
O69: 56 | P69: 3a 1 IUDG.docx | Q69: 2020-02-13T16:59:56 | R69: C:\Users\Jonathan\Desktop\DoRA PDF macro\Word\Final LG Frameworks\3a 1 IUDG.docx | T69: 3 | U69: 2 | V69: 1 | X69: B | Y69: GT421 | Z69: Emfuleni | AA69: 66 | AC69: Gauteng | AD69: Agriculture and Rural Development | AH69: =IF(AI69="","",IF(AI69=AI68,AH68+1,1)) ->  | AI69: =IF(AF69="","",IF(AF69=AF68,AI68,AI68+1)) -> 
O70: 57 | P70: 3a 2MDRG (relief).docx | Q70: 2020-02-18T15:34:52 | R70: C:\Users\Jonathan\Desktop\DoRA PDF macro\Word\Final LG Frameworks\3a 2MDRG (relief).docx | T70: 3 | U70: =IF(T70=T69,IF(X70=X69,U69,U69+1),1) -> 2 | V70: =IF(U70=U69,V69+1,1) -> 2 | X70: B | Y70: GT422 | Z70: Midvaal | AA70: 67 | AC70: Gauteng | AD70: Economic Development, Tourism and Environmental Affairs | AH70: =IF(AI70="","",IF(AI70=AI69,AH69+1,1)) ->  | AI70: =IF(AF70="","",IF(AF70=AF69,AI69,AI69+1)) -> 
O71: 58 | P71: 3a 3MIG.docx | Q71: 2020-02-18T15:36:16 | R71: C:\Users\Jonathan\Desktop\DoRA PDF macro\Word\Final LG Frameworks\3a 3MIG.docx | T71: 3 | U71: 2 | V71: 3 | X71: B | Y71: GT423 | Z71: Lesedi | AA71: 68 | AC71: Gauteng | AD71: Provincial Treasury
O72: 59 | P72: 3a 4MSIG.docx | Q72: 2020-02-17T18:06:20 | R72: C:\Users\Jonathan\Desktop\DoRA PDF macro\Word\Final LG Frameworks\3a 4MSIG.docx | T72: 3 | U72: 3 | V72: 1 | X72: C | Y72: DC42 | Z72: Sedibeng District Municipality | AA72: 69 | AC72: Gauteng | AD72: Human Settlements
O73: 60 | P73: 3b 1EEDSM.docx | Q73: 2020-02-17T16:03:40 | R73: C:\Users\Jonathan\Desktop\DoRA PDF macro\Word\Final LG Frameworks\3b 1EEDSM.docx | T73: 3 | U73: 4 | V73: 1 | X73: B | Y73: GT481 | Z73: Mogale City | AA73: 70 | AC73: Gauteng | AD73: Community Safety and Liaison
O74: 61 | P74: 3b 2INEP ESKOM.docx | Q74: 2020-02-17T19:46:30 | R74: C:\Users\Jonathan\Desktop\DoRA PDF macro\Word\Final LG Frameworks\3b 2INEP ESKOM.docx | T74: 3 | U74: 4 | V74: 2 | X74: B | Y74: GT484 | Z74: Merafong City | AA74: 71 | AC74: Gauteng | AD74: Co-Operative Governance and Traditional Affairs
O75: 62 | P75: 3b 3INEP Municipal.docx | Q75: 2020-02-18T11:41:02 | R75: C:\Users\Jonathan\Desktop\DoRA PDF macro\Word\Final LG Frameworks\3b 3INEP Municipal.docx | T75: 3 | U75: 4 | V75: 3 | X75: B | Y75: GT485 | Z75: Rand West City | AA75: 72 | AC75: Gauteng | AD75: Transport
O76: 63 | P76: 3c 1MEHG.docx | Q76: 2020-02-18T15:45:46 | R76: C:\Users\Jonathan\Desktop\DoRA PDF macro\Word\Final LG Frameworks\3c 1MEHG.docx | T76: 3 | U76: 5 | V76: 1 | X76: C | Y76: DC48 | Z76: West Rand District Municipality | AA76: 73 | AC76: Gauteng | AD76: Public Works
O77: 64 | P77: 3c 2USDG.docx | Q77: 2020-02-19T13:42:52 | R77: C:\Users\Jonathan\Desktop\DoRA PDF macro\Word\Final LG Frameworks\3c 2USDG.docx | T77: 4 | U77: 1 | V77: 1 | X77: A | Y77: ETH | Z77: eThekwini | AA77: 74 | AC77: KwaZulu-Natal | AD77: Arts and Culture
O78: 65 | P78: 3d 1FMG.docx | Q78: 2020-02-18T15:48:30 | R78: C:\Users\Jonathan\Desktop\DoRA PDF macro\Word\Final LG Frameworks\3d 1FMG.docx | T78: 4 | U78: 2 | V78: 1 | X78: B | Y78: KZN212 | Z78: uMdoni | AA78: 75 | AC78: KwaZulu-Natal | AD78: Sport and Recreation | AW78: f
O79: =+O78+1 -> 66 | P79: 3d 2ICDG.docx | Q79: 2020-02-18T15:54:10 | R79: C:\Users\Jonathan\Desktop\DoRA PDF macro\Word\Final LG Frameworks\3d 2ICDG.docx | T79: 4 | U79: 2 | V79: 2 | X79: B | Y79: KZN213 | Z79: uMzumbe | AA79: 76 | AC79: KwaZulu-Natal
O80: 67 | P80: 3d 3ISDG.docx | Q80: 2020-02-18T15:56:54 | R80: C:\Users\Jonathan\Desktop\DoRA PDF macro\Word\Final LG Frameworks\3d 3ISDG.docx | T80: 4 | U80: 2 | V80: 3 | X80: B | Y80: KZN214 | Z80: uMuziwabantu | AA80: 77 | AC80: KwaZulu-Natal
O81: 68 | P81: 3d 4NDPG.docx | Q81: 2020-02-14T10:46:16 | R81: C:\Users\Jonathan\Desktop\DoRA PDF macro\Word\Final LG Frameworks\3d 4NDPG.docx | T81: 4 | U81: 2 | V81: 4 | X81: B | Y81: KZN216 | Z81: Ray Nkonyeni | AA81: 78 | AC81: KwaZulu-Natal
O82: 69 | P82: 3e 1EPWP.docx | Q82: 2020-02-14T10:50:00 | R82: C:\Users\Jonathan\Desktop\DoRA PDF macro\Word\Final LG Frameworks\3e 1EPWP.docx | T82: 4 | U82: 3 | V82: 1 | X82: C | Y82: DC21 | Z82: Ugu District Municipality | AA82: 79 | AC82: KwaZulu-Natal
O83: 70 | P83: 3f 1PTNG.docx | Q83: 2020-02-18T16:37:08 | R83: C:\Users\Jonathan\Desktop\DoRA PDF macro\Word\Final LG Frameworks\3f 1PTNG.docx | T83: 4 | U83: 4 | V83: 1 | X83: B | Y83: KZN221 | Z83: uMshwathi | AA83: 80 | AC83: KwaZulu-Natal
O84: 71 | P84: 3f 2RRAMS.docx | Q84: 2020-02-18T16:40:34 | R84: C:\Users\Jonathan\Desktop\DoRA PDF macro\Word\Final LG Frameworks\3f 2RRAMS.docx | T84: 4 | U84: 4 | V84: 2 | X84: B | Y84: KZN222 | Z84: uMngeni | AA84: 81 | AC84: KwaZulu-Natal | AD84: Education
O85: 72 | P85: 3g 1RBIG.docx | Q85: 2020-02-18T16:40:10 | R85: C:\Users\Jonathan\Desktop\DoRA PDF macro\Word\Final LG Frameworks\3g 1RBIG.docx | T85: 4 | U85: 4 | V85: 3 | X85: B | Y85: KZN223 | Z85: Mpofana | AA85: 82 | AC85: KwaZulu-Natal | AD85: Health
O86: 73 | P86: 3g 2WSIG.docx | Q86: 2020-02-18T16:41:02 | R86: C:\Users\Jonathan\Desktop\DoRA PDF macro\Word\Final LG Frameworks\3g 2WSIG.docx | T86: 4 | U86: 4 | V86: 4 | X86: B | Y86: KZN224 | Z86: iMpendle | AA86: 83 | AC86: KwaZulu-Natal | AD86: Social Development
O87: 74 | T87: 4 | U87: 4 | V87: 5 | X87: B | Y87: KZN225 | Z87: Msunduzi | AA87: 84 | AC87: KwaZulu-Natal | AD87: Public Works, Roads and Infrastructure
O88: 75 | T88: 4 | U88: 4 | V88: 6 | X88: B | Y88: KZN226 | Z88: Mkhambathini | AA88: 85 | AC88: KwaZulu-Natal | AD88: Agriculture and Rural Development
O89: 76 | T89: 4 | U89: 4 | V89: 7 | X89: B | Y89: KZN227 | Z89: Richmond | AA89: 86 | AC89: KwaZulu-Natal | AD89: Transport and Community Safety
O90: 77 | T90: 4 | U90: 5 | V90: 1 | X90: C | Y90: DC22 | Z90: uMgungundlovu District Municipality | AA90: 87 | AC90: KwaZulu-Natal | AD90: Co-Operative Governance Human Settlements and Traditional Affairs
O91: 78 | T91: 4 | U91: 6 | V91: 1 | X91: B | Y91: KZN235 | Z91: Okhahlamba | AA91: 88 | AC91: KwaZulu-Natal | AD91: Sport, Arts and Culture
O92: 79 | T92: 4 | U92: 6 | V92: 2 | X92: B | Y92: KZN237 | Z92: iNkosi Langalibalele | AA92: 89 | AC92: KwaZulu-Natal | AD92: Safety, Security and Liaison
O93: 80 | T93: 4 | U93: 6 | V93: 3 | X93: B | Y93: KZN238 | Z93: Alfred Duma | AA93: 90 | AC93: KwaZulu-Natal | AD93: Office of the Premier
O94: 81 | T94: 4 | U94: 7 | V94: 1 | X94: C | Y94: DC23 | Z94: uThukela District Municipality | AA94: 91 | AC94: KwaZulu-Natal | AD94: Provincial Legislature
O95: 82 | T95: 4 | U95: 8 | V95: 1 | X95: B | Y95: KZN241 | Z95: eNdumeni | AA95: 92 | AC95: KwaZulu-Natal | AD95: Provincial Treasury
O96: 83 | T96: 4 | U96: 8 | V96: 2 | X96: B | Y96: KZN242 | Z96: Nquthu | AA96: 93 | AC96: KwaZulu-Natal | AD96: Economic Development, Environment and Tourism
O97: 84 | T97: 4 | U97: 8 | V97: 3 | X97: B | Y97: KZN244 | Z97: uMsinga | AA97: 94 | AC97: KwaZulu-Natal
O98: 85 | T98: 4 | U98: 8 | V98: 4 | X98: B | Y98: KZN245 | Z98: uMvoti | AA98: 95 | AC98: KwaZulu-Natal
O99: 86 | T99: 4 | U99: 9 | V99: 1 | X99: C | Y99: DC24 | Z99: uMzinyathi District Municipality | AA99: 96 | AC99: KwaZulu-Natal
O100: 87 | T100: 4 | U100: 10 | V100: 1 | X100: B | Y100: KZN252 | Z100: Newcastle | AA100: 97 | AC100: KwaZulu-Natal
O101: 88 | T101: 4 | U101: 10 | V101: 2 | X101: B | Y101: KZN253 | Z101: eMadlangeni | AA101: 98 | AC101: KwaZulu-Natal
O102: 89 | T102: 4 | U102: 10 | V102: 3 | X102: B | Y102: KZN254 | Z102: Dannhauser | AA102: 99 | AC102: KwaZulu-Natal
O103: 90 | T103: 4 | U103: 11 | V103: 1 | X103: C | Y103: DC25 | Z103: Amajuba District Municipality | AA103: 100 | AC103: KwaZulu-Natal
O104: 91 | T104: 4 | U104: 12 | V104: 1 | X104: B | Y104: KZN261 | Z104: eDumbe | AA104: 101 | AC104: KwaZulu-Natal | AD104: Education
O105: 92 | T105: 4 | U105: 12 | V105: 2 | X105: B | Y105: KZN262 | Z105: uPhongolo | AA105: 102 | AC105: KwaZulu-Natal | AD105: Health
O106: 93 | T106: 4 | U106: 12 | V106: 3 | X106: B | Y106: KZN263 | Z106: AbaQulusi | AA106: 103 | AC106: KwaZulu-Natal | AD106: Social Development
O107: 94 | T107: 4 | U107: 12 | V107: 4 | X107: B | Y107: KZN265 | Z107: Nongoma | AA107: 104 | AC107: KwaZulu-Natal | AD107: Office of the Premier
O108: 95 | T108: 4 | U108: 12 | V108: 5 | X108: B | Y108: KZN266 | Z108: Ulundi | AA108: 105 | AC108: KwaZulu-Natal | AD108: Provincial Legislature
O109: 96 | T109: 4 | U109: 13 | V109: 1 | X109: C | Y109: DC26 | Z109: Zululand District Municipality | AA109: 106 | AC109: KwaZulu-Natal | AD109: Provincial Treasury
O110: 97 | T110: 4 | U110: 14 | V110: 1 | X110: B | Y110: KZN271 | Z110: uMhlabuyalingana | AA110: 107 | AC110: KwaZulu-Natal | AD110: Co-Operative Governance and Traditional Affairs
O111: 98 | T111: 4 | U111: 14 | V111: 2 | X111: B | Y111: KZN272 | Z111: Jozini | AA111: 108 | AC111: KwaZulu-Natal | AD111: Agriculture, Rural Development, Land and Environmental Affairs
O112: 99 | T112: 4 | U112: 14 | V112: 3 | X112: B | Y112: KZN275 | Z112: Mtubatuba | AA112: 109 | AC112: KwaZulu-Natal | AD112: Economic Development and Tourism
O113: 100 | T113: 4 | U113: 14 | V113: 4 | X113: B | Y113: KZN276 | Z113: Big Five Hlabisa | AA113: 110 | AC113: KwaZulu-Natal | AD113: Public Works, Roads and Transport
T114: 4 | U114: 15 | V114: 1 | X114: C | Y114: DC27 | Z114: uMkhanyakude District Municipality | AA114: 111 | AC114: KwaZulu-Natal | AD114: Community Safety, Security and Liaison
T115: 4 | U115: 16 | V115: 1 | X115: B | Y115: KZN281 | Z115: uMfolozi | AA115: 112 | AC115: KwaZulu-Natal | AD115: Culture, Sport and Recreation
T116: 4 | U116: 16 | V116: 2 | X116: B | Y116: KZN282 | Z116: uMhlathuze | AA116: 113 | AC116: KwaZulu-Natal | AD116: Human Settlements
T117: 4 | U117: 16 | V117: 3 | X117: B | Y117: KZN284 | Z117: uMlalazi | AA117: 114 | AC117: KwaZulu-Natal
T118: 4 | U118: 16 | V118: 4 | X118: B | Y118: KZN285 | Z118: Mthonjaneni | AA118: 115 | AC118: KwaZulu-Natal
T119: 4 | U119: 16 | V119: 5 | X119: B | Y119: KZN286 | Z119: Nkandla | AA119: 116 | AC119: KwaZulu-Natal
T120: 4 | U120: 17 | V120: 1 | X120: C | Y120: DC28 | Z120: King Cetshwayo District Municipality | AA120: 117 | AC120: KwaZulu-Natal
T121: 4 | U121: 18 | V121: 1 | X121: B | Y121: KZN291 | Z121: Mandeni | AA121: 118 | AC121: KwaZulu-Natal
T122: 4 | U122: 18 | V122: 2 | X122: B | Y122: KZN292 | Z122: KwaDukuza | AA122: 119 | AC122: KwaZulu-Natal
T123: 4 | U123: 18 | V123: 3 | X123: B | Y123: KZN293 | Z123: Ndwedwe | AA123: 120 | AC123: KwaZulu-Natal
T124: 4 | U124: 18 | V124: 4 | X124: B | Y124: KZN294 | Z124: Maphumulo | AA124: 121 | AC124: KwaZulu-Natal | AD124: Education
T125: 4 | U125: 19 | V125: 1 | X125: C | Y125: DC29 | Z125: iLembe District Municipality | AA125: 122 | AC125: KwaZulu-Natal | AD125: Health
T126: 4 | U126: 20 | V126: 1 | X126: B | Y126: KZN433 | Z126: Greater Kokstad | AA126: 123 | AC126: KwaZulu-Natal | AD126: Social Development
T127: 4 | U127: 20 | V127: 2 | X127: B | Y127: KZN434 | Z127: uBuhlebezwe | AA127: 124 | AC127: KwaZulu-Natal | AD127: Provincial Legislature
T128: 4 | U128: 20 | V128: 3 | X128: B | Y128: KZN435 | Z128: uMzimkhulu | AA128: 125 | AC128: KwaZulu-Natal | AD128: Office of the Premier
T129: 4 | U129: 20 | V129: 4 | X129: B | Y129: KZN436 | Z129: Dr Nkosazana Dlamini Zuma | AA129: 126 | AC129: KwaZulu-Natal | AD129: Transport, Safety and Liaison
T130: 4 | U130: 21 | V130: 1 | X130: C | Y130: DC43 | Z130: Harry Gwala District Municipality | AA130: 127 | AC130: KwaZulu-Natal | AD130: Roads and Public Works
T131: 5 | U131: 1 | V131: 1 | X131: B | Y131: LIM331 | Z131: Greater Giyani | AA131: 128 | AC131: Limpopo | AD131: Economic Development and Tourism
T132: 5 | U132: 1 | V132: 2 | X132: B | Y132: LIM332 | Z132: Greater Letaba | AA132: 129 | AC132: Limpopo | AD132: Sports, Arts and Culture
T133: 5 | U133: 1 | V133: 3 | X133: B | Y133: LIM333 | Z133: Greater Tzaneen | AA133: 130 | AC133: Limpopo | AD133: Provincial Treasury
T134: 5 | U134: =IF(T134=T133,IF(X134=X133,U133,U133+1),1) -> 1 | V134: =IF(U134=U133,V133+1,1) -> 4 | X134: B | Y134: LIM334 | Z134: Ba-Phalaborwa | AA134: 131 | AC134: Limpopo | AD134: Cooperative Governance, Human Settlements and Traditional Affairs
T135: 5 | U135: 1 | V135: 5 | X135: B | Y135: LIM335 | Z135: Maruleng | AA135: 132 | AC135: Limpopo | AD135: Agriculture, Land Reform and Rural Development
T136: 5 | U136: 2 | V136: 1 | X136: C | Y136: DC33 | Z136: Mopani District Municipality | AA136: 133 | AC136: Limpopo | AD136: Environment and Nature Conservation
T137: 5 | U137: 3 | V137: 1 | X137: B | Y137: LIM341 | Z137: Musina | AA137: 134 | AC137: Limpopo
T138: 5 | U138: 3 | V138: 2 | X138: B | Y138: LIM343 | Z138: Thulamela | AA138: 135 | AC138: Limpopo
T139: 5 | U139: 3 | V139: 3 | X139: B | Y139: LIM344 | Z139: Makhado | AA139: 136 | AC139: Limpopo
T140: 5 | U140: 3 | V140: 4 | X140: B | Y140: LIM345 | Z140: Collins Chabane | AA140: 137 | AC140: Limpopo
T141: 5 | U141: 4 | V141: 1 | X141: C | Y141: DC34 | Z141: Vhembe District Municipality | AA141: 138 | AC141: Limpopo
T142: 5 | U142: 5 | V142: 1 | X142: B | Y142: LIM351 | Z142: Blouberg | AA142: 139 | AC142: Limpopo
T143: 5 | U143: 5 | V143: 2 | X143: B | Y143: LIM353 | Z143: Molemole | AA143: 140 | AC143: Limpopo
T144: 5 | U144: 5 | V144: 3 | X144: B | Y144: LIM354 | Z144: Polokwane | AA144: 141 | AC144: Limpopo | AD144: Education
T145: 5 | U145: 5 | V145: 4 | X145: B | Y145: LIM355 | Z145: Lepele-Nkumpi | AA145: 142 | AC145: Limpopo | AD145: Health
T146: 5 | U146: 6 | V146: 1 | X146: C | Y146: DC35 | Z146: Capricorn District Municipality | AA146: 143 | AC146: Limpopo | AD146: Social Development
T147: 5 | U147: 7 | V147: 1 | X147: B | Y147: LIM361 | Z147: Thabazimbi | AA147: 144 | AC147: Limpopo | AD147: Office of the Premier
T148: 5 | U148: 7 | V148: 2 | X148: B | Y148: LIM362 | Z148: Lephalale | AA148: 145 | AC148: Limpopo | AD148: Provincial Legislature
T149: 5 | U149: 7 | V149: 3 | X149: B | Y149: LIM366 | Z149: Bela-Bela | AA149: 146 | AC149: Limpopo | AD149: Arts, Culture, Sport and Recreation
T150: 5 | U150: 7 | V150: 4 | X150: B | Y150: LIM367 | Z150: Mogalakwena | AA150: 147 | AC150: Limpopo | AD150: Community Safety and Transport Management
T151: 5 | U151: 7 | V151: 5 | X151: B | Y151: LIM368 | Z151: Modimolle-Mookgophong | AA151: 148 | AC151: Limpopo | AD151: Economic Development, Environment, Conversation and Tourism
T152: 5 | U152: 8 | V152: 1 | X152: C | Y152: DC36 | Z152: Waterberg District Municipality | AA152: 149 | AC152: Limpopo | AD152: Finance
T153: 5 | U153: 9 | V153: 1 | X153: B | Y153: LIM471 | Z153: Ephraim Mogale | AA153: 150 | AC153: Limpopo | AD153: Cooperative Governance, Human Settlements and Traditional Affairs
T154: 5 | U154: 9 | V154: 2 | X154: B | Y154: LIM472 | Z154: Elias Motsoaledi | AA154: 151 | AC154: Limpopo | AD154: Public Works and Roads
T155: 5 | U155: 9 | V155: 3 | X155: B | Y155: LIM473 | Z155: Makhuduthamaga | AA155: 152 | AC155: Limpopo | AD155: Tourism
T156: 5 | U156: 9 | V156: 4 | X156: B | Y156: LIM476 | Z156: Fetakgomo Tubatse | AA156: 153 | AC156: Limpopo | AD156: Agriculture and Rural Development
T157: 5 | U157: 10 | V157: 1 | X157: C | Y157: DC47 | Z157: Sekhukhune District Municipality | AA157: 154 | AC157: Limpopo
T158: 6 | U158: 1 | V158: 1 | X158: B | Y158: MP301 | Z158: Chief Albert Luthuli | AA158: 155 | AC158: Mpumalanga
T159: 6 | U159: 1 | V159: 2 | X159: B | Y159: MP302 | Z159: Msukaligwa | AA159: 156 | AC159: Mpumalanga
T160: 6 | U160: 1 | V160: 3 | X160: B | Y160: MP303 | Z160: Mkhondo | AA160: 157 | AC160: Mpumalanga
T161: 6 | U161: 1 | V161: 4 | X161: B | Y161: MP304 | Z161: Dr Pixley ka Isaka Seme | AA161: 158 | AC161: Mpumalanga
T162: 6 | U162: 1 | V162: 5 | X162: B | Y162: MP305 | Z162: Lekwa | AA162: 159 | AC162: Mpumalanga
T163: 6 | U163: 1 | V163: 6 | X163: B | Y163: MP306 | Z163: Dipaleseng | AA163: 160 | AC163: Mpumalanga
T164: 6 | U164: 1 | V164: 7 | X164: B | Y164: MP307 | Z164: Govan Mbeki | AA164: 161 | AC164: Mpumalanga | AD164: Education
T165: 6 | U165: 2 | V165: 1 | X165: C | Y165: DC30 | Z165: Gert Sibande District Municipality | AA165: 162 | AC165: Mpumalanga | AD165: Health
T166: 6 | U166: 3 | V166: 1 | X166: B | Y166: MP311 | Z166: Victor Khanye | AA166: 163 | AC166: Mpumalanga | AD166: Social Development
T167: 6 | U167: 3 | V167: 2 | X167: B | Y167: MP312 | Z167: Emalahleni | AA167: 164 | AC167: Mpumalanga | AD167: Premier
T168: 6 | U168: 3 | V168: 3 | X168: B | Y168: MP313 | Z168: Steve Tshwete | AA168: 165 | AC168: Mpumalanga | AD168: Provincial Parliament
T169: 6 | U169: 3 | V169: 4 | X169: B | Y169: MP314 | Z169: Emakhazeni | AA169: 166 | AC169: Mpumalanga | AD169: Provincial Treasury
T170: 6 | U170: 3 | V170: 5 | X170: B | Y170: MP315 | Z170: Thembisile Hani | AA170: 167 | AC170: Mpumalanga | AD170: Community Safety
T171: 6 | U171: 3 | V171: 6 | X171: B | Y171: MP316 | Z171: Dr JS Moroka | AA171: 168 | AC171: Mpumalanga | AD171: Human Settlements
T172: 6 | U172: 4 | V172: 1 | X172: C | Y172: DC31 | Z172: Nkangala District Municipality | AA172: 169 | AC172: Mpumalanga | AD172: Environmental Affairs and Development Planning
T173: 6 | U173: 5 | V173: 1 | X173: B | Y173: MP321 | Z173: Thaba Chweu | AA173: 170 | AC173: Mpumalanga | AD173: Transport and Public Works
T174: 6 | U174: 5 | V174: 2 | X174: B | Y174: MP324 | Z174: Nkomazi | AA174: 171 | AC174: Mpumalanga | AD174: Agriculture
T175: 6 | U175: 5 | V175: 3 | X175: B | Y175: MP325 | Z175: Bushbuckridge | AA175: 172 | AC175: Mpumalanga | AD175: Economic Development and Tourism
T176: 6 | U176: 5 | V176: 4 | X176: B | Y176: MP326 | Z176: City of Mbombela | AA176: 173 | AC176: Mpumalanga | AD176: Cultural Affairs and Sport | BA176: Grant purpose | BB176: =BC175&IF(BD175<>"","; " & BD175,"")&IF(BE175<>"","; "&BE175,"")&IF(BF175<>"","; " & BF175,"")&IF(BG175<>"","; "&BG175,"")&IF(BH175<>"","; "&BH175,"")&IF(BI175<>"","; "&BI175,"")&IF(BJ175<>"","; "&BJ175,"") -> 
T177: 6 | U177: 6 | V177: 1 | X177: C | Y177: DC32 | Z177: Ehlanzeni District Municipality | AA177: 174 | AC177: Mpumalanga | AD177: Local Government | BA177: Grant purpose
T178: 7 | U178: 1 | V178: 1 | X178: B | Y178: NC061 | Z178: Richtersveld | AA178: 175 | AC178: Northern Cape | BA178: Grant purpose
T179: 7 | U179: 1 | V179: 2 | X179: B | Y179: NC062 | Z179: Nama Khoi | AA179: 176 | AC179: Northern Cape | BA179: Grant purpose
T180: 7 | U180: 1 | V180: 3 | X180: B | Y180: NC064 | Z180: Kamiesberg | AA180: 177 | AC180: Northern Cape | BA180: Grant purpose
T181: 7 | U181: 1 | V181: 4 | X181: B | Y181: NC065 | Z181: Hantam | AA181: 178 | AC181: Northern Cape | BA181: Grant purpose
T182: 7 | U182: 1 | V182: 5 | X182: B | Y182: NC066 | Z182: Karoo Hoogland | AA182: 179 | AC182: Northern Cape | BA182: Grant purpose
T183: 7 | U183: 1 | V183: 6 | X183: B | Y183: NC067 | Z183: Khâi-Ma | AA183: 180 | AC183: Northern Cape | BA183: Grant purpose
T184: 7 | U184: 2 | V184: 1 | X184: C | Y184: DC6 | Z184: Namakwa District Municipality | AA184: 181 | AC184: Northern Cape | BA184: Grant purpose
T185: 7 | U185: 3 | V185: 1 | X185: B | Y185: NC071 | Z185: Ubuntu | AA185: 182 | AC185: Northern Cape | BA185: Grant purpose
T186: 7 | U186: 3 | V186: 2 | X186: B | Y186: NC072 | Z186: Umsobomvu | AA186: 183 | AC186: Northern Cape | BA186: Grant purpose
T187: 7 | U187: 3 | V187: 3 | X187: B | Y187: NC073 | Z187: Emthanjeni | AA187: 184 | AC187: Northern Cape | BA187: Grant purpose
T188: 7 | U188: 3 | V188: 4 | X188: B | Y188: NC074 | Z188: Kareeberg | AA188: 185 | AC188: Northern Cape | BA188: Grant purpose
T189: 7 | U189: 3 | V189: 5 | X189: B | Y189: NC075 | Z189: Renosterberg | AA189: 186 | AC189: Northern Cape | BA189: Grant purpose
T190: 7 | U190: 3 | V190: 6 | X190: B | Y190: NC076 | Z190: Thembelihle | AA190: 187 | AC190: Northern Cape | BA190: Grant purpose
T191: 7 | U191: 3 | V191: 7 | X191: B | Y191: NC077 | Z191: Siyathemba | AA191: 188 | AC191: Northern Cape | BA191: Grant purpose
T192: 7 | U192: 3 | V192: 8 | X192: B | Y192: NC078 | Z192: Siyancuma | AA192: 189 | AC192: Northern Cape | BA192: Grant purpose
T193: 7 | U193: 4 | V193: 1 | X193: C | Y193: DC7 | Z193: Pixley Ka Seme District Municipality | AA193: 190 | AC193: Northern Cape | BA193: Grant purpose
T194: 7 | U194: 5 | V194: 1 | X194: B | Y194: NC082 | Z194: !Kai !Garib | AA194: 191 | AC194: Northern Cape | BA194: Grant purpose
T195: 7 | U195: 5 | V195: 2 | X195: B | Y195: NC084 | Z195: !Kheis | AA195: 192 | AC195: Northern Cape | BA195: Grant purpose
T196: 7 | U196: 5 | V196: 3 | X196: B | Y196: NC085 | Z196: Tsantsabane | AA196: 193 | AC196: Northern Cape | BA196: Grant purpose
T197: 7 | U197: 5 | V197: 4 | X197: B | Y197: NC086 | Z197: Kgatelopele | AA197: 194 | AC197: Northern Cape | BA197: Grant purpose
T198: 7 | U198: =IF(T198=T197,IF(X198=X197,U197,U197+1),1) -> 5 | V198: =IF(U198=U197,V197+1,1) -> 5 | X198: B | Y198: NC087 | Z198: Dawid Kruiper | AA198: 195 | AC198: Northern Cape | BA198: Grant purpose
T199: 7 | U199: 6 | V199: 1 | X199: C | Y199: DC8 | Z199: Z.F. Mgcawu District Municipality | AA199: 196 | AC199: Northern Cape | BA199: Grant purpose | BB199: =BC198&IF(BD198<>"","; " & BD198,"")&IF(BE198<>"","; "&BE198,"")&IF(BF198<>"","; " & BF198,"")&IF(BG198<>"","; "&BG198,"")&IF(BH198<>"","; "&BH198,"")&IF(BI198<>"","; "&BI198,"")&IF(BJ198<>"","; "&BJ198,"") -> 
T200: 7 | U200: 7 | V200: 1 | X200: B | Y200: NC091 | Z200: Sol Plaatjie | AA200: 197 | AC200: Northern Cape | BA200: Grant purpose
... 300 more rows

Sheet Schedule 1
C1: SCHEDULE 1
C3: EQUITABLE DIVISION OF REVENUE RAISED NATIONALLY AMONG THE THREE SPHERES OF GOVERNMENT
C5: Spheres of Government | D5: Column A
D6: 2020/21 Main Allocation | E6: Adjustment | F6: 2020/21 Adjusted Allocation
D8: R'000 | E8: R'000 | F8: R'000
C9: National1,2 | D9: =D12-D10-D11 -> 1152839556 | E9: =F9-D9 -> 32180669.7 | F9: =F12-F11-F10 -> 1185020226
C10: Provincial | D10: =Summary!$E$9 -> 538471528 | E10: 0 | F10: =D10+E10 -> 538471528
C11: Local | D11: ='Schedule 3'!F1281 -> 74683326 | E11: ='Schedule 3'!G1281 -> 11000000 | F11: 85683326
C12: TOTAL | D12: 1765994410 | E12: =SUM(E9:E11) -> 43180669.7 | F12: 1809175080
C13: 1. National share includes conditional allocations to provincial and local spheres, general fuel
C14: 1. levy sharing with metropolitan municipalities, debt-service costs, the contingency reserve
C15: 1. and provisional allocations
C16: 2. The direct charges for the provincial equitable share are netted out
C22: SCHEDULE 2
C24: DETERMINATION OF EACH PROVINCE'S EQUITABLE SHARE OF THE PROVINCIAL SPHERE'S SHARE OF REVENUE RAISED NATIONALLY (as a direct charge against the National Revenue Fund)
C26: Province | D26: Column A
D27: 2020/21 Main Allocation | E27: Adjustment | F27: 2020/21 Adjusted Allocation
D29: R'000 | E29: R'000 | F29: R'000
C30: Eastern Cape | D30: =EC!$E$9 -> 71415216 | F30: =D30+E30 -> 71415216
C31: Free State | D31: =FS!$E$9 -> 30017344 | F31: =D31+E31 -> 30017344
C32: Gauteng | D32: =GT!$E$9 -> 112117907 | F32: 112117907
C33: KwaZulu-Natal | D33: =KZN!$E$9 -> 111441977 | F33: 111441977
C34: Limpopo | D34: =LIM!$E$9 -> 62328931 | F34: 62328931
C35: Mpumalanga | D35: =MPU!$E$9 -> 44104988 | F35: 44104988
C36: Northern Cape | D36: =NC!$E$9 -> 14289699 | F36: 14289699
C37: North West | D37: =NW!$E$9 -> 37547835 | F37: 37547835
C38: Western Cape | D38: =WC!$E$9 -> 55207631 | F38: 55207631
C39: Unallocated | D39: =Unallocated!$E$9 -> 0
C40: TOTAL | D40: =SUM(D30:D39) -> 538471528 | E40: =SUM(E30:E39) -> 0 | F40: =SUM(F30:F39) -> 538471528

Sheet Schedule 3
C1: SCHEDULE 3
C3: DETERMINATION OF EACH MUNICIPALITY'S EQUITABLE SHARE OF THE LOCAL GOVERNMENT SPHERE'S SHARE OF REVENUE RAISED NATIONALLY
F5: National Financial Year
F6: Column A
C7: Number | E7: Municipality | F7: 2020/21 Main Allocation | G7: Adjustment | H7: 2020/21 Adjusted Allocation
M8: Filter | O8: Prov Code | P8: Cat Code | Q8: Muni Code
F9: R'000 | G9: R'000 | H9: R'000 | M9: 1
C10: EASTERN CAPE | M10: 1
C11: 0 | M11: 1
C12: A | D12: =IFERROR(INDEX(Settings!$Y$4:$Y$260,MATCH(E12,Settings!$Z$4:$Z$260,0),1),"") -> BUF | E12: =IFERROR(INDEX(Settings!$Z$4:$Z$260,MATCH(1,(Settings!$T$4:$T$260=O12)*(Settings!$U$4:$U$260=P12)*(Settings!$V$4:$V$260=Q12),0),1),"") -> Buffalo City | F12: ='ES Breakdown'!AK12 -> 911042 | G12: 142572 | H12: =F12+G12 -> 1053614 | M12: =IF(LEN(E12)<2,0,1) -> 1 | O12: 1 | P12: 1 | Q12: 1
C13: A | D13: =IFERROR(INDEX(Settings!$Y$4:$Y$260,MATCH(E13,Settings!$Z$4:$Z$260,0),1),"") -> NMA | E13: =IFERROR(INDEX(Settings!$Z$4:$Z$260,MATCH(1,(Settings!$T$4:$T$260=O13)*(Settings!$U$4:$U$260=P13)*(Settings!$V$4:$V$260=Q13),0),1),"") -> Nelson Mandela Bay | F13: ='ES Breakdown'!AK13 -> 1106936 | G13: 153904 | H13: =F13+G13 -> 1260840 | M13: =IF(LEN(E13)<2,0,1) -> 1 | O13: 1 | P13: 1 | Q13: =IF(P13=P12,Q12+1,1) -> 2
C14: A | D14: =IFERROR(INDEX(Settings!$Y$4:$Y$260,MATCH(E14,Settings!$Z$4:$Z$260,0),1),"") ->  | E14: =IFERROR(INDEX(Settings!$Z$4:$Z$260,MATCH(1,(Settings!$T$4:$T$260=O14)*(Settings!$U$4:$U$260=P14)*(Settings!$V$4:$V$260=Q14),0),1),"") ->  | F14: ='ES Breakdown'!AK14 -> 0 | G14: ='ES Breakdown'!AL14 -> 0 | H14: ='ES Breakdown'!AM14 -> 0 | M14: =IF(LEN(E14)<2,0,1) -> 0 | O14: 1 | P14: 1 | Q14: =IF(P14=P13,Q13+1,1) -> 3
C15: A | D15: =IFERROR(INDEX(Settings!$Y$4:$Y$260,MATCH(E15,Settings!$Z$4:$Z$260,0),1),"") ->  | E15: =IFERROR(INDEX(Settings!$Z$4:$Z$260,MATCH(1,(Settings!$T$4:$T$260=O15)*(Settings!$U$4:$U$260=P15)*(Settings!$V$4:$V$260=Q15),0),1),"") ->  | F15: ='ES Breakdown'!AK15 -> 0 | G15: ='ES Breakdown'!AL15 -> 0 | H15: ='ES Breakdown'!AM15 -> 0 | M15: =IF(LEN(E15)<2,0,1) -> 0 | O15: 1 | P15: 1 | Q15: =IF(P15=P14,Q14+1,1) -> 4
C16: A | D16: =IFERROR(INDEX(Settings!$Y$4:$Y$260,MATCH(E16,Settings!$Z$4:$Z$260,0),1),"") ->  | E16: =IFERROR(INDEX(Settings!$Z$4:$Z$260,MATCH(1,(Settings!$T$4:$T$260=O16)*(Settings!$U$4:$U$260=P16)*(Settings!$V$4:$V$260=Q16),0),1),"") ->  | F16: ='ES Breakdown'!AK16 -> 0 | G16: ='ES Breakdown'!AL16 -> 0 | H16: ='ES Breakdown'!AM16 -> 0 | M16: =IF(LEN(E16)<2,0,1) -> 0 | O16: 1 | P16: 1 | Q16: =IF(P16=P15,Q15+1,1) -> 5
M17: =IF(SUM(M12:M16)=0,0,1) -> 1
M18: =IF(M17=0,0,1) -> 1
C19: B | D19: =IFERROR(INDEX(Settings!$Y$4:$Y$260,MATCH(E19,Settings!$Z$4:$Z$260,0),1),"") -> EC101 | E19: =IFERROR(INDEX(Settings!$Z$4:$Z$260,MATCH(1,(Settings!$T$4:$T$260=O19)*(Settings!$U$4:$U$260=P19)*(Settings!$V$4:$V$260=Q19),0),1),"") -> Dr Beyers Naude | F19: ='ES Breakdown'!AK19 -> 96607 | G19: 14349 | H19: =F19+G19 -> 110956 | M19: =IF(LEN(E19)<2,0,1) -> 1 | O19: 1 | P19: 2 | Q19: 1
C20: B | D20: =IFERROR(INDEX(Settings!$Y$4:$Y$260,MATCH(E20,Settings!$Z$4:$Z$260,0),1),"") -> EC102 | E20: =IFERROR(INDEX(Settings!$Z$4:$Z$260,MATCH(1,(Settings!$T$4:$T$260=O20)*(Settings!$U$4:$U$260=P20)*(Settings!$V$4:$V$260=Q20),0),1),"") -> Blue Crane Route | F20: ='ES Breakdown'!AK20 -> 56696 | G20: 8601 | H20: 65297 | M20: =IF(LEN(E20)<2,0,1) -> 1 | O20: 1 | P20: 2 | Q20: =IF(P20=P19,Q19+1,1) -> 2
C21: B | D21: =IFERROR(INDEX(Settings!$Y$4:$Y$260,MATCH(E21,Settings!$Z$4:$Z$260,0),1),"") -> EC104 | E21: =IFERROR(INDEX(Settings!$Z$4:$Z$260,MATCH(1,(Settings!$T$4:$T$260=O21)*(Settings!$U$4:$U$260=P21)*(Settings!$V$4:$V$260=Q21),0),1),"") -> Makana | F21: ='ES Breakdown'!AK21 -> 99851 | G21: 15012 | H21: 114863 | M21: 1 | O21: 1 | P21: 2 | Q21: =IF(P21=P20,Q20+1,1) -> 3
C22: B | D22: =IFERROR(INDEX(Settings!$Y$4:$Y$260,MATCH(E22,Settings!$Z$4:$Z$260,0),1),"") -> EC105 | E22: =IFERROR(INDEX(Settings!$Z$4:$Z$260,MATCH(1,(Settings!$T$4:$T$260=O22)*(Settings!$U$4:$U$260=P22)*(Settings!$V$4:$V$260=Q22),0),1),"") -> Ndlambe | F22: ='ES Breakdown'!AK22 -> 103801 | G22: 16430 | H22: 120231 | M22: 1 | O22: 1 | P22: 2 | Q22: 4
C23: B | D23: =IFERROR(INDEX(Settings!$Y$4:$Y$260,MATCH(E23,Settings!$Z$4:$Z$260,0),1),"") -> EC106 | E23: =IFERROR(INDEX(Settings!$Z$4:$Z$260,MATCH(1,(Settings!$T$4:$T$260=O23)*(Settings!$U$4:$U$260=P23)*(Settings!$V$4:$V$260=Q23),0),1),"") -> Sundays River Valley | F23: ='ES Breakdown'!AK23 -> 86469 | G23: 13454 | H23: 99923 | M23: 1 | O23: 1 | P23: 2 | Q23: 5
C24: B | D24: =IFERROR(INDEX(Settings!$Y$4:$Y$260,MATCH(E24,Settings!$Z$4:$Z$260,0),1),"") -> EC108 | E24: =IFERROR(INDEX(Settings!$Z$4:$Z$260,MATCH(1,(Settings!$T$4:$T$260=O24)*(Settings!$U$4:$U$260=P24)*(Settings!$V$4:$V$260=Q24),0),1),"") -> Kouga | F24: ='ES Breakdown'!AK24 -> 136649 | G24: 20388 | H24: 157037 | M24: 1 | O24: 1 | P24: 2 | Q24: 6
C25: B | D25: =IFERROR(INDEX(Settings!$Y$4:$Y$260,MATCH(E25,Settings!$Z$4:$Z$260,0),1),"") -> EC109 | E25: =IFERROR(INDEX(Settings!$Z$4:$Z$260,MATCH(1,(Settings!$T$4:$T$260=O25)*(Settings!$U$4:$U$260=P25)*(Settings!$V$4:$V$260=Q25),0),1),"") -> Kou-Kamma | F25: ='ES Breakdown'!AK25 -> 52718 | G25: 7924 | H25: 60642 | M25: 1 | O25: 1 | P25: 2 | Q25: 7
C26: B | D26: =IFERROR(INDEX(Settings!$Y$4:$Y$260,MATCH(E26,Settings!$Z$4:$Z$260,0),1),"") ->  | E26: =IFERROR(INDEX(Settings!$Z$4:$Z$260,MATCH(1,(Settings!$T$4:$T$260=O26)*(Settings!$U$4:$U$260=P26)*(Settings!$V$4:$V$260=Q26),0),1),"") ->  | F26: ='ES Breakdown'!AK26 -> 0 | G26: ='ES Breakdown'!AL26 -> 0 | H26: 0 | M26: 0 | O26: 1 | P26: 2 | Q26: 8
C27: B | D27: =IFERROR(INDEX(Settings!$Y$4:$Y$260,MATCH(E27,Settings!$Z$4:$Z$260,0),1),"") ->  | E27: =IFERROR(INDEX(Settings!$Z$4:$Z$260,MATCH(1,(Settings!$T$4:$T$260=O27)*(Settings!$U$4:$U$260=P27)*(Settings!$V$4:$V$260=Q27),0),1),"") ->  | F27: ='ES Breakdown'!AK27 -> 0 | G27: ='ES Breakdown'!AL27 -> 0 | H27: 0 | M27: 0 | O27: 1 | P27: 2 | Q27: 9
C28: B | D28: =IFERROR(INDEX(Settings!$Y$4:$Y$260,MATCH(E28,Settings!$Z$4:$Z$260,0),1),"") ->  | E28: =IFERROR(INDEX(Settings!$Z$4:$Z$260,MATCH(1,(Settings!$T$4:$T$260=O28)*(Settings!$U$4:$U$260=P28)*(Settings!$V$4:$V$260=Q28),0),1),"") ->  | F28: ='ES Breakdown'!AK28 -> 0 | G28: ='ES Breakdown'!AL28 -> 0 | H28: 0 | M28: 0 | O28: 1 | P28: 2 | Q28: 10
C29: C | D29: =IFERROR(INDEX(Settings!$Y$4:$Y$260,MATCH(E29,Settings!$Z$4:$Z$260,0),1),"") -> DC10 | E29: =IFERROR(INDEX(Settings!$Z$4:$Z$260,MATCH(1,(Settings!$T$4:$T$260=O29)*(Settings!$U$4:$U$260=P29)*(Settings!$V$4:$V$260=Q29),0),1),"") -> Sarah Baartman District Municipality | F29: ='ES Breakdown'!AK29 -> 97175 | G29: 4287 | H29: 101462 | M29: 1 | O29: 1 | P29: 3 | Q29: 1
C30: =IF(LEN(E29)<1,"","Total: " & LEFT(E29,LEN(E29)-21) & "Municipalities") -> Total: Sarah Baartman Municipalities | F30: =SUM(F19:F29) -> 729966 | G30: =SUM(G19:G29) -> 100445 | H30: =SUM(H19:H29) -> 830411 | M30: =IF(SUM(M19:M29)=0,0,1) -> 1
M31: =IF(M30=0,0,1) -> 1
C32: B | D32: =IFERROR(INDEX(Settings!$Y$4:$Y$260,MATCH(E32,Settings!$Z$4:$Z$260,0),1),"") -> EC121 | E32: =IFERROR(INDEX(Settings!$Z$4:$Z$260,MATCH(1,(Settings!$T$4:$T$260=O32)*(Settings!$U$4:$U$260=P32)*(Settings!$V$4:$V$260=Q32),0),1),"") -> Mbhashe | F32: ='ES Breakdown'!AK32 -> 263748 | G32: 50253 | H32: =F32+G32 -> 314001 | M32: =IF(LEN(E32)<2,0,1) -> 1 | O32: 1 | P32: 4 | Q32: 1
C33: B | D33: =IFERROR(INDEX(Settings!$Y$4:$Y$260,MATCH(E33,Settings!$Z$4:$Z$260,0),1),"") -> EC122 | E33: =IFERROR(INDEX(Settings!$Z$4:$Z$260,MATCH(1,(Settings!$T$4:$T$260=O33)*(Settings!$U$4:$U$260=P33)*(Settings!$V$4:$V$260=Q33),0),1),"") -> Mnquma | F33: ='ES Breakdown'!AK33 -> 273742 | G33: 53663 | H33: =F33+G33 -> 327405 | M33: =IF(LEN(E33)<2,0,1) -> 1 | O33: 1 | P33: 4 | Q33: =IF(P33=P32,Q32+1,1) -> 2
C34: B | D34: =IFERROR(INDEX(Settings!$Y$4:$Y$260,MATCH(E34,Settings!$Z$4:$Z$260,0),1),"") -> EC123 | E34: =IFERROR(INDEX(Settings!$Z$4:$Z$260,MATCH(1,(Settings!$T$4:$T$260=O34)*(Settings!$U$4:$U$260=P34)*(Settings!$V$4:$V$260=Q34),0),1),"") -> Great Kei | F34: ='ES Breakdown'!AK34 -> 45063 | G34: 6729 | H34: 51792 | M34: 1 | O34: 1 | P34: 4 | Q34: =IF(P34=P33,Q33+1,1) -> 3
C35: B | D35: =IFERROR(INDEX(Settings!$Y$4:$Y$260,MATCH(E35,Settings!$Z$4:$Z$260,0),1),"") -> EC124 | E35: =IFERROR(INDEX(Settings!$Z$4:$Z$260,MATCH(1,(Settings!$T$4:$T$260=O35)*(Settings!$U$4:$U$260=P35)*(Settings!$V$4:$V$260=Q35),0),1),"") -> Amahlathi | F35: ='ES Breakdown'!AK35 -> 111895 | G35: 19747 | H35: 131642 | M35: 1 | O35: 1 | P35: 4 | Q35: 4
C36: B | D36: =IFERROR(INDEX(Settings!$Y$4:$Y$260,MATCH(E36,Settings!$Z$4:$Z$260,0),1),"") -> EC126 | E36: =IFERROR(INDEX(Settings!$Z$4:$Z$260,MATCH(1,(Settings!$T$4:$T$260=O36)*(Settings!$U$4:$U$260=P36)*(Settings!$V$4:$V$260=Q36),0),1),"") -> Ngqushwa | F36: ='ES Breakdown'!AK36 -> 87420 | G36: 14654 | H36: 102074 | M36: 1 | O36: 1 | P36: 4 | Q36: 5
C37: B | D37: =IFERROR(INDEX(Settings!$Y$4:$Y$260,MATCH(E37,Settings!$Z$4:$Z$260,0),1),"") -> EC129 | E37: =IFERROR(INDEX(Settings!$Z$4:$Z$260,MATCH(1,(Settings!$T$4:$T$260=O37)*(Settings!$U$4:$U$260=P37)*(Settings!$V$4:$V$260=Q37),0),1),"") -> Raymond Mhlaba | F37: ='ES Breakdown'!AK37 -> 184086 | G37: 34386 | H37: 218472 | M37: 1 | O37: 1 | P37: 4 | Q37: 6
C38: B | D38: =IFERROR(INDEX(Settings!$Y$4:$Y$260,MATCH(E38,Settings!$Z$4:$Z$260,0),1),"") ->  | E38: =IFERROR(INDEX(Settings!$Z$4:$Z$260,MATCH(1,(Settings!$T$4:$T$260=O38)*(Settings!$U$4:$U$260=P38)*(Settings!$V$4:$V$260=Q38),0),1),"") ->  | F38: ='ES Breakdown'!AK38 -> 0 | G38: ='ES Breakdown'!AL38 -> 0 | H38: 0 | M38: 0 | O38: 1 | P38: 4 | Q38: 7
C39: B | D39: =IFERROR(INDEX(Settings!$Y$4:$Y$260,MATCH(E39,Settings!$Z$4:$Z$260,0),1),"") ->  | E39: =IFERROR(INDEX(Settings!$Z$4:$Z$260,MATCH(1,(Settings!$T$4:$T$260=O39)*(Settings!$U$4:$U$260=P39)*(Settings!$V$4:$V$260=Q39),0),1),"") ->  | F39: ='ES Breakdown'!AK39 -> 0 | G39: ='ES Breakdown'!AL39 -> 0 | H39: 0 | M39: 0 | O39: 1 | P39: 4 | Q39: 8
C40: B | D40: =IFERROR(INDEX(Settings!$Y$4:$Y$260,MATCH(E40,Settings!$Z$4:$Z$260,0),1),"") ->  | E40: =IFERROR(INDEX(Settings!$Z$4:$Z$260,MATCH(1,(Settings!$T$4:$T$260=O40)*(Settings!$U$4:$U$260=P40)*(Settings!$V$4:$V$260=Q40),0),1),"") ->  | F40: ='ES Breakdown'!AK40 -> 0 | G40: ='ES Breakdown'!AL40 -> 0 | H40: 0 | M40: 0 | O40: 1 | P40: 4 | Q40: 9
C41: B | D41: =IFERROR(INDEX(Settings!$Y$4:$Y$260,MATCH(E41,Settings!$Z$4:$Z$260,0),1),"") ->  | E41: =IFERROR(INDEX(Settings!$Z$4:$Z$260,MATCH(1,(Settings!$T$4:$T$260=O41)*(Settings!$U$4:$U$260=P41)*(Settings!$V$4:$V$260=Q41),0),1),"") ->  | F41: ='ES Breakdown'!AK41 -> 0 | G41: ='ES Breakdown'!AL41 -> 0 | H41: 0 | M41: 0 | O41: 1 | P41: 4 | Q41: 10
C42: C | D42: =IFERROR(INDEX(Settings!$Y$4:$Y$260,MATCH(E42,Settings!$Z$4:$Z$260,0),1),"") -> DC12 | E42: =IFERROR(INDEX(Settings!$Z$4:$Z$260,MATCH(1,(Settings!$T$4:$T$260=O42)*(Settings!$U$4:$U$260=P42)*(Settings!$V$4:$V$260=Q42),0),1),"") -> Amathole District Municipality | F42: ='ES Breakdown'!AK42 -> 896469 | G42: 68435 | H42: 964904 | M42: 1 | O42: 1 | P42: 5 | Q42: 1
C43: =IF(LEN(E42)<1,"","Total: " & LEFT(E42,LEN(E42)-21) & "Municipalities") -> Total: Amathole Municipalities | F43: =SUM(F32:F42) -> 1862423 | G43: =SUM(G32:G42) -> 247867 | H43: =SUM(H32:H42) -> 2110290 | M43: =IF(SUM(M32:M42)=0,0,1) -> 1
M44: =IF(M43=0,0,1) -> 1
C45: B | D45: =IFERROR(INDEX(Settings!$Y$4:$Y$260,MATCH(E45,Settings!$Z$4:$Z$260,0),1),"") -> EC131 | E45: =IFERROR(INDEX(Settings!$Z$4:$Z$260,MATCH(1,(Settings!$T$4:$T$260=O45)*(Settings!$U$4:$U$260=P45)*(Settings!$V$4:$V$260=Q45),0),1),"") -> Inxuba Yethemba | F45: ='ES Breakdown'!AK45 -> 45400 | G45: 7279 | H45: =F45+G45 -> 52679 | M45: =IF(LEN(E45)<2,0,1) -> 1 | O45: 1 | P45: 6 | Q45: 1
C46: B | D46: =IFERROR(INDEX(Settings!$Y$4:$Y$260,MATCH(E46,Settings!$Z$4:$Z$260,0),1),"") -> EC135 | E46: =IFERROR(INDEX(Settings!$Z$4:$Z$260,MATCH(1,(Settings!$T$4:$T$260=O46)*(Settings!$U$4:$U$260=P46)*(Settings!$V$4:$V$260=Q46),0),1),"") -> Intsika Yethu | F46: ='ES Breakdown'!AK46 -> 168126 | G46: 30644 | H46: 198770 | M46: =IF(LEN(E46)<2,0,1) -> 1 | O46: 1 | P46: 6 | Q46: =IF(P46=P45,Q45+1,1) -> 2
C47: B | D47: =IFERROR(INDEX(Settings!$Y$4:$Y$260,MATCH(E47,Settings!$Z$4:$Z$260,0),1),"") -> EC136 | E47: =IFERROR(INDEX(Settings!$Z$4:$Z$260,MATCH(1,(Settings!$T$4:$T$260=O47)*(Settings!$U$4:$U$260=P47)*(Settings!$V$4:$V$260=Q47),0),1),"") -> Emalahleni | F47: ='ES Breakdown'!AK47 -> 130818 | G47: 23082 | H47: 153900 | M47: 1 | O47: 1 | P47: 6 | Q47: =IF(P47=P46,Q46+1,1) -> 3
C48: B | D48: =IFERROR(INDEX(Settings!$Y$4:$Y$260,MATCH(E48,Settings!$Z$4:$Z$260,0),1),"") -> EC137 | E48: =IFERROR(INDEX(Settings!$Z$4:$Z$260,MATCH(1,(Settings!$T$4:$T$260=O48)*(Settings!$U$4:$U$260=P48)*(Settings!$V$4:$V$260=Q48),0),1),"") -> Engcobo | F48: ='ES Breakdown'!AK48 -> 156738 | G48: 28376 | H48: 185114 | M48: 1 | O48: 1 | P48: 6 | Q48: 4
C49: B | D49: =IFERROR(INDEX(Settings!$Y$4:$Y$260,MATCH(E49,Settings!$Z$4:$Z$260,0),1),"") -> EC138 | E49: =IFERROR(INDEX(Settings!$Z$4:$Z$260,MATCH(1,(Settings!$T$4:$T$260=O49)*(Settings!$U$4:$U$260=P49)*(Settings!$V$4:$V$260=Q49),0),1),"") -> Sakhisizwe | F49: ='ES Breakdown'!AK49 -> 71988 | G49: 12495 | H49: 84483 | M49: 1 | O49: 1 | P49: 6 | Q49: 5
C50: B | D50: =IFERROR(INDEX(Settings!$Y$4:$Y$260,MATCH(E50,Settings!$Z$4:$Z$260,0),1),"") -> EC139 | E50: =IFERROR(INDEX(Settings!$Z$4:$Z$260,MATCH(1,(Settings!$T$4:$T$260=O50)*(Settings!$U$4:$U$260=P50)*(Settings!$V$4:$V$260=Q50),0),1),"") -> Enoch Mgijima | F50: ='ES Breakdown'!AK50 -> 191323 | G50: 36719 | H50: 228042 | M50: 1 | O50: 1 | P50: 6 | Q50: 6
C51: B | D51: =IFERROR(INDEX(Settings!$Y$4:$Y$260,MATCH(E51,Settings!$Z$4:$Z$260,0),1),"") ->  | E51: =IFERROR(INDEX(Settings!$Z$4:$Z$260,MATCH(1,(Settings!$T$4:$T$260=O51)*(Settings!$U$4:$U$260=P51)*(Settings!$V$4:$V$260=Q51),0),1),"") ->  | F51: ='ES Breakdown'!AK51 -> 0 | G51: ='ES Breakdown'!AL51 -> 0 | H51: 0 | M51: 0 | O51: 1 | P51: 6 | Q51: 7
C52: B | D52: =IFERROR(INDEX(Settings!$Y$4:$Y$260,MATCH(E52,Settings!$Z$4:$Z$260,0),1),"") ->  | E52: =IFERROR(INDEX(Settings!$Z$4:$Z$260,MATCH(1,(Settings!$T$4:$T$260=O52)*(Settings!$U$4:$U$260=P52)*(Settings!$V$4:$V$260=Q52),0),1),"") ->  | F52: ='ES Breakdown'!AK52 -> 0 | G52: ='ES Breakdown'!AL52 -> 0 | H52: 0 | M52: 0 | O52: 1 | P52: 6 | Q52: 8
C53: B | D53: =IFERROR(INDEX(Settings!$Y$4:$Y$260,MATCH(E53,Settings!$Z$4:$Z$260,0),1),"") ->  | E53: =IFERROR(INDEX(Settings!$Z$4:$Z$260,MATCH(1,(Settings!$T$4:$T$260=O53)*(Settings!$U$4:$U$260=P53)*(Settings!$V$4:$V$260=Q53),0),1),"") ->  | F53: ='ES Breakdown'!AK53 -> 0 | G53: ='ES Breakdown'!AL53 -> 0 | H53: 0 | M53: 0 | O53: 1 | P53: 6 | Q53: 9
C54: B | D54: =IFERROR(INDEX(Settings!$Y$4:$Y$260,MATCH(E54,Settings!$Z$4:$Z$260,0),1),"") ->  | E54: =IFERROR(INDEX(Settings!$Z$4:$Z$260,MATCH(1,(Settings!$T$4:$T$260=O54)*(Settings!$U$4:$U$260=P54)*(Settings!$V$4:$V$260=Q54),0),1),"") ->  | F54: ='ES Breakdown'!AK54 -> 0 | G54: ='ES Breakdown'!AL54 -> 0 | H54: 0 | M54: 0 | O54: 1 | P54: 6 | Q54: 10
C55: C | D55: =IFERROR(INDEX(Settings!$Y$4:$Y$260,MATCH(E55,Settings!$Z$4:$Z$260,0),1),"") -> DC13 | E55: =IFERROR(INDEX(Settings!$Z$4:$Z$260,MATCH(1,(Settings!$T$4:$T$260=O55)*(Settings!$U$4:$U$260=P55)*(Settings!$V$4:$V$260=Q55),0),1),"") -> Chris Hani District Municipality | F55: ='ES Breakdown'!AK55 -> 581707 | G55: 67669 | H55: 649376 | M55: 1 | O55: 1 | P55: 7 | Q55: 1
C56: =IF(LEN(E55)<1,"","Total: " & LEFT(E55,LEN(E55)-21) & "Municipalities") -> Total: Chris Hani Municipalities | F56: =SUM(F45:F55) -> 1346100 | G56: =SUM(G45:G55) -> 206264 | H56: =SUM(H45:H55) -> 1552364 | M56: =IF(SUM(M45:M55)=0,0,1) -> 1
M57: =IF(M56=0,0,1) -> 1
C58: B | D58: =IFERROR(INDEX(Settings!$Y$4:$Y$260,MATCH(E58,Settings!$Z$4:$Z$260,0),1),"") -> EC141 | E58: =IFERROR(INDEX(Settings!$Z$4:$Z$260,MATCH(1,(Settings!$T$4:$T$260=O58)*(Settings!$U$4:$U$260=P58)*(Settings!$V$4:$V$260=Q58),0),1),"") -> Elundini | F58: ='ES Breakdown'!AK58 -> 161277 | G58: 31013 | H58: =F58+G58 -> 192290 | M58: =IF(LEN(E58)<2,0,1) -> 1 | O58: 1 | P58: 8 | Q58: 1
C59: B | D59: =IFERROR(INDEX(Settings!$Y$4:$Y$260,MATCH(E59,Settings!$Z$4:$Z$260,0),1),"") -> EC142 | E59: =IFERROR(INDEX(Settings!$Z$4:$Z$260,MATCH(1,(Settings!$T$4:$T$260=O59)*(Settings!$U$4:$U$260=P59)*(Settings!$V$4:$V$260=Q59),0),1),"") -> Senqu | F59: ='ES Breakdown'!AK59 -> 158517 | G59: 30504 | H59: 189021 | M59: =IF(LEN(E59)<2,0,1) -> 1 | O59: 1 | P59: 8 | Q59: =IF(P59=P58,Q58+1,1) -> 2
C60: B | D60: =IFERROR(INDEX(Settings!$Y$4:$Y$260,MATCH(E60,Settings!$Z$4:$Z$260,0),1),"") -> EC145 | E60: =IFERROR(INDEX(Settings!$Z$4:$Z$260,MATCH(1,(Settings!$T$4:$T$260=O60)*(Settings!$U$4:$U$260=P60)*(Settings!$V$4:$V$260=Q60),0),1),"") -> Walter Sisulu | F60: ='ES Breakdown'!AK60 -> 62095 | G60: 10313 | H60: 72408 | M60: 1 | O60: 1 | P60: 8 | Q60: =IF(P60=P59,Q59+1,1) -> 3
C61: B | D61: =IFERROR(INDEX(Settings!$Y$4:$Y$260,MATCH(E61,Settings!$Z$4:$Z$260,0),1),"") ->  | E61: =IFERROR(INDEX(Settings!$Z$4:$Z$260,MATCH(1,(Settings!$T$4:$T$260=O61)*(Settings!$U$4:$U$260=P61)*(Settings!$V$4:$V$260=Q61),0),1),"") ->  | F61: ='ES Breakdown'!AK61 -> 0 | G61: ='ES Breakdown'!AL61 -> 0 | H61: 0 | M61: 0 | O61: 1 | P61: 8 | Q61: 4
C62: B | D62: =IFERROR(INDEX(Settings!$Y$4:$Y$260,MATCH(E62,Settings!$Z$4:$Z$260,0),1),"") ->  | E62: =IFERROR(INDEX(Settings!$Z$4:$Z$260,MATCH(1,(Settings!$T$4:$T$260=O62)*(Settings!$U$4:$U$260=P62)*(Settings!$V$4:$V$260=Q62),0),1),"") ->  | F62: ='ES Breakdown'!AK62 -> 0 | G62: ='ES Breakdown'!AL62 -> 0 | H62: 0 | M62: 0 | O62: 1 | P62: 8 | Q62: 5
C63: B | D63: =IFERROR(INDEX(Settings!$Y$4:$Y$260,MATCH(E63,Settings!$Z$4:$Z$260,0),1),"") ->  | E63: =IFERROR(INDEX(Settings!$Z$4:$Z$260,MATCH(1,(Settings!$T$4:$T$260=O63)*(Settings!$U$4:$U$260=P63)*(Settings!$V$4:$V$260=Q63),0),1),"") ->  | F63: ='ES Breakdown'!AK63 -> 0 | G63: ='ES Breakdown'!AL63 -> 0 | H63: 0 | M63: 0 | O63: 1 | P63: 8 | Q63: 6
C64: B | D64: =IFERROR(INDEX(Settings!$Y$4:$Y$260,MATCH(E64,Settings!$Z$4:$Z$260,0),1),"") ->  | E64: =IFERROR(INDEX(Settings!$Z$4:$Z$260,MATCH(1,(Settings!$T$4:$T$260=O64)*(Settings!$U$4:$U$260=P64)*(Settings!$V$4:$V$260=Q64),0),1),"") ->  | F64: ='ES Breakdown'!AK64 -> 0 | G64: ='ES Breakdown'!AL64 -> 0 | H64: 0 | M64: 0 | O64: 1 | P64: 8 | Q64: 7
C65: B | D65: =IFERROR(INDEX(Settings!$Y$4:$Y$260,MATCH(E65,Settings!$Z$4:$Z$260,0),1),"") ->  | E65: =IFERROR(INDEX(Settings!$Z$4:$Z$260,MATCH(1,(Settings!$T$4:$T$260=O65)*(Settings!$U$4:$U$260=P65)*(Settings!$V$4:$V$260=Q65),0),1),"") ->  | F65: ='ES Breakdown'!AK65 -> 0 | G65: ='ES Breakdown'!AL65 -> 0 | H65: 0 | M65: 0 | O65: 1 | P65: 8 | Q65: 8
C66: B | D66: =IFERROR(INDEX(Settings!$Y$4:$Y$260,MATCH(E66,Settings!$Z$4:$Z$260,0),1),"") ->  | E66: =IFERROR(INDEX(Settings!$Z$4:$Z$260,MATCH(1,(Settings!$T$4:$T$260=O66)*(Settings!$U$4:$U$260=P66)*(Settings!$V$4:$V$260=Q66),0),1),"") ->  | F66: ='ES Breakdown'!AK66 -> 0 | G66: ='ES Breakdown'!AL66 -> 0 | H66: 0 | M66: 0 | O66: 1 | P66: 8 | Q66: 9
C67: B | D67: =IFERROR(INDEX(Settings!$Y$4:$Y$260,MATCH(E67,Settings!$Z$4:$Z$260,0),1),"") ->  | E67: =IFERROR(INDEX(Settings!$Z$4:$Z$260,MATCH(1,(Settings!$T$4:$T$260=O67)*(Settings!$U$4:$U$260=P67)*(Settings!$V$4:$V$260=Q67),0),1),"") ->  | F67: ='ES Breakdown'!AK67 -> 0 | G67: ='ES Breakdown'!AL67 -> 0 | H67: 0 | M67: 0 | O67: 1 | P67: 8 | Q67: 10
C68: C | D68: =IFERROR(INDEX(Settings!$Y$4:$Y$260,MATCH(E68,Settings!$Z$4:$Z$260,0),1),"") -> DC14 | E68: =IFERROR(INDEX(Settings!$Z$4:$Z$260,MATCH(1,(Settings!$T$4:$T$260=O68)*(Settings!$U$4:$U$260=P68)*(Settings!$V$4:$V$260=Q68),0),1),"") -> Joe Gqabi District Municipality | F68: ='ES Breakdown'!AK68 -> 293252 | G68: 34630 | H68: 327882 | M68: 1 | O68: 1 | P68: 9 | Q68: 1
C69: =IF(LEN(E68)<1,"","Total: " & LEFT(E68,LEN(E68)-21) & "Municipalities") -> Total: Joe Gqabi Municipalities | F69: =SUM(F58:F68) -> 675141 | G69: =SUM(G58:G68) -> 106460 | H69: =SUM(H58:H68) -> 781601 | M69: =IF(SUM(M58:M68)=0,0,1) -> 1
M70: =IF(M69=0,0,1) -> 1
C71: B | D71: =IFERROR(INDEX(Settings!$Y$4:$Y$260,MATCH(E71,Settings!$Z$4:$Z$260,0),1),"") -> EC153 | E71: =IFERROR(INDEX(Settings!$Z$4:$Z$260,MATCH(1,(Settings!$T$4:$T$260=O71)*(Settings!$U$4:$U$260=P71)*(Settings!$V$4:$V$260=Q71),0),1),"") -> Ngquza Hill | F71: ='ES Breakdown'!AK71 -> 273573 | G71: 52982 | H71: =F71+G71 -> 326555 | M71: =IF(LEN(E71)<2,0,1) -> 1 | O71: 1 | P71: 10 | Q71: 1
C72: B | D72: =IFERROR(INDEX(Settings!$Y$4:$Y$260,MATCH(E72,Settings!$Z$4:$Z$260,0),1),"") -> EC154 | E72: =IFERROR(INDEX(Settings!$Z$4:$Z$260,MATCH(1,(Settings!$T$4:$T$260=O72)*(Settings!$U$4:$U$260=P72)*(Settings!$V$4:$V$260=Q72),0),1),"") -> Port St Johns | F72: ='ES Breakdown'!AK72 -> 162406 | G72: 29802 | H72: 192208 | M72: =IF(LEN(E72)<2,0,1) -> 1 | O72: 1 | P72: 10 | Q72: =IF(P72=P71,Q71+1,1) -> 2
C73: B | D73: =IFERROR(INDEX(Settings!$Y$4:$Y$260,MATCH(E73,Settings!$Z$4:$Z$260,0),1),"") -> EC155 | E73: =IFERROR(INDEX(Settings!$Z$4:$Z$260,MATCH(1,(Settings!$T$4:$T$260=O73)*(Settings!$U$4:$U$260=P73)*(Settings!$V$4:$V$260=Q73),0),1),"") -> Nyandeni | F73: ='ES Breakdown'!AK73 -> 277708 | G73: 53710 | H73: 331418 | M73: 1 | O73: 1 | P73: 10 | Q73: =IF(P73=P72,Q72+1,1) -> 3
C74: B | D74: =IFERROR(INDEX(Settings!$Y$4:$Y$260,MATCH(E74,Settings!$Z$4:$Z$260,0),1),"") -> EC156 | E74: =IFERROR(INDEX(Settings!$Z$4:$Z$260,MATCH(1,(Settings!$T$4:$T$260=O74)*(Settings!$U$4:$U$260=P74)*(Settings!$V$4:$V$260=Q74),0),1),"") -> Mhlontlo | F74: ='ES Breakdown'!AK74 -> 194734 | G74: 35248 | H74: 229982 | M74: 1 | O74: 1 | P74: 10 | Q74: 4
C75: B | D75: =IFERROR(INDEX(Settings!$Y$4:$Y$260,MATCH(E75,Settings!$Z$4:$Z$260,0),1),"") -> EC157 | E75: =IFERROR(INDEX(Settings!$Z$4:$Z$260,MATCH(1,(Settings!$T$4:$T$260=O75)*(Settings!$U$4:$U$260=P75)*(Settings!$V$4:$V$260=Q75),0),1),"") -> King Sabata Dalindyebo | F75: ='ES Breakdown'!AK75 -> 352763 | G75: 75861 | H75: 428624 | M75: 1 | O75: 1 | P75: 10 | Q75: 5
C76: B | D76: =IFERROR(INDEX(Settings!$Y$4:$Y$260,MATCH(E76,Settings!$Z$4:$Z$260,0),1),"") ->  | E76: =IFERROR(INDEX(Settings!$Z$4:$Z$260,MATCH(1,(Settings!$T$4:$T$260=O76)*(Settings!$U$4:$U$260=P76)*(Settings!$V$4:$V$260=Q76),0),1),"") ->  | F76: ='ES Breakdown'!AK76 -> 0 | G76: ='ES Breakdown'!AL76 -> 0 | H76: 0 | M76: 0 | O76: 1 | P76: 10 | Q76: 6
C77: B | D77: =IFERROR(INDEX(Settings!$Y$4:$Y$260,MATCH(E77,Settings!$Z$4:$Z$260,0),1),"") ->  | E77: =IFERROR(INDEX(Settings!$Z$4:$Z$260,MATCH(1,(Settings!$T$4:$T$260=O77)*(Settings!$U$4:$U$260=P77)*(Settings!$V$4:$V$260=Q77),0),1),"") ->  | F77: ='ES Breakdown'!AK77 -> 0 | G77: ='ES Breakdown'!AL77 -> 0 | H77: 0 | M77: 0 | O77: 1 | P77: 10 | Q77: 7
C78: B | D78: =IFERROR(INDEX(Settings!$Y$4:$Y$260,MATCH(E78,Settings!$Z$4:$Z$260,0),1),"") ->  | E78: =IFERROR(INDEX(Settings!$Z$4:$Z$260,MATCH(1,(Settings!$T$4:$T$260=O78)*(Settings!$U$4:$U$260=P78)*(Settings!$V$4:$V$260=Q78),0),1),"") ->  | F78: ='ES Breakdown'!AK78 -> 0 | G78: ='ES Breakdown'!AL78 -> 0 | H78: 0 | M78: 0 | O78: 1 | P78: 10 | Q78: 8
C79: B | D79: =IFERROR(INDEX(Settings!$Y$4:$Y$260,MATCH(E79,Settings!$Z$4:$Z$260,0),1),"") ->  | E79: =IFERROR(INDEX(Settings!$Z$4:$Z$260,MATCH(1,(Settings!$T$4:$T$260=O79)*(Settings!$U$4:$U$260=P79)*(Settings!$V$4:$V$260=Q79),0),1),"") ->  | F79: ='ES Breakdown'!AK79 -> 0 | G79: ='ES Breakdown'!AL79 -> 0 | H79: 0 | M79: 0 | O79: 1 | P79: 10 | Q79: 9
C80: B | D80: =IFERROR(INDEX(Settings!$Y$4:$Y$260,MATCH(E80,Settings!$Z$4:$Z$260,0),1),"") ->  | E80: =IFERROR(INDEX(Settings!$Z$4:$Z$260,MATCH(1,(Settings!$T$4:$T$260=O80)*(Settings!$U$4:$U$260=P80)*(Settings!$V$4:$V$260=Q80),0),1),"") ->  | F80: ='ES Breakdown'!AK80 -> 0 | G80: ='ES Breakdown'!AL80 -> 0 | H80: 0 | M80: 0 | O80: 1 | P80: 10 | Q80: 10
C81: C | D81: =IFERROR(INDEX(Settings!$Y$4:$Y$260,MATCH(E81,Settings!$Z$4:$Z$260,0),1),"") -> DC15 | E81: =IFERROR(INDEX(Settings!$Z$4:$Z$260,MATCH(1,(Settings!$T$4:$T$260=O81)*(Settings!$U$4:$U$260=P81)*(Settings!$V$4:$V$260=Q81),0),1),"") -> O.R. Tambo District Municipality | F81: ='ES Breakdown'!AK81 -> 918991 | G81: 115347 | H81: 1034338 | M81: 1 | O81: 1 | P81: 11 | Q81: 1
C82: =IF(LEN(E81)<1,"","Total: " & LEFT(E81,LEN(E81)-21) & "Municipalities") -> Total: O.R. Tambo Municipalities | F82: =SUM(F71:F81) -> 2180175 | G82: =SUM(G71:G81) -> 362950 | H82: =SUM(H71:H81) -> 2543125 | M82: =IF(SUM(M71:M81)=0,0,1) -> 1
M83: =IF(M82=0,0,1) -> 1
C84: B | D84: =IFERROR(INDEX(Settings!$Y$4:$Y$260,MATCH(E84,Settings!$Z$4:$Z$260,0),1),"") -> EC441 | E84: =IFERROR(INDEX(Settings!$Z$4:$Z$260,MATCH(1,(Settings!$T$4:$T$260=O84)*(Settings!$U$4:$U$260=P84)*(Settings!$V$4:$V$260=Q84),0),1),"") -> Matatiele | F84: ='ES Breakdown'!AK84 -> 249823 | G84: 49781 | H84: =F84+G84 -> 299604 | M84: =IF(LEN(E84)<2,0,1) -> 1 | O84: 1 | P84: 12 | Q84: 1
C85: B | D85: =IFERROR(INDEX(Settings!$Y$4:$Y$260,MATCH(E85,Settings!$Z$4:$Z$260,0),1),"") -> EC442 | E85: =IFERROR(INDEX(Settings!$Z$4:$Z$260,MATCH(1,(Settings!$T$4:$T$260=O85)*(Settings!$U$4:$U$260=P85)*(Settings!$V$4:$V$260=Q85),0),1),"") -> Umzimvubu | F85: ='ES Breakdown'!AK85 -> 230629 | G85: 44318 | H85: 274947 | M85: =IF(LEN(E85)<2,0,1) -> 1 | O85: 1 | P85: 12 | Q85: =IF(P85=P84,Q84+1,1) -> 2
C86: B | D86: =IFERROR(INDEX(Settings!$Y$4:$Y$260,MATCH(E86,Settings!$Z$4:$Z$260,0),1),"") -> EC443 | E86: =IFERROR(INDEX(Settings!$Z$4:$Z$260,MATCH(1,(Settings!$T$4:$T$260=O86)*(Settings!$U$4:$U$260=P86)*(Settings!$V$4:$V$260=Q86),0),1),"") -> Mbizana | F86: ='ES Breakdown'!AK86 -> 278139 | G86: 54283 | H86: 332422 | M86: 1 | O86: 1 | P86: 12 | Q86: =IF(P86=P85,Q85+1,1) -> 3
C87: B | D87: =IFERROR(INDEX(Settings!$Y$4:$Y$260,MATCH(E87,Settings!$Z$4:$Z$260,0),1),"") -> EC444 | E87: =IFERROR(INDEX(Settings!$Z$4:$Z$260,MATCH(1,(Settings!$T$4:$T$260=O87)*(Settings!$U$4:$U$260=P87)*(Settings!$V$4:$V$260=Q87),0),1),"") -> Ntabankulu | F87: ='ES Breakdown'!AK87 -> 129512 | G87: 22536 | H87: 152048 | M87: 1 | O87: 1 | P87: 12 | Q87: 4
C88: B | D88: =IFERROR(INDEX(Settings!$Y$4:$Y$260,MATCH(E88,Settings!$Z$4:$Z$260,0),1),"") ->  | E88: =IFERROR(INDEX(Settings!$Z$4:$Z$260,MATCH(1,(Settings!$T$4:$T$260=O88)*(Settings!$U$4:$U$260=P88)*(Settings!$V$4:$V$260=Q88),0),1),"") ->  | F88: ='ES Breakdown'!AK88 -> 0 | G88: ='ES Breakdown'!AL88 -> 0 | H88: 0 | M88: 0 | O88: 1 | P88: 12 | Q88: 5
C89: B | D89: =IFERROR(INDEX(Settings!$Y$4:$Y$260,MATCH(E89,Settings!$Z$4:$Z$260,0),1),"") ->  | E89: =IFERROR(INDEX(Settings!$Z$4:$Z$260,MATCH(1,(Settings!$T$4:$T$260=O89)*(Settings!$U$4:$U$260=P89)*(Settings!$V$4:$V$260=Q89),0),1),"") ->  | F89: ='ES Breakdown'!AK89 -> 0 | G89: ='ES Breakdown'!AL89 -> 0 | H89: 0 | M89: 0 | O89: 1 | P89: 12 | Q89: 6
C90: B | D90: =IFERROR(INDEX(Settings!$Y$4:$Y$260,MATCH(E90,Settings!$Z$4:$Z$260,0),1),"") ->  | E90: =IFERROR(INDEX(Settings!$Z$4:$Z$260,MATCH(1,(Settings!$T$4:$T$260=O90)*(Settings!$U$4:$U$260=P90)*(Settings!$V$4:$V$260=Q90),0),1),"") ->  | F90: ='ES Breakdown'!AK90 -> 0 | G90: ='ES Breakdown'!AL90 -> 0 | H90: 0 | M90: 0 | O90: 1 | P90: 12 | Q90: 7
C91: B | D91: =IFERROR(INDEX(Settings!$Y$4:$Y$260,MATCH(E91,Settings!$Z$4:$Z$260,0),1),"") ->  | E91: =IFERROR(INDEX(Settings!$Z$4:$Z$260,MATCH(1,(Settings!$T$4:$T$260=O91)*(Settings!$U$4:$U$260=P91)*(Settings!$V$4:$V$260=Q91),0),1),"") ->  | F91: ='ES Breakdown'!AK91 -> 0 | G91: ='ES Breakdown'!AL91 -> 0 | H91: 0 | M91: 0 | O91: 1 | P91: 12 | Q91: 8
C92: B | D92: =IFERROR(INDEX(Settings!$Y$4:$Y$260,MATCH(E92,Settings!$Z$4:$Z$260,0),1),"") ->  | E92: =IFERROR(INDEX(Settings!$Z$4:$Z$260,MATCH(1,(Settings!$T$4:$T$260=O92)*(Settings!$U$4:$U$260=P92)*(Settings!$V$4:$V$260=Q92),0),1),"") ->  | F92: ='ES Breakdown'!AK92 -> 0 | G92: ='ES Breakdown'!AL92 -> 0 | H92: 0 | M92: 0 | O92: 1 | P92: 12 | Q92: 9
C93: B | D93: =IFERROR(INDEX(Settings!$Y$4:$Y$260,MATCH(E93,Settings!$Z$4:$Z$260,0),1),"") ->  | E93: =IFERROR(INDEX(Settings!$Z$4:$Z$260,MATCH(1,(Settings!$T$4:$T$260=O93)*(Settings!$U$4:$U$260=P93)*(Settings!$V$4:$V$260=Q93),0),1),"") ->  | F93: ='ES Breakdown'!AK93 -> 0 | G93: ='ES Breakdown'!AL93 -> 0 | H93: 0 | M93: 0 | O93: 1 | P93: 12 | Q93: 10
C94: C | D94: =IFERROR(INDEX(Settings!$Y$4:$Y$260,MATCH(E94,Settings!$Z$4:$Z$260,0),1),"") -> DC44 | E94: =IFERROR(INDEX(Settings!$Z$4:$Z$260,MATCH(1,(Settings!$T$4:$T$260=O94)*(Settings!$U$4:$U$260=P94)*(Settings!$V$4:$V$260=Q94),0),1),"") -> Alfred Nzo District Municipality | F94: ='ES Breakdown'!AK94 -> 598038 | G94: 75059 | H94: 673097 | M94: 1 | O94: 1 | P94: 13 | Q94: 1
C95: =IF(LEN(E94)<1,"","Total: " & LEFT(E94,LEN(E94)-21) & "Municipalities") -> Total: Alfred Nzo Municipalities | F95: =SUM(F84:F94) -> 1486141 | G95: =SUM(G84:G94) -> 245977 | H95: =SUM(H84:H94) -> 1732118 | M95: =IF(SUM(M84:M94)=0,0,1) -> 1
M96: =IF(M95=0,0,1) -> 1
C97: B | D97: =IFERROR(INDEX(Settings!$Y$4:$Y$260,MATCH(E97,Settings!$Z$4:$Z$260,0),1),"") ->  | E97: =IFERROR(INDEX(Settings!$Z$4:$Z$260,MATCH(1,(Settings!$T$4:$T$260=O97)*(Settings!$U$4:$U$260=P97)*(Settings!$V$4:$V$260=Q97),0),1),"") ->  | F97: ='ES Breakdown'!AK97 -> 0 | G97: ='ES Breakdown'!AL97 -> 0 | H97: ='ES Breakdown'!AM97 -> 0 | M97: =IF(LEN(E97)<2,0,1) -> 0 | O97: 1 | P97: 14 | Q97: 1
C98: B | D98: =IFERROR(INDEX(Settings!$Y$4:$Y$260,MATCH(E98,Settings!$Z$4:$Z$260,0),1),"") ->  | E98: =IFERROR(INDEX(Settings!$Z$4:$Z$260,MATCH(1,(Settings!$T$4:$T$260=O98)*(Settings!$U$4:$U$260=P98)*(Settings!$V$4:$V$260=Q98),0),1),"") ->  | F98: ='ES Breakdown'!AK98 -> 0 | G98: ='ES Breakdown'!AL98 -> 0 | H98: ='ES Breakdown'!AM98 -> 0 | M98: =IF(LEN(E98)<2,0,1) -> 0 | O98: 1 | P98: 14 | Q98: =IF(P98=P97,Q97+1,1) -> 2
C99: B | D99: =IFERROR(INDEX(Settings!$Y$4:$Y$260,MATCH(E99,Settings!$Z$4:$Z$260,0),1),"") ->  | E99: =IFERROR(INDEX(Settings!$Z$4:$Z$260,MATCH(1,(Settings!$T$4:$T$260=O99)*(Settings!$U$4:$U$260=P99)*(Settings!$V$4:$V$260=Q99),0),1),"") ->  | F99: ='ES Breakdown'!AK99 -> 0 | G99: ='ES Breakdown'!AL99 -> 0 | H99: ='ES Breakdown'!AM99 -> 0 | M99: 0 | O99: 1 | P99: 14 | Q99: =IF(P99=P98,Q98+1,1) -> 3
C100: B | D100: =IFERROR(INDEX(Settings!$Y$4:$Y$260,MATCH(E100,Settings!$Z$4:$Z$260,0),1),"") ->  | E100: =IFERROR(INDEX(Settings!$Z$4:$Z$260,MATCH(1,(Settings!$T$4:$T$260=O100)*(Settings!$U$4:$U$260=P100)*(Settings!$V$4:$V$260=Q100),0),1),"") ->  | F100: ='ES Breakdown'!AK100 -> 0 | G100: ='ES Breakdown'!AL100 -> 0 | H100: ='ES Breakdown'!AM100 -> 0 | M100: 0 | O100: 1 | P100: 14 | Q100: 4
C101: B | D101: =IFERROR(INDEX(Settings!$Y$4:$Y$260,MATCH(E101,Settings!$Z$4:$Z$260,0),1),"") ->  | E101: =IFERROR(INDEX(Settings!$Z$4:$Z$260,MATCH(1,(Settings!$T$4:$T$260=O101)*(Settings!$U$4:$U$260=P101)*(Settings!$V$4:$V$260=Q101),0),1),"") ->  | F101: ='ES Breakdown'!AK101 -> 0 | G101: ='ES Breakdown'!AL101 -> 0 | H101: ='ES Breakdown'!AM101 -> 0 | M101: 0 | O101: 1 | P101: 14 | Q101: 5
C102: B | D102: =IFERROR(INDEX(Settings!$Y$4:$Y$260,MATCH(E102,Settings!$Z$4:$Z$260,0),1),"") ->  | E102: =IFERROR(INDEX(Settings!$Z$4:$Z$260,MATCH(1,(Settings!$T$4:$T$260=O102)*(Settings!$U$4:$U$260=P102)*(Settings!$V$4:$V$260=Q102),0),1),"") ->  | F102: ='ES Breakdown'!AK102 -> 0 | G102: ='ES Breakdown'!AL102 -> 0 | H102: ='ES Breakdown'!AM102 -> 0 | M102: 0 | O102: 1 | P102: 14 | Q102: 6
C103: B | D103: =IFERROR(INDEX(Settings!$Y$4:$Y$260,MATCH(E103,Settings!$Z$4:$Z$260,0),1),"") ->  | E103: =IFERROR(INDEX(Settings!$Z$4:$Z$260,MATCH(1,(Settings!$T$4:$T$260=O103)*(Settings!$U$4:$U$260=P103)*(Settings!$V$4:$V$260=Q103),0),1),"") ->  | F103: ='ES Breakdown'!AK103 -> 0 | G103: ='ES Breakdown'!AL103 -> 0 | H103: ='ES Breakdown'!AM103 -> 0 | M103: 0 | O103: 1 | P103: 14 | Q103: 7
C104: B | D104: =IFERROR(INDEX(Settings!$Y$4:$Y$260,MATCH(E104,Settings!$Z$4:$Z$260,0),1),"") ->  | E104: =IFERROR(INDEX(Settings!$Z$4:$Z$260,MATCH(1,(Settings!$T$4:$T$260=O104)*(Settings!$U$4:$U$260=P104)*(Settings!$V$4:$V$260=Q104),0),1),"") ->  | F104: ='ES Breakdown'!AK104 -> 0 | G104: ='ES Breakdown'!AL104 -> 0 | H104: ='ES Breakdown'!AM104 -> 0 | M104: 0 | O104: 1 | P104: 14 | Q104: 8
C105: B | D105: =IFERROR(INDEX(Settings!$Y$4:$Y$260,MATCH(E105,Settings!$Z$4:$Z$260,0),1),"") ->  | E105: =IFERROR(INDEX(Settings!$Z$4:$Z$260,MATCH(1,(Settings!$T$4:$T$260=O105)*(Settings!$U$4:$U$260=P105)*(Settings!$V$4:$V$260=Q105),0),1),"") ->  | F105: ='ES Breakdown'!AK105 -> 0 | G105: ='ES Breakdown'!AL105 -> 0 | H105: ='ES Breakdown'!AM105 -> 0 | M105: 0 | O105: 1 | P105: 14 | Q105: 9
C106: B | D106: =IFERROR(INDEX(Settings!$Y$4:$Y$260,MATCH(E106,Settings!$Z$4:$Z$260,0),1),"") ->  | E106: =IFERROR(INDEX(Settings!$Z$4:$Z$260,MATCH(1,(Settings!$T$4:$T$260=O106)*(Settings!$U$4:$U$260=P106)*(Settings!$V$4:$V$260=Q106),0),1),"") ->  | F106: ='ES Breakdown'!AK106 -> 0 | G106: ='ES Breakdown'!AL106 -> 0 | H106: ='ES Breakdown'!AM106 -> 0 | M106: 0 | O106: 1 | P106: 14 | Q106: 10
C107: C | D107: =IFERROR(INDEX(Settings!$Y$4:$Y$260,MATCH(E107,Settings!$Z$4:$Z$260,0),1),"") ->  | E107: =IFERROR(INDEX(Settings!$Z$4:$Z$260,MATCH(1,(Settings!$T$4:$T$260=O107)*(Settings!$U$4:$U$260=P107)*(Settings!$V$4:$V$260=Q107),0),1),"") ->  | F107: ='ES Breakdown'!AK107 -> 0 | G107: ='ES Breakdown'!AL107 -> 0 | H107: ='ES Breakdown'!AM107 -> 0 | M107: 0 | O107: 1 | P107: 15 | Q107: 1
C108: =IF(LEN(E107)<1,"","Total: " & LEFT(E107,LEN(E107)-21) & "Municipalities") ->  | F108: =SUM(F97:F107) -> 0 | G108: =SUM(G97:G107) -> 0 | H108: =SUM(H97:H107) -> 0 | M108: =IF(SUM(M97:M107)=0,0,1) -> 0
M109: =IF(M108=0,0,1) -> 0
C110: B | D110: =IFERROR(INDEX(Settings!$Y$4:$Y$260,MATCH(E110,Settings!$Z$4:$Z$260,0),1),"") ->  | E110: =IFERROR(INDEX(Settings!$Z$4:$Z$260,MATCH(1,(Settings!$T$4:$T$260=O110)*(Settings!$U$4:$U$260=P110)*(Settings!$V$4:$V$260=Q110),0),1),"") ->  | F110: ='ES Breakdown'!AK110 -> 0 | G110: ='ES Breakdown'!AL110 -> 0 | H110: ='ES Breakdown'!AM110 -> 0 | M110: =IF(LEN(E110)<2,0,1) -> 0 | O110: 1 | P110: 16 | Q110: 1
C111: B | D111: =IFERROR(INDEX(Settings!$Y$4:$Y$260,MATCH(E111,Settings!$Z$4:$Z$260,0),1),"") ->  | E111: =IFERROR(INDEX(Settings!$Z$4:$Z$260,MATCH(1,(Settings!$T$4:$T$260=O111)*(Settings!$U$4:$U$260=P111)*(Settings!$V$4:$V$260=Q111),0),1),"") ->  | F111: ='ES Breakdown'!AK111 -> 0 | G111: ='ES Breakdown'!AL111 -> 0 | H111: ='ES Breakdown'!AM111 -> 0 | M111: =IF(LEN(E111)<2,0,1) -> 0 | O111: 1 | P111: 16 | Q111: =IF(P111=P110,Q110+1,1) -> 2
C112: B | D112: =IFERROR(INDEX(Settings!$Y$4:$Y$260,MATCH(E112,Settings!$Z$4:$Z$260,0),1),"") ->  | E112: =IFERROR(INDEX(Settings!$Z$4:$Z$260,MATCH(1,(Settings!$T$4:$T$260=O112)*(Settings!$U$4:$U$260=P112)*(Settings!$V$4:$V$260=Q112),0),1),"") ->  | F112: ='ES Breakdown'!AK112 -> 0 | G112: ='ES Breakdown'!AL112 -> 0 | H112: ='ES Breakdown'!AM112 -> 0 | M112: 0 | O112: 1 | P112: 16 | Q112: =IF(P112=P111,Q111+1,1) -> 3
C113: B | D113: =IFERROR(INDEX(Settings!$Y$4:$Y$260,MATCH(E113,Settings!$Z$4:$Z$260,0),1),"") ->  | E113: =IFERROR(INDEX(Settings!$Z$4:$Z$260,MATCH(1,(Settings!$T$4:$T$260=O113)*(Settings!$U$4:$U$260=P113)*(Settings!$V$4:$V$260=Q113),0),1),"") ->  | F113: ='ES Breakdown'!AK113 -> 0 | G113: ='ES Breakdown'!AL113 -> 0 | H113: ='ES Breakdown'!AM113 -> 0 | M113: 0 | O113: 1 | P113: 16 | Q113: 4
C114: B | D114: =IFERROR(INDEX(Settings!$Y$4:$Y$260,MATCH(E114,Settings!$Z$4:$Z$260,0),1),"") ->  | E114: =IFERROR(INDEX(Settings!$Z$4:$Z$260,MATCH(1,(Settings!$T$4:$T$260=O114)*(Settings!$U$4:$U$260=P114)*(Settings!$V$4:$V$260=Q114),0),1),"") ->  | F114: ='ES Breakdown'!AK114 -> 0 | G114: ='ES Breakdown'!AL114 -> 0 | H114: ='ES Breakdown'!AM114 -> 0 | M114: 0 | O114: 1 | P114: 16 | Q114: 5
C115: B | D115: =IFERROR(INDEX(Settings!$Y$4:$Y$260,MATCH(E115,Settings!$Z$4:$Z$260,0),1),"") ->  | E115: =IFERROR(INDEX(Settings!$Z$4:$Z$260,MATCH(1,(Settings!$T$4:$T$260=O115)*(Settings!$U$4:$U$260=P115)*(Settings!$V$4:$V$260=Q115),0),1),"") ->  | F115: ='ES Breakdown'!AK115 -> 0 | G115: ='ES Breakdown'!AL115 -> 0 | H115: ='ES Breakdown'!AM115 -> 0 | M115: 0 | O115: 1 | P115: 16 | Q115: 6
C116: B | D116: =IFERROR(INDEX(Settings!$Y$4:$Y$260,MATCH(E116,Settings!$Z$4:$Z$260,0),1),"") ->  | E116: =IFERROR(INDEX(Settings!$Z$4:$Z$260,MATCH(1,(Settings!$T$4:$T$260=O116)*(Settings!$U$4:$U$260=P116)*(Settings!$V$4:$V$260=Q116),0),1),"") ->  | F116: ='ES Breakdown'!AK116 -> 0 | G116: ='ES Breakdown'!AL116 -> 0 | H116: ='ES Breakdown'!AM116 -> 0 | M116: 0 | O116: 1 | P116: 16 | Q116: 7
C117: B | D117: =IFERROR(INDEX(Settings!$Y$4:$Y$260,MATCH(E117,Settings!$Z$4:$Z$260,0),1),"") ->  | E117: =IFERROR(INDEX(Settings!$Z$4:$Z$260,MATCH(1,(Settings!$T$4:$T$260=O117)*(Settings!$U$4:$U$260=P117)*(Settings!$V$4:$V$260=Q117),0),1),"") ->  | F117: ='ES Breakdown'!AK117 -> 0 | G117: ='ES Breakdown'!AL117 -> 0 | H117: ='ES Breakdown'!AM117 -> 0 | M117: 0 | O117: 1 | P117: 16 | Q117: 8
C118: B | D118: =IFERROR(INDEX(Settings!$Y$4:$Y$260,MATCH(E118,Settings!$Z$4:$Z$260,0),1),"") ->  | E118: =IFERROR(INDEX(Settings!$Z$4:$Z$260,MATCH(1,(Settings!$T$4:$T$260=O118)*(Settings!$U$4:$U$260=P118)*(Settings!$V$4:$V$260=Q118),0),1),"") ->  | F118: ='ES Breakdown'!AK118 -> 0 | G118: ='ES Breakdown'!AL118 -> 0 | H118: ='ES Breakdown'!AM118 -> 0 | M118: 0 | O118: 1 | P118: 16 | Q118: 9
C119: B | D119: =IFERROR(INDEX(Settings!$Y$4:$Y$260,MATCH(E119,Settings!$Z$4:$Z$260,0),1),"") ->  | E119: =IFERROR(INDEX(Settings!$Z$4:$Z$260,MATCH(1,(Settings!$T$4:$T$260=O119)*(Settings!$U$4:$U$260=P119)*(Settings!$V$4:$V$260=Q119),0),1),"") ->  | F119: ='ES Breakdown'!AK119 -> 0 | G119: ='ES Breakdown'!AL119 -> 0 | H119: ='ES Breakdown'!AM119 -> 0 | M119: 0 | O119: 1 | P119: 16 | Q119: 10
C120: C | D120: =IFERROR(INDEX(Settings!$Y$4:$Y$260,MATCH(E120,Settings!$Z$4:$Z$260,0),1),"") ->  | E120: =IFERROR(INDEX(Settings!$Z$4:$Z$260,MATCH(1,(Settings!$T$4:$T$260=O120)*(Settings!$U$4:$U$260=P120)*(Settings!$V$4:$V$260=Q120),0),1),"") ->  | F120: ='ES Breakdown'!AK120 -> 0 | G120: ='ES Breakdown'!AL120 -> 0 | H120: ='ES Breakdown'!AM120 -> 0 | M120: 0 | O120: 1 | P120: 17 | Q120: 1
C121: =IF(LEN(E120)<1,"","Total: " & LEFT(E120,LEN(E120)-21) & "Municipalities") ->  | F121: =SUM(F110:F120) -> 0 | G121: =SUM(G110:G120) -> 0 | H121: =SUM(H110:H120) -> 0 | M121: =IF(SUM(M110:M120)=0,0,1) -> 0
M122: =IF(M121=0,0,1) -> 0
C123: B | D123: =IFERROR(INDEX(Settings!$Y$4:$Y$260,MATCH(E123,Settings!$Z$4:$Z$260,0),1),"") ->  | E123: =IFERROR(INDEX(Settings!$Z$4:$Z$260,MATCH(1,(Settings!$T$4:$T$260=O123)*(Settings!$U$4:$U$260=P123)*(Settings!$V$4:$V$260=Q123),0),1),"") ->  | F123: ='ES Breakdown'!AK123 -> 0 | G123: ='ES Breakdown'!AL123 -> 0 | H123: ='ES Breakdown'!AM123 -> 0 | M123: =IF(LEN(E123)<2,0,1) -> 0 | O123: 1 | P123: 18 | Q123: 1
C124: B | D124: =IFERROR(INDEX(Settings!$Y$4:$Y$260,MATCH(E124,Settings!$Z$4:$Z$260,0),1),"") ->  | E124: =IFERROR(INDEX(Settings!$Z$4:$Z$260,MATCH(1,(Settings!$T$4:$T$260=O124)*(Settings!$U$4:$U$260=P124)*(Settings!$V$4:$V$260=Q124),0),1),"") ->  | F124: ='ES Breakdown'!AK124 -> 0 | G124: ='ES Breakdown'!AL124 -> 0 | H124: ='ES Breakdown'!AM124 -> 0 | M124: =IF(LEN(E124)<2,0,1) -> 0 | O124: 1 | P124: 18 | Q124: =IF(P124=P123,Q123+1,1) -> 2
C125: B | D125: =IFERROR(INDEX(Settings!$Y$4:$Y$260,MATCH(E125,Settings!$Z$4:$Z$260,0),1),"") ->  | E125: =IFERROR(INDEX(Settings!$Z$4:$Z$260,MATCH(1,(Settings!$T$4:$T$260=O125)*(Settings!$U$4:$U$260=P125)*(Settings!$V$4:$V$260=Q125),0),1),"") ->  | F125: ='ES Breakdown'!AK125 -> 0 | G125: ='ES Breakdown'!AL125 -> 0 | H125: ='ES Breakdown'!AM125 -> 0 | M125: 0 | O125: 1 | P125: 18 | Q125: =IF(P125=P124,Q124+1,1) -> 3
C126: B | D126: =IFERROR(INDEX(Settings!$Y$4:$Y$260,MATCH(E126,Settings!$Z$4:$Z$260,0),1),"") ->  | E126: =IFERROR(INDEX(Settings!$Z$4:$Z$260,MATCH(1,(Settings!$T$4:$T$260=O126)*(Settings!$U$4:$U$260=P126)*(Settings!$V$4:$V$260=Q126),0),1),"") ->  | F126: ='ES Breakdown'!AK126 -> 0 | G126: ='ES Breakdown'!AL126 -> 0 | H126: ='ES Breakdown'!AM126 -> 0 | M126: 0 | O126: 1 | P126: 18 | Q126: 4
C127: B | D127: =IFERROR(INDEX(Settings!$Y$4:$Y$260,MATCH(E127,Settings!$Z$4:$Z$260,0),1),"") ->  | E127: =IFERROR(INDEX(Settings!$Z$4:$Z$260,MATCH(1,(Settings!$T$4:$T$260=O127)*(Settings!$U$4:$U$260=P127)*(Settings!$V$4:$V$260=Q127),0),1),"") ->  | F127: ='ES Breakdown'!AK127 -> 0 | G127: ='ES Breakdown'!AL127 -> 0 | H127: ='ES Breakdown'!AM127 -> 0 | M127: 0 | O127: 1 | P127: 18 | Q127: 5
C128: B | D128: =IFERROR(INDEX(Settings!$Y$4:$Y$260,MATCH(E128,Settings!$Z$4:$Z$260,0),1),"") ->  | E128: =IFERROR(INDEX(Settings!$Z$4:$Z$260,MATCH(1,(Settings!$T$4:$T$260=O128)*(Settings!$U$4:$U$260=P128)*(Settings!$V$4:$V$260=Q128),0),1),"") ->  | F128: ='ES Breakdown'!AK128 -> 0 | G128: ='ES Breakdown'!AL128 -> 0 | H128: ='ES Breakdown'!AM128 -> 0 | M128: 0 | O128: 1 | P128: 18 | Q128: 6
C129: B | D129: =IFERROR(INDEX(Settings!$Y$4:$Y$260,MATCH(E129,Settings!$Z$4:$Z$260,0),1),"") ->  | E129: =IFERROR(INDEX(Settings!$Z$4:$Z$260,MATCH(1,(Settings!$T$4:$T$260=O129)*(Settings!$U$4:$U$260=P129)*(Settings!$V$4:$V$260=Q129),0),1),"") ->  | F129: ='ES Breakdown'!AK129 -> 0 | G129: ='ES Breakdown'!AL129 -> 0 | H129: ='ES Breakdown'!AM129 -> 0 | M129: 0 | O129: 1 | P129: 18 | Q129: 7
C130: B | D130: =IFERROR(INDEX(Settings!$Y$4:$Y$260,MATCH(E130,Settings!$Z$4:$Z$260,0),1),"") ->  | E130: =IFERROR(INDEX(Settings!$Z$4:$Z$260,MATCH(1,(Settings!$T$4:$T$260=O130)*(Settings!$U$4:$U$260=P130)*(Settings!$V$4:$V$260=Q130),0),1),"") ->  | F130: ='ES Breakdown'!AK130 -> 0 | G130: ='ES Breakdown'!AL130 -> 0 | H130: ='ES Breakdown'!AM130 -> 0 | M130: 0 | O130: 1 | P130: 18 | Q130: 8
C131: B | D131: =IFERROR(INDEX(Settings!$Y$4:$Y$260,MATCH(E131,Settings!$Z$4:$Z$260,0),1),"") ->  | E131: =IFERROR(INDEX(Settings!$Z$4:$Z$260,MATCH(1,(Settings!$T$4:$T$260=O131)*(Settings!$U$4:$U$260=P131)*(Settings!$V$4:$V$260=Q131),0),1),"") ->  | F131: ='ES Breakdown'!AK131 -> 0 | G131: ='ES Breakdown'!AL131 -> 0 | H131: ='ES Breakdown'!AM131 -> 0 | M131: 0 | O131: 1 | P131: 18 | Q131: 9
C132: B | D132: =IFERROR(INDEX(Settings!$Y$4:$Y$260,MATCH(E132,Settings!$Z$4:$Z$260,0),1),"") ->  | E132: =IFERROR(INDEX(Settings!$Z$4:$Z$260,MATCH(1,(Settings!$T$4:$T$260=O132)*(Settings!$U$4:$U$260=P132)*(Settings!$V$4:$V$260=Q132),0),1),"") ->  | F132: ='ES Breakdown'!AK132 -> 0 | G132: ='ES Breakdown'!AL132 -> 0 | H132: ='ES Breakdown'!AM132 -> 0 | M132: 0 | O132: 1 | P132: 18 | Q132: 10
C133: C | D133: =IFERROR(INDEX(Settings!$Y$4:$Y$260,MATCH(E133,Settings!$Z$4:$Z$260,0),1),"") ->  | E133: =IFERROR(INDEX(Settings!$Z$4:$Z$260,MATCH(1,(Settings!$T$4:$T$260=O133)*(Settings!$U$4:$U$260=P133)*(Settings!$V$4:$V$260=Q133),0),1),"") ->  | F133: ='ES Breakdown'!AK133 -> 0 | G133: ='ES Breakdown'!AL133 -> 0 | H133: ='ES Breakdown'!AM133 -> 0 | M133: 0 | O133: 1 | P133: 19 | Q133: 1
C134: =IF(LEN(E133)<1,"","Total: " & LEFT(E133,LEN(E133)-21) & "Municipalities") ->  | F134: =SUM(F123:F133) -> 0 | G134: =SUM(G123:G133) -> 0 | H134: =SUM(H123:H133) -> 0 | M134: =IF(SUM(M123:M133)=0,0,1) -> 0
M135: =IF(M134=0,0,1) -> 0
C136: B | D136: =IFERROR(INDEX(Settings!$Y$4:$Y$260,MATCH(E136,Settings!$Z$4:$Z$260,0),1),"") ->  | E136: =IFERROR(INDEX(Settings!$Z$4:$Z$260,MATCH(1,(Settings!$T$4:$T$260=O136)*(Settings!$U$4:$U$260=P136)*(Settings!$V$4:$V$260=Q136),0),1),"") ->  | F136: ='ES Breakdown'!AK136 -> 0 | G136: ='ES Breakdown'!AL136 -> 0 | H136: ='ES Breakdown'!AM136 -> 0 | M136: =IF(LEN(E136)<2,0,1) -> 0 | O136: 1 | P136: 20 | Q136: 1
C137: B | D137: =IFERROR(INDEX(Settings!$Y$4:$Y$260,MATCH(E137,Settings!$Z$4:$Z$260,0),1),"") ->  | E137: =IFERROR(INDEX(Settings!$Z$4:$Z$260,MATCH(1,(Settings!$T$4:$T$260=O137)*(Settings!$U$4:$U$260=P137)*(Settings!$V$4:$V$260=Q137),0),1),"") ->  | F137: ='ES Breakdown'!AK137 -> 0 | G137: ='ES Breakdown'!AL137 -> 0 | H137: ='ES Breakdown'!AM137 -> 0 | M137: =IF(LEN(E137)<2,0,1) -> 0 | O137: 1 | P137: 20 | Q137: =IF(P137=P136,Q136+1,1) -> 2
C138: B | D138: =IFERROR(INDEX(Settings!$Y$4:$Y$260,MATCH(E138,Settings!$Z$4:$Z$260,0),1),"") ->  | E138: =IFERROR(INDEX(Settings!$Z$4:$Z$260,MATCH(1,(Settings!$T$4:$T$260=O138)*(Settings!$U$4:$U$260=P138)*(Settings!$V$4:$V$260=Q138),0),1),"") ->  | F138: ='ES Breakdown'!AK138 -> 0 | G138: ='ES Breakdown'!AL138 -> 0 | H138: ='ES Breakdown'!AM138 -> 0 | M138: 0 | O138: 1 | P138: 20 | Q138: =IF(P138=P137,Q137+1,1) -> 3
C139: B | D139: =IFERROR(INDEX(Settings!$Y$4:$Y$260,MATCH(E139,Settings!$Z$4:$Z$260,0),1),"") ->  | E139: =IFERROR(INDEX(Settings!$Z$4:$Z$260,MATCH(1,(Settings!$T$4:$T$260=O139)*(Settings!$U$4:$U$260=P139)*(Settings!$V$4:$V$260=Q139),0),1),"") ->  | F139: ='ES Breakdown'!AK139 -> 0 | G139: ='ES Breakdown'!AL139 -> 0 | H139: ='ES Breakdown'!AM139 -> 0 | M139: 0 | O139: 1 | P139: 20 | Q139: 4
C140: B | D140: =IFERROR(INDEX(Settings!$Y$4:$Y$260,MATCH(E140,Settings!$Z$4:$Z$260,0),1),"") ->  | E140: =IFERROR(INDEX(Settings!$Z$4:$Z$260,MATCH(1,(Settings!$T$4:$T$260=O140)*(Settings!$U$4:$U$260=P140)*(Settings!$V$4:$V$260=Q140),0),1),"") ->  | F140: ='ES Breakdown'!AK140 -> 0 | G140: ='ES Breakdown'!AL140 -> 0 | H140: ='ES Breakdown'!AM140 -> 0 | M140: 0 | O140: 1 | P140: 20 | Q140: 5
C141: B | D141: =IFERROR(INDEX(Settings!$Y$4:$Y$260,MATCH(E141,Settings!$Z$4:$Z$260,0),1),"") ->  | E141: =IFERROR(INDEX(Settings!$Z$4:$Z$260,MATCH(1,(Settings!$T$4:$T$260=O141)*(Settings!$U$4:$U$260=P141)*(Settings!$V$4:$V$260=Q141),0),1),"") ->  | F141: ='ES Breakdown'!AK141 -> 0 | G141: ='ES Breakdown'!AL141 -> 0 | H141: ='ES Breakdown'!AM141 -> 0 | M141: 0 | O141: 1 | P141: 20 | Q141: 6
C142: B | D142: =IFERROR(INDEX(Settings!$Y$4:$Y$260,MATCH(E142,Settings!$Z$4:$Z$260,0),1),"") ->  | E142: =IFERROR(INDEX(Settings!$Z$4:$Z$260,MATCH(1,(Settings!$T$4:$T$260=O142)*(Settings!$U$4:$U$260=P142)*(Settings!$V$4:$V$260=Q142),0),1),"") ->  | F142: ='ES Breakdown'!AK142 -> 0 | G142: ='ES Breakdown'!AL142 -> 0 | H142: ='ES Breakdown'!AM142 -> 0 | M142: 0 | O142: 1 | P142: 20 | Q142: 7
C143: B | D143: =IFERROR(INDEX(Settings!$Y$4:$Y$260,MATCH(E143,Settings!$Z$4:$Z$260,0),1),"") ->  | E143: =IFERROR(INDEX(Settings!$Z$4:$Z$260,MATCH(1,(Settings!$T$4:$T$260=O143)*(Settings!$U$4:$U$260=P143)*(Settings!$V$4:$V$260=Q143),0),1),"") ->  | F143: ='ES Breakdown'!AK143 -> 0 | G143: ='ES Breakdown'!AL143 -> 0 | H143: ='ES Breakdown'!AM143 -> 0 | M143: 0 | O143: 1 | P143: 20 | Q143: 8
C144: B | D144: =IFERROR(INDEX(Settings!$Y$4:$Y$260,MATCH(E144,Settings!$Z$4:$Z$260,0),1),"") ->  | E144: =IFERROR(INDEX(Settings!$Z$4:$Z$260,MATCH(1,(Settings!$T$4:$T$260=O144)*(Settings!$U$4:$U$260=P144)*(Settings!$V$4:$V$260=Q144),0),1),"") ->  | F144: ='ES Breakdown'!AK144 -> 0 | G144: ='ES Breakdown'!AL144 -> 0 | H144: ='ES Breakdown'!AM144 -> 0 | M144: 0 | O144: 1 | P144: 20 | Q144: 9
C145: B | D145: =IFERROR(INDEX(Settings!$Y$4:$Y$260,MATCH(E145,Settings!$Z$4:$Z$260,0),1),"") ->  | E145: =IFERROR(INDEX(Settings!$Z$4:$Z$260,MATCH(1,(Settings!$T$4:$T$260=O145)*(Settings!$U$4:$U$260=P145)*(Settings!$V$4:$V$260=Q145),0),1),"") ->  | F145: ='ES Breakdown'!AK145 -> 0 | G145: ='ES Breakdown'!AL145 -> 0 | H145: ='ES Breakdown'!AM145 -> 0 | M145: 0 | O145: 1 | P145: 20 | Q145: 10
C146: C | D146: =IFERROR(INDEX(Settings!$Y$4:$Y$260,MATCH(E146,Settings!$Z$4:$Z$260,0),1),"") ->  | E146: =IFERROR(INDEX(Settings!$Z$4:$Z$260,MATCH(1,(Settings!$T$4:$T$260=O146)*(Settings!$U$4:$U$260=P146)*(Settings!$V$4:$V$260=Q146),0),1),"") ->  | F146: ='ES Breakdown'!AK146 -> 0 | G146: ='ES Breakdown'!AL146 -> 0 | H146: ='ES Breakdown'!AM146 -> 0 | M146: 0 | O146: 1 | P146: 21 | Q146: 1
C147: =IF(LEN(E146)<1,"","Total: " & LEFT(E146,LEN(E146)-21) & "Municipalities") ->  | F147: =SUM(F136:F146) -> 0 | G147: =SUM(G136:G146) -> 0 | H147: =SUM(H136:H146) -> 0 | M147: =IF(SUM(M136:M146)=0,0,1) -> 0
M148: 0
C149: Total: Eastern Cape Municipalities | F149: =F12+F13+F14+F15+F16+F30+F43+F56+F69+F82+F95+F108+F121+F134+F147 -> 10297924 | G149: =G12+G13+G14+G15+G16+G30+G43+G56+G69+G82+G95+G108+G121+G134+G147 -> 1566439 | H149: =H12+H13+H14+H15+H16+H30+H43+H56+H69+H82+H95+H108+H121+H134+H147 -> 11864363 | M149: 1
M150: 1
C151: FREE STATE | M151: 1
C152: 0 | M152: 1
C153: A | D153: =IFERROR(INDEX(Settings!$Y$4:$Y$260,MATCH(E153,Settings!$Z$4:$Z$260,0),1),"") -> MAN | E153: =IFERROR(INDEX(Settings!$Z$4:$Z$260,MATCH(1,(Settings!$T$4:$T$260=O153)*(Settings!$U$4:$U$260=P153)*(Settings!$V$4:$V$260=Q153),0),1),"") -> Mangaung | F153: ='ES Breakdown'!AK153 -> 800260 | G153: 111265 | H153: =F153+G153 -> 911525 | M153: =IF(LEN(E153)<2,0,1) -> 1 | O153: 2 | P153: 1 | Q153: 1
C154: A | D154: =IFERROR(INDEX(Settings!$Y$4:$Y$260,MATCH(E154,Settings!$Z$4:$Z$260,0),1),"") ->  | E154: =IFERROR(INDEX(Settings!$Z$4:$Z$260,MATCH(1,(Settings!$T$4:$T$260=O154)*(Settings!$U$4:$U$260=P154)*(Settings!$V$4:$V$260=Q154),0),1),"") ->  | F154: ='ES Breakdown'!AK154 -> 0 | G154: ='ES Breakdown'!AL154 -> 0 | H154: ='ES Breakdown'!AM154 -> 0 | M154: =IF(LEN(E154)<2,0,1) -> 0 | O154: 2 | P154: 1 | Q154: =IF(P154=P153,Q153+1,1) -> 2
C155: A | D155: =IFERROR(INDEX(Settings!$Y$4:$Y$260,MATCH(E155,Settings!$Z$4:$Z$260,0),1),"") ->  | E155: =IFERROR(INDEX(Settings!$Z$4:$Z$260,MATCH(1,(Settings!$T$4:$T$260=O155)*(Settings!$U$4:$U$260=P155)*(Settings!$V$4:$V$260=Q155),0),1),"") ->  | F155: ='ES Breakdown'!AK155 -> 0 | G155: ='ES Breakdown'!AL155 -> 0 | H155: ='ES Breakdown'!AM155 -> 0 | M155: =IF(LEN(E155)<2,0,1) -> 0 | O155: 2 | P155: 1 | Q155: =IF(P155=P154,Q154+1,1) -> 3
C156: A | D156: =IFERROR(INDEX(Settings!$Y$4:$Y$260,MATCH(E156,Settings!$Z$4:$Z$260,0),1),"") ->  | E156: =IFERROR(INDEX(Settings!$Z$4:$Z$260,MATCH(1,(Settings!$T$4:$T$260=O156)*(Settings!$U$4:$U$260=P156)*(Settings!$V$4:$V$260=Q156),0),1),"") ->  | F156: ='ES Breakdown'!AK156 -> 0 | G156: ='ES Breakdown'!AL156 -> 0 | H156: ='ES Breakdown'!AM156 -> 0 | M156: =IF(LEN(E156)<2,0,1) -> 0 | O156: 2 | P156: 1 | Q156: =IF(P156=P155,Q155+1,1) -> 4
C157: A | D157: =IFERROR(INDEX(Settings!$Y$4:$Y$260,MATCH(E157,Settings!$Z$4:$Z$260,0),1),"") ->  | E157: =IFERROR(INDEX(Settings!$Z$4:$Z$260,MATCH(1,(Settings!$T$4:$T$260=O157)*(Settings!$U$4:$U$260=P157)*(Settings!$V$4:$V$260=Q157),0),1),"") ->  | F157: ='ES Breakdown'!AK157 -> 0 | G157: ='ES Breakdown'!AL157 -> 0 | H157: ='ES Breakdown'!AM157 -> 0 | M157: =IF(LEN(E157)<2,0,1) -> 0 | O157: 2 | P157: 1 | Q157: =IF(P157=P156,Q156+1,1) -> 5
M158: =IF(SUM(M153:M157)=0,0,1) -> 1
M159: =IF(M158=0,0,1) -> 1
C160: B | D160: =IFERROR(INDEX(Settings!$Y$4:$Y$260,MATCH(E160,Settings!$Z$4:$Z$260,0),1),"") -> FS161 | E160: =IFERROR(INDEX(Settings!$Z$4:$Z$260,MATCH(1,(Settings!$T$4:$T$260=O160)*(Settings!$U$4:$U$260=P160)*(Settings!$V$4:$V$260=Q160),0),1),"") -> Letsemeng | F160: ='ES Breakdown'!AK160 -> 68088 | G160: 10785 | H160: =F160+G160 -> 78873 | M160: =IF(LEN(E160)<2,0,1) -> 1 | O160: 2 | P160: 2 | Q160: 1
C161: B | D161: =IFERROR(INDEX(Settings!$Y$4:$Y$260,MATCH(E161,Settings!$Z$4:$Z$260,0),1),"") -> FS162 | E161: =IFERROR(INDEX(Settings!$Z$4:$Z$260,MATCH(1,(Settings!$T$4:$T$260=O161)*(Settings!$U$4:$U$260=P161)*(Settings!$V$4:$V$260=Q161),0),1),"") -> Kopanong | F161: ='ES Breakdown'!AK161 -> 90615 | G161: 14480 | H161: 105095 | M161: =IF(LEN(E161)<2,0,1) -> 1 | O161: 2 | P161: 2 | Q161: =IF(P161=P160,Q160+1,1) -> 2
C162: B | D162: =IFERROR(INDEX(Settings!$Y$4:$Y$260,MATCH(E162,Settings!$Z$4:$Z$260,0),1),"") -> FS163 | E162: =IFERROR(INDEX(Settings!$Z$4:$Z$260,MATCH(1,(Settings!$T$4:$T$260=O162)*(Settings!$U$4:$U$260=P162)*(Settings!$V$4:$V$260=Q162),0),1),"") -> Mohokare | F162: ='ES Breakdown'!AK162 -> 73785 | G162: 11867 | H162: 85652 | M162: 1 | O162: 2 | P162: 2 | Q162: =IF(P162=P161,Q161+1,1) -> 3
C163: B | D163: =IFERROR(INDEX(Settings!$Y$4:$Y$260,MATCH(E163,Settings!$Z$4:$Z$260,0),1),"") ->  | E163: =IFERROR(INDEX(Settings!$Z$4:$Z$260,MATCH(1,(Settings!$T$4:$T$260=O163)*(Settings!$U$4:$U$260=P163)*(Settings!$V$4:$V$260=Q163),0),1),"") ->  | F163: ='ES Breakdown'!AK163 -> 0 | G163: ='ES Breakdown'!AL163 -> 0 | H163: 0 | M163: 0 | O163: 2 | P163: 2 | Q163: 4
C164: B | D164: =IFERROR(INDEX(Settings!$Y$4:$Y$260,MATCH(E164,Settings!$Z$4:$Z$260,0),1),"") ->  | E164: =IFERROR(INDEX(Settings!$Z$4:$Z$260,MATCH(1,(Settings!$T$4:$T$260=O164)*(Settings!$U$4:$U$260=P164)*(Settings!$V$4:$V$260=Q164),0),1),"") ->  | F164: ='ES Breakdown'!AK164 -> 0 | G164: ='ES Breakdown'!AL164 -> 0 | H164: 0 | M164: 0 | O164: 2 | P164: 2 | Q164: 5
C165: B | D165: =IFERROR(INDEX(Settings!$Y$4:$Y$260,MATCH(E165,Settings!$Z$4:$Z$260,0),1),"") ->  | E165: =IFERROR(INDEX(Settings!$Z$4:$Z$260,MATCH(1,(Settings!$T$4:$T$260=O165)*(Settings!$U$4:$U$260=P165)*(Settings!$V$4:$V$260=Q165),0),1),"") ->  | F165: ='ES Breakdown'!AK165 -> 0 | G165: ='ES Breakdown'!AL165 -> 0 | H165: 0 | M165: 0 | O165: 2 | P165: 2 | Q165: 6
C166: B | D166: =IFERROR(INDEX(Settings!$Y$4:$Y$260,MATCH(E166,Settings!$Z$4:$Z$260,0),1),"") ->  | E166: =IFERROR(INDEX(Settings!$Z$4:$Z$260,MATCH(1,(Settings!$T$4:$T$260=O166)*(Settings!$U$4:$U$260=P166)*(Settings!$V$4:$V$260=Q166),0),1),"") ->  | F166: ='ES Breakdown'!AK166 -> 0 | G166: ='ES Breakdown'!AL166 -> 0 | H166: 0 | M166: 0 | O166: 2 | P166: 2 | Q166: 7
C167: B | D167: =IFERROR(INDEX(Settings!$Y$4:$Y$260,MATCH(E167,Settings!$Z$4:$Z$260,0),1),"") ->  | E167: =IFERROR(INDEX(Settings!$Z$4:$Z$260,MATCH(1,(Settings!$T$4:$T$260=O167)*(Settings!$U$4:$U$260=P167)*(Settings!$V$4:$V$260=Q167),0),1),"") ->  | F167: ='ES Breakdown'!AK167 -> 0 | G167: ='ES Breakdown'!AL167 -> 0 | H167: 0 | M167: 0 | O167: 2 | P167: 2 | Q167: 8
C168: B | D168: =IFERROR(INDEX(Settings!$Y$4:$Y$260,MATCH(E168,Settings!$Z$4:$Z$260,0),1),"") ->  | E168: =IFERROR(INDEX(Settings!$Z$4:$Z$260,MATCH(1,(Settings!$T$4:$T$260=O168)*(Settings!$U$4:$U$260=P168)*(Settings!$V$4:$V$260=Q168),0),1),"") ->  | F168: ='ES Breakdown'!AK168 -> 0 | G168: ='ES Breakdown'!AL168 -> 0 | H168: 0 | M168: 0 | O168: 2 | P168: 2 | Q168: 9
C169: B | D169: =IFERROR(INDEX(Settings!$Y$4:$Y$260,MATCH(E169,Settings!$Z$4:$Z$260,0),1),"") ->  | E169: =IFERROR(INDEX(Settings!$Z$4:$Z$260,MATCH(1,(Settings!$T$4:$T$260=O169)*(Settings!$U$4:$U$260=P169)*(Settings!$V$4:$V$260=Q169),0),1),"") ->  | F169: ='ES Breakdown'!AK169 -> 0 | G169: ='ES Breakdown'!AL169 -> 0 | H169: 0 | M169: 0 | O169: 2 | P169: 2 | Q169: 10
C170: C | D170: =IFERROR(INDEX(Settings!$Y$4:$Y$260,MATCH(E170,Settings!$Z$4:$Z$260,0),1),"") -> DC16 | E170: =IFERROR(INDEX(Settings!$Z$4:$Z$260,MATCH(1,(Settings!$T$4:$T$260=O170)*(Settings!$U$4:$U$260=P170)*(Settings!$V$4:$V$260=Q170),0),1),"") -> Xhariep District Municipality | F170: ='ES Breakdown'!AK170 -> 45384 | G170: 1799 | H170: 47183 | M170: 1 | O170: 2 | P170: 3 | Q170: 1
C171: =IF(LEN(E170)<1,"","Total: " & LEFT(E170,LEN(E170)-21) & "Municipalities") -> Total: Xhariep Municipalities | F171: =SUM(F160:F170) -> 277872 | G171: =SUM(G160:G170) -> 38931 | H171: =SUM(H160:H170) -> 316803 | M171: =IF(SUM(M160:M170)=0,0,1) -> 1
M172: =IF(M171=0,0,1) -> 1
C173: B | D173: =IFERROR(INDEX(Settings!$Y$4:$Y$260,MATCH(E173,Settings!$Z$4:$Z$260,0),1),"") -> FS181 | E173: =IFERROR(INDEX(Settings!$Z$4:$Z$260,MATCH(1,(Settings!$T$4:$T$260=O173)*(Settings!$U$4:$U$260=P173)*(Settings!$V$4:$V$260=Q173),0),1),"") -> Masilonyana | F173: ='ES Breakdown'!AK173 -> 127950 | G173: 21474 | H173: =F173+G173 -> 149424 | M173: =IF(LEN(E173)<2,0,1) -> 1 | O173: 2 | P173: 4 | Q173: 1
C174: B | D174: =IFERROR(INDEX(Settings!$Y$4:$Y$260,MATCH(E174,Settings!$Z$4:$Z$260,0),1),"") -> FS182 | E174: =IFERROR(INDEX(Settings!$Z$4:$Z$260,MATCH(1,(Settings!$T$4:$T$260=O174)*(Settings!$U$4:$U$260=P174)*(Settings!$V$4:$V$260=Q174),0),1),"") -> Tokologo | F174: ='ES Breakdown'!AK174 -> 58153 | G174: 9267 | H174: 67420 | M174: =IF(LEN(E174)<2,0,1) -> 1 | O174: 2 | P174: 4 | Q174: =IF(P174=P173,Q173+1,1) -> 2
C175: B | D175: =IFERROR(INDEX(Settings!$Y$4:$Y$260,MATCH(E175,Settings!$Z$4:$Z$260,0),1),"") -> FS183 | E175: =IFERROR(INDEX(Settings!$Z$4:$Z$260,MATCH(1,(Settings!$T$4:$T$260=O175)*(Settings!$U$4:$U$260=P175)*(Settings!$V$4:$V$260=Q175),0),1),"") -> Tswelopele | F175: ='ES Breakdown'!AK175 -> 79046 | G175: 12407 | H175: 91453 | M175: 1 | O175: 2 | P175: 4 | Q175: =IF(P175=P174,Q174+1,1) -> 3
C176: B | D176: =IFERROR(INDEX(Settings!$Y$4:$Y$260,MATCH(E176,Settings!$Z$4:$Z$260,0),1),"") -> FS184 | E176: =IFERROR(INDEX(Settings!$Z$4:$Z$260,MATCH(1,(Settings!$T$4:$T$260=O176)*(Settings!$U$4:$U$260=P176)*(Settings!$V$4:$V$260=Q176),0),1),"") -> Matjhabeng | F176: ='ES Breakdown'!AK176 -> 543954 | G176: 86727 | H176: 630681 | M176: 1 | O176: 2 | P176: 4 | Q176: 4
C177: B | D177: =IFERROR(INDEX(Settings!$Y$4:$Y$260,MATCH(E177,Settings!$Z$4:$Z$260,0),1),"") -> FS185 | E177: =IFERROR(INDEX(Settings!$Z$4:$Z$260,MATCH(1,(Settings!$T$4:$T$260=O177)*(Settings!$U$4:$U$260=P177)*(Settings!$V$4:$V$260=Q177),0),1),"") -> Nala | F177: ='ES Breakdown'!AK177 -> 129393 | G177: 20809 | H177: 150202 | M177: 1 | O177: 2 | P177: 4 | Q177: 5
C178: B | D178: =IFERROR(INDEX(Settings!$Y$4:$Y$260,MATCH(E178,Settings!$Z$4:$Z$260,0),1),"") ->  | E178: =IFERROR(INDEX(Settings!$Z$4:$Z$260,MATCH(1,(Settings!$T$4:$T$260=O178)*(Settings!$U$4:$U$260=P178)*(Settings!$V$4:$V$260=Q178),0),1),"") ->  | F178: ='ES Breakdown'!AK178 -> 0 | G178: ='ES Breakdown'!AL178 -> 0 | H178: 0 | M178: 0 | O178: 2 | P178: 4 | Q178: 6
C179: B | D179: =IFERROR(INDEX(Settings!$Y$4:$Y$260,MATCH(E179,Settings!$Z$4:$Z$260,0),1),"") ->  | E179: =IFERROR(INDEX(Settings!$Z$4:$Z$260,MATCH(1,(Settings!$T$4:$T$260=O179)*(Settings!$U$4:$U$260=P179)*(Settings!$V$4:$V$260=Q179),0),1),"") ->  | F179: ='ES Breakdown'!AK179 -> 0 | G179: ='ES Breakdown'!AL179 -> 0 | H179: 0 | M179: 0 | O179: 2 | P179: 4 | Q179: 7
C180: B | D180: =IFERROR(INDEX(Settings!$Y$4:$Y$260,MATCH(E180,Settings!$Z$4:$Z$260,0),1),"") ->  | E180: =IFERROR(INDEX(Settings!$Z$4:$Z$260,MATCH(1,(Settings!$T$4:$T$260=O180)*(Settings!$U$4:$U$260=P180)*(Settings!$V$4:$V$260=Q180),0),1),"") ->  | F180: ='ES Breakdown'!AK180 -> 0 | G180: ='ES Breakdown'!AL180 -> 0 | H180: 0 | M180: 0 | O180: 2 | P180: 4 | Q180: 8
C181: B | D181: =IFERROR(INDEX(Settings!$Y$4:$Y$260,MATCH(E181,Settings!$Z$4:$Z$260,0),1),"") ->  | E181: =IFERROR(INDEX(Settings!$Z$4:$Z$260,MATCH(1,(Settings!$T$4:$T$260=O181)*(Settings!$U$4:$U$260=P181)*(Settings!$V$4:$V$260=Q181),0),1),"") ->  | F181: ='ES Breakdown'!AK181 -> 0 | G181: ='ES Breakdown'!AL181 -> 0 | H181: 0 | M181: 0 | O181: 2 | P181: 4 | Q181: 9
C182: B | D182: =IFERROR(INDEX(Settings!$Y$4:$Y$260,MATCH(E182,Settings!$Z$4:$Z$260,0),1),"") ->  | E182: =IFERROR(INDEX(Settings!$Z$4:$Z$260,MATCH(1,(Settings!$T$4:$T$260=O182)*(Settings!$U$4:$U$260=P182)*(Settings!$V$4:$V$260=Q182),0),1),"") ->  | F182: ='ES Breakdown'!AK182 -> 0 | G182: ='ES Breakdown'!AL182 -> 0 | H182: 0 | M182: 0 | O182: 2 | P182: 4 | Q182: 10
C183: C | D183: =IFERROR(INDEX(Settings!$Y$4:$Y$260,MATCH(E183,Settings!$Z$4:$Z$260,0),1),"") -> DC18 | E183: =IFERROR(INDEX(Settings!$Z$4:$Z$260,MATCH(1,(Settings!$T$4:$T$260=O183)*(Settings!$U$4:$U$260=P183)*(Settings!$V$4:$V$260=Q183),0),1),"") -> Lejweleputswa District Municipality | F183: ='ES Breakdown'!AK183 -> 133411 | G183: 6972 | H183: 140383 | M183: 1 | O183: 2 | P183: 5 | Q183: 1
C184: =IF(LEN(E183)<1,"","Total: " & LEFT(E183,LEN(E183)-21) & "Municipalities") -> Total: Lejweleputswa Municipalities | F184: =SUM(F173:F183) -> 1071907 | G184: =SUM(G173:G183) -> 157656 | H184: =SUM(H173:H183) -> 1229563 | M184: =IF(SUM(M173:M183)=0,0,1) -> 1
M185: =IF(M184=0,0,1) -> 1
C186: B | D186: =IFERROR(INDEX(Settings!$Y$4:$Y$260,MATCH(E186,Settings!$Z$4:$Z$260,0),1),"") -> FS191 | E186: =IFERROR(INDEX(Settings!$Z$4:$Z$260,MATCH(1,(Settings!$T$4:$T$260=O186)*(Settings!$U$4:$U$260=P186)*(Settings!$V$4:$V$260=Q186),0),1),"") -> Setsoto | F186: ='ES Breakdown'!AK186 -> 205715 | G186: 34095 | H186: =F186+G186 -> 239810 | M186: =IF(LEN(E186)<2,0,1) -> 1 | O186: 2 | P186: 6 | Q186: 1
C187: B | D187: =IFERROR(INDEX(Settings!$Y$4:$Y$260,MATCH(E187,Settings!$Z$4:$Z$260,0),1),"") -> FS192 | E187: =IFERROR(INDEX(Settings!$Z$4:$Z$260,MATCH(1,(Settings!$T$4:$T$260=O187)*(Settings!$U$4:$U$260=P187)*(Settings!$V$4:$V$260=Q187),0),1),"") -> Dihlabeng | F187: ='ES Breakdown'!AK187 -> 178773 | G187: 28620 | H187: 207393 | M187: =IF(LEN(E187)<2,0,1) -> 1 | O187: 2 | P187: 6 | Q187: =IF(P187=P186,Q186+1,1) -> 2
C188: B | D188: =IFERROR(INDEX(Settings!$Y$4:$Y$260,MATCH(E188,Settings!$Z$4:$Z$260,0),1),"") -> FS193 | E188: =IFERROR(INDEX(Settings!$Z$4:$Z$260,MATCH(1,(Settings!$T$4:$T$260=O188)*(Settings!$U$4:$U$260=P188)*(Settings!$V$4:$V$260=Q188),0),1),"") -> Nketoana | F188: ='ES Breakdown'!AK188 -> 104537 | G188: 16891 | H188: 121428 | M188: 1 | O188: 2 | P188: 6 | Q188: =IF(P188=P187,Q187+1,1) -> 3
C189: B | D189: =IFERROR(INDEX(Settings!$Y$4:$Y$260,MATCH(E189,Settings!$Z$4:$Z$260,0),1),"") -> FS194 | E189: =IFERROR(INDEX(Settings!$Z$4:$Z$260,MATCH(1,(Settings!$T$4:$T$260=O189)*(Settings!$U$4:$U$260=P189)*(Settings!$V$4:$V$260=Q189),0),1),"") -> Maluti-a-Phofung | F189: ='ES Breakdown'!AK189 -> 645037 | G189: 121611 | H189: 766648 | M189: 1 | O189: 2 | P189: 6 | Q189: 4
C190: B | D190: =IFERROR(INDEX(Settings!$Y$4:$Y$260,MATCH(E190,Settings!$Z$4:$Z$260,0),1),"") -> FS195 | E190: =IFERROR(INDEX(Settings!$Z$4:$Z$260,MATCH(1,(Settings!$T$4:$T$260=O190)*(Settings!$U$4:$U$260=P190)*(Settings!$V$4:$V$260=Q190),0),1),"") -> Phumelela | F190: ='ES Breakdown'!AK190 -> 80750 | G190: 12708 | H190: 93458 | M190: 1 | O190: 2 | P190: 6 | Q190: 5
C191: B | D191: =IFERROR(INDEX(Settings!$Y$4:$Y$260,MATCH(E191,Settings!$Z$4:$Z$260,0),1),"") -> FS196 | E191: =IFERROR(INDEX(Settings!$Z$4:$Z$260,MATCH(1,(Settings!$T$4:$T$260=O191)*(Settings!$U$4:$U$260=P191)*(Settings!$V$4:$V$260=Q191),0),1),"") -> Mantsopa | F191: ='ES Breakdown'!AK191 -> 88721 | G191: 14029 | H191: 102750 | M191: 1 | O191: 2 | P191: 6 | Q191: 6
C192: B | D192: =IFERROR(INDEX(Settings!$Y$4:$Y$260,MATCH(E192,Settings!$Z$4:$Z$260,0),1),"") ->  | E192: =IFERROR(INDEX(Settings!$Z$4:$Z$260,MATCH(1,(Settings!$T$4:$T$260=O192)*(Settings!$U$4:$U$260=P192)*(Settings!$V$4:$V$260=Q192),0),1),"") ->  | F192: ='ES Breakdown'!AK192 -> 0 | G192: ='ES Breakdown'!AL192 -> 0 | H192: 0 | M192: 0 | O192: 2 | P192: 6 | Q192: 7
C193: B | D193: =IFERROR(INDEX(Settings!$Y$4:$Y$260,MATCH(E193,Settings!$Z$4:$Z$260,0),1),"") ->  | E193: =IFERROR(INDEX(Settings!$Z$4:$Z$260,MATCH(1,(Settings!$T$4:$T$260=O193)*(Settings!$U$4:$U$260=P193)*(Settings!$V$4:$V$260=Q193),0),1),"") ->  | F193: ='ES Breakdown'!AK193 -> 0 | G193: ='ES Breakdown'!AL193 -> 0 | H193: 0 | M193: 0 | O193: 2 | P193: 6 | Q193: 8
C194: B | D194: =IFERROR(INDEX(Settings!$Y$4:$Y$260,MATCH(E194,Settings!$Z$4:$Z$260,0),1),"") ->  | E194: =IFERROR(INDEX(Settings!$Z$4:$Z$260,MATCH(1,(Settings!$T$4:$T$260=O194)*(Settings!$U$4:$U$260=P194)*(Settings!$V$4:$V$260=Q194),0),1),"") ->  | F194: ='ES Breakdown'!AK194 -> 0 | G194: ='ES Breakdown'!AL194 -> 0 | H194: 0 | M194: 0 | O194: 2 | P194: 6 | Q194: 9
C195: B | D195: =IFERROR(INDEX(Settings!$Y$4:$Y$260,MATCH(E195,Settings!$Z$4:$Z$260,0),1),"") ->  | E195: =IFERROR(INDEX(Settings!$Z$4:$Z$260,MATCH(1,(Settings!$T$4:$T$260=O195)*(Settings!$U$4:$U$260=P195)*(Settings!$V$4:$V$260=Q195),0),1),"") ->  | F195: ='ES Breakdown'!AK195 -> 0 | G195: ='ES Breakdown'!AL195 -> 0 | H195: 0 | M195: 0 | O195: 2 | P195: 6 | Q195: 10
C196: C | D196: =IFERROR(INDEX(Settings!$Y$4:$Y$260,MATCH(E196,Settings!$Z$4:$Z$260,0),1),"") -> DC19 | E196: =IFERROR(INDEX(Settings!$Z$4:$Z$260,MATCH(1,(Settings!$T$4:$T$260=O196)*(Settings!$U$4:$U$260=P196)*(Settings!$V$4:$V$260=Q196),0),1),"") -> Thabo Mofutsanyana District Municipality | F196: ='ES Breakdown'!AK196 -> 121089 | G196: 10213 | H196: 131302 | M196: 1 | O196: 2 | P196: 7 | Q196: 1
C197: =IF(LEN(E196)<1,"","Total: " & LEFT(E196,LEN(E196)-21) & "Municipalities") -> Total: Thabo Mofutsanyana Municipalities | F197: =SUM(F186:F196) -> 1424622 | G197: =SUM(G186:G196) -> 238167 | H197: =SUM(H186:H196) -> 1662789 | M197: =IF(SUM(M186:M196)=0,0,1) -> 1
M198: =IF(M197=0,0,1) -> 1
C199: B | D199: =IFERROR(INDEX(Settings!$Y$4:$Y$260,MATCH(E199,Settings!$Z$4:$Z$260,0),1),"") -> FS201 | E199: =IFERROR(INDEX(Settings!$Z$4:$Z$260,MATCH(1,(Settings!$T$4:$T$260=O199)*(Settings!$U$4:$U$260=P199)*(Settings!$V$4:$V$260=Q199),0),1),"") -> Moqhaka | F199: ='ES Breakdown'!AK199 -> 222134 | G199: 36708 | H199: =F199+G199 -> 258842 | M199: =IF(LEN(E199)<2,0,1) -> 1 | O199: 2 | P199: 8 | Q199: 1
C200: B | D200: =IFERROR(INDEX(Settings!$Y$4:$Y$260,MATCH(E200,Settings!$Z$4:$Z$260,0),1),"") -> FS203 | E200: =IFERROR(INDEX(Settings!$Z$4:$Z$260,MATCH(1,(Settings!$T$4:$T$260=O200)*(Settings!$U$4:$U$260=P200)*(Settings!$V$4:$V$260=Q200),0),1),"") -> Ngwathe | F200: ='ES Breakdown'!AK200 -> 208102 | G200: 35581 | H200: 243683 | M200: =IF(LEN(E200)<2,0,1) -> 1 | O200: 2 | P200: 8 | Q200: =IF(P200=P199,Q199+1,1) -> 2
C201: B | D201: =IFERROR(INDEX(Settings!$Y$4:$Y$260,MATCH(E201,Settings!$Z$4:$Z$260,0),1),"") -> FS204 | E201: =IFERROR(INDEX(Settings!$Z$4:$Z$260,MATCH(1,(Settings!$T$4:$T$260=O201)*(Settings!$U$4:$U$260=P201)*(Settings!$V$4:$V$260=Q201),0),1),"") -> Metsimaholo | F201: ='ES Breakdown'!AK201 -> 202505 | G201: 31224 | H201: 233729 | M201: 1 | O201: 2 | P201: 8 | Q201: =IF(P201=P200,Q200+1,1) -> 3
C202: B | D202: =IFERROR(INDEX(Settings!$Y$4:$Y$260,MATCH(E202,Settings!$Z$4:$Z$260,0),1),"") -> FS205 | E202: =IFERROR(INDEX(Settings!$Z$4:$Z$260,MATCH(1,(Settings!$T$4:$T$260=O202)*(Settings!$U$4:$U$260=P202)*(Settings!$V$4:$V$260=Q202),0),1),"") -> Mafube | F202: ='ES Breakdown'!AK202 -> 103074 | G202: 16833 | H202: 119907 | M202: 1 | O202: 2 | P202: 8 | Q202: 4
... 1083 more rows

Sheet Schedule 4A
C1: SCHEDULE 4, PART A | S1: =K19-P1 -> 0
C3: ALLOCATIONS TO PROVINCES TO SUPPLEMENT THE FUNDING OF PROGRAMMES OR FUNCTIONS FUNDED FROM PROVINCIAL BUDGETS
C5: Vote | D5: Name of allocation | E5: Purpose | F5: Type of allocation | G5: Province | H5: Column A
H6: 2020/21 Main Allocation | I6: Adjustment | J6: 2020/21 Adjusted Allocation
T7: Tabled | U7: Score sheet | V7: Check | W7: Adjusted allocation | X7: Check
H8: R'000 | I8: R'000 | J8: R'000 | M8: Filter | N8: PageBreak | O8: Grants
A9: 1 | C9: =IFERROR(INDEX(Settings!$AE$4:$BF$200,MATCH($A9,Settings!$AK$4:$AK$200,0),2),"") & CHAR(10) & IFERROR("(Vote " & INDEX(Settings!$AE$4:$BF$200,MATCH($A9,Settings!$AK$4:$AK$200,0),3) & ")","") -> Basic Education (Vote 16) | D9: =IF(S9=1,CONCATENATE("(" & $R9& ") ",IFERROR(INDEX(Settings!$AE$4:$BF$200,MATCH($A9,Settings!$AK$4:$AK$200,0),1),"")),IFERROR(INDEX(Settings!$AE$4:$BF$200,MATCH($A9,Settings!$AK$4:$AK$200,0),1),"")) -> Education Infrastructure Grant | E9: =TRIM(IFERROR(INDEX(Settings!$AE$4:$BF$200,MATCH($O9,Settings!$AV$4:$AV$200,0),24),""))&"." -> To help accelerate construction, maintenance, upgrading and rehabilitation of new and existing infrastructure in education including district and circuit accommodation; to enhance capacity to deliver infrastructure in education; to address damages to infrastructure; to address achievement of the targets set out in the minimum norms and standards for school infrastructure. | F9: =IFERROR(INDEX(Settings!$AE$4:$BF$200,MATCH($A9,Settings!$AK$4:$AK$200,0),11),"") -> General conditional allocation to provinces | G9: Eastern Cape | H9: =INDEX(EC!$D$15:$G$375,MATCH($O9,EC!$D$15:$D$375,0),2) -> 1544114 | I9: -377399 | J9: =H9+I9 -> 1166715 | M9: =IF(LEN(D9)>2,1,0) -> 1 | O9: =IFERROR(INDEX(Settings!$AE$4:$BF$200,MATCH($A9,Settings!$AK$4:$AK$200,0),1),"") -> Education Infrastructure Grant | Q9: 1 | R9: =IFERROR(LOWER(RIGHT(LEFT(ADDRESS(1,Q9),2))),"") -> a | S9: =IF(Q9>1,1,IF(Q20>1,1,0)) -> 0 | T9: TRUE
E10: =IFERROR(INDEX(Settings!$AE$4:$BF$200,MATCH($A10,Settings!$AK$4:$AK$200,0),1),"") -> Comprehensive Agricultural Support Programme Grant | G10: Free State | H10: =INDEX(FS!$D$15:$G$375,MATCH($O9,FS!$D$15:$D$375,0),2) -> 840429 | I10: -140163 | J10: =H10+I10 -> 700266 | M10: =M9 -> 1 | T10: TRUE
E11: =IFERROR(INDEX(Settings!$AE$4:$BF$200,MATCH($A11,Settings!$AK$4:$AK$200,0),1),"") -> Comprehensive Agricultural Support Programme Grant | G11: Gauteng | H11: =INDEX(GT!$D$15:$G$375,MATCH($O9,GT!$D$15:$D$375,0),2) -> 1497757 | I11: -223137 | J11: 1274620 | M11: =M10 -> 1 | T11: TRUE
E12: =IFERROR(INDEX(Settings!$AE$4:$BF$200,MATCH($A12,Settings!$AK$4:$AK$200,0),1),"") -> Comprehensive Agricultural Support Programme Grant | G12: KwaZulu-Natal | H12: =INDEX(KZN!$D$15:$G$375,MATCH($O9,KZN!$D$15:$D$375,0),2) -> 1996182 | I12: -497218 | J12: 1498964 | M12: 1 | T12: TRUE
E13: =IFERROR(INDEX(Settings!$AE$4:$BF$200,MATCH($A13,Settings!$AK$4:$AK$200,0),1),"") -> Comprehensive Agricultural Support Programme Grant | G13: Limpopo | H13: =INDEX(LIM!$D$15:$G$375,MATCH($O9,LIM!$D$15:$D$375,0),2) -> 1256364 | I13: -280321 | J13: 976043 | M13: 1 | T13: TRUE
E14: =IFERROR(INDEX(Settings!$AE$4:$BF$200,MATCH($A14,Settings!$AK$4:$AK$200,0),1),"") -> Comprehensive Agricultural Support Programme Grant | G14: Mpumalanga | H14: =INDEX(MPU!$D$15:$G$375,MATCH($O9,MPU!$D$15:$D$375,0),2) -> 1094681 | I14: -263992 | J14: 830689 | M14: 1 | T14: TRUE
E15: =IFERROR(INDEX(Settings!$AE$4:$BF$200,MATCH($A15,Settings!$AK$4:$AK$200,0),1),"") -> Comprehensive Agricultural Support Programme Grant | G15: Northern Cape | H15: =INDEX(NC!$D$15:$G$375,MATCH($O9,NC!$D$15:$D$375,0),2) -> 597268 | I15: -82069 | J15: 515199 | M15: 1 | T15: TRUE
E16: =IFERROR(INDEX(Settings!$AE$4:$BF$200,MATCH($A16,Settings!$AK$4:$AK$200,0),1),"") -> Comprehensive Agricultural Support Programme Grant | G16: North West | H16: =INDEX(NW!$D$15:$G$375,MATCH($O9,NW!$D$15:$D$375,0),2) -> 1090010 | I16: -197260 | J16: 892750 | M16: 1 | T16: TRUE
E17: =IFERROR(INDEX(Settings!$AE$4:$BF$200,MATCH($A17,Settings!$AK$4:$AK$200,0),1),"") -> Comprehensive Agricultural Support Programme Grant | G17: Western Cape | H17: =INDEX(WC!$D$15:$G$375,MATCH($O9,WC!$D$15:$D$375,0),2) -> 1091162 | I17: -159441 | J17: 931721 | M17: =M16 -> 1 | T17: TRUE
E18: =IFERROR(INDEX(Settings!$AE$4:$BF$200,MATCH($A18,Settings!$AK$4:$AK$200,0),1),"") -> Comprehensive Agricultural Support Programme Grant | G18: Unallocated | H18: =INDEX(Unallocated!$D$15:$G$375,MATCH($O9,Unallocated!$D$15:$D$375,0),2) -> 0 | I18: 0 | J18: 0 | M18: =M17 -> 1 | T18: TRUE
E19: =IFERROR(INDEX(Settings!$AE$4:$BF$200,MATCH($A19,Settings!$AK$4:$AK$200,0),1),"") -> Comprehensive Agricultural Support Programme Grant | G19: TOTAL | H19: =SUM(H9:H18) -> 11007967 | I19: =SUM(I9:I18) -> -2221000 | J19: =SUM(J9:J18) -> 8786967 | M19: =M9 -> 1 | T19: TRUE | U19: -2221000 | V19: =I19=U19 -> TRUE | W19: =SUM(H19:I19) -> 8786967 | X19: =J19=W19 -> TRUE
A20: 2 | C20: =IFERROR(INDEX(Settings!$AE$4:$BF$200,MATCH($A20,Settings!$AK$4:$AK$200,0),2),"") & CHAR(10) & IFERROR("(Vote " & INDEX(Settings!$AE$4:$BF$200,MATCH($A20,Settings!$AK$4:$AK$200,0),3) & ")","") -> Health (Vote 18) | D20: =IF(S20=1,CONCATENATE("(" & $R20& ") ",IFERROR(INDEX(Settings!$AE$4:$BF$200,MATCH($A20,Settings!$AK$4:$AK$200,0),1),"")),IFERROR(INDEX(Settings!$AE$4:$BF$200,MATCH($A20,Settings!$AK$4:$AK$200,0),1),"")) -> National Tertiary Services Grant | E20: =TRIM(IFERROR(INDEX(Settings!$AE$4:$BF$200,MATCH($O20,Settings!$AV$4:$AV$200,0),24),""))&"." -> Ensure the provision of tertiary health services in South Africa; to compensate tertiary facilities for the additional costs associated with the provision of these services. | F20: =IFERROR(INDEX(Settings!$AE$4:$BF$200,MATCH($A20,Settings!$AK$4:$AK$200,0),11),"") -> General conditional allocation to provinces | G20: Eastern Cape | H20: =INDEX(EC!$D$15:$G$375,MATCH($O20,EC!$D$15:$D$375,0),2) -> 1080846 | I20: 0 | J20: =H20+I20 -> 1080846 | M20: =IF(LEN(D20)>2,1,0) -> 1 | O20: =IFERROR(INDEX(Settings!$AE$4:$BF$200,MATCH($A20,Settings!$AK$4:$AK$200,0),1),"") -> National Tertiary Services Grant | Q20: =IF(LEN(C20)<2,0,IF(C20=C9,Q9+1,1)) -> 1 | R20: =IFERROR(LOWER(RIGHT(LEFT(ADDRESS(1,Q20),2))),"") -> a | S20: =IF(Q20>1,1,IF(Q31>1,1,0)) -> 0 | T20: TRUE
E21: =IFERROR(INDEX(Settings!$AE$4:$BF$200,MATCH($A21,Settings!$AK$4:$AK$200,0),1),"") -> Comprehensive Agricultural Support Programme Grant | G21: Free State | H21: =INDEX(FS!$D$15:$G$375,MATCH($O20,FS!$D$15:$D$375,0),2) -> 1209781 | I21: 0 | J21: 1209781 | M21: =M20 -> 1 | T21: TRUE
E22: =IFERROR(INDEX(Settings!$AE$4:$BF$200,MATCH($A22,Settings!$AK$4:$AK$200,0),1),"") -> Comprehensive Agricultural Support Programme Grant | G22: Gauteng | H22: =INDEX(GT!$D$15:$G$375,MATCH($O20,GT!$D$15:$D$375,0),2) -> 5025579 | I22: 0 | J22: 5025579 | M22: 1 | T22: TRUE
E23: =IFERROR(INDEX(Settings!$AE$4:$BF$200,MATCH($A23,Settings!$AK$4:$AK$200,0),1),"") -> Comprehensive Agricultural Support Programme Grant | G23: KwaZulu-Natal | H23: =INDEX(KZN!$D$15:$G$375,MATCH($O20,KZN!$D$15:$D$375,0),2) -> 2015775 | I23: 0 | J23: 2015775 | M23: 1 | T23: TRUE
E24: =IFERROR(INDEX(Settings!$AE$4:$BF$200,MATCH($A24,Settings!$AK$4:$AK$200,0),1),"") -> Comprehensive Agricultural Support Programme Grant | G24: Limpopo | H24: =INDEX(LIM!$D$15:$G$375,MATCH($O20,LIM!$D$15:$D$375,0),2) -> 445200 | I24: 0 | J24: 445200 | M24: 1 | T24: TRUE
E25: =IFERROR(INDEX(Settings!$AE$4:$BF$200,MATCH($A25,Settings!$AK$4:$AK$200,0),1),"") -> Comprehensive Agricultural Support Programme Grant | G25: Mpumalanga | H25: =INDEX(MPU!$D$15:$G$375,MATCH($O20,MPU!$D$15:$D$375,0),2) -> 135793 | I25: 0 | J25: 135793 | M25: 1 | T25: TRUE
E26: =IFERROR(INDEX(Settings!$AE$4:$BF$200,MATCH($A26,Settings!$AK$4:$AK$200,0),1),"") -> Comprehensive Agricultural Support Programme Grant | G26: Northern Cape | H26: =INDEX(NC!$D$15:$G$375,MATCH($O20,NC!$D$15:$D$375,0),2) -> 402404 | I26: 0 | J26: 402404 | M26: 1 | T26: TRUE
E27: =IFERROR(INDEX(Settings!$AE$4:$BF$200,MATCH($A27,Settings!$AK$4:$AK$200,0),1),"") -> Comprehensive Agricultural Support Programme Grant | G27: North West | H27: =INDEX(NW!$D$15:$G$375,MATCH($O20,NW!$D$15:$D$375,0),2) -> 326867 | I27: 0 | J27: 326867 | M27: 1 | T27: TRUE
E28: =IFERROR(INDEX(Settings!$AE$4:$BF$200,MATCH($A28,Settings!$AK$4:$AK$200,0),1),"") -> Comprehensive Agricultural Support Programme Grant | G28: Western Cape | H28: =INDEX(WC!$D$15:$G$375,MATCH($O20,WC!$D$15:$D$375,0),2) -> 3426618 | I28: 0 | J28: 3426618 | M28: 1 | T28: TRUE
E29: =IFERROR(INDEX(Settings!$AE$4:$BF$200,MATCH($A29,Settings!$AK$4:$AK$200,0),1),"") -> Comprehensive Agricultural Support Programme Grant | G29: Unallocated | H29: =INDEX(Unallocated!$D$15:$G$375,MATCH($O20,Unallocated!$D$15:$D$375,0),2) -> 0 | I29: 0 | J29: 0 | M29: 1 | T29: TRUE
E30: =IFERROR(INDEX(Settings!$AE$4:$BF$200,MATCH($A30,Settings!$AK$4:$AK$200,0),1),"") -> Comprehensive Agricultural Support Programme Grant | G30: TOTAL | H30: =SUM(H20:H29) -> 14068863 | I30: =SUM(I20:I29) -> 0 | J30: =SUM(J20:J29) -> 14068863 | M30: =M20 -> 1 | T30: TRUE
A31: 3 | C31: =IFERROR(INDEX(Settings!$AE$4:$BF$200,MATCH($A31,Settings!$AK$4:$AK$200,0),2),"") & CHAR(10) & IFERROR("(Vote " & INDEX(Settings!$AE$4:$BF$200,MATCH($A31,Settings!$AK$4:$AK$200,0),3) & ")","") -> Transport (Vote 40) | D31: =IF(S31=1,CONCATENATE("(" & $R31& ") ",IFERROR(INDEX(Settings!$AE$4:$BF$200,MATCH($A31,Settings!$AK$4:$AK$200,0),1),"")),IFERROR(INDEX(Settings!$AE$4:$BF$200,MATCH($A31,Settings!$AK$4:$AK$200,0),1),"")) -> (a) Provincial Roads Maintenance Grant | E31: =TRIM(IFERROR(INDEX(Settings!$AE$4:$BF$200,MATCH($O31,Settings!$AV$4:$AV$200,0),24),""))&"." -> To supplement provincial investments for road infrastructure maintenance (routine, periodic and special maintenance); to ensure that all roads are classified as per the Road Infrastructure Strategic Framework for South Africa and the technical recommendations for highways, and the Road Classification and Access Management guidelines; to implement and maintain road asset management systems; to supplement provincial projects for the repair of roads and bridges damaged by unforeseen incidents including natural disasters; to improve road safety with a special focus on pedestrian safety in rural areas. | F31: =IFERROR(INDEX(Settings!$AE$4:$BF$200,MATCH($A31,Settings!$AK$4:$AK$200,0),11),"") -> General conditional allocation to provinces | G31: Eastern Cape | H31: =INDEX(EC!$D$15:$G$375,MATCH($O31,EC!$D$15:$D$375,0),2) -> 1629401 | I31: -246780 | J31: =H31+I31 -> 1382621 | M31: =IF(LEN(D31)>2,1,0) -> 1 | N31: 1 | O31: =IFERROR(INDEX(Settings!$AE$4:$BF$200,MATCH($A31,Settings!$AK$4:$AK$200,0),1),"") -> Provincial Roads Maintenance Grant | Q31: =IF(LEN(C31)<2,0,IF(C31=C20,Q20+1,1)) -> 1 | R31: =IFERROR(LOWER(RIGHT(LEFT(ADDRESS(1,Q31),2))),"") -> a | S31: =IF(Q31>1,1,IF(Q42>1,1,0)) -> 1 | T31: TRUE
E32: =IFERROR(INDEX(Settings!$AE$4:$BF$200,MATCH($A32,Settings!$AK$4:$AK$200,0),1),"") -> Comprehensive Agricultural Support Programme Grant | G32: Free State | H32: =INDEX(FS!$D$15:$G$375,MATCH($O31,FS!$D$15:$D$375,0),2) -> 1447285 | I32: -219198 | J32: 1228087 | M32: =M31 -> 1 | T32: TRUE
E33: =IFERROR(INDEX(Settings!$AE$4:$BF$200,MATCH($A33,Settings!$AK$4:$AK$200,0),1),"") -> Comprehensive Agricultural Support Programme Grant | G33: Gauteng | H33: =INDEX(GT!$D$15:$G$375,MATCH($O31,GT!$D$15:$D$375,0),2) -> 745007 | I33: -112835 | J33: 632172 | M33: 1 | T33: TRUE
E34: =IFERROR(INDEX(Settings!$AE$4:$BF$200,MATCH($A34,Settings!$AK$4:$AK$200,0),1),"") -> Comprehensive Agricultural Support Programme Grant | G34: KwaZulu-Natal | H34: =INDEX(KZN!$D$15:$G$375,MATCH($O31,KZN!$D$15:$D$375,0),2) -> 2076547 | I34: -314503 | J34: 1762044 | M34: 1 | T34: TRUE
E35: =IFERROR(INDEX(Settings!$AE$4:$BF$200,MATCH($A35,Settings!$AK$4:$AK$200,0),1),"") -> Comprehensive Agricultural Support Programme Grant | G35: Limpopo | H35: =INDEX(LIM!$D$15:$G$375,MATCH($O31,LIM!$D$15:$D$375,0),2) -> 1294756 | I35: -196097 | J35: 1098659 | M35: 1 | T35: TRUE
E36: =IFERROR(INDEX(Settings!$AE$4:$BF$200,MATCH($A36,Settings!$AK$4:$AK$200,0),1),"") -> Comprehensive Agricultural Support Programme Grant | G36: Mpumalanga | H36: =INDEX(MPU!$D$15:$G$375,MATCH($O31,MPU!$D$15:$D$375,0),2) -> 1042917 | I36: -157955 | J36: 884962 | M36: 1 | T36: TRUE
E37: =IFERROR(INDEX(Settings!$AE$4:$BF$200,MATCH($A37,Settings!$AK$4:$AK$200,0),1),"") -> Comprehensive Agricultural Support Programme Grant | G37: Northern Cape | H37: =INDEX(NC!$D$15:$G$375,MATCH($O31,NC!$D$15:$D$375,0),2) -> 1230754 | I37: -186403 | J37: 1044351 | M37: 1 | T37: TRUE
E38: =IFERROR(INDEX(Settings!$AE$4:$BF$200,MATCH($A38,Settings!$AK$4:$AK$200,0),1),"") -> Comprehensive Agricultural Support Programme Grant | G38: North West | H38: =INDEX(NW!$D$15:$G$375,MATCH($O31,NW!$D$15:$D$375,0),2) -> 1059163 | I38: -160415 | J38: 898748 | M38: 1 | T38: TRUE
E39: =IFERROR(INDEX(Settings!$AE$4:$BF$200,MATCH($A39,Settings!$AK$4:$AK$200,0),1),"") -> Comprehensive Agricultural Support Programme Grant | G39: Western Cape | H39: =INDEX(WC!$D$15:$G$375,MATCH($O31,WC!$D$15:$D$375,0),2) -> 1067344 | I39: -161654 | J39: 905690 | M39: 1 | T39: TRUE
E40: =IFERROR(INDEX(Settings!$AE$4:$BF$200,MATCH($A40,Settings!$AK$4:$AK$200,0),1),"") -> Comprehensive Agricultural Support Programme Grant | G40: Unallocated | H40: =INDEX(Unallocated!$D$15:$G$375,MATCH($O31,Unallocated!$D$15:$D$375,0),2) -> 0 | I40: 0 | J40: 0 | M40: 1 | T40: TRUE
E41: =IFERROR(INDEX(Settings!$AE$4:$BF$200,MATCH($A41,Settings!$AK$4:$AK$200,0),1),"") -> Comprehensive Agricultural Support Programme Grant | G41: TOTAL | H41: =SUM(H31:H40) -> 11593174 | I41: =SUM(I31:I40) -> -1755840 | J41: =SUM(J31:J40) -> 9837334 | M41: =M31 -> 1 | T41: TRUE | U41: -1755840 | V41: =I41=U41 -> TRUE | W41: =SUM(H41:I41) -> 9837334 | X41: =J41=W41 -> TRUE
A42: 4 | C42: =IFERROR(INDEX(Settings!$AE$4:$BF$200,MATCH($A42,Settings!$AK$4:$AK$200,0),2),"") & CHAR(10) & IFERROR("(Vote " & INDEX(Settings!$AE$4:$BF$200,MATCH($A42,Settings!$AK$4:$AK$200,0),3) & ")","") -> Transport (Vote 40) | D42: =IF(S42=1,CONCATENATE("(" & $R42& ") ",IFERROR(INDEX(Settings!$AE$4:$BF$200,MATCH($A42,Settings!$AK$4:$AK$200,0),1),"")),IFERROR(INDEX(Settings!$AE$4:$BF$200,MATCH($A42,Settings!$AK$4:$AK$200,0),1),"")) -> (b) Public Transport Operations Grant | E42: =TRIM(IFERROR(INDEX(Settings!$AE$4:$BF$200,MATCH($O42,Settings!$AV$4:$AV$200,0),24),""))&"." -> To provide supplementary funding towards public transport services provided by provincial departments of transport. | F42: =IFERROR(INDEX(Settings!$AE$4:$BF$200,MATCH($A42,Settings!$AK$4:$AK$200,0),11),"") -> Nationally assigned function to provinces | G42: Eastern Cape | H42: =INDEX(EC!$D$15:$G$375,MATCH($O42,EC!$D$15:$D$375,0),2) -> 269007 | I42: 0 | J42: =H42+I42 -> 269007 | M42: =IF(LEN(D42)>2,1,0) -> 1 | O42: =IFERROR(INDEX(Settings!$AE$4:$BF$200,MATCH($A42,Settings!$AK$4:$AK$200,0),1),"") -> Public Transport Operations Grant | Q42: =IF(LEN(C42)<2,0,IF(C42=C31,Q31+1,1)) -> 2 | R42: =IFERROR(LOWER(RIGHT(LEFT(ADDRESS(1,Q42),2))),"") -> b | S42: =IF(Q42>1,1,IF(Q53>1,1,0)) -> 1 | T42: TRUE
E43: =IFERROR(INDEX(Settings!$AE$4:$BF$200,MATCH($A43,Settings!$AK$4:$AK$200,0),1),"") -> Comprehensive Agricultural Support Programme Grant | G43: Free State | H43: =INDEX(FS!$D$15:$G$375,MATCH($O42,FS!$D$15:$D$375,0),2) -> 297410 | I43: 0 | J43: 297410 | M43: =M42 -> 1 | T43: TRUE
E44: =IFERROR(INDEX(Settings!$AE$4:$BF$200,MATCH($A44,Settings!$AK$4:$AK$200,0),1),"") -> Comprehensive Agricultural Support Programme Grant | G44: Gauteng | H44: =INDEX(GT!$D$15:$G$375,MATCH($O42,GT!$D$15:$D$375,0),2) -> 2599291 | I44: 0 | J44: 2599291 | M44: 1 | T44: TRUE
E45: =IFERROR(INDEX(Settings!$AE$4:$BF$200,MATCH($A45,Settings!$AK$4:$AK$200,0),1),"") -> Comprehensive Agricultural Support Programme Grant | G45: KwaZulu-Natal | H45: =INDEX(KZN!$D$15:$G$375,MATCH($O42,KZN!$D$15:$D$375,0),2) -> 1246362 | I45: 0 | J45: 1246362 | M45: 1 | T45: TRUE
E46: =IFERROR(INDEX(Settings!$AE$4:$BF$200,MATCH($A46,Settings!$AK$4:$AK$200,0),1),"") -> Comprehensive Agricultural Support Programme Grant | G46: Limpopo | H46: =INDEX(LIM!$D$15:$G$375,MATCH($O42,LIM!$D$15:$D$375,0),2) -> 402035 | I46: 0 | J46: 402035 | M46: 1 | T46: TRUE
E47: =IFERROR(INDEX(Settings!$AE$4:$BF$200,MATCH($A47,Settings!$AK$4:$AK$200,0),1),"") -> Comprehensive Agricultural Support Programme Grant | G47: Mpumalanga | H47: =INDEX(MPU!$D$15:$G$375,MATCH($O42,MPU!$D$15:$D$375,0),2) -> 676941 | I47: 0 | J47: 676941 | M47: 1 | T47: TRUE
E48: =IFERROR(INDEX(Settings!$AE$4:$BF$200,MATCH($A48,Settings!$AK$4:$AK$200,0),1),"") -> Comprehensive Agricultural Support Programme Grant | G48: Northern Cape | H48: =INDEX(NC!$D$15:$G$375,MATCH($O42,NC!$D$15:$D$375,0),2) -> 60524 | I48: 0 | J48: 60524 | M48: 1 | T48: TRUE
E49: =IFERROR(INDEX(Settings!$AE$4:$BF$200,MATCH($A49,Settings!$AK$4:$AK$200,0),1),"") -> Comprehensive Agricultural Support Programme Grant | G49: North West | H49: =INDEX(NW!$D$15:$G$375,MATCH($O42,NW!$D$15:$D$375,0),2) -> 124415 | I49: 0 | J49: 124415 | M49: 1 | T49: TRUE
E50: =IFERROR(INDEX(Settings!$AE$4:$BF$200,MATCH($A50,Settings!$AK$4:$AK$200,0),1),"") -> Comprehensive Agricultural Support Programme Grant | G50: Western Cape | H50: =INDEX(WC!$D$15:$G$375,MATCH($O42,WC!$D$15:$D$375,0),2) -> 1073596 | I50: 0 | J50: 1073596 | M50: 1 | T50: TRUE
E51: =IFERROR(INDEX(Settings!$AE$4:$BF$200,MATCH($A51,Settings!$AK$4:$AK$200,0),1),"") -> Comprehensive Agricultural Support Programme Grant | G51: Unallocated | H51: =INDEX(Unallocated!$D$15:$G$375,MATCH($O42,Unallocated!$D$15:$D$375,0),2) -> 0 | I51: =INDEX(Unallocated!$D$15:$G$375,MATCH($O42,Unallocated!$D$15:$D$375,0),3) -> 0 | J51: =INDEX(Unallocated!$D$15:$G$375,MATCH($O42,Unallocated!$D$15:$D$375,0),4) -> 0 | M51: =IF(SUM(H51:J51)=0,0,1) -> 0 | T51: TRUE
E52: =IFERROR(INDEX(Settings!$AE$4:$BF$200,MATCH($A52,Settings!$AK$4:$AK$200,0),1),"") -> Comprehensive Agricultural Support Programme Grant | G52: TOTAL | H52: =SUM(H42:H51) -> 6749581 | I52: =SUM(I42:I51) -> 0 | J52: =SUM(J42:J51) -> 6749581 | M52: =M42 -> 1 | T52: TRUE
A53: 5 | C53: =IFERROR(INDEX(Settings!$AE$4:$BF$200,MATCH($A53,Settings!$AK$4:$AK$200,0),2),"") & CHAR(10) & IFERROR("(Vote " & INDEX(Settings!$AE$4:$BF$200,MATCH($A53,Settings!$AK$4:$AK$200,0),3) & ")","") ->  | D53: =IF(S53=1,CONCATENATE("(" & $R53& ") ",IFERROR(INDEX(Settings!$AE$4:$BF$200,MATCH($A53,Settings!$AK$4:$AK$200,0),1),"")),IFERROR(INDEX(Settings!$AE$4:$BF$200,MATCH($A53,Settings!$AK$4:$AK$200,0),1),"")) ->  | E53: =TRIM(IFERROR(INDEX(Settings!$AE$4:$BF$200,MATCH($O53,Settings!$AV$4:$AV$200,0),24),""))&"." -> . | F53: =IFERROR(INDEX(Settings!$AE$4:$BF$200,MATCH($A53,Settings!$AK$4:$AK$200,0),11),"") ->  | G53: Eastern Cape | H53: =INDEX(EC!$D$15:$G$375,MATCH($O53,EC!$D$15:$D$375,0),2) -> 0 | I53: =INDEX(EC!$D$15:$G$375,MATCH($O53,EC!$D$15:$D$375,0),3) -> 0 | J53: =INDEX(EC!$D$15:$G$375,MATCH($O53,EC!$D$15:$D$375,0),4) -> 0 | M53: =IF(LEN(D53)>2,1,0) -> 0 | O53: =IFERROR(INDEX(Settings!$AE$4:$BF$200,MATCH($A53,Settings!$AK$4:$AK$200,0),1),"") ->  | Q53: =IF(LEN(C53)<2,0,IF(C53=C42,Q42+1,1)) -> 0 | R53: =IFERROR(LOWER(RIGHT(LEFT(ADDRESS(1,Q53),2))),"") ->  | S53: =IF(Q53>1,1,IF(Q64>1,1,0)) -> 0
E54: =IFERROR(INDEX(Settings!$AE$4:$BF$200,MATCH($A54,Settings!$AK$4:$AK$200,0),1),"") -> Comprehensive Agricultural Support Programme Grant | G54: Free State | H54: =INDEX(FS!$D$15:$G$375,MATCH($O53,FS!$D$15:$D$375,0),2) -> 0 | I54: =INDEX(FS!$D$15:$G$375,MATCH($O53,FS!$D$15:$D$375,0),3) -> 0 | J54: =INDEX(FS!$D$15:$G$375,MATCH($O53,FS!$D$15:$D$375,0),4) -> 0 | M54: =M53 -> 0
E55: =IFERROR(INDEX(Settings!$AE$4:$BF$200,MATCH($A55,Settings!$AK$4:$AK$200,0),1),"") -> Comprehensive Agricultural Support Programme Grant | G55: Gauteng | H55: =INDEX(GT!$D$15:$G$375,MATCH($O53,GT!$D$15:$D$375,0),2) -> 0 | I55: =INDEX(GT!$D$15:$G$375,MATCH($O53,GT!$D$15:$D$375,0),3) -> 0 | J55: =INDEX(GT!$D$15:$G$375,MATCH($O53,GT!$D$15:$D$375,0),4) -> 0 | M55: 0
E56: =IFERROR(INDEX(Settings!$AE$4:$BF$200,MATCH($A56,Settings!$AK$4:$AK$200,0),1),"") -> Comprehensive Agricultural Support Programme Grant | G56: KwaZulu-Natal | H56: =INDEX(KZN!$D$15:$G$375,MATCH($O53,KZN!$D$15:$D$375,0),2) -> 0 | I56: =INDEX(KZN!$D$15:$G$375,MATCH($O53,KZN!$D$15:$D$375,0),3) -> 0 | J56: =INDEX(KZN!$D$15:$G$375,MATCH($O53,KZN!$D$15:$D$375,0),4) -> 0 | M56: 0
E57: =IFERROR(INDEX(Settings!$AE$4:$BF$200,MATCH($A57,Settings!$AK$4:$AK$200,0),1),"") -> Comprehensive Agricultural Support Programme Grant | G57: Limpopo | H57: =INDEX(LIM!$D$15:$G$375,MATCH($O53,LIM!$D$15:$D$375,0),2) -> 0 | I57: =INDEX(LIM!$D$15:$G$375,MATCH($O53,LIM!$D$15:$D$375,0),3) -> 0 | J57: =INDEX(LIM!$D$15:$G$375,MATCH($O53,LIM!$D$15:$D$375,0),4) -> 0 | M57: 0
E58: =IFERROR(INDEX(Settings!$AE$4:$BF$200,MATCH($A58,Settings!$AK$4:$AK$200,0),1),"") -> Comprehensive Agricultural Support Programme Grant | G58: Mpumalanga | H58: =INDEX(MPU!$D$15:$G$375,MATCH($O53,MPU!$D$15:$D$375,0),2) -> 0 | I58: =INDEX(MPU!$D$15:$G$375,MATCH($O53,MPU!$D$15:$D$375,0),3) -> 0 | J58: =INDEX(MPU!$D$15:$G$375,MATCH($O53,MPU!$D$15:$D$375,0),4) -> 0 | M58: 0
E59: =IFERROR(INDEX(Settings!$AE$4:$BF$200,MATCH($A59,Settings!$AK$4:$AK$200,0),1),"") -> Comprehensive Agricultural Support Programme Grant | G59: Northern Cape | H59: =INDEX(NC!$D$15:$G$375,MATCH($O53,NC!$D$15:$D$375,0),2) -> 0 | I59: =INDEX(NC!$D$15:$G$375,MATCH($O53,NC!$D$15:$D$375,0),3) -> 0 | J59: =INDEX(NC!$D$15:$G$375,MATCH($O53,NC!$D$15:$D$375,0),4) -> 0 | M59: 0
E60: =IFERROR(INDEX(Settings!$AE$4:$BF$200,MATCH($A60,Settings!$AK$4:$AK$200,0),1),"") -> Comprehensive Agricultural Support Programme Grant | G60: North West | H60: =INDEX(NW!$D$15:$G$375,MATCH($O53,NW!$D$15:$D$375,0),2) -> 0 | I60: =INDEX(NW!$D$15:$G$375,MATCH($O53,NW!$D$15:$D$375,0),3) -> 0 | J60: =INDEX(NW!$D$15:$G$375,MATCH($O53,NW!$D$15:$D$375,0),4) -> 0 | M60: 0
E61: =IFERROR(INDEX(Settings!$AE$4:$BF$200,MATCH($A61,Settings!$AK$4:$AK$200,0),1),"") -> Comprehensive Agricultural Support Programme Grant | G61: Western Cape | H61: =INDEX(WC!$D$15:$G$375,MATCH($O53,WC!$D$15:$D$375,0),2) -> 0 | I61: =INDEX(WC!$D$15:$G$375,MATCH($O53,WC!$D$15:$D$375,0),3) -> 0 | J61: =INDEX(WC!$D$15:$G$375,MATCH($O53,WC!$D$15:$D$375,0),4) -> 0 | M61: 0
E62: =IFERROR(INDEX(Settings!$AE$4:$BF$200,MATCH($A62,Settings!$AK$4:$AK$200,0),1),"") -> Comprehensive Agricultural Support Programme Grant | G62: Unallocated | H62: =INDEX(Unallocated!$D$15:$G$375,MATCH($O53,Unallocated!$D$15:$D$375,0),2) -> 0 | I62: =INDEX(Unallocated!$D$15:$G$375,MATCH($O53,Unallocated!$D$15:$D$375,0),3) -> 0 | J62: =INDEX(Unallocated!$D$15:$G$375,MATCH($O53,Unallocated!$D$15:$D$375,0),4) -> 0 | M62: =IF(SUM(H62:J62)=0,0,1) -> 0
E63: =IFERROR(INDEX(Settings!$AE$4:$BF$200,MATCH($A63,Settings!$AK$4:$AK$200,0),1),"") -> Comprehensive Agricultural Support Programme Grant | G63: TOTAL | H63: =SUM(H53:H62) -> 0 | I63: =SUM(I53:I62) -> 0 | J63: =SUM(J53:J62) -> 0 | M63: =M53 -> 0
A64: 6 | C64: =IFERROR(INDEX(Settings!$AE$4:$BF$200,MATCH($A64,Settings!$AK$4:$AK$200,0),2),"") & CHAR(10) & IFERROR("(Vote " & INDEX(Settings!$AE$4:$BF$200,MATCH($A64,Settings!$AK$4:$AK$200,0),3) & ")","") ->  | D64: =IF(S64=1,CONCATENATE("(" & $R64& ") ",IFERROR(INDEX(Settings!$AE$4:$BF$200,MATCH($A64,Settings!$AK$4:$AK$200,0),1),"")),IFERROR(INDEX(Settings!$AE$4:$BF$200,MATCH($A64,Settings!$AK$4:$AK$200,0),1),"")) ->  | E64: =TRIM(IFERROR(INDEX(Settings!$AE$4:$BF$200,MATCH($O64,Settings!$AV$4:$AV$200,0),24),""))&"." -> . | F64: =IFERROR(INDEX(Settings!$AE$4:$BF$200,MATCH($A64,Settings!$AK$4:$AK$200,0),11),"") ->  | G64: Eastern Cape | H64: =INDEX(EC!$D$15:$G$375,MATCH($O64,EC!$D$15:$D$375,0),2) -> 0 | I64: =INDEX(EC!$D$15:$G$375,MATCH($O64,EC!$D$15:$D$375,0),3) -> 0 | J64: =INDEX(EC!$D$15:$G$375,MATCH($O64,EC!$D$15:$D$375,0),4) -> 0 | M64: =IF(LEN(D64)>2,1,0) -> 0 | O64: =IFERROR(INDEX(Settings!$AE$4:$BF$200,MATCH($A64,Settings!$AK$4:$AK$200,0),1),"") ->  | Q64: =IF(LEN(C64)<2,0,IF(C64=C53,Q53+1,1)) -> 0 | R64: =IFERROR(LOWER(RIGHT(LEFT(ADDRESS(1,Q64),2))),"") ->  | S64: =IF(Q64>1,1,IF(Q75>1,1,0)) -> 0
E65: =IFERROR(INDEX(Settings!$AE$4:$BF$200,MATCH($A65,Settings!$AK$4:$AK$200,0),1),"") -> Comprehensive Agricultural Support Programme Grant | G65: Free State | H65: =INDEX(FS!$D$15:$G$375,MATCH($O64,FS!$D$15:$D$375,0),2) -> 0 | I65: =INDEX(FS!$D$15:$G$375,MATCH($O64,FS!$D$15:$D$375,0),3) -> 0 | J65: =INDEX(FS!$D$15:$G$375,MATCH($O64,FS!$D$15:$D$375,0),4) -> 0 | M65: =M64 -> 0
E66: =IFERROR(INDEX(Settings!$AE$4:$BF$200,MATCH($A66,Settings!$AK$4:$AK$200,0),1),"") -> Comprehensive Agricultural Support Programme Grant | G66: Gauteng | H66: =INDEX(GT!$D$15:$G$375,MATCH($O64,GT!$D$15:$D$375,0),2) -> 0 | I66: =INDEX(GT!$D$15:$G$375,MATCH($O64,GT!$D$15:$D$375,0),3) -> 0 | J66: =INDEX(GT!$D$15:$G$375,MATCH($O64,GT!$D$15:$D$375,0),4) -> 0 | M66: 0
E67: =IFERROR(INDEX(Settings!$AE$4:$BF$200,MATCH($A67,Settings!$AK$4:$AK$200,0),1),"") -> Comprehensive Agricultural Support Programme Grant | G67: KwaZulu-Natal | H67: =INDEX(KZN!$D$15:$G$375,MATCH($O64,KZN!$D$15:$D$375,0),2) -> 0 | I67: =INDEX(KZN!$D$15:$G$375,MATCH($O64,KZN!$D$15:$D$375,0),3) -> 0 | J67: =INDEX(KZN!$D$15:$G$375,MATCH($O64,KZN!$D$15:$D$375,0),4) -> 0 | M67: 0
E68: =IFERROR(INDEX(Settings!$AE$4:$BF$200,MATCH($A68,Settings!$AK$4:$AK$200,0),1),"") -> Comprehensive Agricultural Support Programme Grant | G68: Limpopo | H68: =INDEX(LIM!$D$15:$G$375,MATCH($O64,LIM!$D$15:$D$375,0),2) -> 0 | I68: =INDEX(LIM!$D$15:$G$375,MATCH($O64,LIM!$D$15:$D$375,0),3) -> 0 | J68: =INDEX(LIM!$D$15:$G$375,MATCH($O64,LIM!$D$15:$D$375,0),4) -> 0 | M68: 0
E69: =IFERROR(INDEX(Settings!$AE$4:$BF$200,MATCH($A69,Settings!$AK$4:$AK$200,0),1),"") -> Comprehensive Agricultural Support Programme Grant | G69: Mpumalanga | H69: =INDEX(MPU!$D$15:$G$375,MATCH($O64,MPU!$D$15:$D$375,0),2) -> 0 | I69: =INDEX(MPU!$D$15:$G$375,MATCH($O64,MPU!$D$15:$D$375,0),3) -> 0 | J69: =INDEX(MPU!$D$15:$G$375,MATCH($O64,MPU!$D$15:$D$375,0),4) -> 0 | M69: 0
E70: =IFERROR(INDEX(Settings!$AE$4:$BF$200,MATCH($A70,Settings!$AK$4:$AK$200,0),1),"") -> Comprehensive Agricultural Support Programme Grant | G70: Northern Cape | H70: =INDEX(NC!$D$15:$G$375,MATCH($O64,NC!$D$15:$D$375,0),2) -> 0 | I70: =INDEX(NC!$D$15:$G$375,MATCH($O64,NC!$D$15:$D$375,0),3) -> 0 | J70: =INDEX(NC!$D$15:$G$375,MATCH($O64,NC!$D$15:$D$375,0),4) -> 0 | M70: 0
E71: =IFERROR(INDEX(Settings!$AE$4:$BF$200,MATCH($A71,Settings!$AK$4:$AK$200,0),1),"") -> Comprehensive Agricultural Support Programme Grant | G71: North West | H71: =INDEX(NW!$D$15:$G$375,MATCH($O64,NW!$D$15:$D$375,0),2) -> 0 | I71: =INDEX(NW!$D$15:$G$375,MATCH($O64,NW!$D$15:$D$375,0),3) -> 0 | J71: =INDEX(NW!$D$15:$G$375,MATCH($O64,NW!$D$15:$D$375,0),4) -> 0 | M71: 0
E72: =IFERROR(INDEX(Settings!$AE$4:$BF$200,MATCH($A72,Settings!$AK$4:$AK$200,0),1),"") -> Comprehensive Agricultural Support Programme Grant | G72: Western Cape | H72: =INDEX(WC!$D$15:$G$375,MATCH($O64,WC!$D$15:$D$375,0),2) -> 0 | I72: =INDEX(WC!$D$15:$G$375,MATCH($O64,WC!$D$15:$D$375,0),3) -> 0 | J72: =INDEX(WC!$D$15:$G$375,MATCH($O64,WC!$D$15:$D$375,0),4) -> 0 | M72: 0
E73: =IFERROR(INDEX(Settings!$AE$4:$BF$200,MATCH($A73,Settings!$AK$4:$AK$200,0),1),"") -> Comprehensive Agricultural Support Programme Grant | G73: Unallocated | H73: =INDEX(Unallocated!$D$15:$G$375,MATCH($O64,Unallocated!$D$15:$D$375,0),2) -> 0 | I73: =INDEX(Unallocated!$D$15:$G$375,MATCH($O64,Unallocated!$D$15:$D$375,0),3) -> 0 | J73: =INDEX(Unallocated!$D$15:$G$375,MATCH($O64,Unallocated!$D$15:$D$375,0),4) -> 0 | M73: =IF(SUM(H73:J73)=0,0,1) -> 0
E74: =IFERROR(INDEX(Settings!$AE$4:$BF$200,MATCH($A74,Settings!$AK$4:$AK$200,0),1),"") -> Comprehensive Agricultural Support Programme Grant | G74: TOTAL | H74: =SUM(H64:H73) -> 0 | I74: =SUM(I64:I73) -> 0 | J74: =SUM(J64:J73) -> 0 | M74: =M64 -> 0
A75: 7 | C75: =_xlfn.IFNA(INDEX(Settings!$AE$4:$BF$200,MATCH($A75,Settings!$AK$4:$AK$200,0),2),"") & CHAR(10) & _xlfn.IFNA("(Vote " & INDEX(Settings!$AE$4:$BF$200,MATCH($A75,Settings!$AK$4:$AK$200,0),3) & ")","") ->  | D75: =IF(S75=1,CONCATENATE("(" & $R75& ") ",IFERROR(INDEX(Settings!$AE$4:$BF$200,MATCH($A75,Settings!$AK$4:$AK$200,0),1),"")),IFERROR(INDEX(Settings!$AE$4:$BF$200,MATCH($A75,Settings!$AK$4:$AK$200,0),1),"")) ->  | E75: =TRIM(IFERROR(INDEX(Settings!$AE$4:$BF$200,MATCH($O75,Settings!$AV$4:$AV$200,0),24),""))&"." -> . | F75: =_xlfn.IFNA(INDEX(Settings!$AE$4:$BF$200,MATCH($A75,Settings!$AK$4:$AK$200,0),11),"") ->  | G75: Eastern Cape | H75: =INDEX(EC!$D$15:$G$375,MATCH($O75,EC!$D$15:$D$375,0),2) -> 0 | I75: =INDEX(EC!$D$15:$G$375,MATCH($O75,EC!$D$15:$D$375,0),3) -> 0 | J75: =INDEX(EC!$D$15:$G$375,MATCH($O75,EC!$D$15:$D$375,0),4) -> 0 | M75: =IF(LEN(D75)>2,1,0) -> 0 | N75: 1 | O75: =IFERROR(INDEX(Settings!$AE$4:$BF$200,MATCH($A75,Settings!$AK$4:$AK$200,0),1),"") ->  | Q75: =IF(LEN(C75)<2,0,IF(C75=C64,Q64+1,1)) -> 0 | R75: =IFERROR(LOWER(RIGHT(LEFT(ADDRESS(1,Q75),2))),"") ->  | S75: =IF(Q75>1,1,IF(Q86>1,1,0)) -> 0
E76: =IFERROR(INDEX(Settings!$AE$4:$BF$200,MATCH($A76,Settings!$AK$4:$AK$200,0),1),"") -> Comprehensive Agricultural Support Programme Grant | G76: Free State | H76: =INDEX(FS!$D$15:$G$375,MATCH($O75,FS!$D$15:$D$375,0),2) -> 0 | I76: =INDEX(FS!$D$15:$G$375,MATCH($O75,FS!$D$15:$D$375,0),3) -> 0 | J76: =INDEX(FS!$D$15:$G$375,MATCH($O75,FS!$D$15:$D$375,0),4) -> 0 | M76: =M75 -> 0
E77: =IFERROR(INDEX(Settings!$AE$4:$BF$200,MATCH($A77,Settings!$AK$4:$AK$200,0),1),"") -> Comprehensive Agricultural Support Programme Grant | G77: Gauteng | H77: =INDEX(GT!$D$15:$G$375,MATCH($O75,GT!$D$15:$D$375,0),2) -> 0 | I77: =INDEX(GT!$D$15:$G$375,MATCH($O75,GT!$D$15:$D$375,0),3) -> 0 | J77: =INDEX(GT!$D$15:$G$375,MATCH($O75,GT!$D$15:$D$375,0),4) -> 0 | M77: 0
E78: =IFERROR(INDEX(Settings!$AE$4:$BF$200,MATCH($A78,Settings!$AK$4:$AK$200,0),1),"") -> Comprehensive Agricultural Support Programme Grant | G78: KwaZulu-Natal | H78: =INDEX(KZN!$D$15:$G$375,MATCH($O75,KZN!$D$15:$D$375,0),2) -> 0 | I78: =INDEX(KZN!$D$15:$G$375,MATCH($O75,KZN!$D$15:$D$375,0),3) -> 0 | J78: =INDEX(KZN!$D$15:$G$375,MATCH($O75,KZN!$D$15:$D$375,0),4) -> 0 | M78: 0
E79: =IFERROR(INDEX(Settings!$AE$4:$BF$200,MATCH($A79,Settings!$AK$4:$AK$200,0),1),"") -> Comprehensive Agricultural Support Programme Grant | G79: Limpopo | H79: =INDEX(LIM!$D$15:$G$375,MATCH($O75,LIM!$D$15:$D$375,0),2) -> 0 | I79: =INDEX(LIM!$D$15:$G$375,MATCH($O75,LIM!$D$15:$D$375,0),3) -> 0 | J79: =INDEX(LIM!$D$15:$G$375,MATCH($O75,LIM!$D$15:$D$375,0),4) -> 0 | M79: 0
E80: =IFERROR(INDEX(Settings!$AE$4:$BF$200,MATCH($A80,Settings!$AK$4:$AK$200,0),1),"") -> Comprehensive Agricultural Support Programme Grant | G80: Mpumalanga | H80: =INDEX(MPU!$D$15:$G$375,MATCH($O75,MPU!$D$15:$D$375,0),2) -> 0 | I80: =INDEX(MPU!$D$15:$G$375,MATCH($O75,MPU!$D$15:$D$375,0),3) -> 0 | J80: =INDEX(MPU!$D$15:$G$375,MATCH($O75,MPU!$D$15:$D$375,0),4) -> 0 | M80: 0
E81: =IFERROR(INDEX(Settings!$AE$4:$BF$200,MATCH($A81,Settings!$AK$4:$AK$200,0),1),"") -> Comprehensive Agricultural Support Programme Grant | G81: Northern Cape | H81: =INDEX(NC!$D$15:$G$375,MATCH($O75,NC!$D$15:$D$375,0),2) -> 0 | I81: =INDEX(NC!$D$15:$G$375,MATCH($O75,NC!$D$15:$D$375,0),3) -> 0 | J81: =INDEX(NC!$D$15:$G$375,MATCH($O75,NC!$D$15:$D$375,0),4) -> 0 | M81: 0
E82: =IFERROR(INDEX(Settings!$AE$4:$BF$200,MATCH($A82,Settings!$AK$4:$AK$200,0),1),"") -> Comprehensive Agricultural Support Programme Grant | G82: North West | H82: =INDEX(NW!$D$15:$G$375,MATCH($O75,NW!$D$15:$D$375,0),2) -> 0 | I82: =INDEX(NW!$D$15:$G$375,MATCH($O75,NW!$D$15:$D$375,0),3) -> 0 | J82: =INDEX(NW!$D$15:$G$375,MATCH($O75,NW!$D$15:$D$375,0),4) -> 0 | M82: 0
E83: =IFERROR(INDEX(Settings!$AE$4:$BF$200,MATCH($A83,Settings!$AK$4:$AK$200,0),1),"") -> Comprehensive Agricultural Support Programme Grant | G83: Western Cape | H83: =INDEX(WC!$D$15:$G$375,MATCH($O75,WC!$D$15:$D$375,0),2) -> 0 | I83: =INDEX(WC!$D$15:$G$375,MATCH($O75,WC!$D$15:$D$375,0),3) -> 0 | J83: =INDEX(WC!$D$15:$G$375,MATCH($O75,WC!$D$15:$D$375,0),4) -> 0 | M83: 0
E84: =IFERROR(INDEX(Settings!$AE$4:$BF$200,MATCH($A84,Settings!$AK$4:$AK$200,0),1),"") -> Comprehensive Agricultural Support Programme Grant | G84: Unallocated | H84: =INDEX(Unallocated!$D$15:$G$375,MATCH($O75,Unallocated!$D$15:$D$375,0),2) -> 0 | I84: =INDEX(Unallocated!$D$15:$G$375,MATCH($O75,Unallocated!$D$15:$D$375,0),3) -> 0 | J84: =INDEX(Unallocated!$D$15:$G$375,MATCH($O75,Unallocated!$D$15:$D$375,0),4) -> 0 | M84: =IF(SUM(H84:J84)=0,0,1) -> 0
E85: =IFERROR(INDEX(Settings!$AE$4:$BF$200,MATCH($A85,Settings!$AK$4:$AK$200,0),1),"") -> Comprehensive Agricultural Support Programme Grant | G85: TOTAL | H85: =SUM(H75:H84) -> 0 | I85: =SUM(I75:I84) -> 0 | J85: =SUM(J75:J84) -> 0 | M85: =M75 -> 0
A86: 8 | C86: =_xlfn.IFNA(INDEX(Settings!$AE$4:$BF$200,MATCH($A86,Settings!$AK$4:$AK$200,0),2),"") & CHAR(10) & _xlfn.IFNA("(Vote " & INDEX(Settings!$AE$4:$BF$200,MATCH($A86,Settings!$AK$4:$AK$200,0),3) & ")","") ->  | D86: =IF(S86=1,CONCATENATE("(" & $R86& ") ",IFERROR(INDEX(Settings!$AE$4:$BF$200,MATCH($A86,Settings!$AK$4:$AK$200,0),1),"")),IFERROR(INDEX(Settings!$AE$4:$BF$200,MATCH($A86,Settings!$AK$4:$AK$200,0),1),"")) ->  | E86: =TRIM(IFERROR(INDEX(Settings!$AE$4:$BF$200,MATCH($O86,Settings!$AV$4:$AV$200,0),24),""))&"." -> . | F86: =_xlfn.IFNA(INDEX(Settings!$AE$4:$BF$200,MATCH($A86,Settings!$AK$4:$AK$200,0),11),"") ->  | G86: Eastern Cape | H86: =INDEX(EC!$D$15:$G$375,MATCH($O86,EC!$D$15:$D$375,0),2) -> 0 | I86: =INDEX(EC!$D$15:$G$375,MATCH($O86,EC!$D$15:$D$375,0),3) -> 0 | J86: =INDEX(EC!$D$15:$G$375,MATCH($O86,EC!$D$15:$D$375,0),4) -> 0 | M86: =IF(LEN(D86)>2,1,0) -> 0 | O86: =IFERROR(INDEX(Settings!$AE$4:$BF$200,MATCH($A86,Settings!$AK$4:$AK$200,0),1),"") ->  | Q86: =IF(LEN(C86)<2,0,IF(C86=C75,Q75+1,1)) -> 0 | R86: =IFERROR(LOWER(RIGHT(LEFT(ADDRESS(1,Q86),2))),"") ->  | S86: =IF(Q86>1,1,IF(Q97>1,1,0)) -> 0
E87: =IFERROR(INDEX(Settings!$AE$4:$BF$200,MATCH($A87,Settings!$AK$4:$AK$200,0),1),"") -> Comprehensive Agricultural Support Programme Grant | G87: Free State | H87: =INDEX(FS!$D$15:$G$375,MATCH($O86,FS!$D$15:$D$375,0),2) -> 0 | I87: =INDEX(FS!$D$15:$G$375,MATCH($O86,FS!$D$15:$D$375,0),3) -> 0 | J87: =INDEX(FS!$D$15:$G$375,MATCH($O86,FS!$D$15:$D$375,0),4) -> 0 | M87: =M86 -> 0
E88: =IFERROR(INDEX(Settings!$AE$4:$BF$200,MATCH($A88,Settings!$AK$4:$AK$200,0),1),"") -> Comprehensive Agricultural Support Programme Grant | G88: Gauteng | H88: =INDEX(GT!$D$15:$G$375,MATCH($O86,GT!$D$15:$D$375,0),2) -> 0 | I88: =INDEX(GT!$D$15:$G$375,MATCH($O86,GT!$D$15:$D$375,0),3) -> 0 | J88: =INDEX(GT!$D$15:$G$375,MATCH($O86,GT!$D$15:$D$375,0),4) -> 0 | M88: 0
E89: =IFERROR(INDEX(Settings!$AE$4:$BF$200,MATCH($A89,Settings!$AK$4:$AK$200,0),1),"") -> Comprehensive Agricultural Support Programme Grant | G89: KwaZulu-Natal | H89: =INDEX(KZN!$D$15:$G$375,MATCH($O86,KZN!$D$15:$D$375,0),2) -> 0 | I89: =INDEX(KZN!$D$15:$G$375,MATCH($O86,KZN!$D$15:$D$375,0),3) -> 0 | J89: =INDEX(KZN!$D$15:$G$375,MATCH($O86,KZN!$D$15:$D$375,0),4) -> 0 | M89: 0
E90: =IFERROR(INDEX(Settings!$AE$4:$BF$200,MATCH($A90,Settings!$AK$4:$AK$200,0),1),"") -> Comprehensive Agricultural Support Programme Grant | G90: Limpopo | H90: =INDEX(LIM!$D$15:$G$375,MATCH($O86,LIM!$D$15:$D$375,0),2) -> 0 | I90: =INDEX(LIM!$D$15:$G$375,MATCH($O86,LIM!$D$15:$D$375,0),3) -> 0 | J90: =INDEX(LIM!$D$15:$G$375,MATCH($O86,LIM!$D$15:$D$375,0),4) -> 0 | M90: 0
E91: =IFERROR(INDEX(Settings!$AE$4:$BF$200,MATCH($A91,Settings!$AK$4:$AK$200,0),1),"") -> Comprehensive Agricultural Support Programme Grant | G91: Mpumalanga | H91: =INDEX(MPU!$D$15:$G$375,MATCH($O86,MPU!$D$15:$D$375,0),2) -> 0 | I91: =INDEX(MPU!$D$15:$G$375,MATCH($O86,MPU!$D$15:$D$375,0),3) -> 0 | J91: =INDEX(MPU!$D$15:$G$375,MATCH($O86,MPU!$D$15:$D$375,0),4) -> 0 | M91: 0
E92: =IFERROR(INDEX(Settings!$AE$4:$BF$200,MATCH($A92,Settings!$AK$4:$AK$200,0),1),"") -> Comprehensive Agricultural Support Programme Grant | G92: Northern Cape | H92: =INDEX(NC!$D$15:$G$375,MATCH($O86,NC!$D$15:$D$375,0),2) -> 0 | I92: =INDEX(NC!$D$15:$G$375,MATCH($O86,NC!$D$15:$D$375,0),3) -> 0 | J92: =INDEX(NC!$D$15:$G$375,MATCH($O86,NC!$D$15:$D$375,0),4) -> 0 | M92: 0
E93: =IFERROR(INDEX(Settings!$AE$4:$BF$200,MATCH($A93,Settings!$AK$4:$AK$200,0),1),"") -> Comprehensive Agricultural Support Programme Grant | G93: North West | H93: =INDEX(NW!$D$15:$G$375,MATCH($O86,NW!$D$15:$D$375,0),2) -> 0 | I93: =INDEX(NW!$D$15:$G$375,MATCH($O86,NW!$D$15:$D$375,0),3) -> 0 | J93: =INDEX(NW!$D$15:$G$375,MATCH($O86,NW!$D$15:$D$375,0),4) -> 0 | M93: 0
E94: =IFERROR(INDEX(Settings!$AE$4:$BF$200,MATCH($A94,Settings!$AK$4:$AK$200,0),1),"") -> Comprehensive Agricultural Support Programme Grant | G94: Western Cape | H94: =INDEX(WC!$D$15:$G$375,MATCH($O86,WC!$D$15:$D$375,0),2) -> 0 | I94: =INDEX(WC!$D$15:$G$375,MATCH($O86,WC!$D$15:$D$375,0),3) -> 0 | J94: =INDEX(WC!$D$15:$G$375,MATCH($O86,WC!$D$15:$D$375,0),4) -> 0 | M94: 0
E95: =IFERROR(INDEX(Settings!$AE$4:$BF$200,MATCH($A95,Settings!$AK$4:$AK$200,0),1),"") -> Comprehensive Agricultural Support Programme Grant | G95: Unallocated | H95: =INDEX(Unallocated!$D$15:$G$375,MATCH($O86,Unallocated!$D$15:$D$375,0),2) -> 0 | I95: =INDEX(Unallocated!$D$15:$G$375,MATCH($O86,Unallocated!$D$15:$D$375,0),3) -> 0 | J95: =INDEX(Unallocated!$D$15:$G$375,MATCH($O86,Unallocated!$D$15:$D$375,0),4) -> 0 | M95: =IF(SUM(H95:J95)=0,0,1) -> 0
E96: =IFERROR(INDEX(Settings!$AE$4:$BF$200,MATCH($A96,Settings!$AK$4:$AK$200,0),1),"") -> Comprehensive Agricultural Support Programme Grant | G96: TOTAL | H96: =SUM(H86:H95) -> 0 | I96: =SUM(I86:I95) -> 0 | J96: =SUM(J86:J95) -> 0 | M96: =M86 -> 0
A97: 9 | C97: =_xlfn.IFNA(INDEX(Settings!$AE$4:$BF$200,MATCH($A97,Settings!$AK$4:$AK$200,0),2),"") & CHAR(10) & _xlfn.IFNA("(Vote " & INDEX(Settings!$AE$4:$BF$200,MATCH($A97,Settings!$AK$4:$AK$200,0),3) & ")","") ->  | D97: =IF(S97=1,CONCATENATE("(" & $R97& ") ",IFERROR(INDEX(Settings!$AE$4:$BF$200,MATCH($A97,Settings!$AK$4:$AK$200,0),1),"")),IFERROR(INDEX(Settings!$AE$4:$BF$200,MATCH($A97,Settings!$AK$4:$AK$200,0),1),"")) ->  | E97: =TRIM(IFERROR(INDEX(Settings!$AE$4:$BF$200,MATCH($O97,Settings!$AV$4:$AV$200,0),24),""))&"." -> . | F97: =_xlfn.IFNA(INDEX(Settings!$AE$4:$BF$200,MATCH($A97,Settings!$AK$4:$AK$200,0),11),"") ->  | G97: Eastern Cape | H97: =INDEX(EC!$D$15:$G$375,MATCH($O97,EC!$D$15:$D$375,0),2) -> 0 | I97: =INDEX(EC!$D$15:$G$375,MATCH($O97,EC!$D$15:$D$375,0),3) -> 0 | J97: =INDEX(EC!$D$15:$G$375,MATCH($O97,EC!$D$15:$D$375,0),4) -> 0 | M97: =IF(LEN(D97)>2,1,0) -> 0 | O97: =IFERROR(INDEX(Settings!$AE$4:$BF$200,MATCH($A97,Settings!$AK$4:$AK$200,0),1),"") ->  | Q97: =IF(LEN(C97)<2,0,IF(C97=C86,Q86+1,1)) -> 0 | R97: =IFERROR(LOWER(RIGHT(LEFT(ADDRESS(1,Q97),2))),"") ->  | S97: =IF(Q97>1,1,IF(Q108>1,1,0)) -> 0
E98: =IFERROR(INDEX(Settings!$AE$4:$BF$200,MATCH($A98,Settings!$AK$4:$AK$200,0),1),"") -> Comprehensive Agricultural Support Programme Grant | G98: Free State | H98: =INDEX(FS!$D$15:$G$375,MATCH($O97,FS!$D$15:$D$375,0),2) -> 0 | I98: =INDEX(FS!$D$15:$G$375,MATCH($O97,FS!$D$15:$D$375,0),3) -> 0 | J98: =INDEX(FS!$D$15:$G$375,MATCH($O97,FS!$D$15:$D$375,0),4) -> 0 | M98: =M97 -> 0
E99: =IFERROR(INDEX(Settings!$AE$4:$BF$200,MATCH($A99,Settings!$AK$4:$AK$200,0),1),"") -> Comprehensive Agricultural Support Programme Grant | G99: Gauteng | H99: =INDEX(GT!$D$15:$G$375,MATCH($O97,GT!$D$15:$D$375,0),2) -> 0 | I99: =INDEX(GT!$D$15:$G$375,MATCH($O97,GT!$D$15:$D$375,0),3) -> 0 | J99: =INDEX(GT!$D$15:$G$375,MATCH($O97,GT!$D$15:$D$375,0),4) -> 0 | M99: 0
E100: =IFERROR(INDEX(Settings!$AE$4:$BF$200,MATCH($A100,Settings!$AK$4:$AK$200,0),1),"") -> Comprehensive Agricultural Support Programme Grant | G100: KwaZulu-Natal | H100: =INDEX(KZN!$D$15:$G$375,MATCH($O97,KZN!$D$15:$D$375,0),2) -> 0 | I100: =INDEX(KZN!$D$15:$G$375,MATCH($O97,KZN!$D$15:$D$375,0),3) -> 0 | J100: =INDEX(KZN!$D$15:$G$375,MATCH($O97,KZN!$D$15:$D$375,0),4) -> 0 | M100: 0
E101: =IFERROR(INDEX(Settings!$AE$4:$BF$200,MATCH($A101,Settings!$AK$4:$AK$200,0),1),"") -> Comprehensive Agricultural Support Programme Grant | G101: Limpopo | H101: =INDEX(LIM!$D$15:$G$375,MATCH($O97,LIM!$D$15:$D$375,0),2) -> 0 | I101: =INDEX(LIM!$D$15:$G$375,MATCH($O97,LIM!$D$15:$D$375,0),3) -> 0 | J101: =INDEX(LIM!$D$15:$G$375,MATCH($O97,LIM!$D$15:$D$375,0),4) -> 0 | M101: 0
E102: =IFERROR(INDEX(Settings!$AE$4:$BF$200,MATCH($A102,Settings!$AK$4:$AK$200,0),1),"") -> Comprehensive Agricultural Support Programme Grant | G102: Mpumalanga | H102: =INDEX(MPU!$D$15:$G$375,MATCH($O97,MPU!$D$15:$D$375,0),2) -> 0 | I102: =INDEX(MPU!$D$15:$G$375,MATCH($O97,MPU!$D$15:$D$375,0),3) -> 0 | J102: =INDEX(MPU!$D$15:$G$375,MATCH($O97,MPU!$D$15:$D$375,0),4) -> 0 | M102: 0
E103: =IFERROR(INDEX(Settings!$AE$4:$BF$200,MATCH($A103,Settings!$AK$4:$AK$200,0),1),"") -> Comprehensive Agricultural Support Programme Grant | G103: Northern Cape | H103: =INDEX(NC!$D$15:$G$375,MATCH($O97,NC!$D$15:$D$375,0),2) -> 0 | I103: =INDEX(NC!$D$15:$G$375,MATCH($O97,NC!$D$15:$D$375,0),3) -> 0 | J103: =INDEX(NC!$D$15:$G$375,MATCH($O97,NC!$D$15:$D$375,0),4) -> 0 | M103: 0
E104: =IFERROR(INDEX(Settings!$AE$4:$BF$200,MATCH($A104,Settings!$AK$4:$AK$200,0),1),"") -> Comprehensive Agricultural Support Programme Grant | G104: North West | H104: =INDEX(NW!$D$15:$G$375,MATCH($O97,NW!$D$15:$D$375,0),2) -> 0 | I104: =INDEX(NW!$D$15:$G$375,MATCH($O97,NW!$D$15:$D$375,0),3) -> 0 | J104: =INDEX(NW!$D$15:$G$375,MATCH($O97,NW!$D$15:$D$375,0),4) -> 0 | M104: 0
E105: =IFERROR(INDEX(Settings!$AE$4:$BF$200,MATCH($A105,Settings!$AK$4:$AK$200,0),1),"") -> Comprehensive Agricultural Support Programme Grant | G105: Western Cape | H105: =INDEX(WC!$D$15:$G$375,MATCH($O97,WC!$D$15:$D$375,0),2) -> 0 | I105: =INDEX(WC!$D$15:$G$375,MATCH($O97,WC!$D$15:$D$375,0),3) -> 0 | J105: =INDEX(WC!$D$15:$G$375,MATCH($O97,WC!$D$15:$D$375,0),4) -> 0 | M105: 0
E106: =IFERROR(INDEX(Settings!$AE$4:$BF$200,MATCH($A106,Settings!$AK$4:$AK$200,0),1),"") -> Comprehensive Agricultural Support Programme Grant | G106: Unallocated | H106: =INDEX(Unallocated!$D$15:$G$375,MATCH($O97,Unallocated!$D$15:$D$375,0),2) -> 0 | I106: =INDEX(Unallocated!$D$15:$G$375,MATCH($O97,Unallocated!$D$15:$D$375,0),3) -> 0 | J106: =INDEX(Unallocated!$D$15:$G$375,MATCH($O97,Unallocated!$D$15:$D$375,0),4) -> 0 | M106: =IF(SUM(H106:J106)=0,0,1) -> 0
E107: =IFERROR(INDEX(Settings!$AE$4:$BF$200,MATCH($A107,Settings!$AK$4:$AK$200,0),1),"") -> Comprehensive Agricultural Support Programme Grant | G107: TOTAL | H107: =SUM(H97:H106) -> 0 | I107: =SUM(I97:I106) -> 0 | J107: =SUM(J97:J106) -> 0 | M107: =M97 -> 0
A108: 10 | C108: =_xlfn.IFNA(INDEX(Settings!$AE$4:$BF$200,MATCH($A108,Settings!$AK$4:$AK$200,0),2),"") & CHAR(10) & _xlfn.IFNA("(Vote " & INDEX(Settings!$AE$4:$BF$200,MATCH($A108,Settings!$AK$4:$AK$200,0),3) & ")","") ->  | D108: =IF(S108=1,CONCATENATE("(" & $R108& ") ",IFERROR(INDEX(Settings!$AE$4:$BF$200,MATCH($A108,Settings!$AK$4:$AK$200,0),1),"")),IFERROR(INDEX(Settings!$AE$4:$BF$200,MATCH($A108,Settings!$AK$4:$AK$200,0),1),"")) ->  | E108: =TRIM(IFERROR(INDEX(Settings!$AE$4:$BF$200,MATCH($O108,Settings!$AV$4:$AV$200,0),24),""))&"." -> . | F108: =_xlfn.IFNA(INDEX(Settings!$AE$4:$BF$200,MATCH($A108,Settings!$AK$4:$AK$200,0),11),"") ->  | G108: Eastern Cape | H108: =INDEX(EC!$D$15:$G$375,MATCH($O108,EC!$D$15:$D$375,0),2) -> 0 | I108: =INDEX(EC!$D$15:$G$375,MATCH($O108,EC!$D$15:$D$375,0),3) -> 0 | J108: =INDEX(EC!$D$15:$G$375,MATCH($O108,EC!$D$15:$D$375,0),4) -> 0 | M108: =IF(LEN(D108)>2,1,0) -> 0 | O108: =IFERROR(INDEX(Settings!$AE$4:$BF$200,MATCH($A108,Settings!$AK$4:$AK$200,0),1),"") ->  | Q108: =IF(LEN(C108)<2,0,IF(C108=C97,Q97+1,1)) -> 0 | R108: =IFERROR(LOWER(RIGHT(LEFT(ADDRESS(1,Q108),2))),"") ->  | S108: =IF(Q108>1,1,IF(Q119>1,1,0)) -> 0
E109: =IFERROR(INDEX(Settings!$AE$4:$BF$200,MATCH($A109,Settings!$AK$4:$AK$200,0),1),"") -> Comprehensive Agricultural Support Programme Grant | G109: Free State | H109: =INDEX(FS!$D$15:$G$375,MATCH($O108,FS!$D$15:$D$375,0),2) -> 0 | I109: =INDEX(FS!$D$15:$G$375,MATCH($O108,FS!$D$15:$D$375,0),3) -> 0 | J109: =INDEX(FS!$D$15:$G$375,MATCH($O108,FS!$D$15:$D$375,0),4) -> 0 | M109: =M108 -> 0
E110: =IFERROR(INDEX(Settings!$AE$4:$BF$200,MATCH($A110,Settings!$AK$4:$AK$200,0),1),"") -> Comprehensive Agricultural Support Programme Grant | G110: Gauteng | H110: =INDEX(GT!$D$15:$G$375,MATCH($O108,GT!$D$15:$D$375,0),2) -> 0 | I110: =INDEX(GT!$D$15:$G$375,MATCH($O108,GT!$D$15:$D$375,0),3) -> 0 | J110: =INDEX(GT!$D$15:$G$375,MATCH($O108,GT!$D$15:$D$375,0),4) -> 0 | M110: 0
E111: =IFERROR(INDEX(Settings!$AE$4:$BF$200,MATCH($A111,Settings!$AK$4:$AK$200,0),1),"") -> Comprehensive Agricultural Support Programme Grant | G111: KwaZulu-Natal | H111: =INDEX(KZN!$D$15:$G$375,MATCH($O108,KZN!$D$15:$D$375,0),2) -> 0 | I111: =INDEX(KZN!$D$15:$G$375,MATCH($O108,KZN!$D$15:$D$375,0),3) -> 0 | J111: =INDEX(KZN!$D$15:$G$375,MATCH($O108,KZN!$D$15:$D$375,0),4) -> 0 | M111: 0
E112: =IFERROR(INDEX(Settings!$AE$4:$BF$200,MATCH($A112,Settings!$AK$4:$AK$200,0),1),"") -> Comprehensive Agricultural Support Programme Grant | G112: Limpopo | H112: =INDEX(LIM!$D$15:$G$375,MATCH($O108,LIM!$D$15:$D$375,0),2) -> 0 | I112: =INDEX(LIM!$D$15:$G$375,MATCH($O108,LIM!$D$15:$D$375,0),3) -> 0 | J112: =INDEX(LIM!$D$15:$G$375,MATCH($O108,LIM!$D$15:$D$375,0),4) -> 0 | M112: 0
E113: =IFERROR(INDEX(Settings!$AE$4:$BF$200,MATCH($A113,Settings!$AK$4:$AK$200,0),1),"") -> Comprehensive Agricultural Support Programme Grant | G113: Mpumalanga | H113: =INDEX(MPU!$D$15:$G$375,MATCH($O108,MPU!$D$15:$D$375,0),2) -> 0 | I113: =INDEX(MPU!$D$15:$G$375,MATCH($O108,MPU!$D$15:$D$375,0),3) -> 0 | J113: =INDEX(MPU!$D$15:$G$375,MATCH($O108,MPU!$D$15:$D$375,0),4) -> 0 | M113: 0
E114: =IFERROR(INDEX(Settings!$AE$4:$BF$200,MATCH($A114,Settings!$AK$4:$AK$200,0),1),"") -> Comprehensive Agricultural Support Programme Grant | G114: Northern Cape | H114: =INDEX(NC!$D$15:$G$375,MATCH($O108,NC!$D$15:$D$375,0),2) -> 0 | I114: =INDEX(NC!$D$15:$G$375,MATCH($O108,NC!$D$15:$D$375,0),3) -> 0 | J114: =INDEX(NC!$D$15:$G$375,MATCH($O108,NC!$D$15:$D$375,0),4) -> 0 | M114: 0
E115: =IFERROR(INDEX(Settings!$AE$4:$BF$200,MATCH($A115,Settings!$AK$4:$AK$200,0),1),"") -> Comprehensive Agricultural Support Programme Grant | G115: North West | H115: =INDEX(NW!$D$15:$G$375,MATCH($O108,NW!$D$15:$D$375,0),2) -> 0 | I115: =INDEX(NW!$D$15:$G$375,MATCH($O108,NW!$D$15:$D$375,0),3) -> 0 | J115: =INDEX(NW!$D$15:$G$375,MATCH($O108,NW!$D$15:$D$375,0),4) -> 0 | M115: 0
E116: =IFERROR(INDEX(Settings!$AE$4:$BF$200,MATCH($A116,Settings!$AK$4:$AK$200,0),1),"") -> Comprehensive Agricultural Support Programme Grant | G116: Western Cape | H116: =INDEX(WC!$D$15:$G$375,MATCH($O108,WC!$D$15:$D$375,0),2) -> 0 | I116: =INDEX(WC!$D$15:$G$375,MATCH($O108,WC!$D$15:$D$375,0),3) -> 0 | J116: =INDEX(WC!$D$15:$G$375,MATCH($O108,WC!$D$15:$D$375,0),4) -> 0 | M116: 0
E117: =IFERROR(INDEX(Settings!$AE$4:$BF$200,MATCH($A117,Settings!$AK$4:$AK$200,0),1),"") -> Comprehensive Agricultural Support Programme Grant | G117: Unallocated | H117: =INDEX(Unallocated!$D$15:$G$375,MATCH($O108,Unallocated!$D$15:$D$375,0),2) -> 0 | I117: =INDEX(Unallocated!$D$15:$G$375,MATCH($O108,Unallocated!$D$15:$D$375,0),3) -> 0 | J117: =INDEX(Unallocated!$D$15:$G$375,MATCH($O108,Unallocated!$D$15:$D$375,0),4) -> 0 | M117: =IF(SUM(H117:J117)=0,0,1) -> 0
E118: =IFERROR(INDEX(Settings!$AE$4:$BF$200,MATCH($A118,Settings!$AK$4:$AK$200,0),1),"") -> Comprehensive Agricultural Support Programme Grant | G118: TOTAL | H118: =SUM(H108:H117) -> 0 | I118: =SUM(I108:I117) -> 0 | J118: =SUM(J108:J117) -> 0 | M118: =M108 -> 0
A119: 11 | C119: =_xlfn.IFNA(INDEX(Settings!$AE$4:$BF$200,MATCH($A119,Settings!$AK$4:$AK$200,0),2),"") & CHAR(10) & _xlfn.IFNA("(Vote " & INDEX(Settings!$AE$4:$BF$200,MATCH($A119,Settings!$AK$4:$AK$200,0),3) & ")","") ->  | D119: =IF(S119=1,CONCATENATE("(" & $R119& ") ",IFERROR(INDEX(Settings!$AE$4:$BF$200,MATCH($A119,Settings!$AK$4:$AK$200,0),1),"")),IFERROR(INDEX(Settings!$AE$4:$BF$200,MATCH($A119,Settings!$AK$4:$AK$200,0),1),"")) ->  | E119: =TRIM(IFERROR(INDEX(Settings!$AE$4:$BF$200,MATCH($O119,Settings!$AV$4:$AV$200,0),24),""))&"." -> . | F119: =_xlfn.IFNA(INDEX(Settings!$AE$4:$BF$200,MATCH($A119,Settings!$AK$4:$AK$200,0),11),"") ->  | G119: Eastern Cape | H119: =INDEX(EC!$D$15:$G$375,MATCH($O119,EC!$D$15:$D$375,0),2) -> 0 | I119: =INDEX(EC!$D$15:$G$375,MATCH($O119,EC!$D$15:$D$375,0),3) -> 0 | J119: =INDEX(EC!$D$15:$G$375,MATCH($O119,EC!$D$15:$D$375,0),4) -> 0 | M119: =IF(LEN(D119)>2,1,0) -> 0 | O119: =IFERROR(INDEX(Settings!$AE$4:$BF$200,MATCH($A119,Settings!$AK$4:$AK$200,0),1),"") ->  | Q119: =IF(LEN(C119)<2,0,IF(C119=C108,Q108+1,1)) -> 0 | R119: =IFERROR(LOWER(RIGHT(LEFT(ADDRESS(1,Q119),2))),"") ->  | S119: =IF(Q119>1,1,IF(Q130>1,1,0)) -> 0
E120: =IFERROR(INDEX(Settings!$AE$4:$BF$200,MATCH($A120,Settings!$AK$4:$AK$200,0),1),"") -> Comprehensive Agricultural Support Programme Grant | G120: Free State | H120: =INDEX(FS!$D$15:$G$375,MATCH($O119,FS!$D$15:$D$375,0),2) -> 0 | I120: =INDEX(FS!$D$15:$G$375,MATCH($O119,FS!$D$15:$D$375,0),3) -> 0 | J120: =INDEX(FS!$D$15:$G$375,MATCH($O119,FS!$D$15:$D$375,0),4) -> 0 | M120: =M119 -> 0
E121: =IFERROR(INDEX(Settings!$AE$4:$BF$200,MATCH($A121,Settings!$AK$4:$AK$200,0),1),"") -> Comprehensive Agricultural Support Programme Grant | G121: Gauteng | H121: =INDEX(GT!$D$15:$G$375,MATCH($O119,GT!$D$15:$D$375,0),2) -> 0 | I121: =INDEX(GT!$D$15:$G$375,MATCH($O119,GT!$D$15:$D$375,0),3) -> 0 | J121: =INDEX(GT!$D$15:$G$375,MATCH($O119,GT!$D$15:$D$375,0),4) -> 0 | M121: 0
E122: =IFERROR(INDEX(Settings!$AE$4:$BF$200,MATCH($A122,Settings!$AK$4:$AK$200,0),1),"") -> Comprehensive Agricultural Support Programme Grant | G122: KwaZulu-Natal | H122: =INDEX(KZN!$D$15:$G$375,MATCH($O119,KZN!$D$15:$D$375,0),2) -> 0 | I122: =INDEX(KZN!$D$15:$G$375,MATCH($O119,KZN!$D$15:$D$375,0),3) -> 0 | J122: =INDEX(KZN!$D$15:$G$375,MATCH($O119,KZN!$D$15:$D$375,0),4) -> 0 | M122: 0
E123: =IFERROR(INDEX(Settings!$AE$4:$BF$200,MATCH($A123,Settings!$AK$4:$AK$200,0),1),"") -> Comprehensive Agricultural Support Programme Grant | G123: Limpopo | H123: =INDEX(LIM!$D$15:$G$375,MATCH($O119,LIM!$D$15:$D$375,0),2) -> 0 | I123: =INDEX(LIM!$D$15:$G$375,MATCH($O119,LIM!$D$15:$D$375,0),3) -> 0 | J123: =INDEX(LIM!$D$15:$G$375,MATCH($O119,LIM!$D$15:$D$375,0),4) -> 0 | M123: 0
E124: =IFERROR(INDEX(Settings!$AE$4:$BF$200,MATCH($A124,Settings!$AK$4:$AK$200,0),1),"") -> Comprehensive Agricultural Support Programme Grant | G124: Mpumalanga | H124: =INDEX(MPU!$D$15:$G$375,MATCH($O119,MPU!$D$15:$D$375,0),2) -> 0 | I124: =INDEX(MPU!$D$15:$G$375,MATCH($O119,MPU!$D$15:$D$375,0),3) -> 0 | J124: =INDEX(MPU!$D$15:$G$375,MATCH($O119,MPU!$D$15:$D$375,0),4) -> 0 | M124: 0
E125: =IFERROR(INDEX(Settings!$AE$4:$BF$200,MATCH($A125,Settings!$AK$4:$AK$200,0),1),"") -> Comprehensive Agricultural Support Programme Grant | G125: Northern Cape | H125: =INDEX(NC!$D$15:$G$375,MATCH($O119,NC!$D$15:$D$375,0),2) -> 0 | I125: =INDEX(NC!$D$15:$G$375,MATCH($O119,NC!$D$15:$D$375,0),3) -> 0 | J125: =INDEX(NC!$D$15:$G$375,MATCH($O119,NC!$D$15:$D$375,0),4) -> 0 | M125: 0
E126: =IFERROR(INDEX(Settings!$AE$4:$BF$200,MATCH($A126,Settings!$AK$4:$AK$200,0),1),"") -> Comprehensive Agricultural Support Programme Grant | G126: North West | H126: =INDEX(NW!$D$15:$G$375,MATCH($O119,NW!$D$15:$D$375,0),2) -> 0 | I126: =INDEX(NW!$D$15:$G$375,MATCH($O119,NW!$D$15:$D$375,0),3) -> 0 | J126: =INDEX(NW!$D$15:$G$375,MATCH($O119,NW!$D$15:$D$375,0),4) -> 0 | M126: 0
E127: =IFERROR(INDEX(Settings!$AE$4:$BF$200,MATCH($A127,Settings!$AK$4:$AK$200,0),1),"") -> Comprehensive Agricultural Support Programme Grant | G127: Western Cape | H127: =INDEX(WC!$D$15:$G$375,MATCH($O119,WC!$D$15:$D$375,0),2) -> 0 | I127: =INDEX(WC!$D$15:$G$375,MATCH($O119,WC!$D$15:$D$375,0),3) -> 0 | J127: =INDEX(WC!$D$15:$G$375,MATCH($O119,WC!$D$15:$D$375,0),4) -> 0 | M127: 0
E128: =IFERROR(INDEX(Settings!$AE$4:$BF$200,MATCH($A128,Settings!$AK$4:$AK$200,0),1),"") -> Comprehensive Agricultural Support Programme Grant | G128: Unallocated | H128: =INDEX(Unallocated!$D$15:$G$375,MATCH($O119,Unallocated!$D$15:$D$375,0),2) -> 0 | I128: =INDEX(Unallocated!$D$15:$G$375,MATCH($O119,Unallocated!$D$15:$D$375,0),3) -> 0 | J128: =INDEX(Unallocated!$D$15:$G$375,MATCH($O119,Unallocated!$D$15:$D$375,0),4) -> 0 | M128: =IF(SUM(H128:J128)=0,0,1) -> 0
E129: =IFERROR(INDEX(Settings!$AE$4:$BF$200,MATCH($A129,Settings!$AK$4:$AK$200,0),1),"") -> Comprehensive Agricultural Support Programme Grant | G129: TOTAL | H129: =SUM(H119:H128) -> 0 | I129: =SUM(I119:I128) -> 0 | J129: =SUM(J119:J128) -> 0 | M129: =M119 -> 0
A130: 12 | C130: =_xlfn.IFNA(INDEX(Settings!$AE$4:$BF$200,MATCH($A130,Settings!$AK$4:$AK$200,0),2),"") & CHAR(10) & _xlfn.IFNA("(Vote " & INDEX(Settings!$AE$4:$BF$200,MATCH($A130,Settings!$AK$4:$AK$200,0),3) & ")","") ->  | D130: =IF(S130=1,CONCATENATE("(" & $R130& ") ",IFERROR(INDEX(Settings!$AE$4:$BF$200,MATCH($A130,Settings!$AK$4:$AK$200,0),1),"")),IFERROR(INDEX(Settings!$AE$4:$BF$200,MATCH($A130,Settings!$AK$4:$AK$200,0),1),"")) ->  | E130: =TRIM(IFERROR(INDEX(Settings!$AE$4:$BF$200,MATCH($O130,Settings!$AV$4:$AV$200,0),24),""))&"." -> . | F130: =_xlfn.IFNA(INDEX(Settings!$AE$4:$BF$200,MATCH($A130,Settings!$AK$4:$AK$200,0),11),"") ->  | G130: Eastern Cape | H130: =INDEX(EC!$D$15:$G$375,MATCH($O130,EC!$D$15:$D$375,0),2) -> 0 | I130: =INDEX(EC!$D$15:$G$375,MATCH($O130,EC!$D$15:$D$375,0),3) -> 0 | J130: =INDEX(EC!$D$15:$G$375,MATCH($O130,EC!$D$15:$D$375,0),4) -> 0 | M130: =IF(LEN(D130)>2,1,0) -> 0 | O130: =IFERROR(INDEX(Settings!$AE$4:$BF$200,MATCH($A130,Settings!$AK$4:$AK$200,0),1),"") ->  | Q130: =IF(LEN(C130)<2,0,IF(C130=C119,Q119+1,1)) -> 0 | R130: =IFERROR(LOWER(RIGHT(LEFT(ADDRESS(1,Q130),2))),"") ->  | S130: =IF(Q130>1,1,IF(Q141>1,1,0)) -> 0
E131: =IFERROR(INDEX(Settings!$AE$4:$BF$200,MATCH($A131,Settings!$AK$4:$AK$200,0),1),"") -> Comprehensive Agricultural Support Programme Grant | G131: Free State | H131: =INDEX(FS!$D$15:$G$375,MATCH($O130,FS!$D$15:$D$375,0),2) -> 0 | I131: =INDEX(FS!$D$15:$G$375,MATCH($O130,FS!$D$15:$D$375,0),3) -> 0 | J131: =INDEX(FS!$D$15:$G$375,MATCH($O130,FS!$D$15:$D$375,0),4) -> 0 | M131: =M130 -> 0
E132: =IFERROR(INDEX(Settings!$AE$4:$BF$200,MATCH($A132,Settings!$AK$4:$AK$200,0),1),"") -> Comprehensive Agricultural Support Programme Grant | G132: Gauteng | H132: =INDEX(GT!$D$15:$G$375,MATCH($O130,GT!$D$15:$D$375,0),2) -> 0 | I132: =INDEX(GT!$D$15:$G$375,MATCH($O130,GT!$D$15:$D$375,0),3) -> 0 | J132: =INDEX(GT!$D$15:$G$375,MATCH($O130,GT!$D$15:$D$375,0),4) -> 0 | M132: 0
E133: =IFERROR(INDEX(Settings!$AE$4:$BF$200,MATCH($A133,Settings!$AK$4:$AK$200,0),1),"") -> Comprehensive Agricultural Support Programme Grant | G133: KwaZulu-Natal | H133: =INDEX(KZN!$D$15:$G$375,MATCH($O130,KZN!$D$15:$D$375,0),2) -> 0 | I133: =INDEX(KZN!$D$15:$G$375,MATCH($O130,KZN!$D$15:$D$375,0),3) -> 0 | J133: =INDEX(KZN!$D$15:$G$375,MATCH($O130,KZN!$D$15:$D$375,0),4) -> 0 | M133: 0
E134: =IFERROR(INDEX(Settings!$AE$4:$BF$200,MATCH($A134,Settings!$AK$4:$AK$200,0),1),"") -> Comprehensive Agricultural Support Programme Grant | G134: Limpopo | H134: =INDEX(LIM!$D$15:$G$375,MATCH($O130,LIM!$D$15:$D$375,0),2) -> 0 | I134: =INDEX(LIM!$D$15:$G$375,MATCH($O130,LIM!$D$15:$D$375,0),3) -> 0 | J134: =INDEX(LIM!$D$15:$G$375,MATCH($O130,LIM!$D$15:$D$375,0),4) -> 0 | M134: 0
E135: =IFERROR(INDEX(Settings!$AE$4:$BF$200,MATCH($A135,Settings!$AK$4:$AK$200,0),1),"") -> Comprehensive Agricultural Support Programme Grant | G135: Mpumalanga | H135: =INDEX(MPU!$D$15:$G$375,MATCH($O130,MPU!$D$15:$D$375,0),2) -> 0 | I135: =INDEX(MPU!$D$15:$G$375,MATCH($O130,MPU!$D$15:$D$375,0),3) -> 0 | J135: =INDEX(MPU!$D$15:$G$375,MATCH($O130,MPU!$D$15:$D$375,0),4) -> 0 | M135: 0
E136: =IFERROR(INDEX(Settings!$AE$4:$BF$200,MATCH($A136,Settings!$AK$4:$AK$200,0),1),"") -> Comprehensive Agricultural Support Programme Grant | G136: Northern Cape | H136: =INDEX(NC!$D$15:$G$375,MATCH($O130,NC!$D$15:$D$375,0),2) -> 0 | I136: =INDEX(NC!$D$15:$G$375,MATCH($O130,NC!$D$15:$D$375,0),3) -> 0 | J136: =INDEX(NC!$D$15:$G$375,MATCH($O130,NC!$D$15:$D$375,0),4) -> 0 | M136: 0
E137: =IFERROR(INDEX(Settings!$AE$4:$BF$200,MATCH($A137,Settings!$AK$4:$AK$200,0),1),"") -> Comprehensive Agricultural Support Programme Grant | G137: North West | H137: =INDEX(NW!$D$15:$G$375,MATCH($O130,NW!$D$15:$D$375,0),2) -> 0 | I137: =INDEX(NW!$D$15:$G$375,MATCH($O130,NW!$D$15:$D$375,0),3) -> 0 | J137: =INDEX(NW!$D$15:$G$375,MATCH($O130,NW!$D$15:$D$375,0),4) -> 0 | M137: 0
E138: =IFERROR(INDEX(Settings!$AE$4:$BF$200,MATCH($A138,Settings!$AK$4:$AK$200,0),1),"") -> Comprehensive Agricultural Support Programme Grant | G138: Western Cape | H138: =INDEX(WC!$D$15:$G$375,MATCH($O130,WC!$D$15:$D$375,0),2) -> 0 | I138: =INDEX(WC!$D$15:$G$375,MATCH($O130,WC!$D$15:$D$375,0),3) -> 0 | J138: =INDEX(WC!$D$15:$G$375,MATCH($O130,WC!$D$15:$D$375,0),4) -> 0 | M138: 0
E139: =IFERROR(INDEX(Settings!$AE$4:$BF$200,MATCH($A139,Settings!$AK$4:$AK$200,0),1),"") -> Comprehensive Agricultural Support Programme Grant | G139: Unallocated | H139: =INDEX(Unallocated!$D$15:$G$375,MATCH($O130,Unallocated!$D$15:$D$375,0),2) -> 0 | I139: =INDEX(Unallocated!$D$15:$G$375,MATCH($O130,Unallocated!$D$15:$D$375,0),3) -> 0 | J139: =INDEX(Unallocated!$D$15:$G$375,MATCH($O130,Unallocated!$D$15:$D$375,0),4) -> 0 | M139: =IF(SUM(H139:J139)=0,0,1) -> 0
E140: =IFERROR(INDEX(Settings!$AE$4:$BF$200,MATCH($A140,Settings!$AK$4:$AK$200,0),1),"") -> Comprehensive Agricultural Support Programme Grant | G140: TOTAL | H140: =SUM(H130:H139) -> 0 | I140: =SUM(I130:I139) -> 0 | J140: =SUM(J130:J139) -> 0 | M140: =M130 -> 0
A141: 13 | C141: =_xlfn.IFNA(INDEX(Settings!$AE$4:$BF$200,MATCH($A141,Settings!$AK$4:$AK$200,0),2),"") & CHAR(10) & _xlfn.IFNA("(Vote " & INDEX(Settings!$AE$4:$BF$200,MATCH($A141,Settings!$AK$4:$AK$200,0),3) & ")","") ->  | D141: =IF(S141=1,CONCATENATE("(" & $R141& ") ",IFERROR(INDEX(Settings!$AE$4:$BF$200,MATCH($A141,Settings!$AK$4:$AK$200,0),1),"")),IFERROR(INDEX(Settings!$AE$4:$BF$200,MATCH($A141,Settings!$AK$4:$AK$200,0),1),"")) ->  | E141: =TRIM(IFERROR(INDEX(Settings!$AE$4:$BF$200,MATCH($O141,Settings!$AV$4:$AV$200,0),24),""))&"." -> . | F141: =_xlfn.IFNA(INDEX(Settings!$AE$4:$BF$200,MATCH($A141,Settings!$AK$4:$AK$200,0),11),"") ->  | G141: Eastern Cape | H141: =INDEX(EC!$D$15:$G$375,MATCH($O141,EC!$D$15:$D$375,0),2) -> 0 | I141: =INDEX(EC!$D$15:$G$375,MATCH($O141,EC!$D$15:$D$375,0),3) -> 0 | J141: =INDEX(EC!$D$15:$G$375,MATCH($O141,EC!$D$15:$D$375,0),4) -> 0 | M141: =IF(LEN(D141)>2,1,0) -> 0 | O141: =IFERROR(INDEX(Settings!$AE$4:$BF$200,MATCH($A141,Settings!$AK$4:$AK$200,0),1),"") ->  | Q141: =IF(LEN(C141)<2,0,IF(C141=C130,Q130+1,1)) -> 0 | R141: =IFERROR(LOWER(RIGHT(LEFT(ADDRESS(1,Q141),2))),"") ->  | S141: =IF(Q141>1,1,IF(Q152>1,1,0)) -> 0
E142: =IFERROR(INDEX(Settings!$AE$4:$BF$200,MATCH($A142,Settings!$AK$4:$AK$200,0),1),"") -> Comprehensive Agricultural Support Programme Grant | G142: Free State | H142: =INDEX(FS!$D$15:$G$375,MATCH($O141,FS!$D$15:$D$375,0),2) -> 0 | I142: =INDEX(FS!$D$15:$G$375,MATCH($O141,FS!$D$15:$D$375,0),3) -> 0 | J142: =INDEX(FS!$D$15:$G$375,MATCH($O141,FS!$D$15:$D$375,0),4) -> 0 | M142: =M141 -> 0
E143: =IFERROR(INDEX(Settings!$AE$4:$BF$200,MATCH($A143,Settings!$AK$4:$AK$200,0),1),"") -> Comprehensive Agricultural Support Programme Grant | G143: Gauteng | H143: =INDEX(GT!$D$15:$G$375,MATCH($O141,GT!$D$15:$D$375,0),2) -> 0 | I143: =INDEX(GT!$D$15:$G$375,MATCH($O141,GT!$D$15:$D$375,0),3) -> 0 | J143: =INDEX(GT!$D$15:$G$375,MATCH($O141,GT!$D$15:$D$375,0),4) -> 0 | M143: 0
E144: =IFERROR(INDEX(Settings!$AE$4:$BF$200,MATCH($A144,Settings!$AK$4:$AK$200,0),1),"") -> Comprehensive Agricultural Support Programme Grant | G144: KwaZulu-Natal | H144: =INDEX(KZN!$D$15:$G$375,MATCH($O141,KZN!$D$15:$D$375,0),2) -> 0 | I144: =INDEX(KZN!$D$15:$G$375,MATCH($O141,KZN!$D$15:$D$375,0),3) -> 0 | J144: =INDEX(KZN!$D$15:$G$375,MATCH($O141,KZN!$D$15:$D$375,0),4) -> 0 | M144: 0
E145: =IFERROR(INDEX(Settings!$AE$4:$BF$200,MATCH($A145,Settings!$AK$4:$AK$200,0),1),"") -> Comprehensive Agricultural Support Programme Grant | G145: Limpopo | H145: =INDEX(LIM!$D$15:$G$375,MATCH($O141,LIM!$D$15:$D$375,0),2) -> 0 | I145: =INDEX(LIM!$D$15:$G$375,MATCH($O141,LIM!$D$15:$D$375,0),3) -> 0 | J145: =INDEX(LIM!$D$15:$G$375,MATCH($O141,LIM!$D$15:$D$375,0),4) -> 0 | M145: 0
E146: =IFERROR(INDEX(Settings!$AE$4:$BF$200,MATCH($A146,Settings!$AK$4:$AK$200,0),1),"") -> Comprehensive Agricultural Support Programme Grant | G146: Mpumalanga | H146: =INDEX(MPU!$D$15:$G$375,MATCH($O141,MPU!$D$15:$D$375,0),2) -> 0 | I146: =INDEX(MPU!$D$15:$G$375,MATCH($O141,MPU!$D$15:$D$375,0),3) -> 0 | J146: =INDEX(MPU!$D$15:$G$375,MATCH($O141,MPU!$D$15:$D$375,0),4) -> 0 | M146: 0
E147: =IFERROR(INDEX(Settings!$AE$4:$BF$200,MATCH($A147,Settings!$AK$4:$AK$200,0),1),"") -> Comprehensive Agricultural Support Programme Grant | G147: Northern Cape | H147: =INDEX(NC!$D$15:$G$375,MATCH($O141,NC!$D$15:$D$375,0),2) -> 0 | I147: =INDEX(NC!$D$15:$G$375,MATCH($O141,NC!$D$15:$D$375,0),3) -> 0 | J147: =INDEX(NC!$D$15:$G$375,MATCH($O141,NC!$D$15:$D$375,0),4) -> 0 | M147: 0
E148: =IFERROR(INDEX(Settings!$AE$4:$BF$200,MATCH($A148,Settings!$AK$4:$AK$200,0),1),"") -> Comprehensive Agricultural Support Programme Grant | G148: North West | H148: =INDEX(NW!$D$15:$G$375,MATCH($O141,NW!$D$15:$D$375,0),2) -> 0 | I148: =INDEX(NW!$D$15:$G$375,MATCH($O141,NW!$D$15:$D$375,0),3) -> 0 | J148: =INDEX(NW!$D$15:$G$375,MATCH($O141,NW!$D$15:$D$375,0),4) -> 0 | M148: 0
E149: =IFERROR(INDEX(Settings!$AE$4:$BF$200,MATCH($A149,Settings!$AK$4:$AK$200,0),1),"") -> Comprehensive Agricultural Support Programme Grant | G149: Western Cape | H149: =INDEX(WC!$D$15:$G$375,MATCH($O141,WC!$D$15:$D$375,0),2) -> 0 | I149: =INDEX(WC!$D$15:$G$375,MATCH($O141,WC!$D$15:$D$375,0),3) -> 0 | J149: =INDEX(WC!$D$15:$G$375,MATCH($O141,WC!$D$15:$D$375,0),4) -> 0 | M149: 0
E150: =IFERROR(INDEX(Settings!$AE$4:$BF$200,MATCH($A150,Settings!$AK$4:$AK$200,0),1),"") -> Comprehensive Agricultural Support Programme Grant | G150: Unallocated | H150: =INDEX(Unallocated!$D$15:$G$375,MATCH($O141,Unallocated!$D$15:$D$375,0),2) -> 0 | I150: =INDEX(Unallocated!$D$15:$G$375,MATCH($O141,Unallocated!$D$15:$D$375,0),3) -> 0 | J150: =INDEX(Unallocated!$D$15:$G$375,MATCH($O141,Unallocated!$D$15:$D$375,0),4) -> 0 | M150: =IF(SUM(H150:J150)=0,0,1) -> 0
E151: =IFERROR(INDEX(Settings!$AE$4:$BF$200,MATCH($A151,Settings!$AK$4:$AK$200,0),1),"") -> Comprehensive Agricultural Support Programme Grant | G151: TOTAL | H151: =SUM(H141:H150) -> 0 | I151: =SUM(I141:I150) -> 0 | J151: =SUM(J141:J150) -> 0 | M151: =M141 -> 0
A152: 14 | C152: =_xlfn.IFNA(INDEX(Settings!$AE$4:$BF$200,MATCH($A152,Settings!$AK$4:$AK$200,0),2),"") & CHAR(10) & _xlfn.IFNA("(Vote " & INDEX(Settings!$AE$4:$BF$200,MATCH($A152,Settings!$AK$4:$AK$200,0),3) & ")","") ->  | D152: =IF(S152=1,CONCATENATE("(" & $R152& ") ",IFERROR(INDEX(Settings!$AE$4:$BF$200,MATCH($A152,Settings!$AK$4:$AK$200,0),1),"")),IFERROR(INDEX(Settings!$AE$4:$BF$200,MATCH($A152,Settings!$AK$4:$AK$200,0),1),"")) ->  | E152: =TRIM(IFERROR(INDEX(Settings!$AE$4:$BF$200,MATCH($O152,Settings!$AV$4:$AV$200,0),24),""))&"." -> . | F152: =_xlfn.IFNA(INDEX(Settings!$AE$4:$BF$200,MATCH($A152,Settings!$AK$4:$AK$200,0),11),"") ->  | G152: Eastern Cape | H152: =INDEX(EC!$D$15:$G$375,MATCH($O152,EC!$D$15:$D$375,0),2) -> 0 | I152: =INDEX(EC!$D$15:$G$375,MATCH($O152,EC!$D$15:$D$375,0),3) -> 0 | J152: =INDEX(EC!$D$15:$G$375,MATCH($O152,EC!$D$15:$D$375,0),4) -> 0 | M152: =IF(LEN(D152)>2,1,0) -> 0 | O152: =IFERROR(INDEX(Settings!$AE$4:$BF$200,MATCH($A152,Settings!$AK$4:$AK$200,0),1),"") ->  | Q152: =IF(LEN(C152)<2,0,IF(C152=C141,Q141+1,1)) -> 0 | R152: =IFERROR(LOWER(RIGHT(LEFT(ADDRESS(1,Q152),2))),"") ->  | S152: =IF(Q152>1,1,IF(Q163>1,1,0)) -> 0
E153: =IFERROR(INDEX(Settings!$AE$4:$BF$200,MATCH($A153,Settings!$AK$4:$AK$200,0),1),"") -> Comprehensive Agricultural Support Programme Grant | G153: Free State | H153: =INDEX(FS!$D$15:$G$375,MATCH($O152,FS!$D$15:$D$375,0),2) -> 0 | I153: =INDEX(FS!$D$15:$G$375,MATCH($O152,FS!$D$15:$D$375,0),3) -> 0 | J153: =INDEX(FS!$D$15:$G$375,MATCH($O152,FS!$D$15:$D$375,0),4) -> 0 | M153: =M152 -> 0
E154: =IFERROR(INDEX(Settings!$AE$4:$BF$200,MATCH($A154,Settings!$AK$4:$AK$200,0),1),"") -> Comprehensive Agricultural Support Programme Grant | G154: Gauteng | H154: =INDEX(GT!$D$15:$G$375,MATCH($O152,GT!$D$15:$D$375,0),2) -> 0 | I154: =INDEX(GT!$D$15:$G$375,MATCH($O152,GT!$D$15:$D$375,0),3) -> 0 | J154: =INDEX(GT!$D$15:$G$375,MATCH($O152,GT!$D$15:$D$375,0),4) -> 0 | M154: 0
E155: =IFERROR(INDEX(Settings!$AE$4:$BF$200,MATCH($A155,Settings!$AK$4:$AK$200,0),1),"") -> Comprehensive Agricultural Support Programme Grant | G155: KwaZulu-Natal | H155: =INDEX(KZN!$D$15:$G$375,MATCH($O152,KZN!$D$15:$D$375,0),2) -> 0 | I155: =INDEX(KZN!$D$15:$G$375,MATCH($O152,KZN!$D$15:$D$375,0),3) -> 0 | J155: =INDEX(KZN!$D$15:$G$375,MATCH($O152,KZN!$D$15:$D$375,0),4) -> 0 | M155: 0
E156: =IFERROR(INDEX(Settings!$AE$4:$BF$200,MATCH($A156,Settings!$AK$4:$AK$200,0),1),"") -> Comprehensive Agricultural Support Programme Grant | G156: Limpopo | H156: =INDEX(LIM!$D$15:$G$375,MATCH($O152,LIM!$D$15:$D$375,0),2) -> 0 | I156: =INDEX(LIM!$D$15:$G$375,MATCH($O152,LIM!$D$15:$D$375,0),3) -> 0 | J156: =INDEX(LIM!$D$15:$G$375,MATCH($O152,LIM!$D$15:$D$375,0),4) -> 0 | M156: 0
E157: =IFERROR(INDEX(Settings!$AE$4:$BF$200,MATCH($A157,Settings!$AK$4:$AK$200,0),1),"") -> Comprehensive Agricultural Support Programme Grant | G157: Mpumalanga | H157: =INDEX(MPU!$D$15:$G$375,MATCH($O152,MPU!$D$15:$D$375,0),2) -> 0 | I157: =INDEX(MPU!$D$15:$G$375,MATCH($O152,MPU!$D$15:$D$375,0),3) -> 0 | J157: =INDEX(MPU!$D$15:$G$375,MATCH($O152,MPU!$D$15:$D$375,0),4) -> 0 | M157: 0
E158: =IFERROR(INDEX(Settings!$AE$4:$BF$200,MATCH($A158,Settings!$AK$4:$AK$200,0),1),"") -> Comprehensive Agricultural Support Programme Grant | G158: Northern Cape | H158: =INDEX(NC!$D$15:$G$375,MATCH($O152,NC!$D$15:$D$375,0),2) -> 0 | I158: =INDEX(NC!$D$15:$G$375,MATCH($O152,NC!$D$15:$D$375,0),3) -> 0 | J158: =INDEX(NC!$D$15:$G$375,MATCH($O152,NC!$D$15:$D$375,0),4) -> 0 | M158: 0
E159: =IFERROR(INDEX(Settings!$AE$4:$BF$200,MATCH($A159,Settings!$AK$4:$AK$200,0),1),"") -> Comprehensive Agricultural Support Programme Grant | G159: North West | H159: =INDEX(NW!$D$15:$G$375,MATCH($O152,NW!$D$15:$D$375,0),2) -> 0 | I159: =INDEX(NW!$D$15:$G$375,MATCH($O152,NW!$D$15:$D$375,0),3) -> 0 | J159: =INDEX(NW!$D$15:$G$375,MATCH($O152,NW!$D$15:$D$375,0),4) -> 0 | M159: 0
E160: =IFERROR(INDEX(Settings!$AE$4:$BF$200,MATCH($A160,Settings!$AK$4:$AK$200,0),1),"") -> Comprehensive Agricultural Support Programme Grant | G160: Western Cape | H160: =INDEX(WC!$D$15:$G$375,MATCH($O152,WC!$D$15:$D$375,0),2) -> 0 | I160: =INDEX(WC!$D$15:$G$375,MATCH($O152,WC!$D$15:$D$375,0),3) -> 0 | J160: =INDEX(WC!$D$15:$G$375,MATCH($O152,WC!$D$15:$D$375,0),4) -> 0 | M160: 0
E161: =IFERROR(INDEX(Settings!$AE$4:$BF$200,MATCH($A161,Settings!$AK$4:$AK$200,0),1),"") -> Comprehensive Agricultural Support Programme Grant | G161: Unallocated | H161: =INDEX(Unallocated!$D$15:$G$375,MATCH($O152,Unallocated!$D$15:$D$375,0),2) -> 0 | I161: =INDEX(Unallocated!$D$15:$G$375,MATCH($O152,Unallocated!$D$15:$D$375,0),3) -> 0 | J161: =INDEX(Unallocated!$D$15:$G$375,MATCH($O152,Unallocated!$D$15:$D$375,0),4) -> 0 | M161: =IF(SUM(H161:J161)=0,0,1) -> 0
E162: =IFERROR(INDEX(Settings!$AE$4:$BF$200,MATCH($A162,Settings!$AK$4:$AK$200,0),1),"") -> Comprehensive Agricultural Support Programme Grant | G162: TOTAL | H162: =SUM(H152:H161) -> 0 | I162: =SUM(I152:I161) -> 0 | J162: =SUM(J152:J161) -> 0 | M162: =M152 -> 0
A163: 15 | C163: =_xlfn.IFNA(INDEX(Settings!$AE$4:$BF$200,MATCH($A163,Settings!$AK$4:$AK$200,0),2),"") & CHAR(10) & _xlfn.IFNA("(Vote " & INDEX(Settings!$AE$4:$BF$200,MATCH($A163,Settings!$AK$4:$AK$200,0),3) & ")","") ->  | D163: =IF(S163=1,CONCATENATE("(" & $R163& ") ",IFERROR(INDEX(Settings!$AE$4:$BF$200,MATCH($A163,Settings!$AK$4:$AK$200,0),1),"")),IFERROR(INDEX(Settings!$AE$4:$BF$200,MATCH($A163,Settings!$AK$4:$AK$200,0),1),"")) ->  | E163: =TRIM(IFERROR(INDEX(Settings!$AE$4:$BF$200,MATCH($O163,Settings!$AV$4:$AV$200,0),24),""))&"." -> . | F163: =_xlfn.IFNA(INDEX(Settings!$AE$4:$BF$200,MATCH($A163,Settings!$AK$4:$AK$200,0),11),"") ->  | G163: Eastern Cape | H163: =INDEX(EC!$D$15:$G$375,MATCH($O163,EC!$D$15:$D$375,0),2) -> 0 | I163: =INDEX(EC!$D$15:$G$375,MATCH($O163,EC!$D$15:$D$375,0),3) -> 0 | J163: =INDEX(EC!$D$15:$G$375,MATCH($O163,EC!$D$15:$D$375,0),4) -> 0 | M163: =IF(LEN(D163)>2,1,0) -> 0 | O163: =IFERROR(INDEX(Settings!$AE$4:$BF$200,MATCH($A163,Settings!$AK$4:$AK$200,0),1),"") ->  | Q163: =IF(LEN(C163)<2,0,IF(C163=C152,Q152+1,1)) -> 0 | R163: =IFERROR(LOWER(RIGHT(LEFT(ADDRESS(1,Q163),2))),"") ->  | S163: =IF(Q163>1,1,IF(Q174>1,1,0)) -> 0
E164: =IFERROR(INDEX(Settings!$AE$4:$BF$200,MATCH($A164,Settings!$AK$4:$AK$200,0),1),"") -> Comprehensive Agricultural Support Programme Grant | G164: Free State | H164: =INDEX(FS!$D$15:$G$375,MATCH($O163,FS!$D$15:$D$375,0),2) -> 0 | I164: =INDEX(FS!$D$15:$G$375,MATCH($O163,FS!$D$15:$D$375,0),3) -> 0 | J164: =INDEX(FS!$D$15:$G$375,MATCH($O163,FS!$D$15:$D$375,0),4) -> 0 | M164: =M163 -> 0
E165: =IFERROR(INDEX(Settings!$AE$4:$BF$200,MATCH($A165,Settings!$AK$4:$AK$200,0),1),"") -> Comprehensive Agricultural Support Programme Grant | G165: Gauteng | H165: =INDEX(GT!$D$15:$G$375,MATCH($O163,GT!$D$15:$D$375,0),2) -> 0 | I165: =INDEX(GT!$D$15:$G$375,MATCH($O163,GT!$D$15:$D$375,0),3) -> 0 | J165: =INDEX(GT!$D$15:$G$375,MATCH($O163,GT!$D$15:$D$375,0),4) -> 0 | M165: 0
E166: =IFERROR(INDEX(Settings!$AE$4:$BF$200,MATCH($A166,Settings!$AK$4:$AK$200,0),1),"") -> Comprehensive Agricultural Support Programme Grant | G166: KwaZulu-Natal | H166: =INDEX(KZN!$D$15:$G$375,MATCH($O163,KZN!$D$15:$D$375,0),2) -> 0 | I166: =INDEX(KZN!$D$15:$G$375,MATCH($O163,KZN!$D$15:$D$375,0),3) -> 0 | J166: =INDEX(KZN!$D$15:$G$375,MATCH($O163,KZN!$D$15:$D$375,0),4) -> 0 | M166: 0
E167: =IFERROR(INDEX(Settings!$AE$4:$BF$200,MATCH($A167,Settings!$AK$4:$AK$200,0),1),"") -> Comprehensive Agricultural Support Programme Grant | G167: Limpopo | H167: =INDEX(LIM!$D$15:$G$375,MATCH($O163,LIM!$D$15:$D$375,0),2) -> 0 | I167: =INDEX(LIM!$D$15:$G$375,MATCH($O163,LIM!$D$15:$D$375,0),3) -> 0 | J167: =INDEX(LIM!$D$15:$G$375,MATCH($O163,LIM!$D$15:$D$375,0),4) -> 0 | M167: 0
E168: =IFERROR(INDEX(Settings!$AE$4:$BF$200,MATCH($A168,Settings!$AK$4:$AK$200,0),1),"") -> Comprehensive Agricultural Support Programme Grant | G168: Mpumalanga | H168: =INDEX(MPU!$D$15:$G$375,MATCH($O163,MPU!$D$15:$D$375,0),2) -> 0 | I168: =INDEX(MPU!$D$15:$G$375,MATCH($O163,MPU!$D$15:$D$375,0),3) -> 0 | J168: =INDEX(MPU!$D$15:$G$375,MATCH($O163,MPU!$D$15:$D$375,0),4) -> 0 | M168: 0
E169: =IFERROR(INDEX(Settings!$AE$4:$BF$200,MATCH($A169,Settings!$AK$4:$AK$200,0),1),"") -> Comprehensive Agricultural Support Programme Grant | G169: Northern Cape | H169: =INDEX(NC!$D$15:$G$375,MATCH($O163,NC!$D$15:$D$375,0),2) -> 0 | I169: =INDEX(NC!$D$15:$G$375,MATCH($O163,NC!$D$15:$D$375,0),3) -> 0 | J169: =INDEX(NC!$D$15:$G$375,MATCH($O163,NC!$D$15:$D$375,0),4) -> 0 | M169: 0
E170: =IFERROR(INDEX(Settings!$AE$4:$BF$200,MATCH($A170,Settings!$AK$4:$AK$200,0),1),"") -> Comprehensive Agricultural Support Programme Grant | G170: North West | H170: =INDEX(NW!$D$15:$G$375,MATCH($O163,NW!$D$15:$D$375,0),2) -> 0 | I170: =INDEX(NW!$D$15:$G$375,MATCH($O163,NW!$D$15:$D$375,0),3) -> 0 | J170: =INDEX(NW!$D$15:$G$375,MATCH($O163,NW!$D$15:$D$375,0),4) -> 0 | M170: 0
E171: =IFERROR(INDEX(Settings!$AE$4:$BF$200,MATCH($A171,Settings!$AK$4:$AK$200,0),1),"") -> Comprehensive Agricultural Support Programme Grant | G171: Western Cape | H171: =INDEX(WC!$D$15:$G$375,MATCH($O163,WC!$D$15:$D$375,0),2) -> 0 | I171: =INDEX(WC!$D$15:$G$375,MATCH($O163,WC!$D$15:$D$375,0),3) -> 0 | J171: =INDEX(WC!$D$15:$G$375,MATCH($O163,WC!$D$15:$D$375,0),4) -> 0 | M171: 0
E172: =IFERROR(INDEX(Settings!$AE$4:$BF$200,MATCH($A172,Settings!$AK$4:$AK$200,0),1),"") -> Comprehensive Agricultural Support Programme Grant | G172: Unallocated | H172: =INDEX(Unallocated!$D$15:$G$375,MATCH($O163,Unallocated!$D$15:$D$375,0),2) -> 0 | I172: =INDEX(Unallocated!$D$15:$G$375,MATCH($O163,Unallocated!$D$15:$D$375,0),3) -> 0 | J172: =INDEX(Unallocated!$D$15:$G$375,MATCH($O163,Unallocated!$D$15:$D$375,0),4) -> 0 | M172: =IF(SUM(H172:J172)=0,0,1) -> 0
E173: =IFERROR(INDEX(Settings!$AE$4:$BF$200,MATCH($A173,Settings!$AK$4:$AK$200,0),1),"") -> Comprehensive Agricultural Support Programme Grant | G173: TOTAL | H173: =SUM(H163:H172) -> 0 | I173: =SUM(I163:I172) -> 0 | J173: =SUM(J163:J172) -> 0 | M173: =M163 -> 0
A174: 16 | C174: =_xlfn.IFNA(INDEX(Settings!$AE$4:$BF$200,MATCH($A174,Settings!$AK$4:$AK$200,0),2),"") & CHAR(10) & _xlfn.IFNA("(Vote " & INDEX(Settings!$AE$4:$BF$200,MATCH($A174,Settings!$AK$4:$AK$200,0),3) & ")","") ->  | D174: =IF(S174=1,CONCATENATE("(" & $R174& ") ",IFERROR(INDEX(Settings!$AE$4:$BF$200,MATCH($A174,Settings!$AK$4:$AK$200,0),1),"")),IFERROR(INDEX(Settings!$AE$4:$BF$200,MATCH($A174,Settings!$AK$4:$AK$200,0),1),"")) ->  | E174: =TRIM(IFERROR(INDEX(Settings!$AE$4:$BF$200,MATCH($O174,Settings!$AV$4:$AV$200,0),24),""))&"." -> . | F174: =_xlfn.IFNA(INDEX(Settings!$AE$4:$BF$200,MATCH($A174,Settings!$AK$4:$AK$200,0),11),"") ->  | G174: Eastern Cape | H174: =INDEX(EC!$D$15:$G$375,MATCH($O174,EC!$D$15:$D$375,0),2) -> 0 | I174: =INDEX(EC!$D$15:$G$375,MATCH($O174,EC!$D$15:$D$375,0),3) -> 0 | J174: =INDEX(EC!$D$15:$G$375,MATCH($O174,EC!$D$15:$D$375,0),4) -> 0 | M174: =IF(LEN(D174)>2,1,0) -> 0 | O174: =IFERROR(INDEX(Settings!$AE$4:$BF$200,MATCH($A174,Settings!$AK$4:$AK$200,0),1),"") ->  | Q174: =IF(LEN(C174)<2,0,IF(C174=C163,Q163+1,1)) -> 0 | R174: =IFERROR(LOWER(RIGHT(LEFT(ADDRESS(1,Q174),2))),"") ->  | S174: =IF(Q174>1,1,IF(Q185>1,1,0)) -> 0
E175: =IFERROR(INDEX(Settings!$AE$4:$BF$200,MATCH($A175,Settings!$AK$4:$AK$200,0),1),"") -> Comprehensive Agricultural Support Programme Grant | G175: Free State | H175: =INDEX(FS!$D$15:$G$375,MATCH($O174,FS!$D$15:$D$375,0),2) -> 0 | I175: =INDEX(FS!$D$15:$G$375,MATCH($O174,FS!$D$15:$D$375,0),3) -> 0 | J175: =INDEX(FS!$D$15:$G$375,MATCH($O174,FS!$D$15:$D$375,0),4) -> 0 | M175: =M174 -> 0
E176: =IFERROR(INDEX(Settings!$AE$4:$BF$200,MATCH($A176,Settings!$AK$4:$AK$200,0),1),"") -> Comprehensive Agricultural Support Programme Grant | G176: Gauteng | H176: =INDEX(GT!$D$15:$G$375,MATCH($O174,GT!$D$15:$D$375,0),2) -> 0 | I176: =INDEX(GT!$D$15:$G$375,MATCH($O174,GT!$D$15:$D$375,0),3) -> 0 | J176: =INDEX(GT!$D$15:$G$375,MATCH($O174,GT!$D$15:$D$375,0),4) -> 0 | M176: 0
E177: =IFERROR(INDEX(Settings!$AE$4:$BF$200,MATCH($A177,Settings!$AK$4:$AK$200,0),1),"") -> Comprehensive Agricultural Support Programme Grant | G177: KwaZulu-Natal | H177: =INDEX(KZN!$D$15:$G$375,MATCH($O174,KZN!$D$15:$D$375,0),2) -> 0 | I177: =INDEX(KZN!$D$15:$G$375,MATCH($O174,KZN!$D$15:$D$375,0),3) -> 0 | J177: =INDEX(KZN!$D$15:$G$375,MATCH($O174,KZN!$D$15:$D$375,0),4) -> 0 | M177: 0
E178: =IFERROR(INDEX(Settings!$AE$4:$BF$200,MATCH($A178,Settings!$AK$4:$AK$200,0),1),"") -> Comprehensive Agricultural Support Programme Grant | G178: Limpopo | H178: =INDEX(LIM!$D$15:$G$375,MATCH($O174,LIM!$D$15:$D$375,0),2) -> 0 | I178: =INDEX(LIM!$D$15:$G$375,MATCH($O174,LIM!$D$15:$D$375,0),3) -> 0 | J178: =INDEX(LIM!$D$15:$G$375,MATCH($O174,LIM!$D$15:$D$375,0),4) -> 0 | M178: 0
E179: =IFERROR(INDEX(Settings!$AE$4:$BF$200,MATCH($A179,Settings!$AK$4:$AK$200,0),1),"") -> Comprehensive Agricultural Support Programme Grant | G179: Mpumalanga | H179: =INDEX(MPU!$D$15:$G$375,MATCH($O174,MPU!$D$15:$D$375,0),2) -> 0 | I179: =INDEX(MPU!$D$15:$G$375,MATCH($O174,MPU!$D$15:$D$375,0),3) -> 0 | J179: =INDEX(MPU!$D$15:$G$375,MATCH($O174,MPU!$D$15:$D$375,0),4) -> 0 | M179: 0
E180: =IFERROR(INDEX(Settings!$AE$4:$BF$200,MATCH($A180,Settings!$AK$4:$AK$200,0),1),"") -> Comprehensive Agricultural Support Programme Grant | G180: Northern Cape | H180: =INDEX(NC!$D$15:$G$375,MATCH($O174,NC!$D$15:$D$375,0),2) -> 0 | I180: =INDEX(NC!$D$15:$G$375,MATCH($O174,NC!$D$15:$D$375,0),3) -> 0 | J180: =INDEX(NC!$D$15:$G$375,MATCH($O174,NC!$D$15:$D$375,0),4) -> 0 | M180: 0
E181: =IFERROR(INDEX(Settings!$AE$4:$BF$200,MATCH($A181,Settings!$AK$4:$AK$200,0),1),"") -> Comprehensive Agricultural Support Programme Grant | G181: North West | H181: =INDEX(NW!$D$15:$G$375,MATCH($O174,NW!$D$15:$D$375,0),2) -> 0 | I181: =INDEX(NW!$D$15:$G$375,MATCH($O174,NW!$D$15:$D$375,0),3) -> 0 | J181: =INDEX(NW!$D$15:$G$375,MATCH($O174,NW!$D$15:$D$375,0),4) -> 0 | M181: 0
E182: =IFERROR(INDEX(Settings!$AE$4:$BF$200,MATCH($A182,Settings!$AK$4:$AK$200,0),1),"") -> Comprehensive Agricultural Support Programme Grant | G182: Western Cape | H182: =INDEX(WC!$D$15:$G$375,MATCH($O174,WC!$D$15:$D$375,0),2) -> 0 | I182: =INDEX(WC!$D$15:$G$375,MATCH($O174,WC!$D$15:$D$375,0),3) -> 0 | J182: =INDEX(WC!$D$15:$G$375,MATCH($O174,WC!$D$15:$D$375,0),4) -> 0 | M182: 0
E183: =IFERROR(INDEX(Settings!$AE$4:$BF$200,MATCH($A183,Settings!$AK$4:$AK$200,0),1),"") -> Comprehensive Agricultural Support Programme Grant | G183: Unallocated | H183: =INDEX(Unallocated!$D$15:$G$375,MATCH($O174,Unallocated!$D$15:$D$375,0),2) -> 0 | I183: =INDEX(Unallocated!$D$15:$G$375,MATCH($O174,Unallocated!$D$15:$D$375,0),3) -> 0 | J183: =INDEX(Unallocated!$D$15:$G$375,MATCH($O174,Unallocated!$D$15:$D$375,0),4) -> 0 | M183: =IF(SUM(H183:J183)=0,0,1) -> 0
E184: =IFERROR(INDEX(Settings!$AE$4:$BF$200,MATCH($A184,Settings!$AK$4:$AK$200,0),1),"") -> Comprehensive Agricultural Support Programme Grant | G184: TOTAL | H184: =SUM(H174:H183) -> 0 | I184: =SUM(I174:I183) -> 0 | J184: =SUM(J174:J183) -> 0 | M184: =M174 -> 0
A185: 17 | C185: =_xlfn.IFNA(INDEX(Settings!$AE$4:$BF$200,MATCH($A185,Settings!$AK$4:$AK$200,0),2),"") & CHAR(10) & _xlfn.IFNA("(Vote " & INDEX(Settings!$AE$4:$BF$200,MATCH($A185,Settings!$AK$4:$AK$200,0),3) & ")","") ->  | D185: =IF(S185=1,CONCATENATE("(" & $R185& ") ",IFERROR(INDEX(Settings!$AE$4:$BF$200,MATCH($A185,Settings!$AK$4:$AK$200,0),1),"")),IFERROR(INDEX(Settings!$AE$4:$BF$200,MATCH($A185,Settings!$AK$4:$AK$200,0),1),"")) ->  | E185: =TRIM(IFERROR(INDEX(Settings!$AE$4:$BF$200,MATCH($O185,Settings!$AV$4:$AV$200,0),24),""))&"." -> . | F185: =_xlfn.IFNA(INDEX(Settings!$AE$4:$BF$200,MATCH($A185,Settings!$AK$4:$AK$200,0),11),"") ->  | G185: Eastern Cape | H185: =INDEX(EC!$D$15:$G$375,MATCH($O185,EC!$D$15:$D$375,0),2) -> 0 | I185: =INDEX(EC!$D$15:$G$375,MATCH($O185,EC!$D$15:$D$375,0),3) -> 0 | J185: =INDEX(EC!$D$15:$G$375,MATCH($O185,EC!$D$15:$D$375,0),4) -> 0 | M185: =IF(LEN(D185)>2,1,0) -> 0 | O185: =IFERROR(INDEX(Settings!$AE$4:$BF$200,MATCH($A185,Settings!$AK$4:$AK$200,0),1),"") ->  | Q185: =IF(LEN(C185)<2,0,IF(C185=C174,Q174+1,1)) -> 0 | R185: =IFERROR(LOWER(RIGHT(LEFT(ADDRESS(1,Q185),2))),"") ->  | S185: =IF(Q185>1,1,IF(Q196>1,1,0)) -> 0
E186: =IFERROR(INDEX(Settings!$AE$4:$BF$200,MATCH($A186,Settings!$AK$4:$AK$200,0),1),"") -> Comprehensive Agricultural Support Programme Grant | G186: Free State | H186: =INDEX(FS!$D$15:$G$375,MATCH($O185,FS!$D$15:$D$375,0),2) -> 0 | I186: =INDEX(FS!$D$15:$G$375,MATCH($O185,FS!$D$15:$D$375,0),3) -> 0 | J186: =INDEX(FS!$D$15:$G$375,MATCH($O185,FS!$D$15:$D$375,0),4) -> 0 | M186: =M185 -> 0
E187: =IFERROR(INDEX(Settings!$AE$4:$BF$200,MATCH($A187,Settings!$AK$4:$AK$200,0),1),"") -> Comprehensive Agricultural Support Programme Grant | G187: Gauteng | H187: =INDEX(GT!$D$15:$G$375,MATCH($O185,GT!$D$15:$D$375,0),2) -> 0 | I187: =INDEX(GT!$D$15:$G$375,MATCH($O185,GT!$D$15:$D$375,0),3) -> 0 | J187: =INDEX(GT!$D$15:$G$375,MATCH($O185,GT!$D$15:$D$375,0),4) -> 0 | M187: 0
E188: =IFERROR(INDEX(Settings!$AE$4:$BF$200,MATCH($A188,Settings!$AK$4:$AK$200,0),1),"") -> Comprehensive Agricultural Support Programme Grant | G188: KwaZulu-Natal | H188: =INDEX(KZN!$D$15:$G$375,MATCH($O185,KZN!$D$15:$D$375,0),2) -> 0 | I188: =INDEX(KZN!$D$15:$G$375,MATCH($O185,KZN!$D$15:$D$375,0),3) -> 0 | J188: =INDEX(KZN!$D$15:$G$375,MATCH($O185,KZN!$D$15:$D$375,0),4) -> 0 | M188: 0
E189: =IFERROR(INDEX(Settings!$AE$4:$BF$200,MATCH($A189,Settings!$AK$4:$AK$200,0),1),"") -> Comprehensive Agricultural Support Programme Grant | G189: Limpopo | H189: =INDEX(LIM!$D$15:$G$375,MATCH($O185,LIM!$D$15:$D$375,0),2) -> 0 | I189: =INDEX(LIM!$D$15:$G$375,MATCH($O185,LIM!$D$15:$D$375,0),3) -> 0 | J189: =INDEX(LIM!$D$15:$G$375,MATCH($O185,LIM!$D$15:$D$375,0),4) -> 0 | M189: 0
E190: =IFERROR(INDEX(Settings!$AE$4:$BF$200,MATCH($A190,Settings!$AK$4:$AK$200,0),1),"") -> Comprehensive Agricultural Support Programme Grant | G190: Mpumalanga | H190: =INDEX(MPU!$D$15:$G$375,MATCH($O185,MPU!$D$15:$D$375,0),2) -> 0 | I190: =INDEX(MPU!$D$15:$G$375,MATCH($O185,MPU!$D$15:$D$375,0),3) -> 0 | J190: =INDEX(MPU!$D$15:$G$375,MATCH($O185,MPU!$D$15:$D$375,0),4) -> 0 | M190: 0
E191: =IFERROR(INDEX(Settings!$AE$4:$BF$200,MATCH($A191,Settings!$AK$4:$AK$200,0),1),"") -> Comprehensive Agricultural Support Programme Grant | G191: Northern Cape | H191: =INDEX(NC!$D$15:$G$375,MATCH($O185,NC!$D$15:$D$375,0),2) -> 0 | I191: =INDEX(NC!$D$15:$G$375,MATCH($O185,NC!$D$15:$D$375,0),3) -> 0 | J191: =INDEX(NC!$D$15:$G$375,MATCH($O185,NC!$D$15:$D$375,0),4) -> 0 | M191: 0
E192: =IFERROR(INDEX(Settings!$AE$4:$BF$200,MATCH($A192,Settings!$AK$4:$AK$200,0),1),"") -> Comprehensive Agricultural Support Programme Grant | G192: North West | H192: =INDEX(NW!$D$15:$G$375,MATCH($O185,NW!$D$15:$D$375,0),2) -> 0 | I192: =INDEX(NW!$D$15:$G$375,MATCH($O185,NW!$D$15:$D$375,0),3) -> 0 | J192: =INDEX(NW!$D$15:$G$375,MATCH($O185,NW!$D$15:$D$375,0),4) -> 0 | M192: 0
E193: =IFERROR(INDEX(Settings!$AE$4:$BF$200,MATCH($A193,Settings!$AK$4:$AK$200,0),1),"") -> Comprehensive Agricultural Support Programme Grant | G193: Western Cape | H193: =INDEX(WC!$D$15:$G$375,MATCH($O185,WC!$D$15:$D$375,0),2) -> 0 | I193: =INDEX(WC!$D$15:$G$375,MATCH($O185,WC!$D$15:$D$375,0),3) -> 0 | J193: =INDEX(WC!$D$15:$G$375,MATCH($O185,WC!$D$15:$D$375,0),4) -> 0 | M193: 0
E194: =IFERROR(INDEX(Settings!$AE$4:$BF$200,MATCH($A194,Settings!$AK$4:$AK$200,0),1),"") -> Comprehensive Agricultural Support Programme Grant | G194: Unallocated | H194: =INDEX(Unallocated!$D$15:$G$375,MATCH($O185,Unallocated!$D$15:$D$375,0),2) -> 0 | I194: =INDEX(Unallocated!$D$15:$G$375,MATCH($O185,Unallocated!$D$15:$D$375,0),3) -> 0 | J194: =INDEX(Unallocated!$D$15:$G$375,MATCH($O185,Unallocated!$D$15:$D$375,0),4) -> 0 | M194: =IF(SUM(H194:J194)=0,0,1) -> 0
E195: =IFERROR(INDEX(Settings!$AE$4:$BF$200,MATCH($A195,Settings!$AK$4:$AK$200,0),1),"") -> Comprehensive Agricultural Support Programme Grant | G195: TOTAL | H195: =SUM(H185:H194) -> 0 | I195: =SUM(I185:I194) -> 0 | J195: =SUM(J185:J194) -> 0 | M195: =M185 -> 0
A196: 18 | C196: =_xlfn.IFNA(INDEX(Settings!$AE$4:$BF$200,MATCH($A196,Settings!$AK$4:$AK$200,0),2),"") & CHAR(10) & _xlfn.IFNA("(Vote " & INDEX(Settings!$AE$4:$BF$200,MATCH($A196,Settings!$AK$4:$AK$200,0),3) & ")","") ->  | D196: =IF(S196=1,CONCATENATE("(" & $R196& ") ",IFERROR(INDEX(Settings!$AE$4:$BF$200,MATCH($A196,Settings!$AK$4:$AK$200,0),1),"")),IFERROR(INDEX(Settings!$AE$4:$BF$200,MATCH($A196,Settings!$AK$4:$AK$200,0),1),"")) ->  | E196: =TRIM(IFERROR(INDEX(Settings!$AE$4:$BF$200,MATCH($O196,Settings!$AV$4:$AV$200,0),24),""))&"." -> . | F196: =_xlfn.IFNA(INDEX(Settings!$AE$4:$BF$200,MATCH($A196,Settings!$AK$4:$AK$200,0),11),"") ->  | G196: Eastern Cape | H196: =INDEX(EC!$D$15:$G$375,MATCH($O196,EC!$D$15:$D$375,0),2) -> 0 | I196: =INDEX(EC!$D$15:$G$375,MATCH($O196,EC!$D$15:$D$375,0),3) -> 0 | J196: =INDEX(EC!$D$15:$G$375,MATCH($O196,EC!$D$15:$D$375,0),4) -> 0 | M196: =IF(LEN(D196)>2,1,0) -> 0 | O196: =IFERROR(INDEX(Settings!$AE$4:$BF$200,MATCH($A196,Settings!$AK$4:$AK$200,0),1),"") ->  | Q196: =IF(LEN(C196)<2,0,IF(C196=C185,Q185+1,1)) -> 0 | R196: =IFERROR(LOWER(RIGHT(LEFT(ADDRESS(1,Q196),2))),"") ->  | S196: =IF(Q196>1,1,IF(Q207>1,1,0)) -> 0
E197: =IFERROR(INDEX(Settings!$AE$4:$BF$200,MATCH($A197,Settings!$AK$4:$AK$200,0),1),"") -> Comprehensive Agricultural Support Programme Grant | G197: Free State | H197: =INDEX(FS!$D$15:$G$375,MATCH($O196,FS!$D$15:$D$375,0),2) -> 0 | I197: =INDEX(FS!$D$15:$G$375,MATCH($O196,FS!$D$15:$D$375,0),3) -> 0 | J197: =INDEX(FS!$D$15:$G$375,MATCH($O196,FS!$D$15:$D$375,0),4) -> 0 | M197: =M196 -> 0
E198: =IFERROR(INDEX(Settings!$AE$4:$BF$200,MATCH($A198,Settings!$AK$4:$AK$200,0),1),"") -> Comprehensive Agricultural Support Programme Grant | G198: Gauteng | H198: =INDEX(GT!$D$15:$G$375,MATCH($O196,GT!$D$15:$D$375,0),2) -> 0 | I198: =INDEX(GT!$D$15:$G$375,MATCH($O196,GT!$D$15:$D$375,0),3) -> 0 | J198: =INDEX(GT!$D$15:$G$375,MATCH($O196,GT!$D$15:$D$375,0),4) -> 0 | M198: 0
E199: =IFERROR(INDEX(Settings!$AE$4:$BF$200,MATCH($A199,Settings!$AK$4:$AK$200,0),1),"") -> Comprehensive Agricultural Support Programme Grant | G199: KwaZulu-Natal | H199: =INDEX(KZN!$D$15:$G$375,MATCH($O196,KZN!$D$15:$D$375,0),2) -> 0 | I199: =INDEX(KZN!$D$15:$G$375,MATCH($O196,KZN!$D$15:$D$375,0),3) -> 0 | J199: =INDEX(KZN!$D$15:$G$375,MATCH($O196,KZN!$D$15:$D$375,0),4) -> 0 | M199: 0
E200: =IFERROR(INDEX(Settings!$AE$4:$BF$200,MATCH($A200,Settings!$AK$4:$AK$200,0),1),"") -> Comprehensive Agricultural Support Programme Grant | G200: Limpopo | H200: =INDEX(LIM!$D$15:$G$375,MATCH($O196,LIM!$D$15:$D$375,0),2) -> 0 | I200: =INDEX(LIM!$D$15:$G$375,MATCH($O196,LIM!$D$15:$D$375,0),3) -> 0 | J200: =INDEX(LIM!$D$15:$G$375,MATCH($O196,LIM!$D$15:$D$375,0),4) -> 0 | M200: 0
E201: =IFERROR(INDEX(Settings!$AE$4:$BF$200,MATCH($A201,Settings!$AK$4:$AK$200,0),1),"") -> Comprehensive Agricultural Support Programme Grant | G201: Mpumalanga | H201: =INDEX(MPU!$D$15:$G$375,MATCH($O196,MPU!$D$15:$D$375,0),2) -> 0 | I201: =INDEX(MPU!$D$15:$G$375,MATCH($O196,MPU!$D$15:$D$375,0),3) -> 0 | J201: =INDEX(MPU!$D$15:$G$375,MATCH($O196,MPU!$D$15:$D$375,0),4) -> 0 | M201: 0
E202: =IFERROR(INDEX(Settings!$AE$4:$BF$200,MATCH($A202,Settings!$AK$4:$AK$200,0),1),"") -> Comprehensive Agricultural Support Programme Grant | G202: Northern Cape | H202: =INDEX(NC!$D$15:$G$375,MATCH($O196,NC!$D$15:$D$375,0),2) -> 0 | I202: =INDEX(NC!$D$15:$G$375,MATCH($O196,NC!$D$15:$D$375,0),3) -> 0 | J202: =INDEX(NC!$D$15:$G$375,MATCH($O196,NC!$D$15:$D$375,0),4) -> 0 | M202: 0
... 26 more rows

Sheet Schedule 4B
C1: SCHEDULE 4, PART B
C3: ALLOCATIONS TO MUNICIPALITIES TO SUPPLEMENT THE FUNDING OF FUNCTIONS FUNDED FROM MUNICIPAL BUDGETS
C5: Vote | D5: Name of allocation | E5: Purpose | G5: City | H5: Column A
H6: 2020/21 Main Allocation | I6: Adjustment | J6: 2020/21 Adjusted Allocation
U7: Tabled | V7: Score sheet | W7: Check | X7: Adjusted allocation | Y7: Check
E8: 1 | H8: R'000 | I8: R'000 | J8: R'000 | M8: Filter | N8: PageBreak | O8: Grants
A9: 1 | C9: =IFERROR(INDEX(Settings!$AE$4:$BF$200,MATCH($A9,Settings!$AP$4:$AP$200,0),2),"") & CHAR(10) & IFERROR("(Vote " & INDEX(Settings!$AE$4:$BF$200,MATCH($A9,Settings!$AP$4:$AP$200,0),3) & ")","") -> Human Settlements (Vote 33) | D9: =IF(S9=1,CONCATENATE("(" & $R9& ") ",IFERROR(INDEX(Settings!$AE$4:$BF$200,MATCH($A9,Settings!$AP$4:$AP$200,0),1),"")),IFERROR(INDEX(Settings!$AE$4:$BF$200,MATCH($A9,Settings!$AP$4:$AP$200,0),1),"")) -> Urban Settlements Development Grant | E9: =TRIM(IFERROR(INDEX(Settings!$AE$4:$BF$200,MATCH($O9,Settings!$AV$4:$AV$200,0),24),""))&"." -> To supplement the capital revenues of metropolitan municipalities in order to implement infrastructure projects that promote equitable, integrated, productive, inclusive and sustainable urban development; to provide funding to facilitate a programmatic, inclusive and municipality-wide approach to upgrading informal settlements. | F9: =IFERROR(INDEX(Settings!$AE$4:$BF$200,MATCH($O9,Settings!$AV$4:$AV$200,0),20),"") -> Schedule 4, Part B | G9: Buffalo City | H9: =IFERROR(INDEX(Current!$F$11:$AI$1280,MATCH($G9,Current!$E$11:$E$1280,0),MATCH($O9,Current!$F$5:$AI$5,0)),IFERROR(INDEX('Schedules 4 and 5_curr & infr'!$F$12:$AF$1281,MATCH($G9,'Schedules 4 and 5_curr & infr'!$E$12:$E$1281,0),MATCH($O9,'Schedules 4 and 5_curr & infr'!$F$5:$AF$5,0)),IFERROR(INDEX('Allocations-in-Kind'!$F$12:$AI$1281,MATCH($G9,'Allocations-in-Kind'!$E$12:$E$1281,0),MATCH($O9,'Allocations-in-Kind'!$F$5:$AI$5,0)),""))) -> 761354 | I9: -74233 | J9: =H9+I9 -> 687121 | M9: =IF(LEN(D9)>2,IF(LEN(G9)>2,1,0),0) -> 1 | O9: =IFERROR(INDEX(Settings!$AE$4:$BF$200,MATCH($A9,Settings!$AP$4:$AP$200,0),1),"") -> Urban Settlements Development Grant | Q9: 1 | R9: =IFERROR(LOWER(RIGHT(LEFT(ADDRESS(1,Q9),2))),"") -> a | S9: =IF(Q9>1,1,IF(Q20>1,1,0)) -> 0 | U9: TRUE
E10: =IFERROR(INDEX(Settings!$AE$4:$BF$200,MATCH($A10,Settings!$AK$4:$AK$200,0),1),"") -> Comprehensive Agricultural Support Programme Grant | F10: =IFERROR(INDEX(Settings!$AE$4:$BF$200,MATCH($A10,Settings!$AK$4:$AK$200,0),1),"") -> Comprehensive Agricultural Support Programme Grant | G10: City of Cape Town | H10: =IFERROR(INDEX(Current!$F$11:$AI$1280,MATCH($G10,Current!$E$11:$E$1280,0),MATCH($O9,Current!$F$5:$AI$5,0)),IFERROR(INDEX('Schedules 4 and 5_curr & infr'!$F$12:$AF$1281,MATCH($G10,'Schedules 4 and 5_curr & infr'!$E$12:$E$1281,0),MATCH($O9,'Schedules 4 and 5_curr & infr'!$F$5:$AF$5,0)),IFERROR(INDEX('Allocations-in-Kind'!$F$12:$AI$1281,MATCH($G10,'Allocations-in-Kind'!$E$12:$E$1281,0),MATCH($O9,'Allocations-in-Kind'!$F$5:$AI$5,0)),""))) -> 1481604 | I10: -144459 | J10: =H10+I10 -> 1337145 | M10: =IF(LEN(D9)>2,IF(LEN(G10)>2,1,0),0) -> 1 | U10: TRUE
E11: =IFERROR(INDEX(Settings!$AE$4:$BF$200,MATCH($A11,Settings!$AK$4:$AK$200,0),1),"") -> Comprehensive Agricultural Support Programme Grant | F11: =IFERROR(INDEX(Settings!$AE$4:$BF$200,MATCH($A11,Settings!$AK$4:$AK$200,0),1),"") -> Comprehensive Agricultural Support Programme Grant | G11: City of Ekurhuleni | H11: =IFERROR(INDEX(Current!$F$11:$AI$1280,MATCH($G11,Current!$E$11:$E$1280,0),MATCH($O9,Current!$F$5:$AI$5,0)),IFERROR(INDEX('Schedules 4 and 5_curr & infr'!$F$12:$AF$1281,MATCH($G11,'Schedules 4 and 5_curr & infr'!$E$12:$E$1281,0),MATCH($O9,'Schedules 4 and 5_curr & infr'!$F$5:$AF$5,0)),IFERROR(INDEX('Allocations-in-Kind'!$F$12:$AI$1281,MATCH($G11,'Allocations-in-Kind'!$E$12:$E$1281,0),MATCH($O9,'Allocations-in-Kind'!$F$5:$AI$5,0)),""))) -> 1967505 | I11: -191835 | J11: 1775670 | M11: =IF(LEN(D9)>2,IF(LEN(G11)>2,1,0),0) -> 1 | U11: TRUE
